Workbook

Sheet Intro
B5: Calculations to divide UK quota between the four Fisheries Administrations and allocate quota to England, Northern Ireland and Wales
B6: Updated 16 July 2025
B7: Note that Scottish quota allocations are incorporated into the UK spreadsheet. Scottish government will share the workings for their allocations.
B9: 2025 fishing opportunities (SoS determination) - https://www.gov.uk/government/publications/fishing-opportunities-for-british-fishing-boats-determinations-published-in-2025
B10: UK quota management rules (QMR) - https://www.gov.uk/government/publications/quota-management-rules
B12: Tabs
B13: Version control | C13: Second Version #3
B14: Apportion
B15: All stocks | C15: List of stocks in the SoS determination and UK level banking and deductions for all stocks (including unallocated). Column C states whether these stocks are divided "apportioned" between UK Fisheries Administrations
B16: Special conditions | C16: List of all SC stocks in the SoS
B17: Main apportion | C17: All calculations required to divide UK quota between the 4 FAs. Columns coloured blue denote the total quota stage of the process. Columns coloured green denote the existing quota (EQ) step and purple columns the additional quota (AQ) step.
B19: Reserve quota | C19: Workings to calculate the reserve tonnage for England and Wales.
B20: Allocation
B21: England | C21: English allocations including AQ, EQ and Reserve quota (RQ)
B22: Northern Ireland | C22: Northern Ireland allocations including AQ and EQ
B23: Wales | C23: Welsh allocations including AQ, EQ and RQ
B24: England AQ | C24: England AQ inputs
B25: Northern Ireland AQ | C25: Northern Ireland AQ inputs
B26: Wales AQ | C26: Wales AQ inputs
B27: England EQ | C27: England EQ calcs
B28: Inputs
B29: UK FQA | C29: Input data for UK FQAs
B30: FA FQA | C30: Input data for FQAs by Fisheries Administration and group (Sector and Non Sector)
B31: Other FQA | C31: Input data for SRX and JAX stocks where calculations are required to generate FQA inputs
B32: FQA summary
B33: UK Sector FQA | C33: Summary of UK FQAs by stock and group for the Sector. This tab doesn't feed into any calcs and is a pivot of the data in tab FA FQA.
B35: Contact | C35: statistics@marinemanagement.org.uk

Sheet Version control
B5: Date | C5: Version | D5: Notes
B6: 2025-05-01 | C6: #1 | D6: First version of Finals
B7: 2025-05-15 | C7: #2 | D7: Includes distribution of Northern Ireland NEP/07 AQ
B8: 2025-07-16 | C8: #3 | D8: Includes distribution of additional mackerel and NS haddock + sprat allocations + NI herring 7A and IoM nephrops 7 previously unallocated

Sheet Apportion >>

Sheet All stocks
B1: New in 2025 | F1: Figs inh RED updated in 2025
A2: Stocks in SoS determination | F2: (from 'to delete sheet')
A3: Stock code | B3: United Kingdom allocation (tonnes) | C3: Allocate (Y/N flag) | D3: Notes | E3: Can be banked and borrowed (Y/N flag) | F3: United Kingdom banking (tonnes) | G3: United Kingdom penalties (tonnes)
A4: ALB/AN05N | B4: 663 | C4: N | E4: N
A5: ALF/3X14- | B5: 5 | C5: N | E5: Y
A6: ANF/07. | B6: 11119 | C6: Y | E6: Y
A7: ANF/2AC4-C | B7: 17566 | C7: Y | E7: Y
A8: ANF/56-14 | B8: 4941 | C8: Y | E8: Y
A9: ARU/1/2. | B9: 41 | C9: N | E9: Y
A10: ARU/3A4-C | B10: 21 | C10: N | E10: Y
A11: ARU/567. | B11: 503 | C11: Y | E11: Y
A12: BLI/12INT- | B12: 0 | C12: N | E12: N
A13: BLI/24- | B13: 6 | C13: N | E13: N
A14: BLI/5B67- | B14: =2740+10-250 -> 2500 | C14: Y | D14: Norway/FPO exchange adjustment | E14: Y
A15: BLL/7DE | B15: 340 | C15: Y | E15: Y
A16: BOR/678- | B16: 2436 | C16: Y | E16: Y
A17: BSF/56712- | B17: 78 | C17: Y | E17: Y
A18: COD/07A. | B18: 74 | C18: Y | E18: N
A19: COD/07D. | B19: 107 | C19: Y | E19: N
A20: COD/5BE6A | B20: =890+15-5 -> 900 | C20: Y | D20: Norway/FPO exchange adjustment | E20: Y
A21: COD/5W6-14 | B21: =56-6.6 -> 49.4 | C21: N | D21: 3rd country excess catch | E21: Y
A22: COD/7XAD34 | B22: 66 | C22: Y | E22: N
A23: DGS/15X14 | B23: 6461 | C23: N | E23: Y
A24: DGS/2AC4-C | B24: =3576*0.75 -> 2682 | C24: Y | E24: Y
A25: HAD/07A. | B25: 1060 | C25: Y | E25: Y
A26: HAD/5BC6A. | B26: 8610 | C26: Y | E26: Y
A27: HAD/6B1214 | B27: 8666 | C27: Y | E27: Y
A28: HAD/7X7A34 | B28: 1271 | C28: Y | E28: Y
A29: HER/07A/MM | B29: 5171 | C29: Y | E29: Y
A30: HER/5B6ANB | B30: 1160 | C30: Y | E30: Y
A31: HER/7EF. | B31: 179 | C31: Y | E31: Y
A32: HER/7G-K. | B32: 1 | C32: N | E32: N
A33: HKE/2AC4-C | B33: 1082 | C33: Y | E33: Y
A34: HKE/571214 | B34: 6756 | C34: Y | E34: Y
A35: JAX/2A-14 | B35: 6124 | C35: Y | E35: N
A36: JAX/4BC7D | B36: 388 | C36: Y | E36: Y
A37: L/W/2AC4-C | B37: 1470 | C37: Y | E37: Y
A38: LEM/07D | B38: 20 | C38: Y | E38: Y
A39: LEZ/07. | B39: 4306 | C39: Y | E39: Y
A40: LEZ/2AC4-C | B40: 2787 | C40: Y | E40: Y
A41: LEZ/56-14 | B41: 2593 | C41: Y | E41: Y
A42: LIN/03A-C. | B42: 11 | C42: N | E42: Y
A43: LIN/04-C. | B43: 1813 | C43: Y | E43: Y
A44: LIN/6X14. | B44: =3485+280 -> 3765 | C44: Y | D44: Norway/FPO exchange adjustment | E44: Y
A45: NEP/07. | B45: 7009 | C45: Y | E45: Y
A46: NEP/2AC4-C | B46: 13685 | C46: Y | E46: Y
A47: NEP/*07U16 | B47: 512 | C47: Y | E47: Y
A48: NOP/2A3A4. | B48: 100 | C48: N | E48: Y
A49: PLE/07A. | B49: 769 | C49: Y | E49: Y
A50: PLE/56-14 | B50: 360 | C50: Y | E50: Y
A51: PLE/7DE. | B51: 1177 | C51: Y | E51: Y
A52: PLE/7FG. | B52: 30 | C52: Y | E52: Y
A53: PLE/7HJK. | B53: 23 | C53: Y | E53: Y
A54: POK/56-14 | B54: 3791 | C54: Y | E54: Y
A55: POK/7/3411 | B55: 183 | C55: Y | E55: Y
A56: POL/07. | B56: 172 | C56: Y | E56: Y
A57: POL/56-14 | B57: =24+2 -> 26 | C57: Y | D57: Norway/FPO exchange adjustment | E57: Y
A58: PRA/2AC4-C | B58: 0 | C58: Y | E58: Y
A59: RJU/7DE. | B59: 1324 | C59: N | E59: N
A60: RNG/5B67- | B60: 64 | C60: Y | E60: Y
A61: RNG/8X14- | B61: 5 | C61: N | E61: Y
A62: SAN/2A3A4. | B62: 0 | C62: N | E62: Y
A63: SBR/678- | B63: 11 | C63: N | E63: N
A64: SOL/07A. | B64: 142 | C64: Y | E64: Y
A65: SOL/07D. | B65: 242 | C65: Y | E65: Y
A66: SOL/07E. | B66: 719 | C66: Y | E66: Y
A67: SOL/24-C. | B67: 1700 | C67: Y | E67: Y
A68: SOL/56-14 | B68: 11 | C68: Y | E68: Y
A69: SOL/7FG. | B69: 371 | C69: Y | E69: Y
A70: SOL/7HJK. | B70: 28 | C70: Y | E70: Y
A71: SPR/2AC4-C | B71: 7369 | C71: Y | D71: July 2025 to June 2026 | E71: Y
A72: SPR/7DE. | B72: 4846 | C72: Y | D72: July 2025 to June 2026 | E72: Y
A73: SRX/07D. | B73: 424 | C73: Y | E73: N
A74: SRX/2AC4-C | B74: 2186 | C74: Y | E74: N
A75: SRX/67AKXD | B75: 2924 | C75: Y | E75: N
A76: T/B/2AC4-C | B76: 861 | C76: Y | E76: Y
A77: USK/04-C. | B77: 84 | C77: Y | E77: Y
A78: USK/567EI. | B78: =1857+60 -> 1917 | C78: Y | D78: Norway/FPO exchange adjustment | E78: Y
A79: WHG/07A. | B79: 440 | C79: Y | E79: N
A80: WHG/56-14 | B80: 3264 | C80: Y | E80: Y
A81: WHG/7X7A-C | B81: 3648 | C81: Y | E81: Y
A82: COD/2A3AX4 | B82: 9419 | C82: Y | E82: N
A83: HAD/2AC4. | B83: =61928-1800+1800 -> 61928 | C83: Y | D83: Faroes - 200t (-1800t reserve) | E83: Y
A84: HER/2A47DX | B84: 140 | C84: N | E84: Y
A85: HER/4AB. | B85: =74970-1288.7 -> 73681.3 | C85: Y | D85: 3rd country issue | E85: Y
A86: HER/4CXB7D | B86: 5278 | C86: Y | E86: Y
A87: PLE/2A3AX4 | B87: 41228 | C87: Y | E87: Y
A88: POK/2C3A4 | B88: 8940 | C88: Y | E88: Y
A89: WHG/2AC4. | B89: 74030 | C89: Y | E89: Y
A90: MAC/2A34. | B90: 1415 | C90: Y | E90: Y
A91: MAC/2CX14- | B91: 185594 | C91: Y | E91: Y
A92: WHB/1X14 | B92: 114157 | C92: Y | E92: Y
A93: BFT/AE45WM | B93: 63 | C93: N | E93: N
A94: BSH/AN05N | B94: 25 | C94: N | E94: N
A95: COD/N3M. | B95: 1176 | C95: Y | E95: N
A96: COD/1/2B. | B96: 3075 | C96: Y | E96: N
A97: GHL/2A-C46 | B97: =191+80 -> 271 | C97: Y | D97: Norway/FPO exchange adjustment | E97: Y
A98: HER/06ACL. | B98: 0 | C98: Y | D98: To be allocated later | E98: N
A99: HER/1/2- | B99: 7847 | C99: Y | E99: Y
A100: HER/4C_BW | B100: 10
A101: LIN/05EI. | B101: 1 | C101: N | E101: Y
A102: LIN/1/2. | B102: 7 | C102: N | E102: Y
A103: NEP/5BC6. | B103: 13315 | C103: Y | E103: Y
A104: SBR/10- | B104: 4 | C104: N | E104: Y
A105: SRX/89-C. | B105: 13 | C105: N | E105: Y
A106: USK/1214EI | B106: 5 | C106: N | E106: Y
A107: GHL/1/2INT | B107: 0 | C107: N | E107: N
A108: RED/1/2INT | B108: 3964 | C108: N | E108: N
A109: RJE/7FG. | B109: 57 | C109: N | E109: N
A110: SWO/AN05N | B110: 1 | C110: N | D110: Added in 2022 | E110: N
A111: COD/1N2AB. | B111: 1000 | C111: Y | D111: Added in 2022 | E111: N
A112: OTH/04-N. | B112: 0 | C112: Y | D112: Added in 2022 | E112: N
A113: ANF/04-N. | B113: 0 | C113: Y | D113: Added in 2022 | E113: N
A114: C/H/05B-F | B114: 880 | C114: Y | E114: N
A115: POK/05B-F | B115: 575 | C115: Y | E115: N
A116: RED/05B-F | B116: 10 | C116: Y | E116: N
A117: B/L/05B-F | B117: 160 | C117: Y | E117: N
A118: FLX/05B-F. | B118: 40 | C118: N | E118: N
A119: OTH/05B-F | B119: 425 | C119: Y | E119: N
A120: USK/1214EI | B120: 5 | C120: N | D120: Added in 2023 | E120: Y

Sheet Special conditions
A1: Special conditions in SoS determination
A2: Stock code | B2: Parent stock | C2: Condition | D2: Per cent or tonnes | E2: Is parent stock allocated? | F2: Is SC stock allocated? | G2: Parent stock opening quota (tonnes) | H2: Special condition quota (tonnes) | I2: Notes
A3: ANF/*8ABDE | B3: ANF/07. | C3: Special condition: of which up to 10% may be fished in United Kingdom, European Union and international waters of 8a, 8b, 8d and 8e (ANF/*8ABDE). | D3: 0.1 | E3: =VLOOKUP($B3,'All stocks'!$A$4:$E$120,3,FALSE) -> Y | F3: =E3 -> Y | G3: =VLOOKUP($B3,'All stocks'!$A$4:$E$120,2,FALSE) -> 11119 | H3: =ROUND(IF(D3<=1,D3*G3,D3),2) -> 1111.9
A4: ANF/*6AN58 | B4: ANF/2AC4-C | C4: Special condition: of which up to 30% may be fished in United Kingdom, European Union and international waters of 6a north of 58’30’’ (ANF/*6A_N). | D4: 0.3 | E4: =VLOOKUP($B4,'All stocks'!$A$4:$E$120,3,FALSE) -> Y | F4: =E4 -> Y | G4: =VLOOKUP($B4,'All stocks'!$A$4:$E$120,2,FALSE) -> 17566 | H4: =ROUND(IF(D4<=1,D4*G4,D4),2) -> 5269.8
A5: ANF/*56-14 | B5: ANF/2AC4-C | C5: Special condition: of which up to 10% may be fished in United Kingdom waters of 6a south of 58’30’’; United Kingdom and international waters of 5b; and international waters of 12 and 14 (ANF/*56-14). | D5: 0.1 | E5: =VLOOKUP($B5,'All stocks'!$A$4:$E$120,3,FALSE) -> Y | F5: Y | G5: =VLOOKUP($B5,'All stocks'!$A$4:$E$120,2,FALSE) -> 17566 | H5: 1756.6
A6: ANF/*2AC4C | B6: ANF/56-14 | C6: Special condition: of which up to 20% may be fished in United Kingdom and European Union waters of 2a and 4 (ANF/*2AC4C). | D6: 0.2 | E6: =VLOOKUP($B6,'All stocks'!$A$4:$E$120,3,FALSE) -> Y | F6: Y | G6: =VLOOKUP($B6,'All stocks'!$A$4:$E$120,2,FALSE) -> 4941 | H6: 988.2
A7: BLL/*2AC4-C2 | B7: BLL/7DE | C7: Special condition: of which up to 100% may be fished in United Kingdom and European Union waters of 4; United Kingdom waters of 2a (BLL/*2AC4-C2). | D7: 1 | E7: =VLOOKUP($B7,'All stocks'!$A$4:$E$120,3,FALSE) -> Y | F7: Y | G7: =VLOOKUP($B7,'All stocks'!$A$4:$E$120,2,FALSE) -> 340 | H7: 340
A8: COD/*2A3X4X | B8: COD/07D. | C8: Special condition: of which up to 5% may be fished in United Kingdom and European Union waters of 4, that part of 3a not covered by the Skagerrak and Kattegat and United Kingdom waters of 2a (COD/*2A3X4). | D8: 0.05 | E8: =VLOOKUP($B8,'All stocks'!$A$4:$E$120,3,FALSE) -> Y | F8: Y | G8: =VLOOKUP($B8,'All stocks'!$A$4:$E$120,2,FALSE) -> 107 | H8: 5.35
A9: HAD/*2AC4. | B9: HAD/5BC6A. | C9: Special condition: of which up to 25% may be fished in United Kingdom and European Union waters of 2a and 4 (HAD/*2AC4.). | D9: 0.25 | E9: =VLOOKUP($B9,'All stocks'!$A$4:$E$120,3,FALSE) -> Y | F9: Y | G9: =VLOOKUP($B9,'All stocks'!$A$4:$E$120,2,FALSE) -> 8610 | H9: 2152.5
A10: HKE/*03A. | B10: HKE/2AC4-C | C10: Not more than 10% of this quota may be used for by-catch in 3a (HKE/*03A.). | D10: 0.1 | E10: =VLOOKUP($B10,'All stocks'!$A$4:$E$120,3,FALSE) -> Y | F10: Y | G10: =VLOOKUP($B10,'All stocks'!$A$4:$E$120,2,FALSE) -> 1082 | H10: 108.2
A11: HKE/*6AN58 | B11: HKE/2AC4-C | C11: Special condition: of which up to 6% may be fished in United Kingdom, European Union and international waters of 6a north of 58’30’’ (HKE/*6AN58). | D11: 0.06 | E11: =VLOOKUP($B11,'All stocks'!$A$4:$E$120,3,FALSE) -> Y | F11: Y | G11: =VLOOKUP($B11,'All stocks'!$A$4:$E$120,2,FALSE) -> 1082 | H11: 64.92
A12: HKE/2AC4-C | B12: HKE/571214 | C12: Special condition: 100% may be fished in United Kingdom, European Union and international waters of 2a and 4 (HKE/2AC4-C). | D12: 1 | E12: =VLOOKUP($B12,'All stocks'!$A$4:$E$120,3,FALSE) -> Y | F12: Y | G12: =VLOOKUP($B12,'All stocks'!$A$4:$E$120,2,FALSE) -> 6756 | H12: 6756
A13: HKE/*8ABDE | B13: HKE/571214 | C13: Special condition: within the limits of this quota, no more than 869 tonnes may be taken in: - 8a, 8b, 8d and 8e (HKE/*8ABDE). | D13: 869 | E13: =VLOOKUP($B13,'All stocks'!$A$4:$E$120,3,FALSE) -> Y | F13: Y | G13: =VLOOKUP($B13,'All stocks'!$A$4:$E$120,2,FALSE) -> 6756 | H13: 869
A14: LEM/*2AC4-C | B14: L/W/2AC4-C | C14: Special condition: of which up to 792 tonnes of lemon sole may be fished in United Kingdom and European Union waters of 4; United Kingdom waters of 2a (LEM/*2AC4-C); and United Kingdom and European Union waters of 7d (LEM/*07D). | D14: 792 | E14: =VLOOKUP($B14,'All stocks'!$A$4:$E$120,3,FALSE) -> Y | F14: Y | G14: =VLOOKUP($B14,'All stocks'!$A$4:$E$120,2,FALSE) -> 1470 | H14: 792
A15: LEM/*07D | B15: L/W/2AC4-C | C15: Special condition: of which up to 792 tonnes of lemon sole may be fished in United Kingdom and European Union waters of 4; United Kingdom waters of 2a (LEM/*2AC4-C); and United Kingdom and European Union waters of 7d (LEM/*07D). | D15: 792 | E15: =VLOOKUP($B15,'All stocks'!$A$4:$E$120,3,FALSE) -> Y | F15: =E15 -> Y | G15: =VLOOKUP($B15,'All stocks'!$A$4:$E$120,2,FALSE) -> 1470 | H15: =ROUND(IF(D15<=1,D15*G15,D15),2) -> 792
A16: WIT/*2AC4- C | B16: L/W/2AC4-C | C16: Special condition: of which up to 678 tonnes of witch may be fished in United Kingdom and European Union waters of 4; United Kingdom waters of 2a (WIT/*2AC4- C); and United Kingdom and European Union waters of 7d (WIT/*07D) | D16: 678 | E16: =VLOOKUP($B16,'All stocks'!$A$4:$E$120,3,FALSE) -> Y | F16: Y | G16: =VLOOKUP($B16,'All stocks'!$A$4:$E$120,2,FALSE) -> 1470 | H16: 678
A17: WIT/*07D | B17: L/W/2AC4-C | C17: Special condition: of which up to 678 tonnes of witch may be fished in United Kingdom and European Union waters of 4; United Kingdom waters of 2a (WIT/*2AC4- C); and United Kingdom and European Union waters of 7d (WIT/*07D) | D17: 678 | E17: =VLOOKUP($B17,'All stocks'!$A$4:$E$120,3,FALSE) -> Y | F17: =E17 -> Y | G17: =VLOOKUP($B17,'All stocks'!$A$4:$E$120,2,FALSE) -> 1470 | H17: =ROUND(IF(D17<=1,D17*G17,D17),2) -> 678
A18: LEM/*2AC4-C-C2 | B18: LEM/07D | C18: Special condition: of which up to 100% may be fished in United Kingdom and European Union waters of 4; United Kingdom waters of 2a (LEM/*2AC4-C2) | D18: 1 | E18: =VLOOKUP($B18,'All stocks'!$A$4:$E$120,3,FALSE) -> Y | F18: Y | G18: =VLOOKUP($B18,'All stocks'!$A$4:$E$120,2,FALSE) -> 20 | H18: 20
A19: LEZ/*8ABDE | B19: LEZ/07. | C19: Up to 35% of this quota may be fished in United Kingdom, European and international waters of 8a, 8b, 8d and 8e (LEZ/*8ABDE). | D19: 0.35 | E19: =VLOOKUP($B19,'All stocks'!$A$4:$E$120,3,FALSE) -> Y | F19: Y | G19: =VLOOKUP($B19,'All stocks'!$A$4:$E$120,2,FALSE) -> 4306 | H19: 1507.1
A20: LEZ/*6AN58 | B20: LEZ/2AC4-C | C20: Special condition: of which up to 20% may be fished in United Kingdom, European Union and international waters of 6a north of 58’30’’ (LEZ/*6AN58). | D20: 0.2 | E20: =VLOOKUP($B20,'All stocks'!$A$4:$E$120,3,FALSE) -> Y | F20: Y | G20: =VLOOKUP($B20,'All stocks'!$A$4:$E$120,2,FALSE) -> 2787 | H20: 557.4
A21: LEZ/*2AC4-C | B21: LEZ/56-14 | C21: Special condition: of which up to 25% may be fished in United Kingdom and European Union waters of 2a and 4 (LEZ/*2AC4-C). | D21: 0.25 | E21: =VLOOKUP($B21,'All stocks'!$A$4:$E$120,3,FALSE) -> Y | F21: Y | G21: =VLOOKUP($B21,'All stocks'!$A$4:$E$120,2,FALSE) -> 2593 | H21: 648.25
A22: LIN/*6AN58 | B22: LIN/04-C. | C22: Special condition: of which up to 20% may be fished in United Kingdom, European Union and international waters of 6a north of 58’30’’ (LIN/*6AN58). | D22: 0.2 | E22: =VLOOKUP($B22,'All stocks'!$A$4:$E$120,3,FALSE) -> Y | F22: Y | G22: =VLOOKUP($B22,'All stocks'!$A$4:$E$120,2,FALSE) -> 1813 | H22: 362.6
A23: LIN/*03A-C | B23: LIN/04-C. | C23: Special condition: of which up to 25% but no more than 75 tonnes may be fished in European Union waters of 3a (LIN/*03A-C). | D23: 75 | E23: =VLOOKUP($B23,'All stocks'!$A$4:$E$120,3,FALSE) -> Y | F23: Y | G23: =VLOOKUP($B23,'All stocks'!$A$4:$E$120,2,FALSE) -> 1813 | H23: 75 | I23: Lesser of 75t or 25%
A24: LIN/*04-C. | B24: LIN/6X14. | C24: Special condition: of which up to 40% may be fished in United Kingdom and European Union waters of 4 (LIN/*04-C.). | D24: 0.4 | E24: =VLOOKUP($B24,'All stocks'!$A$4:$E$120,3,FALSE) -> Y | F24: Y | G24: =VLOOKUP($B24,'All stocks'!$A$4:$E$120,2,FALSE) -> 3765 | H24: 1506
A25: NEP/*07U16 | B25: NEP/07. | C25: Special condition: within the limits of this quota, no more than 512 tonnes may be taken in: - Functional Unit 16 of ICES Subarea 7 (NEP/*07U16). | D25: 512 | E25: =VLOOKUP($B25,'All stocks'!$A$4:$E$120,3,FALSE) -> Y | F25: Y | G25: =VLOOKUP($B25,'All stocks'!$A$4:$E$120,2,FALSE) -> 7009 | H25: 512
A26: PLE/*7D | B26: PLE/7DE. | C26: Special condition: of which up to 574 tonnes may be fished in United Kingdom and European Union waters of 7d (PLE/*7D) | D26: 574 | E26: =VLOOKUP($B26,'All stocks'!$A$4:$E$120,3,FALSE) -> Y | F26: =E26 -> Y | G26: =VLOOKUP($B26,'All stocks'!$A$4:$E$120,2,FALSE) -> 1177 | H26: =ROUND(IF(D26<=1,D26*G26,D26),2) -> 574
A27: PLE/*7E | B27: PLE/7DE. | C27: Special condition: of which up to 603 tonnes may be fished in United Kingdom and European Union waters of 7e (PLE/*7E) | D27: 603 | E27: =VLOOKUP($B27,'All stocks'!$A$4:$E$120,3,FALSE) -> Y | F27: =E27 -> Y | G27: =VLOOKUP($B27,'All stocks'!$A$4:$E$120,2,FALSE) -> 1177 | H27: =ROUND(IF(D27<=1,D27*G27,D27),2) -> 603
A28: POK/*2C3A4 | B28: POK/56-14 | C28: Special condition: of which up to 30% may be fished in United Kingdom and European Union waters of 2a and 4 (POK/*2C3A4). | D28: 0.3 | E28: =VLOOKUP($B28,'All stocks'!$A$4:$E$120,3,FALSE) -> Y | F28: Y | G28: =VLOOKUP($B28,'All stocks'!$A$4:$E$120,2,FALSE) -> 3791 | H28: 1137.3
A29: POL/*8ABDE | B29: POL/07. | C29: Special condition: of which up to 2% may be fished in United Kingdom, European Union and international waters of 8a, 8b, 8d and 8e (POL/*8ABDE). | D29: 0.02 | E29: =VLOOKUP($B29,'All stocks'!$A$4:$E$120,3,FALSE) -> Y | F29: Y | G29: =VLOOKUP($B29,'All stocks'!$A$4:$E$120,2,FALSE) -> 172 | H29: 3.44
A30: RNG/*8X14- | B30: RNG/5B67- | C30: A maximum of 10% may be fished in United Kingdom, European Union and international waters of 8, 9, 10, 12 and 14 (RNG/*8X14- for roundnose grenadier; RHG/*8X14- for roughhead grenadier bycatches). | D30: 0.1 | E30: =VLOOKUP($B30,'All stocks'!$A$4:$E$120,3,FALSE) -> Y | F30: Y | G30: =VLOOKUP($B30,'All stocks'!$A$4:$E$120,2,FALSE) -> 64 | H30: 6.4
A31: RHG/*8X14- | B31: RNG/5B67- | C31: A maximum of 10% may be fished in United Kingdom, European Union and international waters of 8, 9, 10, 12 and 14 (RNG/*8X14- for roundnose grenadier; RHG/*8X14- for roughhead grenadier bycatches). | D31: 0.1 | E31: =VLOOKUP($B31,'All stocks'!$A$4:$E$120,3,FALSE) -> Y | F31: Y | G31: =VLOOKUP($B31,'All stocks'!$A$4:$E$120,2,FALSE) -> 64 | H31: 6.4
A32: RNG/*5B67- | B32: RNG/8X14- | C32: A maximum of 10% may be fished in United Kingdom, European Union and international waters of 5b, 6, 7 (RNG/*5B67- for roundnose grenadier; RHG/*5B67- for roughhead grenadier by-catches). | D32: 0.1 | E32: =VLOOKUP($B32,'All stocks'!$A$4:$E$120,3,FALSE) -> N | F32: =IF(E32="N","N","") -> N | G32: =VLOOKUP($B32,'All stocks'!$A$4:$E$120,2,FALSE) -> 5 | H32: 0.5
A33: RHG/*5B67- | B33: RNG/8X14- | C33: A maximum of 10% may be fished in United Kingdom, European Union and international waters of 5b, 6, 7 (RNG/*5B67- for roundnose grenadier; RHG/*5B67- for roughhead grenadier by-catches). | D33: 0.1 | E33: =VLOOKUP($B33,'All stocks'!$A$4:$E$120,3,FALSE) -> N | F33: =IF(E33="N","N","") -> N | G33: =VLOOKUP($B33,'All stocks'!$A$4:$E$120,2,FALSE) -> 5 | H33: 0.5
A34: SRX/*67AKD | B34: SRX/07D. | C34: Special condition: of which up to 5% may be fished in United Kingdom and European Union waters of 6a, 6b, 7a-c and 7e-k (SRX/*67AKD). Catches of cuckoo ray (Leucoraja naevus) (RJN/*67AKD), thornback ray (Raja clavata) (RJC/*67AKD), blonde ray (Raja brachyura) (RJH/*67AKD) and spotted ray (Raja montagui) (RJM/*67AKD) shall be reported separately. This special condition shall not apply to small-eyed ray (Raja microocellata) or to undulate ray (Raja undulata) | D34: 0.05 | E34: =VLOOKUP($B34,'All stocks'!$A$4:$E$120,3,FALSE) -> Y | F34: =E34 -> Y | G34: =VLOOKUP($B34,'All stocks'!$A$4:$E$120,2,FALSE) -> 424 | H34: 21.2
A35: SRX/*2AC4C | B35: SRX/07D. | C35: Special condition: of which up to 10% may be fished in United Kingdom and European Union waters of 2a and 4 (SRX/*2AC4C). Catches of blonde ray (Raja brachyura) in United Kingdom and European Union waters of 4 (RJH/*04-C.), cuckoo ray (Leucoraja naevus) (RJN/*2AC4C), thornback ray (Raja clavata) (RJC/ *2AC4C) and spotted ray (Raja montagui) (RJM/*2AC4C) shall be reported separately. This special condition shall not apply to small-eyed ray (Raja microocellata). | D35: 0.1 | E35: =VLOOKUP($B35,'All stocks'!$A$4:$E$120,3,FALSE) -> Y | F35: =E35 -> Y | G35: =VLOOKUP($B35,'All stocks'!$A$4:$E$120,2,FALSE) -> 424 | H35: =ROUND(IF(D35<=1,D35*G35,D35),2) -> 42.4
A36: SRX/*07D2. | B36: SRX/2AC4-C | C36: Special condition: of which up to 10% may be fished in United Kingdom and European Union waters of 7d (SRX/*07D2.), without prejudice to the prohibitions set out in relevant UK law for the areas specified therein. Catches of blonde ray (Raja brachyura) (RJH/*07D2.), cuckoo ray (Leucoraja naevus) (RJN/*07D2.), thornback ray (Raja clavata) (RJC/*07D2.) and spotted ray (Raja montagui) (RJM/*07D2.) shall be reported separately. This special condition shall not apply to small-eyed ray (Raja microocellata) and undulate ray (Raja undulata). | D36: 0.1 | E36: =VLOOKUP($B36,'All stocks'!$A$4:$E$120,3,FALSE) -> Y | F36: Y | G36: =VLOOKUP($B36,'All stocks'!$A$4:$E$120,2,FALSE) -> 2186 | H36: 218.6
A37: SRX/*07D. | B37: SRX/67AKXD | C37: Special condition: of which up to 5% may be fished in 7d (SRX/*07D.), without prejudice to the relevant prohibitions in UK law for the areas specified therein. Catches of cuckoo ray (Leucoraja naevus) (RJN/*07D.), thornback ray (Raja clavata) (RJC/*07D.), blonde ray (Raja brachyura) (RJH/*07D.), spotted ray (Raja montagui) (RJM/*07D.), sandy ray (Raja circularis) (RJI/*07D.) and shagreen ray (Raja fullonica) (RJF/*07D.) shall be reported separately. This special condition shall not apply to small-eyed ray (Raja microocellata) and undulate ray (Raja undulata) | D37: 0.05 | E37: =VLOOKUP($B37,'All stocks'!$A$4:$E$120,3,FALSE) -> Y | F37: N | G37: =VLOOKUP($B37,'All stocks'!$A$4:$E$120,2,FALSE) -> 2924 | H37: 146.2
A38: RJE/*07D. | B38: RJE/7FG. | C38: Special condition: of this amount, up to 5% may be fished in 7d and reported under the following code: (RJE/*07D.). This special condition is without prejudice to the prohibitions set out in relevant UK law for the areas specified therein. | D38: 0.05 | E38: N | F38: N | G38: =VLOOKUP($B38,'All stocks'!$A$4:$E$120,2,FALSE) -> 57 | H38: 2.85
A39: TUR/*2AC4-C | B39: T/B/2AC4-C | C39: Special condition: of which up to 482 tonnes of turbot may be fished in United Kingdom and European Union waters of 4 and United Kingdom waters of 2a (TUR/*2AC4-C). | D39: 482 | E39: =VLOOKUP($B39,'All stocks'!$A$4:$E$120,3,FALSE) -> Y | F39: Y | G39: =VLOOKUP($B39,'All stocks'!$A$4:$E$120,2,FALSE) -> 861 | H39: 482
A40: BLL/*2AC4-C | B40: T/B/2AC4-C | C40: Special condition: of which up to 379 tonnes of brill may be fished in United Kingdom and European Union waters of 4 and United Kingdom waters of 2a (BLL/*2AC4-C); and United Kingdom and European Union waters of 7de (BLL/*7DE) | D40: 379 | E40: =VLOOKUP($B40,'All stocks'!$A$4:$E$120,3,FALSE) -> Y | F40: Y | G40: =VLOOKUP($B40,'All stocks'!$A$4:$E$120,2,FALSE) -> 861 | H40: 379
A41: BLL/*7DE | B41: T/B/2AC4-C | C41: Special condition: of which up to 379 tonnes of brill may be fished in United Kingdom and European Union waters of 4 and United Kingdom waters of 2a (BLL/*2AC4-C); and United Kingdom and European Union waters of 7de (BLL/*7DE) | D41: 379 | E41: =VLOOKUP($B41,'All stocks'!$A$4:$E$120,3,FALSE) -> Y | F41: Y | G41: =VLOOKUP($B41,'All stocks'!$A$4:$E$120,2,FALSE) -> 861 | H41: 379
A42: USK/*6AN58 | B42: USK/04-C. | C42: Special condition: of which up to 25% may be fished in United Kingdom, European Union and international waters of 6a north of 58’30’’ (USK/*6AN58). | D42: 0.25 | E42: =VLOOKUP($B42,'All stocks'!$A$4:$E$120,3,FALSE) -> Y | F42: Y | G42: =VLOOKUP($B42,'All stocks'!$A$4:$E$120,2,FALSE) -> 84 | H42: 21
A43: USK/*04-C. | B43: USK/567EI. | C43: Special condition: of which up to 10% may be fished in United Kingdom and European Union waters of 4 (USK/*04-C.). | D43: 0.1 | E43: =VLOOKUP($B43,'All stocks'!$A$4:$E$120,3,FALSE) -> Y | F43: Y | G43: =VLOOKUP($B43,'All stocks'!$A$4:$E$120,2,FALSE) -> 1917 | H43: 191.7
A44: WHG/*7BKXAD | B44: WHG/7X7A-C | C44: Special condition: of which up to 542 tonnes may be fished in United Kingdom, European Union and international waters of 7b, 7c, 7e, 7f, 7g, 7h, 7j and 7k. Exclusively for by-catches. No directed fisheries for whiting are permitted under this ‘of which’ special condition (WHG/*7BKXAD) | D44: 542 | E44: =VLOOKUP($B44,'All stocks'!$A$4:$E$120,3,FALSE) -> Y | F44: Y | G44: =VLOOKUP($B44,'All stocks'!$A$4:$E$120,2,FALSE) -> 3648 | H44: 542
A45: WHG/*7D | B45: WHG/7X7A-C | C45: Special condition: of which up to 3,106 tonnes may be fished in United Kingdom and European Union waters of 7d (WHG/*7D) | D45: 3106 | E45: =VLOOKUP($B45,'All stocks'!$A$4:$E$120,3,FALSE) -> Y | F45: =E45 -> Y | G45: =VLOOKUP($B45,'All stocks'!$A$4:$E$120,2,FALSE) -> 3648 | H45: =ROUND(IF(D45<=1,D45*G45,D45),2) -> 3106
A46: COD/*5BE6A | B46: COD/2A3AX4 | C46: Special condition: of which up to 10% may be fished in United Kingdom, European Union and international waters of 6a north of 58’30’’ (COD/*5BE6A). | D46: 0.1 | E46: =VLOOKUP($B46,'All stocks'!$A$4:$E$120,3,FALSE) -> Y | F46: Y | G46: =VLOOKUP($B46,'All stocks'!$A$4:$E$120,2,FALSE) -> 9419 | H46: 941.9
A47: HAD/*6A_N | B47: HAD/2AC4. | C47: Special condition: of which up to 10% may be fished in United Kingdom, European Union and international waters of 6a north of 58’30’’ (HAD/*6A_N). | D47: 0.1 | E47: =VLOOKUP($B47,'All stocks'!$A$4:$E$120,3,FALSE) -> Y | F47: Y | G47: =VLOOKUP($B47,'All stocks'!$A$4:$E$120,2,FALSE) -> 61928 | H47: 6192.8
A48: HER/*04B. | B48: HER/4CXB7D | C48: Special condition: up to 50% of this quota may be taken in 4b (HER/*04B.). | D48: 0.5 | E48: =VLOOKUP($B48,'All stocks'!$A$4:$E$120,3,FALSE) -> Y | F48: Y | G48: =VLOOKUP($B48,'All stocks'!$A$4:$E$120,2,FALSE) -> 5278 | H48: 2639
A49: POK/*6A_N | B49: POK/2C3A4 | C49: Special condition: of which up to 15% may be fished in United Kingdom, European Union and international waters of 6a north of 58’30’’ (POK/*6A_N). | D49: 0.15 | E49: =VLOOKUP($B49,'All stocks'!$A$4:$E$120,3,FALSE) -> Y | F49: Y | G49: =VLOOKUP($B49,'All stocks'!$A$4:$E$120,2,FALSE) -> 8940 | H49: 1341
A50: MAC/*2AX14. | B50: MAC/2A34. | C50: Special condition: up to 60% of this quota may be fished in United Kingdom and international waters of 2a, 5b, 6, 7, 8d, 8e, 12 and 14 (MAC/*2CX14.). | D50: 0.6 | E50: =VLOOKUP($B50,'All stocks'!$A$4:$E$120,3,FALSE) -> Y | F50: Y | G50: =VLOOKUP($B50,'All stocks'!$A$4:$E$120,2,FALSE)+202 -> 1617 | H50: 970.2
A51: MAC/*34-EU | B51: MAC/2A34. | C51: Special condition: of which 1,212 tonnes may be fished in European Union waters of 3 and 4 (MAC/*34-EU). | D51: 1212 | E51: =VLOOKUP($B51,'All stocks'!$A$4:$E$120,3,FALSE) -> Y | F51: =E51 -> Y | G51: =VLOOKUP($B51,'All stocks'!$A$4:$E$120,2,FALSE) -> 1415 | H51: =ROUND(IF(D51<=1,D51*G51,D51),2) -> 1212
A52: MAC/*4A-UK | B52: MAC/2CX14- | C52: Special condition: up to 100% of this quota may be fished in United Kingdom waters of 4a (MAC/*4A-UK) exclusively within the periods 1 January to 14 February and 1 August to 31 December. | D52: 1 | E52: =VLOOKUP($B52,'All stocks'!$A$4:$E$120,3,FALSE) -> Y | F52: Y | G52: =VLOOKUP($B52,'All stocks'!$A$4:$E$120,2,FALSE)+26050 -> 211644 | H52: 211644
A53: MAC/*2CX14-EU | B53: MAC/2CX14- | C53: Special condition: of which 159,356 tonnes may be fished in European Union waters of 6, 7, 8a, 8b, 8d and 8e (MAC/*2CX14-EU) | D53: 159356 | E53: =VLOOKUP($B53,'All stocks'!$A$4:$E$120,3,FALSE) -> Y | F53: =E53 -> Y | G53: =VLOOKUP($B53,'All stocks'!$A$4:$E$120,2,FALSE) -> 185594 | H53: =ROUND(IF(D53<=1,D53*G53,D53),2) -> 159356
A54: ALB/*AN05N_EU | B54: ALB/AN05N | C54: Special condition: within the limits of this quota, no more than 280 tonnes may be taken by directed fisheries in European Union waters of Atlantic Ocean, north of 5° N (ALB/*AN05N_EU). | D54: 280 | E54: =VLOOKUP($B54,'All stocks'!$A$4:$E$120,3,FALSE) -> N | F54: N | G54: =VLOOKUP($B54,'All stocks'!$A$4:$E$120,2,FALSE) -> 663 | H54: 280
A55: COD/*05B-F | B55: C/H/05B-F | C55: Of-which no more than 264 tonnes may consist of cod, and as a by-catch only. No directed fisheries for cod are permitted under this quota. | D55: 264 | E55: =VLOOKUP($B55,'All stocks'!$A$4:$E$120,3,FALSE) -> Y | F55: =E55 -> Y | G55: =VLOOKUP($B55,'All stocks'!$A$4:$E$120,2,FALSE) -> 880 | H55: 264

Sheet Main apportion
BF1: FQAs per FA for Non Sector… | BV1: FQAs per FA for Sector…
B2: figs in red updated | D2: Deduction from total TAC is rounded to 1 tonne | F2: =117*0.15 -> 17.55 | K2: Rounded to 1 tonne | L2: Rounded to 1 tonne | Y2: Now onto EQ… | BF2: England | BG2: Northern Ireland | BH2: Scotland | BI2: Wales | BN2: =BN38/4 -> 0 | BV2: England | BW2: Northern Ireland | BX2: Scotland | BY2: Wales | CF2: =CF14/4 -> 0.025
B3: This is the total TAC for the whole stock. | C3: This is the amount deducted from the total TAC due to the landing obligation. In the EU TAC regs the deductions due to this weren't shown at individual MS level. | D3: Total TAC minus any LO deductions. | E3: UK quota from December 2025 SoS determination. | F3: UK quota from SoS determination or if it's a stock where there is a deduction applied it's the total TAC post-deductions (column D) multiplied by the UK share of total TAC (column I). | G3: This is the EQ share of the EU+UK TAC. | H3: EU and UK share of the total TAC. 100% where the TAC is solely UK or EU. Lower where e.g. Norway has some of the TAC. | I3: UK shares of total TAC in 2025 - as published in the EU Exit deal end December 2020. Amended in line with RP 'TAC shares 2021-26' for 2025. | J3: This the EQ share of the total TAC. Where the stock is UK/EU only column J = column G. Where stock isn't UK/EU only column J is lower than column G. | K3: If column G is in tonnes (where stock isn’t UK/EU) EQ = column G. EQ is the UK's baseline (column G) multiplied by the total TAC unless this calculation is lower than our 2021 UK quota. In this instance EQ = 2021 UK quota. | L3: AQ is then UK quota minus EQ. | M3: A handful of stocks have an uplift allocation of AQ for Wales. 50t of ANF/07. is allocated to Wales. | N3: If the Welsh uplift agreed in the gov response to the AQ consultation is less than the total AQ the UK gets the actual amount they will get is calculated here (e.g. PLE/7FG.) | O3: This is the AQ we then allocate to the remaining FAs. | P3: This is the AQ1 baseline - the amount of the total TAC that would be AQ1. | Q3: This is the AQ1 baseline in tonnes. Column P multiplied by column D. | R3: The is the per cent of the total TAC which is AQ1. This is sometimes less than the AQ1 baseline. So with e.g. COD/2A3AX4. the UK's AQ (column L) doesn't cover the AQ1 baseline. | S3: These 2 columns have a 1 in where any calculations to the right need to be done slightly differently where there is a Welsh uplift. It just makes the spreadsheet more automated. | U3: The actual AQ1 allocation. So either the AQ1 baseline if we have more total AQ than the AQ1 baseline. Where AQ1 baseline is lower than total AQ this is just total AQ. | V3: The remaining AQ per cent that's AQ2. | W3: Again, just a flag to make any calculations for Welsh uplift automatic. | X3: AQ2 allocation in tonnes. AQ minus AQ1 (column O minus column U). | Y3: Deduct e.g. Mourne herring from EQ amount. | Z3: Deduct any UK penalties which haven't been sufficiently covered by group level deductions. These are all 0 this year. | AA3: Actual EQ to allocate. | AB3: Fixed underpinning amounts for Non Sector and 10m and under. | AE3: Total FQAs for UK, 10m and under and Non Sector. These are here so I can calculate tonnes 10m and under and Non Sector would get from FQAs (total UK FQAs being the denominator). | AH3: Tonnes 10m and under get from underpinning per cent (column AB). | AI3: Tonnes 10m and under get from FQAs per cent (column AF and column AE). | AJ3: Maximum tonnes 10m and under can get from 3 options (underpinning per cent, underpinning floor quota and tonnes from FQAs.). The max of these three is the UK 10m and under allocation. | AK3: These are fixed percentages which split the 10m and under quota between the 4 FAs. | AO3: These are the tonnes (column AJ multiplied by percentages AK through AN) each FA gets. | AS3: Want to ensure that any FA allocation that comes out of this process is rounded to 0.1dp (so 100kg). These columns check we don't lose or add any quota because of rounding. Where we have lost/gained quota that quota is added to or taken away from the DA which the max allocation for that stock. | AV3: If we do add or lose any quota when rounding we amend here. The amendment gets taken or added onto the FA which gets the largest 10m and under share. SR - Amend here | AZ3: Make sure amounts match after the rounding amendments. | BA3: This is England policy only - some FQAs have been realigned to 10m and under. | BB3: This the tonnes England 10m and under get from the realigned FQAs. | BC3: Tonnes UK Non Sector get from underpinning per cent (column AD). | BD3: Tonnes UK Non Sector get from FQAs (column AG and column AE). | BE3: Maximum of 2 Non Sector allocation options. This is the amount that gets allocated ot the UK Non Sector | BF3: Non Sector | BG3: Non Sector | BH3: Non Sector | BI3: Non Sector | BJ3: Non Sector tonnes distributed to FAs based on Non Sector FQAs (BF through BI). | BN3: Rounding checks and amendments again - these are the same throughout and apply to any output which then goes into DA allocations. SR Amend here BQ:BR | BV3: Sector | BW3: Sector | BX3: Sector | BY3: Sector | BZ3: Total FQAs for the Sector (sum of BV through BY). | CA3: Tonnes to allocate to the Sector is EQ to allocate minus amount for UK 10m and under and UK Non Sector. | CB3: Sector tonnes distributed to FAs based on FA FQAs (BV:BY). | CF3: More rounding checks. SR Amend here CI:CL | CM3: Tonnes per 100 FQAs for the Sector (this feeds into English EQ tab calculation) | CN3: Special allocations split by FAs. | CR3: Total EQ per FA | CV3: Total EQ per FA rounded to 1dp | CZ3: These are the percentages that split AQ1 into the 4 FAs. These were published in the gov response and the UK QMR. They're based on 2012-2019 track record. | DD3: Tonnes allocated to each FA from AQ per cents (CZ through DC). | DH3: These are the percentages that split AQ2 into the 4 FAs. These were published in the gov response and the UK QMR. They're based on 2012-2019 track record and zonal attachement (weighting is 90% track record, 10 per cent ZA). | DL3: Tonnes allocated to each FA from AQ per cents (DH through DK). | DP3: Total AQ allocation per FA. | DT3: Rounding checks again… | EA3: Total AQ allocation per FA rounding to 1dp (nearest 100kgs). SR - Amend here | EE3: Check rounding amendments match. | EF3: Total quota (EQ + AQ) allocated to each FA. | EJ3: And total quota (EQ + AQ) allocated to each FA rounded to nearest 100kg. | EN3: And total quota (EQ + AQ) allocated to each FA rounded to nearest 100kg.
B4: Input | C4: Input | D4: Calculation | E4: Input | F4: Calculation | G4: Input | H4: Input | I4: Input | J4: Calculation or input where tonnes | K4: Calculation | L4: Calculation | M4: Input | N4: Calculation | O4: Calculation | P4: Input | Q4: Calculation | R4: Calculation | S4: Input | T4: Input | U4: Calculation | V4: Calculation | W4: Input | X4: Calculation | Y4: Input | Z4: Input | AA4: Calculation | AB4: Input | AC4: Input | AD4: Input | AE4: FQAs | AF4: FQAs | AG4: FQAs | AH4: Calculation | AI4: Calculation | AJ4: Calculation | AK4: Input | AL4: Input | AM4: Input | AN4: Input | AO4: Calculation | AP4: Calculation | AQ4: Calculation | AR4: Calculation | AS4: Calculation | AT4: Calculation | AU4: Calculation | AV4: Calculation | AW4: Calculation | AX4: Calculation | AY4: Calculation | AZ4: Calculation | BA4: FQAs | BB4: Input | BC4: Calculation | BD4: Calculation | BE4: Calculation | BF4: FQAs | BG4: FQAs | BH4: FQAs | BI4: FQAs | BJ4: Calculation | BK4: Calculation | BL4: Calculation | BM4: Calculation | BN4: Calculation | BO4: Calculation | BP4: Calculation | BQ4: Calculation | BR4: Calculation | BS4: Calculation | BT4: Calculation | BU4: Calculation | BV4: FQAs | BW4: FQAs | BX4: FQAs | BY4: FQAs | BZ4: Calculation | CA4: Calculation | CB4: Calculation | CC4: Calculation | CD4: Calculation | CE4: Calculation | CF4: Calculation | CG4: Calculation | CH4: Calculation | CI4: Calculation | CJ4: Calculation | CK4: Calculation | CL4: Calculation | CM4: Calculation | CN4: Input | CO4: Input | CP4: Input | CQ4: Input | CR4: Calculation | CS4: Calculation | CT4: Calculation | CU4: Calculation | CV4: Calculation | CW4: Calculation | CX4: Calculation | CY4: Calculation | CZ4: Input | DA4: Input | DB4: Input | DC4: Input | DD4: Calculation | DE4: Calculation | DF4: Calculation | DG4: Calculation | DH4: Input | DI4: Input | DJ4: Input | DK4: Input | DL4: Calculation | DM4: Calculation | DN4: Calculation | DO4: Calculation | DP4: Calculation | DQ4: Calculation | DR4: Calculation | DS4: Calculation | DT4: Calculation | DU4: Calculation | DV4: Calculation | DW4: Calculation | DX4: Input | DY4: Calculation | DZ4: Calculation | EA4: Calculation | EB4: Calculation | EC4: Calculation | ED4: Calculation | EE4: Calculation | EF4: Calculation | EG4: Calculation | EH4: Calculation | EI4: Calculation | EJ4: Calculation | EK4: Calculation | EL4: Calculation | EM4: Calculation | EN4: Calculation | EO4: Calculation
B5: All quota | C5: All quota | D5: All quota | E5: All quota | F5: All quota | G5: EQ | H5: All quota | I5: All quota | J5: EQ | K5: EQ | L5: AQ | M5: AQ | N5: AQ | O5: AQ | P5: AQ | Q5: AQ | R5: AQ | S5: AQ | T5: AQ | U5: AQ | V5: AQ | W5: AQ | X5: AQ | Y5: EQ | Z5: EQ | AA5: EQ | AB5: EQ | AC5: EQ | AD5: EQ | AE5: EQ | AF5: EQ | AG5: EQ | AH5: EQ | AI5: EQ | AJ5: EQ | AK5: EQ | AL5: EQ | AM5: EQ | AN5: EQ | AO5: EQ | AP5: EQ | AQ5: EQ | AR5: EQ | AS5: EQ | AT5: EQ | AU5: EQ | AV5: EQ | AW5: EQ | AX5: EQ | AY5: EQ | AZ5: EQ | BA5: EQ | BB5: EQ | BC5: EQ | BD5: EQ | BE5: EQ | BF5: EQ | BG5: EQ | BH5: EQ | BI5: EQ | BJ5: EQ | BK5: EQ | BL5: EQ | BM5: EQ | BN5: EQ | BO5: EQ | BP5: EQ | BQ5: EQ | BR5: EQ | BS5: EQ | BT5: EQ | BU5: EQ | BV5: EQ | BW5: EQ | BX5: EQ | BY5: EQ | BZ5: EQ | CA5: EQ | CB5: EQ | CC5: EQ | CD5: EQ | CE5: EQ | CF5: EQ | CG5: EQ | CH5: EQ | CI5: EQ | CJ5: EQ | CK5: EQ | CL5: EQ | CM5: EQ | CN5: EQ | CO5: EQ | CP5: EQ | CQ5: EQ | CR5: EQ | CS5: EQ | CT5: EQ | CU5: EQ | CV5: EQ | CW5: EQ | CX5: EQ | CY5: EQ | CZ5: AQ | DA5: AQ | DB5: AQ | DC5: AQ | DD5: AQ | DE5: AQ | DF5: AQ | DG5: AQ | DH5: AQ | DI5: AQ | DJ5: AQ | DK5: AQ | DL5: AQ | DM5: AQ | DN5: AQ | DO5: AQ | DP5: AQ | DQ5: AQ | DR5: AQ | DS5: AQ | DT5: AQ | DU5: AQ | DV5: AQ | DW5: AQ | DX5: AQ | DY5: AQ | DZ5: AQ | EA5: AQ | EB5: AQ | EC5: AQ | ED5: AQ | EE5: AQ | EF5: All quota | EG5: All quota | EH5: All quota | EI5: All quota | EJ5: All quota | EK5: All quota | EL5: All quota | EM5: All quota | EN5: EQ | EO5: All quota
A6: Stock code | B6: 2025 total TAC provisional pre-deductions (tonnes) | C6: Deductions due to LO (per cent) | D6: 2025 total TAC provisional post-deductions (tonnes) | E6: 2025 UK quota (tonnes) | F6: 2025 UK quota post LO deductions (tonnes) | G6: EQ share (per cent of EU + UK TAC or tonnes) | H6: EU share of TAC (per cent) | I6: 2025 UK shares of total TAC (per cent) | J6: EQ share (per cent of TAC or tonnes) | K6: EQ (tonnes) | L6: Total AQ allocation (tonnes) | M6: Special Allocation (Wales & Northern Ireland) tonnes | N6: Actual Welsh uplift subject to AQ availablity (tonnes) | O6: Total AQ for England, Northern Ireland and Scotland (tonnes) | P6: AQ1 baseline (per cent) | Q6: AQ1 baseline (tonnes) | R6: AQ1 allocation (per cent) | S6: AQ1 allocation tonnes to allocate excludes Wales (1/0 flag) | T6: AQ1 per cent per DA excludes Wales (1/0 flag) | U6: AQ1 allocation (tonnes) | V6: AQ2 allocation (per cent) | W6: AQ2 allocation excludes Wales (1/0 flag) | X6: AQ2 allocation (tonnes) | Y6: Special allocations (tonnes) | Z6: Penalties due to overfish (tonnes) | AA6: EHQ to allocate (tonnes) | AB6: Underpinning: 10m and under % (per cent) | AC6: Underpinning: 10m and under floor quota (tonnes) | AD6: Underpinning: Non Sector % | AE6: UK | AF6: 10m and under | AG6: Non Sector | AH6: 10m and under allocation from underpinning percentage (tonnes) | AI6: 10m and under allocation from FQAs (tonnes) | AJ6: 10m and under: maximum of 3 underpinning options (tonnes) | AK6: 10m and under: England (per cent) | AL6: 10m and under: Northern Ireland (per cent) | AM6: 10m and under: Scotland (per cent) | AN6: 10m and under: Wales (per cent) | AO6: 10m and under: England (tonnes) | AP6: 10m and under: Northern Ireland (tonnes) | AQ6: 10m and under: Scotland (tonnes) | AR6: 10m and under: Wales (tonnes) | AS6: 10m and under: rounding check | AT6: 10m and under: rounding check | AU6: 10m and under: rounding check | AV6: 10m and under post-rounding: England (tonnes) | AW6: 10m and under post-rounding: Northern Ireland (tonnes) | AX6: 10m and under post-rounding: Scotland (tonnes) | AY6: 10m and under post-rounding: Wales (tonnes) | AZ6: 10m and under: rounding check | BA6: 10m and under - England realign | BB6: 10m and under - England realigned FQAs (tonnes) | BC6: Non Sector allocation from underpinning percentage (tonnes) | BD6: Non Sector allocation from FQAs (tonnes) | BE6: Non Sector: maximum of 2 underpinning options (tonnes) | BF6: Non Sector England (FQAs) | BG6: Non Sector Northern Ireland (FQAs) | BH6: Non Sector Scotland (FQAs) | BI6: Non Sector Wales (FQAs) | BJ6: Non Sector England (tonnes) | BK6: Non Sector Northern Ireland (tonnes) | BL6: Non Sector Scotland (tonnes) | BM6: Non Sector Wales (tonnes) | BN6: Non Sector: rounding check | BO6: Non Sector: rounding check | BP6: Non Sector: rounding check | BQ6: Non Sector post-rounding: England (tonnes) | BR6: Non Sector post-rounding: Northern Ireland (tonnes) | BS6: Non Sector post-rounding: Scotland (tonnes) | BT6: Non Sector post-rounding: Wales (tonnes) | BU6: Non Sector: rounding check | BV6: Sector England (FQAs) | BW6: Sector Northern Ireland (FQAs) | BX6: Sector Scotland (FQAs) | BY6: Sector Wales (FQAs) | BZ6: Sector total (FQAs) | CA6: Sector UK (tonnes) | CB6: Sector England (tonnes) | CC6: Sector Northern Ireland (tonnes) | CD6: Sector Scotland (tonnes) | CE6: Sector Wales (tonnes) | CF6: Total rounding check | CG6: Total rounding check | CH6: Total rounding check | CI6: Sector post-rounding: England (tonnes) | CJ6: Sector post-rounding: Northern Ireland (tonnes) | CK6: Sector post-rounding: Scotland (tonnes) | CL6: Sector post-rounding: Wales (tonnes) | CM6: Tonnes per 100 FQAs Sector (tonnes/100) | CN6: Special allocation England (tonnes) | CO6: Special allocation Northern Ireland (tonnes) | CP6: Special allocation Scotland (tonnes) | CQ6: Special allocation Wales (tonnes) | CR6: England (tonnes) | CS6: Northern Ireland (tonnes) | CT6: Scotland (tonnes) | CU6: Wales (tonnes) | CV6: England (tonnes to 1 decimal place) | CW6: Northern Ireland (tonnes to 1 decimal place) | CX6: Scotland (tonnes to 1 decimal place) | CY6: Wales (tonnes to 1 decimal place) | CZ6: AQ1 England (per cent) | DA6: AQ1 Northern Ireland (per cent) | DB6: AQ1 Scotland (per cent) | DC6: AQ1 Wales (per cent) | DD6: AQ1 England (tonnes) | DE6: AQ1 Northern Ireland (tonnes) | DF6: AQ1 Scotland (tonnes) | DG6: AQ1 Wales (tonnes) | DH6: AQ2 England (per cent) | DI6: AQ2 Northern Ireland (per cent) | DJ6: AQ2 Scotland (per cent) | DK6: AQ2 Wales (per cent) | DL6: AQ2 England (tonnes) | DM6: AQ2 Northern Ireland (tonnes) | DN6: AQ2 Scotland (tonnes) | DO6: AQ2 Wales (tonnes) | DP6: England (tonnes) | DQ6: Northern Ireland (tonnes) | DR6: Scotland (tonnes) | DS6: Wales (tonnes) | DT6: England (tonnes to 1 decimal place) | DU6: Northern Ireland (tonnes to 1 decimal place) | DV6: Scotland (tonnes to 1 decimal place) | DW6: Wales (tonnes to 1 decimal place) | DX6: AQ rounding check | DY6: AQ rounding check | DZ6: AQ rounding check | EA6: England post-rounding check (tonnes to 1 decimal place) | EB6: Northern Ireland post-rounding check (tonnes to 1 decimal place) | EC6: Scotland post-rounding check (tonnes to 1 decimal place) | ED6: Wales post-rounding check (tonnes to 1 decimal place) | EE6: AQ rounding check | EF6: England (tonnes) | EG6: Northern Ireland (tonnes) | EH6: Scotland (tonnes) | EI6: Wales (tonnes) | EJ6: England (tonnes to 1 decimal place) | EK6: Northern Ireland (tonnes to 1 decimal place) | EL6: Scotland (tonnes to 1 decimal place) | EM6: Wales (tonnes to 1 decimal place) | EN6: Total rounding check | EO6: Total rounding check
A7: ANF/07. | B7: 47559 | C7: -0.0311 | D7: =IFERROR(ROUND(B7*(1+C7),0),"") -> 46080 | E7: =VLOOKUP(A7,'All stocks'!$A$5:$B$202,2,FALSE) -> 11119 | F7: =IF(C7<0,ROUND(D7*I7,0),E7) -> 10774 | G7: 0.179826 | H7: 1 | I7: 0.2338 | J7: =ROUND(IFERROR(G7*H7,""),4) -> 0.1798 | K7: =IF(J7>1,ROUND(J7,0),IFERROR(ROUND(IF(OR(J7*D7>F7,I7=J7),F7,J7*D7),0),"")) -> 8285 | L7: =IFERROR(ROUND(IFERROR(IF(F7-K7<=0,0,F7-K7),""),0),0) -> 2489 | M7: 50 | N7: =IF(L7-M7>=0,M7,IF(L7-M7<0,M7+(L7-M7),M7)) -> 50 | O7: =IFERROR(IF(L7-N7<>L7,L7-N7,L7),0) -> 2439 | P7: 0.013655 | Q7: =ROUND(IFERROR(P7*D7,0),1) -> 629.2 | R7: =IFERROR(IF(IF((I7-J7)>P7,P7,I7-J7)<0,0,IF((I7-J7)>P7,P7,I7-J7)),0) -> 0.013655 | S7: 0 | T7: 1 | U7: =ROUND(IF(S7=0,IFERROR(IF(R7<=0,0,IF(L7=0,0,IF(L7>=Q7,Q7,L7))),0),IFERROR(IF(R7<=0,0,IF(L7=0,0,IF(L7>=Q7,Q7,L7))),0)-N7),1) -> 629.2 | V7: =IFERROR(IF(I7-J7-R7<=0,0,I7-J7-R7),0) -> 0.040345 | W7: 1 | X7: =IFERROR(IF(U7=0,L7-N7,IF(F7-K7-U7<0,0,F7-K7-N7-U7)),0) -> 1809.8 | Y7: 0 | Z7: 0 | AA7: =K7-Y7-Z7 -> 8285 | AB7: 0.051 | AC7: 0 | AD7: 0 | AE7: =SUMIFS('UK FQA'!D:D,'UK FQA'!B:B,A7,'UK FQA'!A:A,'Main apportion'!$AE$6) -> 37766 | AF7: =SUMIFS('UK FQA'!D:D,'UK FQA'!B:B,A7,'UK FQA'!A:A,'Main apportion'!$AF$6) -> 1579 | AG7: =SUMIFS('FA FQA'!G:G,'FA FQA'!E:E,'Main apportion'!A7,'FA FQA'!D:D,'Main apportion'!$AG$6) -> 246 | AH7: =AA7*AB7 -> 422.535 | AI7: =IFERROR(AA7*(AF7/AE7),0) -> 346.3966266 | AJ7: =ROUND((MAX(AH7,AC7,AI7)),1) -> 422.5 | AK7: 0.9702 | AL7: 0.008 | AM7: 0.0058 | AN7: 0.016 | AO7: =ROUND(IFERROR($AJ7*(AK7/SUM($AK7:$AN7)),0),1) -> 409.9 | AP7: =ROUND(IFERROR($AJ7*(AL7/SUM($AK7:$AN7)),0),1) -> 3.4 | AQ7: =ROUND(IFERROR($AJ7*(AM7/SUM($AK7:$AN7)),0),1) -> 2.5 | AR7: =ROUND(IFERROR($AJ7*(AN7/SUM($AK7:$AN7)),0),1) -> 6.8 | AS7: =ROUND(IF(AJ7-SUM(AO7:AR7)=0,0,AJ7-SUM(AO7:AR7)),1) -> -0.1 | AT7: =IF(AS7<>0,"amend",0) -> amend | AU7: =IF(AT7="amend",MAX(AO7:AR7),0) -> 409.9 | AV7: =IF(AO7=$AU7,AO7+$AS7,AO7) -> 409.8 | AW7: =IF(AP7=$AU7,AP7+$AS7,AP7) -> 3.4 | AX7: =IF(AQ7=$AU7,AQ7+$AS7,AQ7) -> 2.5 | AY7: =IF(AR7=$AU7,AR7+$AS7,AR7) -> 6.8 | AZ7: =SUM(AV7:AY7)-AJ7 -> 0 | BA7: =SUMIFS('UK FQA'!D:D,'UK FQA'!B:B,'Main apportion'!A7,'UK FQA'!A:A,'Main apportion'!$BA$6) -> 0 | BB7: =ROUND(IFERROR(AA7*(BA7/AE7),0),1) -> 0 | BC7: =AA7*AD7 -> 0 | BD7: =IFERROR(AA7*(AG7/AE7),0) -> 53.96679553 | BE7: =ROUND((IFERROR(MAX(BC7,BD7),0)),1) -> 54 | BF7: =SUMIFS('FA FQA'!$G:$G,'FA FQA'!$E:$E,'Main apportion'!$A7,'FA FQA'!$B:$B,'Main apportion'!BF$2,'FA FQA'!$D:$D,'Main apportion'!BF$3) -> 160 | BG7: =SUMIFS('FA FQA'!$G:$G,'FA FQA'!$E:$E,'Main apportion'!$A7,'FA FQA'!$B:$B,'Main apportion'!BG$2,'FA FQA'!$D:$D,'Main apportion'!BG$3) -> 0 | BH7: =SUMIFS('FA FQA'!$G:$G,'FA FQA'!$E:$E,'Main apportion'!$A7,'FA FQA'!$B:$B,'Main apportion'!BH$2,'FA FQA'!$D:$D,'Main apportion'!BH$3) -> 85 | BI7: =SUMIFS('FA FQA'!$G:$G,'FA FQA'!$E:$E,'Main apportion'!$A7,'FA FQA'!$B:$B,'Main apportion'!BI$2,'FA FQA'!$D:$D,'Main apportion'!BI$3) -> 1 | BJ7: =ROUND(IFERROR($BE7*(BF7/$AG7),0),1) -> 35.1 | BK7: =ROUND(IFERROR($BE7*(BG7/$AG7),0),1) -> 0 | BL7: =ROUND(IFERROR($BE7*(BH7/$AG7),0),1) -> 18.7 | BM7: =ROUND(IFERROR($BE7*(BI7/$AG7),0),1) -> 0.2 | BN7: =BE7-SUM(BJ7:BM7) -> 0 | BO7: =IF(BN7<>0,"amend",0) -> 0 | BP7: =IF(BO7="amend",MAX(BJ7:BM7),0) -> 0 | BQ7: =IF(BJ7=$BP7,BJ7+$BN7,BJ7) -> 35.1 | BR7: =IF(BK7=$BP7,BK7+$BN7,BK7) -> 0 | BS7: =IF(BL7=$BP7,BL7+$BN7,BL7) -> 18.7 | BT7: =IF(BM7=$BP7,BM7+$BN7,BM7) -> 0.2 | BU7: =SUM(BQ7:BT7)-BE7 -> 0 | BV7: =SUMIFS('FA FQA'!$G:$G,'FA FQA'!$E:$E,'Main apportion'!$A7,'FA FQA'!$B:$B,'Main apportion'!BV$2,'FA FQA'!$D:$D,'Main apportion'!BV$3) -> 26737 | BW7: =SUMIFS('FA FQA'!$G:$G,'FA FQA'!$E:$E,'Main apportion'!$A7,'FA FQA'!$B:$B,'Main apportion'!BW$2,'FA FQA'!$D:$D,'Main apportion'!BW$3) -> 2791 | BX7: =SUMIFS('FA FQA'!$G:$G,'FA FQA'!$E:$E,'Main apportion'!$A7,'FA FQA'!$B:$B,'Main apportion'!BX$2,'FA FQA'!$D:$D,'Main apportion'!BX$3) -> 4586 | BY7: =SUMIFS('FA FQA'!$G:$G,'FA FQA'!$E:$E,'Main apportion'!$A7,'FA FQA'!$B:$B,'Main apportion'!BY$2,'FA FQA'!$D:$D,'Main apportion'!BY$3) -> 1827 | BZ7: =SUM(BV7:BY7) -> 35941 | CA7: =ROUND(AA7-AJ7-BE7-BB7,1) -> 7808.5 | CB7: =ROUND(IFERROR(CA7*(BV7/$BZ7),0),1) -> 5808.8 | CC7: =ROUND(IFERROR(CA7*(BW7/$BZ7),0),1) -> 606.4 | CD7: =ROUND(IFERROR(CA7*(BX7/$BZ7),0),1) -> 996.3 | CE7: =ROUND(IFERROR($CA7*(BY7/$BZ7),0),1) -> 396.9 | CF7: =CA7-SUM(CB7:CE7) -> 0.1 | CG7: =IF(CF7<>0,"amend",0) -> amend | CH7: =IF(CG7="amend",MAX(CB7:CE7),0) -> 5808.8 | CI7: =IF(CB7=$CH7,CB7+$CF7,CB7) -> 5808.9 | CJ7: =IF(CC7=$CH7,CC7+$CF7,CC7) -> 606.4 | CK7: =IF(CD7=$CH7,CD7+$CF7,CD7) -> 996.3 | CL7: =IF(CE7=$CH7,CE7+$CF7,CE7) -> 396.9 | CM7: =IFERROR(100*SUM(CB7:CE7)/BZ7,0) -> 21.72560585 | CN7: 0 | CO7: 0 | CP7: 0 | CQ7: 0 | CR7: =SUM(AV7,BB7,BQ7,CI7,CN7) -> 6253.8 | CS7: =SUM(AW7,BR7,CJ7,CO7) -> 609.8 | CT7: =SUM(AX7,BS7,CK7,CP7) -> 1017.5 | CU7: =SUM(AY7,BT7,CL7,CQ7) -> 403.9 | CV7: =ROUND(CR7,1) -> 6253.8 | CW7: =ROUND(CS7,1) -> 609.8 | CX7: =ROUND(CT7,1) -> 1017.5 | CY7: =ROUND(CU7,1) -> 403.9 | CZ7: 0.7670030239 | DA7: 0.02864938393 | DB7: 0.1626142328 | DC7: 0.04173335945 | DD7: =ROUND(IFERROR(IF($T7=1,$CZ7/SUM($CZ7:$DB7)*$U7,CZ7*$U7),0),1) -> 503.6 | DE7: =ROUND(IFERROR(IF($T7=1,$DA7/SUM($CZ7:$DB7)*$U7,DA7*$U7),0),1) -> 18.8 | DF7: =ROUND(IFERROR(IF($T7=1,$DB7/SUM($CZ7:$DB7)*$U7,DB7*$U7),0),1) -> 106.8 | DG7: =ROUND(IF(S7=1,N7,(IF(T7=1,0,IFERROR(DC7*$U7,0)))),1) -> 0 | DH7: 0.8185444669 | DI7: 0.02812127961 | DJ7: 0.1533342535 | DK7: 0 | DL7: =ROUND(IFERROR(DH7*$X7,0),1) -> 1481.4 | DM7: =ROUND(IFERROR(DI7*$X7,0),1) -> 50.9 | DN7: =ROUND(IFERROR(DJ7*$X7,0),1) -> 277.5 | DO7: =ROUND(IF(AND(N7>0,S7<>1),N7,IFERROR(DK7*$X7,0)),1) -> 50 | DP7: =DD7+DL7 -> 1985 | DQ7: =DE7+DM7 -> 69.7 | DR7: =DF7+DN7 -> 384.3 | DS7: =DG7+DO7 -> 50 | DT7: =ROUND(DP7,1) -> 1985 | DU7: =ROUND(DQ7,1) -> 69.7 | DV7: =ROUND(DR7,1) -> 384.3 | DW7: =ROUND(DS7,1) -> 50 | DX7: =L7-(SUM(DT7:DW7)) -> 0 | DY7: =IF(DX7<>0,"amend",0) -> 0 | DZ7: =IF(DY7="amend",MAX(DT7:DW7),0) -> 0 | EA7: =IF(DT7=$DZ7,DT7+$DX7,DT7) -> 1985 | EB7: =IF(DU7=$DZ7,DU7+$DX7,DU7) -> 69.7 | EC7: =IF(DV7=$DZ7,DV7+$DX7,DV7) -> 384.3 | ED7: =IF(DW7=$DZ7,DW7+$DX7,DW7) -> 50 | EE7: =L7-SUM(EA7:ED7) -> 0 | EF7: =IFERROR(EA7+CV7,0) -> 8238.8 | EG7: =IFERROR(EB7+CW7,0) -> 679.5 | EH7: =IFERROR(EC7+CX7,0) -> 1401.8 | EI7: =IFERROR(ED7+CY7,0) -> 453.9 | EJ7: =ROUND(EF7,1) -> 8238.8 | EK7: =ROUND(EG7,1) -> 679.5 | EL7: =ROUND(EH7,1) -> 1401.8 | EM7: =ROUND(EI7,1) -> 453.9 | EN7: =K7-SUM(CV7:CY7) -> 0 | EO7: =IFERROR(F7-SUM(EJ7:EM7),0) -> 1.818989404e-12
A8: ANF/2AC4-C | B8: 19622 | C8: 0 | D8: =IFERROR(ROUND(B8*(1+C8),0),"") -> 19622 | E8: =VLOOKUP(A8,'All stocks'!$A$5:$B$202,2,FALSE) -> 17566 | F8: 17566 | G8: 0.813774 | H8: 1 | I8: 0.8952 | J8: =ROUND(IFERROR(G8*H8,""),4) -> 0.8138 | K8: 15968 | L8: 1598 | M8: 0 | N8: 0 | O8: 1598 | P8: 0 | Q8: 0 | R8: 0 | S8: 0 | T8: 0 | U8: =ROUND(IF(S8=0,IFERROR(IF(R8<=0,0,IF(L8=0,0,IF(L8>=Q8,Q8,L8))),0),IFERROR(IF(R8<=0,0,IF(L8=0,0,IF(L8>=Q8,Q8,L8))),0)-N8),1) -> 0 | V8: 0.0814 | W8: 0 | X8: 1598 | Y8: 0 | Z8: 0 | AA8: 15968 | AB8: 0 | AC8: 0 | AD8: 0 | AE8: =SUMIFS('UK FQA'!D:D,'UK FQA'!B:B,A8,'UK FQA'!A:A,'Main apportion'!$AE$6) -> 184524 | AF8: =SUMIFS('UK FQA'!D:D,'UK FQA'!B:B,A8,'UK FQA'!A:A,'Main apportion'!$AF$6) -> 158 | AG8: =SUMIFS('FA FQA'!G:G,'FA FQA'!E:E,'Main apportion'!A8,'FA FQA'!D:D,'Main apportion'!$AG$6) -> 20 | AH8: 0 | AI8: 13.67271466 | AJ8: =ROUND((MAX(AH8,AC8,AI8)),1) -> 13.7 | AK8: 0.8821 | AL8: 0 | AM8: 0.1092 | AN8: 0.0087 | AO8: =ROUND(IFERROR($AJ8*(AK8/SUM($AK8:$AN8)),0),1) -> 12.1 | AP8: =ROUND(IFERROR($AJ8*(AL8/SUM($AK8:$AN8)),0),1) -> 0 | AQ8: =ROUND(IFERROR($AJ8*(AM8/SUM($AK8:$AN8)),0),1) -> 1.5 | AR8: =ROUND(IFERROR($AJ8*(AN8/SUM($AK8:$AN8)),0),1) -> 0.1 | AS8: =IF(AJ8-SUM(AO8:AR8)=0,0,AJ8-SUM(AO8:AR8)) -> 0 | AT8: =IF(AS8<>0,"amend",0) -> 0 | AU8: =IF(AT8="amend",MAX(AO8:AR8),0) -> 0 | AV8: =IF(AO8=$AU8,AO8+$AS8,AO8) -> 12.1 | AW8: =IF(AP8=$AU8,AP8+$AS8,AP8) -> 0 | AX8: =IF(AQ8=$AU8,AQ8+$AS8,AQ8) -> 1.5 | AY8: =IF(AR8=$AU8,AR8+$AS8,AR8) -> 0.1 | AZ8: =SUM(AV8:AY8)-AJ8 -> 0 | BA8: =SUMIFS('UK FQA'!D:D,'UK FQA'!B:B,'Main apportion'!A8,'UK FQA'!A:A,'Main apportion'!$BA$6) -> 289 | BB8: =ROUND(IFERROR(AA8*(BA8/AE8),0),1) -> 25 | BC8: 0 | BD8: 1.730723375 | BE8: =ROUND((IFERROR(MAX(BC8,BD8),0)),1) -> 1.7 | BF8: =SUMIFS('FA FQA'!$G:$G,'FA FQA'!$E:$E,'Main apportion'!$A8,'FA FQA'!$B:$B,'Main apportion'!BF$2,'FA FQA'!$D:$D,'Main apportion'!BF$3) -> 2 | BG8: =SUMIFS('FA FQA'!$G:$G,'FA FQA'!$E:$E,'Main apportion'!$A8,'FA FQA'!$B:$B,'Main apportion'!BG$2,'FA FQA'!$D:$D,'Main apportion'!BG$3) -> 0 | BH8: =SUMIFS('FA FQA'!$G:$G,'FA FQA'!$E:$E,'Main apportion'!$A8,'FA FQA'!$B:$B,'Main apportion'!BH$2,'FA FQA'!$D:$D,'Main apportion'!BH$3) -> 18 | BI8: =SUMIFS('FA FQA'!$G:$G,'FA FQA'!$E:$E,'Main apportion'!$A8,'FA FQA'!$B:$B,'Main apportion'!BI$2,'FA FQA'!$D:$D,'Main apportion'!BI$3) -> 0 | BJ8: 0.2 | BK8: 0 | BL8: 1.5 | BM8: 0 | BN8: =BE8-SUM(BJ8:BM8) -> 0 | BO8: =IF(BN8<>0,"amend",0) -> 0 | BP8: =IF(BO8="amend",MAX(BJ8:BM8),0) -> 0 | BQ8: =IF(BJ8=$BP8,BJ8+$BN8,BJ8) -> 0.2 | BR8: =IF(BK8=$BP8,BK8+$BN8,BK8) -> 0 | BS8: =IF(BL8=$BP8,BL8+$BN8,BL8) -> 1.5 | BT8: =IF(BM8=$BP8,BM8+$BN8,BM8) -> 0 | BU8: =SUM(BQ8:BT8)-BE8 -> 0 | BV8: =SUMIFS('FA FQA'!$G:$G,'FA FQA'!$E:$E,'Main apportion'!$A8,'FA FQA'!$B:$B,'Main apportion'!BV$2,'FA FQA'!$D:$D,'Main apportion'!BV$3) -> 37017 | BW8: =SUMIFS('FA FQA'!$G:$G,'FA FQA'!$E:$E,'Main apportion'!$A8,'FA FQA'!$B:$B,'Main apportion'!BW$2,'FA FQA'!$D:$D,'Main apportion'!BW$3) -> 947 | BX8: =SUMIFS('FA FQA'!$G:$G,'FA FQA'!$E:$E,'Main apportion'!$A8,'FA FQA'!$B:$B,'Main apportion'!BX$2,'FA FQA'!$D:$D,'Main apportion'!BX$3) -> 146093 | BY8: =SUMIFS('FA FQA'!$G:$G,'FA FQA'!$E:$E,'Main apportion'!$A8,'FA FQA'!$B:$B,'Main apportion'!BY$2,'FA FQA'!$D:$D,'Main apportion'!BY$3) -> 0 | BZ8: =SUM(BV8:BY8) -> 184057 | CA8: =ROUND(AA8-AJ8-BE8-BB8,1) -> 15927.6 | CB8: =ROUND(IFERROR(CA8*(BV8/$BZ8),0),1) -> 3203.3 | CC8: =ROUND(IFERROR(CA8*(BW8/$BZ8),0),1) -> 81.9 | CD8: =ROUND(IFERROR(CA8*(BX8/$BZ8),0),1) -> 12642.3 | CE8: =ROUND(IFERROR($CA8*(BY8/$BZ8),0),1) -> 0 | CF8: =CA8-SUM(CB8:CE8) -> 0.1 | CG8: =IF(CF8<>0,"amend",0) -> amend | CH8: =IF(CG8="amend",MAX(CB8:CE8),0) -> 12642.3 | CI8: =IF(CB8=$CH8,CB8+$CF8,CB8) -> 3203.3 | CJ8: =IF(CC8=$CH8,CC8+$CF8,CC8) -> 81.9 | CK8: =IF(CD8=$CH8,CD8+$CF8,CD8) -> 12642.4 | CL8: =IF(CE8=$CH8,CE8+$CF8,CE8) -> 0 | CM8: 8.653569275 | CN8: 0 | CO8: 0 | CP8: 0 | CQ8: 0 | CR8: =SUM(AV8,BB8,BQ8,CI8,CN8) -> 3240.6 | CS8: =SUM(AW8,BR8,CJ8,CO8) -> 81.9 | CT8: =SUM(AX8,BS8,CK8,CP8) -> 12645.4 | CU8: =SUM(AY8,BT8,CL8,CQ8) -> 0.1 | CV8: =ROUND(CR8,1) -> 3240.6 | CW8: =ROUND(CS8,1) -> 81.9 | CX8: 12645.4 | CY8: =ROUND(CU8,1) -> 0.1 | CZ8: 0.1021414044 | DA8: 0.001758475292 | DB8: 0.896094873 | DC8: 5.247341236e-06 | DD8: 0 | DE8: 0 | DF8: 0 | DG8: 0 | DH8: 0.09416367215 | DI8: 0.001582627763 | DJ8: 0.9042489775 | DK8: 4.722607112e-06 | DL8: =ROUND(IFERROR(DH8*$X8,0),1) -> 150.5 | DM8: =ROUND(IFERROR(DI8*$X8,0),1) -> 2.5 | DN8: =ROUND(IFERROR(DJ8*$X8,0),1) -> 1445 | DO8: 0 | DP8: 150.5 | DQ8: 2.5 | DR8: 1445 | DS8: 0 | DT8: 150.5 | DU8: 2.5 | DV8: 1445 | DW8: 0 | DX8: 0 | DY8: =IF(DX8<>0,"amend",0) -> 0 | DZ8: =IF(DY8="amend",MAX(DT8:DW8),0) -> 0 | EA8: =IF(DT8=$DZ8,DT8+$DX8,DT8) -> 150.5 | EB8: =IF(DU8=$DZ8,DU8+$DX8,DU8) -> 2.5 | EC8: =IF(DV8=$DZ8,DV8+$DX8,DV8) -> 1445 | ED8: =IF(DW8=$DZ8,DW8+$DX8,DW8) -> 0 | EE8: 0 | EF8: =IFERROR(EA8+CV8,0) -> 3391.1 | EG8: =IFERROR(EB8+CW8,0) -> 84.4 | EH8: =IFERROR(EC8+CX8,0) -> 14090.4 | EI8: =IFERROR(ED8+CY8,0) -> 0.1 | EJ8: =ROUND(EF8,1) -> 3391.1 | EK8: =ROUND(EG8,1) -> 84.4 | EL8: =ROUND(EH8,1) -> 14090.4 | EM8: =ROUND(EI8,1) -> 0.1 | EN8: 0 | EO8: 0
A9: ANF/56-14 | B9: 11104 | C9: 0 | D9: 11104 | E9: =VLOOKUP(A9,'All stocks'!$A$5:$B$202,2,FALSE) -> 4941 | F9: 4941 | G9: 0.307693 | H9: 1 | I9: 0.445 | J9: 0.3077 | K9: 3417 | L9: 1524 | M9: 0 | N9: 0 | O9: 1524 | P9: 0.057177 | Q9: 634.9 | R9: 0.057177 | S9: 0 | T9: 0 | U9: 634.9 | V9: 0.080123 | W9: 0 | X9: 889.1 | Y9: 0 | Z9: 0 | AA9: 3417 | AB9: 0 | AC9: 5 | AD9: 0 | AE9: =SUMIFS('UK FQA'!D:D,'UK FQA'!B:B,A9,'UK FQA'!A:A,'Main apportion'!$AE$6) -> 29628 | AF9: =SUMIFS('UK FQA'!D:D,'UK FQA'!B:B,A9,'UK FQA'!A:A,'Main apportion'!$AF$6) -> 31 | AG9: =SUMIFS('FA FQA'!G:G,'FA FQA'!E:E,'Main apportion'!A9,'FA FQA'!D:D,'Main apportion'!$AG$6) -> 14 | AH9: 0 | AI9: 3.575232888 | AJ9: 5 | AK9: 0.0121 | AL9: 0.5919 | AM9: 0.3295 | AN9: 0.0665 | AO9: =ROUND(IFERROR($AJ9*(AK9/SUM($AK9:$AN9)),0),1) -> 0.1 | AP9: 3 | AQ9: 1.6 | AR9: 0.3 | AS9: 0 | AT9: =IF(AS9<>0,"amend",0) -> 0 | AU9: 0 | AV9: =IF(AO9=$AU9,AO9+$AS9,AO9) -> 0.1 | AW9: =IF(AP9=$AU9,AP9+$AS9,AP9) -> 3 | AX9: =IF(AQ9=$AU9,AQ9+$AS9,AQ9) -> 1.6 | AY9: 0.3 | AZ9: 0 | BA9: =SUMIFS('UK FQA'!D:D,'UK FQA'!B:B,'Main apportion'!A9,'UK FQA'!A:A,'Main apportion'!$BA$6) -> 0 | BB9: 0 | BC9: 0 | BD9: 1.614621304 | BE9: 1.6 | BF9: =SUMIFS('FA FQA'!$G:$G,'FA FQA'!$E:$E,'Main apportion'!$A9,'FA FQA'!$B:$B,'Main apportion'!BF$2,'FA FQA'!$D:$D,'Main apportion'!BF$3) -> 6 | BG9: =SUMIFS('FA FQA'!$G:$G,'FA FQA'!$E:$E,'Main apportion'!$A9,'FA FQA'!$B:$B,'Main apportion'!BG$2,'FA FQA'!$D:$D,'Main apportion'!BG$3) -> 3 | BH9: =SUMIFS('FA FQA'!$G:$G,'FA FQA'!$E:$E,'Main apportion'!$A9,'FA FQA'!$B:$B,'Main apportion'!BH$2,'FA FQA'!$D:$D,'Main apportion'!BH$3) -> 5 | BI9: =SUMIFS('FA FQA'!$G:$G,'FA FQA'!$E:$E,'Main apportion'!$A9,'FA FQA'!$B:$B,'Main apportion'!BI$2,'FA FQA'!$D:$D,'Main apportion'!BI$3) -> 0 | BJ9: 0.7 | BK9: 0.3 | BL9: 0.6 | BM9: 0 | BN9: 0 | BO9: 0 | BP9: 0 | BQ9: 0.7 | BR9: 0.3 | BS9: 0.6 | BT9: 0 | BU9: 0 | BV9: =SUMIFS('FA FQA'!$G:$G,'FA FQA'!$E:$E,'Main apportion'!$A9,'FA FQA'!$B:$B,'Main apportion'!BV$2,'FA FQA'!$D:$D,'Main apportion'!BV$3) -> 7996 | BW9: =SUMIFS('FA FQA'!$G:$G,'FA FQA'!$E:$E,'Main apportion'!$A9,'FA FQA'!$B:$B,'Main apportion'!BW$2,'FA FQA'!$D:$D,'Main apportion'!BW$3) -> 1192 | BX9: =SUMIFS('FA FQA'!$G:$G,'FA FQA'!$E:$E,'Main apportion'!$A9,'FA FQA'!$B:$B,'Main apportion'!BX$2,'FA FQA'!$D:$D,'Main apportion'!BX$3) -> 20395 | BY9: =SUMIFS('FA FQA'!$G:$G,'FA FQA'!$E:$E,'Main apportion'!$A9,'FA FQA'!$B:$B,'Main apportion'!BY$2,'FA FQA'!$D:$D,'Main apportion'!BY$3) -> 0 | BZ9: 29583 | CA9: 3410.4 | CB9: 921.8 | CC9: 137.4 | CD9: 2351.2 | CE9: 0 | CF9: 0 | CG9: 0 | CH9: 0 | CI9: =IF(CB9=$CH9,CB9+$CF9,CB9) -> 921.8 | CJ9: 137.4 | CK9: =IF(CD9=$CH9,CD9+$CF9,CD9) -> 2351.2 | CL9: 0 | CM9: 11.52824257 | CN9: 0 | CO9: 0 | CP9: 0 | CQ9: 0 | CR9: 922.6 | CS9: 140.7 | CT9: 2353.4 | CU9: 0.3 | CV9: 922.6 | CW9: 140.7 | CX9: 2353.4 | CY9: 0.3 | CZ9: 0.1355143784 | DA9: 0.006642092942 | DB9: 0.8578409254 | DC9: 2.603206012e-06 | DD9: 86 | DE9: 4.2 | DF9: 544.6 | DG9: 0 | DH9: 0.1219629406 | DI9: 0.006011634678 | DJ9: 0.8720230819 | DK9: 2.342885411e-06 | DL9: 108.4 | DM9: 5.3 | DN9: 775.3 | DO9: 0 | DP9: 194.4 | DQ9: 9.5 | DR9: 1319.9 | DS9: 0 | DT9: 194.4 | DU9: 9.5 | DV9: 1319.9 | DW9: 0 | DX9: 0.2 | DY9: amend | DZ9: 1319.9 | EA9: 194.4 | EB9: 9.5 | EC9: 1320.1 | ED9: 0 | EE9: 0 | EF9: 1117 | EG9: 150.2 | EH9: 3673.5 | EI9: 0.3 | EJ9: 1117 | EK9: 150.2 | EL9: 3673.5 | EM9: 0.3 | EN9: 0 | EO9: 0
A10: ARU/567. | B10: 8998 | C10: 0 | D10: 8998 | E10: =VLOOKUP(A10,'All stocks'!$A$5:$B$202,2,FALSE) -> 503 | F10: 503 | G10: 0.055867 | H10: 1 | I10: 0.0559 | J10: 0.0559 | K10: 503 | L10: 0 | M10: 0 | N10: 0 | O10: 0 | P10: 0 | Q10: 0 | R10: 0 | S10: 0 | T10: 0 | U10: 0 | V10: 0 | W10: 0 | X10: 0 | Y10: 0 | Z10: 0 | AA10: 503 | AB10: 0 | AC10: 0 | AD10: 0 | AE10: =SUMIFS('UK FQA'!D:D,'UK FQA'!B:B,A10,'UK FQA'!A:A,'Main apportion'!$AE$6) -> 44557 | AF10: =SUMIFS('UK FQA'!D:D,'UK FQA'!B:B,A10,'UK FQA'!A:A,'Main apportion'!$AF$6) -> 0 | AG10: =SUMIFS('FA FQA'!G:G,'FA FQA'!E:E,'Main apportion'!A10,'FA FQA'!D:D,'Main apportion'!$AG$6) -> 0 | AH10: 0 | AI10: 0 | AJ10: 0 | AK10: 0 | AL10: 0 | AM10: 0 | AN10: 0 | AO10: 0 | AP10: 0 | AQ10: 0 | AR10: 0 | AS10: 0 | AT10: 0 | AU10: 0 | AV10: =IF(AO10=$AU10,AO10+$AS10,AO10) -> 0 | AW10: 0 | AX10: 0 | AY10: 0 | AZ10: 0 | BA10: =SUMIFS('UK FQA'!D:D,'UK FQA'!B:B,'Main apportion'!A10,'UK FQA'!A:A,'Main apportion'!$BA$6) -> 0 | BB10: 0 | BC10: 0 | BD10: 0 | BE10: 0 | BF10: =SUMIFS('FA FQA'!$G:$G,'FA FQA'!$E:$E,'Main apportion'!$A10,'FA FQA'!$B:$B,'Main apportion'!BF$2,'FA FQA'!$D:$D,'Main apportion'!BF$3) -> 0 | BG10: =SUMIFS('FA FQA'!$G:$G,'FA FQA'!$E:$E,'Main apportion'!$A10,'FA FQA'!$B:$B,'Main apportion'!BG$2,'FA FQA'!$D:$D,'Main apportion'!BG$3) -> 0 | BH10: =SUMIFS('FA FQA'!$G:$G,'FA FQA'!$E:$E,'Main apportion'!$A10,'FA FQA'!$B:$B,'Main apportion'!BH$2,'FA FQA'!$D:$D,'Main apportion'!BH$3) -> 0 | BI10: =SUMIFS('FA FQA'!$G:$G,'FA FQA'!$E:$E,'Main apportion'!$A10,'FA FQA'!$B:$B,'Main apportion'!BI$2,'FA FQA'!$D:$D,'Main apportion'!BI$3) -> 0 | BJ10: 0 | BK10: 0 | BL10: 0 | BM10: 0 | BN10: 0 | BO10: 0 | BP10: 0 | BQ10: 0 | BR10: 0 | BS10: 0 | BT10: 0 | BU10: 0 | BV10: =SUMIFS('FA FQA'!$G:$G,'FA FQA'!$E:$E,'Main apportion'!$A10,'FA FQA'!$B:$B,'Main apportion'!BV$2,'FA FQA'!$D:$D,'Main apportion'!BV$3) -> 1137 | BW10: =SUMIFS('FA FQA'!$G:$G,'FA FQA'!$E:$E,'Main apportion'!$A10,'FA FQA'!$B:$B,'Main apportion'!BW$2,'FA FQA'!$D:$D,'Main apportion'!BW$3) -> 0 | BX10: =SUMIFS('FA FQA'!$G:$G,'FA FQA'!$E:$E,'Main apportion'!$A10,'FA FQA'!$B:$B,'Main apportion'!BX$2,'FA FQA'!$D:$D,'Main apportion'!BX$3) -> 43420 | BY10: =SUMIFS('FA FQA'!$G:$G,'FA FQA'!$E:$E,'Main apportion'!$A10,'FA FQA'!$B:$B,'Main apportion'!BY$2,'FA FQA'!$D:$D,'Main apportion'!BY$3) -> 0 | BZ10: 44557 | CA10: 503 | CB10: 12.8 | CC10: 0 | CD10: 490.2 | CE10: 0 | CF10: 0 | CG10: 0 | CH10: 0 | CI10: 12.8 | CJ10: 0 | CK10: 490.2 | CL10: 0 | CM10: 1.128891083 | CN10: 0 | CO10: 0 | CP10: 0 | CQ10: 0 | CR10: 12.8 | CS10: 0 | CT10: 490.2 | CU10: 0 | CV10: 12.8 | CW10: 0 | CX10: 490.2 | CY10: 0 | CZ10: 0.6474744611 | DA10: 0 | DB10: 0.3525255389 | DC10: 0 | DD10: 0 | DE10: 0 | DF10: 0 | DG10: 0 | DH10: 0.5827273041 | DI10: 0 | DJ10: 0.4172726959 | DK10: 0 | DL10: 0 | DM10: 0 | DN10: 0 | DO10: 0 | DP10: 0 | DQ10: 0 | DR10: 0 | DS10: 0 | DT10: 0 | DU10: 0 | DV10: 0 | DW10: 0 | DX10: 0 | DY10: 0 | DZ10: 0 | EA10: 0 | EB10: 0 | EC10: 0 | ED10: 0 | EE10: 0 | EF10: 12.8 | EG10: 0 | EH10: 490.2 | EI10: 0 | EJ10: 12.8 | EK10: 0 | EL10: 490.2 | EM10: 0 | EN10: 0 | EO10: 0
A11: BLI/5B67- | B11: 11159 | C11: 0 | D11: 11159 | E11: =VLOOKUP(A11,'All stocks'!$A$5:$B$202,2,FALSE) -> 2500 | F11: 2500 | G11: 0.192222 | H11: 1 | I11: 0.25 | J11: 0.1922 | K11: 2145 | L11: 355 | M11: 0 | N11: 0 | O11: 355 | P11: 0 | Q11: 0 | R11: 0 | S11: 0 | T11: 0 | U11: 0 | V11: 0.0578 | W11: 0 | X11: 355 | Y11: 0 | Z11: 0 | AA11: 2145 | AB11: 0 | AC11: 0 | AD11: 0 | AE11: =SUMIFS('UK FQA'!D:D,'UK FQA'!B:B,A11,'UK FQA'!A:A,'Main apportion'!$AE$6) -> 37200 | AF11: =SUMIFS('UK FQA'!D:D,'UK FQA'!B:B,A11,'UK FQA'!A:A,'Main apportion'!$AF$6) -> 3 | AG11: =SUMIFS('FA FQA'!G:G,'FA FQA'!E:E,'Main apportion'!A11,'FA FQA'!D:D,'Main apportion'!$AG$6) -> 35 | AH11: 0 | AI11: 0.172983871 | AJ11: 0.2 | AK11: 0.25 | AL11: 0.25 | AM11: 0.25 | AN11: 0.25 | AO11: =ROUND(IFERROR($AJ11*(AK11/SUM($AK11:$AN11)),0),1) -> 0.1 | AP11: =ROUND(IFERROR($AJ11*(AL11/SUM($AK11:$AN11)),0),1) -> 0.1 | AQ11: =ROUND(IFERROR($AJ11*(AM11/SUM($AK11:$AN11)),0),1) -> 0.1 | AR11: =ROUND(IFERROR($AJ11*(AN11/SUM($AK11:$AN11)),0),1) -> 0.1 | AS11: -0.2 | AT11: amend | AU11: 0.1 | AV11: =IF(AO11=$AU11,AO11+$AS11,AO11)+0.1 -> 0 | AW11: =IF(AP11=$AU11,AP11+$AS11,AP11)+0.2 -> 0.1 | AX11: =IF(AQ11=$AU11,AQ11+$AS11,AQ11)+0.2 -> 0.1 | AY11: =IF(AR11=$AU11,AR11+$AS11,AR11)+0.1 -> 0 | AZ11: =SUM(AV11:AY11)-AJ11 -> 0 | BA11: =SUMIFS('UK FQA'!D:D,'UK FQA'!B:B,'Main apportion'!A11,'UK FQA'!A:A,'Main apportion'!$BA$6) -> 0 | BB11: 0 | BC11: 0 | BD11: 2.018145161 | BE11: 2 | BF11: =SUMIFS('FA FQA'!$G:$G,'FA FQA'!$E:$E,'Main apportion'!$A11,'FA FQA'!$B:$B,'Main apportion'!BF$2,'FA FQA'!$D:$D,'Main apportion'!BF$3) -> 35 | BG11: =SUMIFS('FA FQA'!$G:$G,'FA FQA'!$E:$E,'Main apportion'!$A11,'FA FQA'!$B:$B,'Main apportion'!BG$2,'FA FQA'!$D:$D,'Main apportion'!BG$3) -> 0 | BH11: =SUMIFS('FA FQA'!$G:$G,'FA FQA'!$E:$E,'Main apportion'!$A11,'FA FQA'!$B:$B,'Main apportion'!BH$2,'FA FQA'!$D:$D,'Main apportion'!BH$3) -> 0 | BI11: =SUMIFS('FA FQA'!$G:$G,'FA FQA'!$E:$E,'Main apportion'!$A11,'FA FQA'!$B:$B,'Main apportion'!BI$2,'FA FQA'!$D:$D,'Main apportion'!BI$3) -> 0 | BJ11: 2 | BK11: 0 | BL11: 0 | BM11: 0 | BN11: 0 | BO11: 0 | BP11: 0 | BQ11: 2 | BR11: 0 | BS11: 0 | BT11: 0 | BU11: 0 | BV11: =SUMIFS('FA FQA'!$G:$G,'FA FQA'!$E:$E,'Main apportion'!$A11,'FA FQA'!$B:$B,'Main apportion'!BV$2,'FA FQA'!$D:$D,'Main apportion'!BV$3) -> 12756 | BW11: =SUMIFS('FA FQA'!$G:$G,'FA FQA'!$E:$E,'Main apportion'!$A11,'FA FQA'!$B:$B,'Main apportion'!BW$2,'FA FQA'!$D:$D,'Main apportion'!BW$3) -> 69 | BX11: =SUMIFS('FA FQA'!$G:$G,'FA FQA'!$E:$E,'Main apportion'!$A11,'FA FQA'!$B:$B,'Main apportion'!BX$2,'FA FQA'!$D:$D,'Main apportion'!BX$3) -> 24337 | BY11: =SUMIFS('FA FQA'!$G:$G,'FA FQA'!$E:$E,'Main apportion'!$A11,'FA FQA'!$B:$B,'Main apportion'!BY$2,'FA FQA'!$D:$D,'Main apportion'!BY$3) -> 0 | BZ11: 37162 | CA11: =ROUND(AA11-AJ11-BE11-BB11,1) -> 2142.8 | CB11: 735.5 | CC11: 4 | CD11: 1403.3 | CE11: 0 | CF11: 0 | CG11: 0 | CH11: 0 | CI11: 735.5 | CJ11: 4 | CK11: 1403.3 | CL11: 0 | CM11: 5.766105161 | CN11: 0 | CO11: 0 | CP11: 0 | CQ11: 0 | CR11: 737.5 | CS11: 4.1 | CT11: =SUM(AX11,BS11,CK11,CP11) -> 1403.4 | CU11: 0 | CV11: 737.5 | CW11: 4.1 | CX11: 1403.4 | CY11: 0 | CZ11: 0.004601459657 | DA11: 0 | DB11: 0.9953985403 | DC11: 0 | DD11: 0 | DE11: 0 | DF11: 0 | DG11: 0 | DH11: 0.004648522559 | DI11: 0 | DJ11: 0.9953514572 | DK11: 2.01973317e-08 | DL11: 1.7 | DM11: 0 | DN11: 353.3 | DO11: 0 | DP11: 1.7 | DQ11: 0 | DR11: 353.3 | DS11: 0 | DT11: 1.7 | DU11: 0 | DV11: 353.3 | DW11: 0 | DX11: 0 | DY11: 0 | DZ11: 0 | EA11: 1.7 | EB11: 0 | EC11: 353.3 | ED11: 0 | EE11: 0 | EF11: 739.2 | EG11: 4.1 | EH11: 1756.7 | EI11: 0 | EJ11: 739.2 | EK11: 4.1 | EL11: =ROUND(EH11,1) -> 1756.7 | EM11: 0 | EN11: 0 | EO11: 0
A12: BOR/678- | B12: 38295 | C12: 0 | D12: 38295 | E12: =VLOOKUP(A12,'All stocks'!$A$5:$B$202,2,FALSE) -> 2436 | F12: 2436 | G12: 0.06355 | H12: 1 | I12: 0.0636 | J12: 0.0636 | K12: 2436 | L12: 0 | M12: 0 | N12: 0 | O12: 0 | P12: 0 | Q12: 0 | R12: 0 | S12: 0 | T12: 0 | U12: 0 | V12: 0 | W12: 0 | X12: 0 | Y12: 0 | Z12: 0 | AA12: 2436 | AB12: 0 | AC12: 0 | AD12: 0 | AE12: =SUMIFS('UK FQA'!D:D,'UK FQA'!B:B,A12,'UK FQA'!A:A,'Main apportion'!$AE$6) -> 94139 | AF12: =SUMIFS('UK FQA'!D:D,'UK FQA'!B:B,A12,'UK FQA'!A:A,'Main apportion'!$AF$6) -> 0 | AG12: =SUMIFS('FA FQA'!G:G,'FA FQA'!E:E,'Main apportion'!A12,'FA FQA'!D:D,'Main apportion'!$AG$6) -> 0 | AH12: 0 | AI12: 0 | AJ12: 0 | AK12: 0 | AL12: 0 | AM12: 0 | AN12: 0 | AO12: 0 | AP12: 0 | AQ12: 0 | AR12: 0 | AS12: 0 | AT12: 0 | AU12: 0 | AV12: =IF(AO12=$AU12,AO12+$AS12,AO12) -> 0 | AW12: 0 | AX12: 0 | AY12: 0 | AZ12: 0 | BA12: =SUMIFS('UK FQA'!D:D,'UK FQA'!B:B,'Main apportion'!A12,'UK FQA'!A:A,'Main apportion'!$BA$6) -> 0 | BB12: 0 | BC12: 0 | BD12: 0 | BE12: 0 | BF12: =SUMIFS('FA FQA'!$G:$G,'FA FQA'!$E:$E,'Main apportion'!$A12,'FA FQA'!$B:$B,'Main apportion'!BF$2,'FA FQA'!$D:$D,'Main apportion'!BF$3) -> 0 | BG12: =SUMIFS('FA FQA'!$G:$G,'FA FQA'!$E:$E,'Main apportion'!$A12,'FA FQA'!$B:$B,'Main apportion'!BG$2,'FA FQA'!$D:$D,'Main apportion'!BG$3) -> 0 | BH12: =SUMIFS('FA FQA'!$G:$G,'FA FQA'!$E:$E,'Main apportion'!$A12,'FA FQA'!$B:$B,'Main apportion'!BH$2,'FA FQA'!$D:$D,'Main apportion'!BH$3) -> 0 | BI12: =SUMIFS('FA FQA'!$G:$G,'FA FQA'!$E:$E,'Main apportion'!$A12,'FA FQA'!$B:$B,'Main apportion'!BI$2,'FA FQA'!$D:$D,'Main apportion'!BI$3) -> 0 | BJ12: 0 | BK12: 0 | BL12: 0 | BM12: 0 | BN12: 0 | BO12: 0 | BP12: 0 | BQ12: 0 | BR12: 0 | BS12: 0 | BT12: 0 | BU12: 0 | BV12: =SUMIFS('FA FQA'!$G:$G,'FA FQA'!$E:$E,'Main apportion'!$A12,'FA FQA'!$B:$B,'Main apportion'!BV$2,'FA FQA'!$D:$D,'Main apportion'!BV$3) -> 0 | BW12: =SUMIFS('FA FQA'!$G:$G,'FA FQA'!$E:$E,'Main apportion'!$A12,'FA FQA'!$B:$B,'Main apportion'!BW$2,'FA FQA'!$D:$D,'Main apportion'!BW$3) -> 0 | BX12: =SUMIFS('FA FQA'!$G:$G,'FA FQA'!$E:$E,'Main apportion'!$A12,'FA FQA'!$B:$B,'Main apportion'!BX$2,'FA FQA'!$D:$D,'Main apportion'!BX$3) -> 94139 | BY12: =SUMIFS('FA FQA'!$G:$G,'FA FQA'!$E:$E,'Main apportion'!$A12,'FA FQA'!$B:$B,'Main apportion'!BY$2,'FA FQA'!$D:$D,'Main apportion'!BY$3) -> 0 | BZ12: 94139 | CA12: 2436 | CB12: 0 | CC12: 0 | CD12: 2436 | CE12: 0 | CF12: 0 | CG12: 0 | CH12: 0 | CI12: 0 | CJ12: 0 | CK12: 2436 | CL12: 0 | CM12: 2.587662924 | CN12: 0 | CO12: 0 | CP12: 0 | CQ12: 0 | CR12: 0 | CS12: 0 | CT12: 2436 | CU12: 0 | CV12: 0 | CW12: 0 | CX12: 2436 | CY12: 0 | CZ12: 0.01808978972 | DA12: 0 | DB12: 0.9819102103 | DC12: 0 | DD12: 0 | DE12: 0 | DF12: 0 | DG12: 0 | DH12: 0.1153170425 | DI12: 0 | DJ12: 0.8846829575 | DK12: 0 | DL12: 0 | DM12: 0 | DN12: 0 | DO12: 0 | DP12: 0 | DQ12: 0 | DR12: 0 | DS12: 0 | DT12: 0 | DU12: 0 | DV12: 0 | DW12: 0 | DX12: 0 | DY12: 0 | DZ12: 0 | EA12: 0 | EB12: 0 | EC12: 0 | ED12: 0 | EE12: 0 | EF12: 0 | EG12: 0 | EH12: 2436 | EI12: 0 | EJ12: 0 | EK12: 0 | EL12: 2436 | EM12: 0 | EN12: 0 | EO12: 0
A13: BSF/56712- | B13: 1370 | C13: 0 | D13: 1370 | E13: =VLOOKUP(A13,'All stocks'!$A$5:$B$202,2,FALSE) -> 78 | F13: 78 | G13: 0.05687 | H13: 1 | I13: 0.0569 | J13: 0.0569 | K13: 78 | L13: 0 | M13: 0 | N13: 0 | O13: 0 | P13: 0 | Q13: 0 | R13: 0 | S13: 0 | T13: 0 | U13: 0 | V13: 0 | W13: 0 | X13: 0 | Y13: 0 | Z13: 0 | AA13: 78 | AB13: 0 | AC13: 0 | AD13: 0 | AE13: =SUMIFS('UK FQA'!D:D,'UK FQA'!B:B,A13,'UK FQA'!A:A,'Main apportion'!$AE$6) -> 4477 | AF13: =SUMIFS('UK FQA'!D:D,'UK FQA'!B:B,A13,'UK FQA'!A:A,'Main apportion'!$AF$6) -> 0 | AG13: =SUMIFS('FA FQA'!G:G,'FA FQA'!E:E,'Main apportion'!A13,'FA FQA'!D:D,'Main apportion'!$AG$6) -> 0 | AH13: 0 | AI13: 0 | AJ13: 0 | AK13: 0 | AL13: 0 | AM13: 0 | AN13: 0 | AO13: 0 | AP13: 0 | AQ13: 0 | AR13: 0 | AS13: 0 | AT13: 0 | AU13: 0 | AV13: 0 | AW13: 0 | AX13: 0 | AY13: 0 | AZ13: 0 | BA13: =SUMIFS('UK FQA'!D:D,'UK FQA'!B:B,'Main apportion'!A13,'UK FQA'!A:A,'Main apportion'!$BA$6) -> 0 | BB13: 0 | BC13: 0 | BD13: 0 | BE13: 0 | BF13: =SUMIFS('FA FQA'!$G:$G,'FA FQA'!$E:$E,'Main apportion'!$A13,'FA FQA'!$B:$B,'Main apportion'!BF$2,'FA FQA'!$D:$D,'Main apportion'!BF$3) -> 0 | BG13: =SUMIFS('FA FQA'!$G:$G,'FA FQA'!$E:$E,'Main apportion'!$A13,'FA FQA'!$B:$B,'Main apportion'!BG$2,'FA FQA'!$D:$D,'Main apportion'!BG$3) -> 0 | BH13: =SUMIFS('FA FQA'!$G:$G,'FA FQA'!$E:$E,'Main apportion'!$A13,'FA FQA'!$B:$B,'Main apportion'!BH$2,'FA FQA'!$D:$D,'Main apportion'!BH$3) -> 0 | BI13: =SUMIFS('FA FQA'!$G:$G,'FA FQA'!$E:$E,'Main apportion'!$A13,'FA FQA'!$B:$B,'Main apportion'!BI$2,'FA FQA'!$D:$D,'Main apportion'!BI$3) -> 0 | BJ13: 0 | BK13: 0 | BL13: 0 | BM13: 0 | BN13: 0 | BO13: 0 | BP13: 0 | BQ13: 0 | BR13: 0 | BS13: 0 | BT13: 0 | BU13: 0 | BV13: =SUMIFS('FA FQA'!$G:$G,'FA FQA'!$E:$E,'Main apportion'!$A13,'FA FQA'!$B:$B,'Main apportion'!BV$2,'FA FQA'!$D:$D,'Main apportion'!BV$3) -> 1258 | BW13: =SUMIFS('FA FQA'!$G:$G,'FA FQA'!$E:$E,'Main apportion'!$A13,'FA FQA'!$B:$B,'Main apportion'!BW$2,'FA FQA'!$D:$D,'Main apportion'!BW$3) -> 84 | BX13: =SUMIFS('FA FQA'!$G:$G,'FA FQA'!$E:$E,'Main apportion'!$A13,'FA FQA'!$B:$B,'Main apportion'!BX$2,'FA FQA'!$D:$D,'Main apportion'!BX$3) -> 3135 | BY13: =SUMIFS('FA FQA'!$G:$G,'FA FQA'!$E:$E,'Main apportion'!$A13,'FA FQA'!$B:$B,'Main apportion'!BY$2,'FA FQA'!$D:$D,'Main apportion'!BY$3) -> 0 | BZ13: 4477 | CA13: 78 | CB13: 21.9 | CC13: 1.5 | CD13: 54.6 | CE13: 0 | CF13: 0 | CG13: 0 | CH13: 0 | CI13: 21.9 | CJ13: 1.5 | CK13: 54.6 | CL13: 0 | CM13: 1.742238106 | CN13: 0 | CO13: 0 | CP13: 0 | CQ13: 0 | CR13: 21.9 | CS13: 1.5 | CT13: 54.6 | CU13: 0 | CV13: 21.9 | CW13: 1.5 | CX13: 54.6 | CY13: 0 | CZ13: 2.539210697e-05 | DA13: 0 | DB13: 0.9999746079 | DC13: 0 | DD13: 0 | DE13: 0 | DF13: 0 | DG13: 0 | DH13: 0.0003473006329 | DI13: 0 | DJ13: 0.9996526586 | DK13: 4.072832122e-08 | DL13: 0 | DM13: 0 | DN13: 0 | DO13: 0 | DP13: 0 | DQ13: 0 | DR13: 0 | DS13: 0 | DT13: 0 | DU13: 0 | DV13: 0 | DW13: 0 | DX13: 0 | DY13: 0 | DZ13: 0 | EA13: 0 | EB13: 0 | EC13: 0 | ED13: 0 | EE13: 0 | EF13: 21.9 | EG13: 1.5 | EH13: 54.6 | EI13: 0 | EJ13: 21.9 | EK13: 1.5 | EL13: 54.6 | EM13: 0 | EN13: 0 | EO13: 0
A14: COD/07A. | B14: 165 | C14: 0 | D14: 165 | E14: =VLOOKUP(A14,'All stocks'!$A$5:$B$202,2,FALSE) -> 74 | F14: 74 | G14: 0.426667 | H14: 1 | I14: 0.448 | J14: 0.4267 | K14: 70 | L14: 4 | M14: 1 | N14: 1 | O14: 3 | P14: 0 | Q14: 0 | R14: 0 | S14: 0 | T14: 0 | U14: 0 | V14: 0.0213 | W14: 1 | X14: 3 | Y14: 0 | Z14: 0 | AA14: 70 | AB14: 0.016 | AC14: 0 | AD14: 0 | AE14: =SUMIFS('UK FQA'!D:D,'UK FQA'!B:B,A14,'UK FQA'!A:A,'Main apportion'!$AE$6) -> 24762 | AF14: =SUMIFS('UK FQA'!D:D,'UK FQA'!B:B,A14,'UK FQA'!A:A,'Main apportion'!$AF$6) -> 361 | AG14: =SUMIFS('FA FQA'!G:G,'FA FQA'!E:E,'Main apportion'!A14,'FA FQA'!D:D,'Main apportion'!$AG$6) -> 93 | AH14: 1.12 | AI14: 1.020515306 | AJ14: 1.1 | AK14: 0.6997 | AL14: 0.1347 | AM14: 0.0593 | AN14: 0.1063 | AO14: 0.8 | AP14: 0.1 | AQ14: 0.1 | AR14: 0.1 | AS14: 0 | AT14: 0 | AU14: 0 | AV14: 0.8 | AW14: 0.1 | AX14: 0.1 | AY14: 0.1 | AZ14: 0 | BA14: =SUMIFS('UK FQA'!D:D,'UK FQA'!B:B,'Main apportion'!A14,'UK FQA'!A:A,'Main apportion'!$BA$6) -> 716 | BB14: 2 | BC14: 0 | BD14: 0.262902835 | BE14: 0.3 | BF14: =SUMIFS('FA FQA'!$G:$G,'FA FQA'!$E:$E,'Main apportion'!$A14,'FA FQA'!$B:$B,'Main apportion'!BF$2,'FA FQA'!$D:$D,'Main apportion'!BF$3) -> 30 | BG14: =SUMIFS('FA FQA'!$G:$G,'FA FQA'!$E:$E,'Main apportion'!$A14,'FA FQA'!$B:$B,'Main apportion'!BG$2,'FA FQA'!$D:$D,'Main apportion'!BG$3) -> 29 | BH14: =SUMIFS('FA FQA'!$G:$G,'FA FQA'!$E:$E,'Main apportion'!$A14,'FA FQA'!$B:$B,'Main apportion'!BH$2,'FA FQA'!$D:$D,'Main apportion'!BH$3) -> 34 | BI14: =SUMIFS('FA FQA'!$G:$G,'FA FQA'!$E:$E,'Main apportion'!$A14,'FA FQA'!$B:$B,'Main apportion'!BI$2,'FA FQA'!$D:$D,'Main apportion'!BI$3) -> 0 | BJ14: =ROUND(IFERROR($BE14*(BF14/$AG14),0),1) -> 0.1 | BK14: =ROUND(IFERROR($BE14*(BG14/$AG14),0),1) -> 0.1 | BL14: =ROUND(IFERROR($BE14*(BH14/$AG14),0),1) -> 0.1 | BM14: =ROUND(IFERROR($BE14*(BI14/$AG14),0),1) -> 0 | BN14: =BE14-SUM(BJ14:BM14) -> 0 | BO14: 0 | BP14: 0 | BQ14: =IF(BJ14=$BP14,BJ14+$BN14,BJ14) -> 0.1 | BR14: =IF(BK14=$BP14,BK14+$BN14,BK14) -> 0.1 | BS14: =IF(BL14=$BP14,BL14+$BN14,BL14) -> 0.1 | BT14: =IF(BM14=$BP14,BM14+$BN14,BM14) -> 0 | BU14: 0 | BV14: =SUMIFS('FA FQA'!$G:$G,'FA FQA'!$E:$E,'Main apportion'!$A14,'FA FQA'!$B:$B,'Main apportion'!BV$2,'FA FQA'!$D:$D,'Main apportion'!BV$3) -> 5330 | BW14: =SUMIFS('FA FQA'!$G:$G,'FA FQA'!$E:$E,'Main apportion'!$A14,'FA FQA'!$B:$B,'Main apportion'!BW$2,'FA FQA'!$D:$D,'Main apportion'!BW$3) -> 16288 | BX14: =SUMIFS('FA FQA'!$G:$G,'FA FQA'!$E:$E,'Main apportion'!$A14,'FA FQA'!$B:$B,'Main apportion'!BX$2,'FA FQA'!$D:$D,'Main apportion'!BX$3) -> 1959 | BY14: =SUMIFS('FA FQA'!$G:$G,'FA FQA'!$E:$E,'Main apportion'!$A14,'FA FQA'!$B:$B,'Main apportion'!BY$2,'FA FQA'!$D:$D,'Main apportion'!BY$3) -> 15 | BZ14: 23592 | CA14: =ROUND(AA14-AJ14-BE14-BB14,1) -> 66.6 | CB14: 15 | CC14: =ROUND(IFERROR(CA14*(BW14/$BZ14),0),1) -> 46 | CD14: 5.5 | CE14: 0 | CF14: 0.1 | CG14: amend | CH14: 46 | CI14: 15 | CJ14: 46.1 | CK14: 5.5 | CL14: 0 | CM14: 0.2818752119 | CN14: 0 | CO14: 0 | CP14: 0 | CQ14: 0 | CR14: 17.9 | CS14: =SUM(AW14,BR14,CJ14,CO14) -> 46.3 | CT14: 5.7 | CU14: 0.1 | CV14: 17.9 | CW14: 46.3 | CX14: 5.7 | CY14: 0.1 | CZ14: 0.03867558053 | DA14: 0.9326029773 | DB14: 0.02585760685 | DC14: 0.00286383532 | DD14: 0 | DE14: 0 | DF14: 0 | DG14: 0 | DH14: 0.05498786519 | DI14: 0.9184596066 | DJ14: 0.02655252817 | DK14: 0 | DL14: 0.2 | DM14: 2.8 | DN14: 0.1 | DO14: 1 | DP14: 0.2 | DQ14: 2.8 | DR14: 0.1 | DS14: 1 | DT14: 0.2 | DU14: =ROUND(DQ14,1) -> 2.8 | DV14: 0.1 | DW14: 1 | DX14: -0.1 | DY14: amend | DZ14: 2.8 | EA14: 0.2 | EB14: 2.7 | EC14: 0.1 | ED14: 1 | EE14: 0 | EF14: 18.1 | EG14: 49 | EH14: 5.8 | EI14: 1.1 | EJ14: 18.1 | EK14: 49 | EL14: 5.8 | EM14: 1.1 | EN14: 0 | EO14: 1.421085472e-14
A15: COD/07D. | B15: 1158 | C15: 0 | D15: 1158 | E15: =VLOOKUP(A15,'All stocks'!$A$5:$B$202,2,FALSE) -> 107 | F15: 107 | G15: 0.092456 | H15: 1 | I15: 0.0925 | J15: 0.0925 | K15: 107 | L15: 0 | M15: 0 | N15: 0 | O15: 0 | P15: 0 | Q15: 0 | R15: 0 | S15: 0 | T15: 0 | U15: 0 | V15: 0 | W15: 0 | X15: 0 | Y15: 0 | Z15: 0 | AA15: 107 | AB15: 0.257 | AC15: 0 | AD15: 0 | AE15: =SUMIFS('UK FQA'!D:D,'UK FQA'!B:B,A15,'UK FQA'!A:A,'Main apportion'!$AE$6) -> 14785 | AF15: =SUMIFS('UK FQA'!D:D,'UK FQA'!B:B,A15,'UK FQA'!A:A,'Main apportion'!$AF$6) -> 3507 | AG15: =SUMIFS('FA FQA'!G:G,'FA FQA'!E:E,'Main apportion'!A15,'FA FQA'!D:D,'Main apportion'!$AG$6) -> 574 | AH15: 27.499 | AI15: 25.38038553 | AJ15: 27.5 | AK15: 0.9874 | AL15: 0.0024 | AM15: 0.0055 | AN15: 0.0047 | AO15: =ROUND(IFERROR($AJ15*(AK15/SUM($AK15:$AN15)),0),1) -> 27.2 | AP15: 0.1 | AQ15: 0.2 | AR15: 0.1 | AS15: -0.1 | AT15: amend | AU15: 27.2 | AV15: 27.1 | AW15: 0.1 | AX15: 0.2 | AY15: 0.1 | AZ15: 0 | BA15: =SUMIFS('UK FQA'!D:D,'UK FQA'!B:B,'Main apportion'!A15,'UK FQA'!A:A,'Main apportion'!$BA$6) -> 0 | BB15: 0 | BC15: 0 | BD15: 4.154075076 | BE15: 4.2 | BF15: =SUMIFS('FA FQA'!$G:$G,'FA FQA'!$E:$E,'Main apportion'!$A15,'FA FQA'!$B:$B,'Main apportion'!BF$2,'FA FQA'!$D:$D,'Main apportion'!BF$3) -> 564 | BG15: =SUMIFS('FA FQA'!$G:$G,'FA FQA'!$E:$E,'Main apportion'!$A15,'FA FQA'!$B:$B,'Main apportion'!BG$2,'FA FQA'!$D:$D,'Main apportion'!BG$3) -> 4 | BH15: =SUMIFS('FA FQA'!$G:$G,'FA FQA'!$E:$E,'Main apportion'!$A15,'FA FQA'!$B:$B,'Main apportion'!BH$2,'FA FQA'!$D:$D,'Main apportion'!BH$3) -> 3 | BI15: =SUMIFS('FA FQA'!$G:$G,'FA FQA'!$E:$E,'Main apportion'!$A15,'FA FQA'!$B:$B,'Main apportion'!BI$2,'FA FQA'!$D:$D,'Main apportion'!BI$3) -> 3 | BJ15: =ROUND(IFERROR($BE15*(BF15/$AG15),0),1) -> 4.1 | BK15: 0 | BL15: 0 | BM15: 0 | BN15: 0.1 | BO15: amend | BP15: 4.1 | BQ15: 4.2 | BR15: 0 | BS15: 0 | BT15: 0 | BU15: 0 | BV15: =SUMIFS('FA FQA'!$G:$G,'FA FQA'!$E:$E,'Main apportion'!$A15,'FA FQA'!$B:$B,'Main apportion'!BV$2,'FA FQA'!$D:$D,'Main apportion'!BV$3) -> 9181 | BW15: =SUMIFS('FA FQA'!$G:$G,'FA FQA'!$E:$E,'Main apportion'!$A15,'FA FQA'!$B:$B,'Main apportion'!BW$2,'FA FQA'!$D:$D,'Main apportion'!BW$3) -> 551 | BX15: =SUMIFS('FA FQA'!$G:$G,'FA FQA'!$E:$E,'Main apportion'!$A15,'FA FQA'!$B:$B,'Main apportion'!BX$2,'FA FQA'!$D:$D,'Main apportion'!BX$3) -> 822 | BY15: =SUMIFS('FA FQA'!$G:$G,'FA FQA'!$E:$E,'Main apportion'!$A15,'FA FQA'!$B:$B,'Main apportion'!BY$2,'FA FQA'!$D:$D,'Main apportion'!BY$3) -> 150 | BZ15: 10704 | CA15: 75.3 | CB15: 64.6 | CC15: 3.9 | CD15: 5.8 | CE15: 1.1 | CF15: -0.1 | CG15: amend | CH15: 64.6 | CI15: 64.5 | CJ15: 3.9 | CK15: 5.8 | CL15: 1.1 | CM15: 0.7044095665 | CN15: 0 | CO15: 0 | CP15: 0 | CQ15: 0 | CR15: 95.8 | CS15: 4 | CT15: 6 | CU15: 1.2 | CV15: 95.8 | CW15: 4 | CX15: 6 | CY15: 1.2 | CZ15: 0.9980111899 | DA15: 0 | DB15: 0.001808600124 | DC15: 0.000180209984 | DD15: 0 | DE15: 0 | DF15: 0 | DG15: 0 | DH15: 0.9982100709 | DI15: 0 | DJ15: 0.001627740111 | DK15: 0.0001621889856 | DL15: 0 | DM15: 0 | DN15: 0 | DO15: 0 | DP15: 0 | DQ15: 0 | DR15: 0 | DS15: 0 | DT15: 0 | DU15: 0 | DV15: 0 | DW15: 0 | DX15: 0 | DY15: 0 | DZ15: 0 | EA15: 0 | EB15: 0 | EC15: 0 | ED15: 0 | EE15: 0 | EF15: 95.8 | EG15: 4 | EH15: 6 | EI15: 1.2 | EJ15: 95.8 | EK15: 4 | EL15: 6 | EM15: 1.2 | EN15: 0 | EO15: 0
A16: COD/5BE6A | B16: 1114 | C16: 0 | D16: 1114 | E16: =VLOOKUP(A16,'All stocks'!$A$5:$B$202,2,FALSE) -> 900 | F16: 900 | G16: 0.6028 | H16: 1 | I16: 0.8121 | J16: 0.6028 | K16: 672 | L16: 228 | M16: 0 | N16: 0 | O16: 228 | P16: 0 | Q16: 0 | R16: 0 | S16: 0 | T16: 0 | U16: 0 | V16: 0.2093 | W16: 0 | X16: 228 | Y16: 0 | Z16: 0 | AA16: 672 | AB16: 0 | AC16: 10 | AD16: 0 | AE16: =SUMIFS('UK FQA'!D:D,'UK FQA'!B:B,A16,'UK FQA'!A:A,'Main apportion'!$AE$6) -> 63660 | AF16: =SUMIFS('UK FQA'!D:D,'UK FQA'!B:B,A16,'UK FQA'!A:A,'Main apportion'!$AF$6) -> 60 | AG16: =SUMIFS('FA FQA'!G:G,'FA FQA'!E:E,'Main apportion'!A16,'FA FQA'!D:D,'Main apportion'!$AG$6) -> 16 | AH16: 0 | AI16: 0.6333647502 | AJ16: 10 | AK16: 0.25 | AL16: 0.25 | AM16: 0.25 | AN16: 0.25 | AO16: 2.5 | AP16: 2.5 | AQ16: 2.5 | AR16: 2.5 | AS16: 0 | AT16: 0 | AU16: 0 | AV16: 2.5 | AW16: 2.5 | AX16: 2.5 | AY16: 2.5 | AZ16: 0 | BA16: =SUMIFS('UK FQA'!D:D,'UK FQA'!B:B,'Main apportion'!A16,'UK FQA'!A:A,'Main apportion'!$BA$6) -> 0 | BB16: 0 | BC16: 0 | BD16: 0.1688972667 | BE16: 0.2 | BF16: =SUMIFS('FA FQA'!$G:$G,'FA FQA'!$E:$E,'Main apportion'!$A16,'FA FQA'!$B:$B,'Main apportion'!BF$2,'FA FQA'!$D:$D,'Main apportion'!BF$3) -> 9 | BG16: =SUMIFS('FA FQA'!$G:$G,'FA FQA'!$E:$E,'Main apportion'!$A16,'FA FQA'!$B:$B,'Main apportion'!BG$2,'FA FQA'!$D:$D,'Main apportion'!BG$3) -> 2 | BH16: =SUMIFS('FA FQA'!$G:$G,'FA FQA'!$E:$E,'Main apportion'!$A16,'FA FQA'!$B:$B,'Main apportion'!BH$2,'FA FQA'!$D:$D,'Main apportion'!BH$3) -> 5 | BI16: =SUMIFS('FA FQA'!$G:$G,'FA FQA'!$E:$E,'Main apportion'!$A16,'FA FQA'!$B:$B,'Main apportion'!BI$2,'FA FQA'!$D:$D,'Main apportion'!BI$3) -> 0 | BJ16: 0.1 | BK16: 0 | BL16: 0.1 | BM16: 0 | BN16: 0 | BO16: 0 | BP16: 0 | BQ16: 0.1 | BR16: 0 | BS16: 0.1 | BT16: 0 | BU16: 0 | BV16: 11021 | BW16: =SUMIFS('FA FQA'!$G:$G,'FA FQA'!$E:$E,'Main apportion'!$A16,'FA FQA'!$B:$B,'Main apportion'!BW$2,'FA FQA'!$D:$D,'Main apportion'!BW$3) -> 4290 | BX16: =SUMIFS('FA FQA'!$G:$G,'FA FQA'!$E:$E,'Main apportion'!$A16,'FA FQA'!$B:$B,'Main apportion'!BX$2,'FA FQA'!$D:$D,'Main apportion'!BX$3) -> 48200 | BY16: 72 | BZ16: 63583 | CA16: 661.8 | CB16: 114.7 | CC16: 44.7 | CD16: 501.7 | CE16: 0.7 | CF16: 0 | CG16: 0 | CH16: 0 | CI16: 114.7 | CJ16: 44.7 | CK16: 501.7 | CL16: 0.7 | CM16: 1.040844251 | CN16: 0 | CO16: 0 | CP16: 0 | CQ16: 0 | CR16: 117.3 | CS16: 47.2 | CT16: 504.3 | CU16: 3.2 | CV16: 117.3 | CW16: 47.2 | CX16: 504.3 | CY16: 3.2 | CZ16: 0 | DA16: 0 | DB16: 0 | DC16: 0 | DD16: 0 | DE16: 0 | DF16: 0 | DG16: 0 | DH16: 0.0256 | DI16: 0.0034 | DJ16: 0.971 | DK16: 0 | DL16: 5.8 | DM16: 0.8 | DN16: 221.4 | DO16: 0 | DP16: 5.8 | DQ16: 0.8 | DR16: 221.4 | DS16: 0 | DT16: 5.8 | DU16: 0.8 | DV16: 221.4 | DW16: 0 | DX16: 0 | DY16: 0 | DZ16: 0 | EA16: 5.8 | EB16: 0.8 | EC16: 221.4 | ED16: 0 | EE16: 0 | EF16: 123.1 | EG16: 48 | EH16: 725.7 | EI16: 3.2 | EJ16: 123.1 | EK16: 48 | EL16: 725.7 | EM16: 3.2 | EN16: 0 | EO16: -1.136868377e-13
A17: COD/1/2B. | B17: 0 | C17: 0 | D17: n/a | E17: =VLOOKUP(A17,'All stocks'!$A$5:$B$202,2,FALSE) -> 3075 | F17: 3075 | G17: 3075 | H17: n/a | I17: 0.25 | J17: 3075 | K17: 3075 | L17: 0 | M17: 0 | N17: 0 | O17: 0 | P17: 0 | Q17: 0 | R17: 0 | S17: 0 | T17: 0 | U17: 0 | V17: 0 | W17: 0 | X17: 0 | Y17: 0 | Z17: 0 | AA17: 3075 | AB17: 0 | AC17: 0 | AD17: 0 | AE17: =SUMIFS('UK FQA'!D:D,'UK FQA'!B:B,A17,'UK FQA'!A:A,'Main apportion'!$AE$6) -> 25150 | AF17: =SUMIFS('UK FQA'!D:D,'UK FQA'!B:B,A17,'UK FQA'!A:A,'Main apportion'!$AF$6) -> 0 | AG17: =SUMIFS('FA FQA'!G:G,'FA FQA'!E:E,'Main apportion'!A17,'FA FQA'!D:D,'Main apportion'!$AG$6) -> 0 | AH17: 0 | AI17: 0 | AJ17: 0 | AK17: 0 | AL17: 0 | AM17: 0 | AN17: 0 | AO17: 0 | AP17: 0 | AQ17: 0 | AR17: 0 | AS17: 0 | AT17: 0 | AU17: 0 | AV17: 0 | AW17: 0 | AX17: 0 | AY17: 0 | AZ17: 0 | BA17: =SUMIFS('UK FQA'!D:D,'UK FQA'!B:B,'Main apportion'!A17,'UK FQA'!A:A,'Main apportion'!$BA$6) -> 0 | BB17: 0 | BC17: 0 | BD17: 0 | BE17: 0 | BF17: =SUMIFS('FA FQA'!$G:$G,'FA FQA'!$E:$E,'Main apportion'!$A17,'FA FQA'!$B:$B,'Main apportion'!BF$2,'FA FQA'!$D:$D,'Main apportion'!BF$3) -> 0 | BG17: =SUMIFS('FA FQA'!$G:$G,'FA FQA'!$E:$E,'Main apportion'!$A17,'FA FQA'!$B:$B,'Main apportion'!BG$2,'FA FQA'!$D:$D,'Main apportion'!BG$3) -> 0 | BH17: =SUMIFS('FA FQA'!$G:$G,'FA FQA'!$E:$E,'Main apportion'!$A17,'FA FQA'!$B:$B,'Main apportion'!BH$2,'FA FQA'!$D:$D,'Main apportion'!BH$3) -> 0 | BI17: =SUMIFS('FA FQA'!$G:$G,'FA FQA'!$E:$E,'Main apportion'!$A17,'FA FQA'!$B:$B,'Main apportion'!BI$2,'FA FQA'!$D:$D,'Main apportion'!BI$3) -> 0 | BJ17: 0 | BK17: 0 | BL17: 0 | BM17: 0 | BN17: 0 | BO17: 0 | BP17: 0 | BQ17: 0 | BR17: 0 | BS17: 0 | BT17: 0 | BU17: 0 | BV17: =SUMIFS('FA FQA'!$G:$G,'FA FQA'!$E:$E,'Main apportion'!$A17,'FA FQA'!$B:$B,'Main apportion'!BV$2,'FA FQA'!$D:$D,'Main apportion'!BV$3) -> 25150 | BW17: =SUMIFS('FA FQA'!$G:$G,'FA FQA'!$E:$E,'Main apportion'!$A17,'FA FQA'!$B:$B,'Main apportion'!BW$2,'FA FQA'!$D:$D,'Main apportion'!BW$3) -> 0 | BX17: =SUMIFS('FA FQA'!$G:$G,'FA FQA'!$E:$E,'Main apportion'!$A17,'FA FQA'!$B:$B,'Main apportion'!BX$2,'FA FQA'!$D:$D,'Main apportion'!BX$3) -> 0 | BY17: =SUMIFS('FA FQA'!$G:$G,'FA FQA'!$E:$E,'Main apportion'!$A17,'FA FQA'!$B:$B,'Main apportion'!BY$2,'FA FQA'!$D:$D,'Main apportion'!BY$3) -> 0 | BZ17: 25150 | CA17: 3075 | CB17: 3075 | CC17: 0 | CD17: 0 | CE17: 0 | CF17: 0 | CG17: 0 | CH17: 0 | CI17: 3075 | CJ17: 0 | CK17: 0 | CL17: 0 | CM17: 12.22664016 | CN17: 0 | CO17: 0 | CP17: 0 | CQ17: 0 | CR17: 3075 | CS17: 0 | CT17: 0 | CU17: 0 | CV17: 3075 | CW17: 0 | CX17: 0 | CY17: 0 | CZ17: 1 | DA17: 0 | DB17: 0 | DC17: 0 | DD17: 0 | DE17: 0 | DF17: 0 | DG17: 0 | DH17: 1 | DI17: 0 | DJ17: 0 | DK17: 0 | DL17: 0 | DM17: 0 | DN17: 0 | DO17: 0 | DP17: 0 | DQ17: 0 | DR17: 0 | DS17: 0 | DT17: 0 | DU17: 0 | DV17: 0 | DW17: 0 | DX17: 0 | DY17: 0 | DZ17: 0 | EA17: 0 | EB17: 0 | EC17: 0 | ED17: 0 | EE17: 0 | EF17: 3075 | EG17: 0 | EH17: 0 | EI17: 0 | EJ17: 3075 | EK17: 0 | EL17: 0 | EM17: 0 | EN17: 0 | EO17: 0
A18: COD/2A3AX4 | B18: 19910 | C18: 0 | D18: =IFERROR(ROUND(B18*(1+C18),0),"") -> 19910 | E18: =VLOOKUP(A18,'All stocks'!$A$5:$B$202,2,FALSE) -> 9419 | F18: 9419 | G18: 0.46925 | H18: 0.83 | I18: 0.57 | J18: =ROUND(IFERROR(G18*H18,""),4) -> 0.3895 | K18: 7755 | L18: 1664 | M18: 0 | N18: 0 | O18: 1664 | P18: 0.09461 | Q18: 1883.7 | R18: 0.09461 | S18: 0 | T18: 0 | U18: 1664 | V18: 0.08589 | W18: 0 | X18: 0 | Y18: 0 | Z18: 0 | AA18: 7755 | AB18: 0.045 | AC18: 0 | AD18: 0.0004042152349 | AE18: =SUMIFS('UK FQA'!D:D,'UK FQA'!B:B,A18,'UK FQA'!A:A,'Main apportion'!$AE$6) -> 490536 | AF18: =SUMIFS('UK FQA'!D:D,'UK FQA'!B:B,A18,'UK FQA'!A:A,'Main apportion'!$AF$6) -> 15632 | AG18: =SUMIFS('FA FQA'!G:G,'FA FQA'!E:E,'Main apportion'!A18,'FA FQA'!D:D,'Main apportion'!$AG$6) -> 763 | AH18: 348.975 | AI18: 247.1299966 | AJ18: 349 | AK18: 0.9151 | AL18: 0.0036 | AM18: 0.0762 | AN18: 0.0051 | AO18: =ROUND(IFERROR($AJ18*(AK18/SUM($AK18:$AN18)),0),1) -> 319.4 | AP18: 1.3 | AQ18: 26.6 | AR18: 1.8 | AS18: -0.1 | AT18: amend | AU18: 319.4 | AV18: 319.3 | AW18: 1.3 | AX18: 26.6 | AY18: 1.8 | AZ18: 0 | BA18: =SUMIFS('UK FQA'!D:D,'UK FQA'!B:B,'Main apportion'!A18,'UK FQA'!A:A,'Main apportion'!$BA$6) -> 0 | BB18: 0 | BC18: 3.134689146 | BD18: 12.06244802 | BE18: 12.1 | BF18: =SUMIFS('FA FQA'!$G:$G,'FA FQA'!$E:$E,'Main apportion'!$A18,'FA FQA'!$B:$B,'Main apportion'!BF$2,'FA FQA'!$D:$D,'Main apportion'!BF$3) -> 422 | BG18: =SUMIFS('FA FQA'!$G:$G,'FA FQA'!$E:$E,'Main apportion'!$A18,'FA FQA'!$B:$B,'Main apportion'!BG$2,'FA FQA'!$D:$D,'Main apportion'!BG$3) -> 0 | BH18: =SUMIFS('FA FQA'!$G:$G,'FA FQA'!$E:$E,'Main apportion'!$A18,'FA FQA'!$B:$B,'Main apportion'!BH$2,'FA FQA'!$D:$D,'Main apportion'!BH$3) -> 341 | BI18: =SUMIFS('FA FQA'!$G:$G,'FA FQA'!$E:$E,'Main apportion'!$A18,'FA FQA'!$B:$B,'Main apportion'!BI$2,'FA FQA'!$D:$D,'Main apportion'!BI$3) -> 0 | BJ18: 6.7 | BK18: 0 | BL18: 5.4 | BM18: 0 | BN18: 0 | BO18: 0 | BP18: 0 | BQ18: 6.7 | BR18: 0 | BS18: 5.4 | BT18: 0 | BU18: 0 | BV18: =SUMIFS('FA FQA'!$G:$G,'FA FQA'!$E:$E,'Main apportion'!$A18,'FA FQA'!$B:$B,'Main apportion'!BV$2,'FA FQA'!$D:$D,'Main apportion'!BV$3) -> 159814 | BW18: =SUMIFS('FA FQA'!$G:$G,'FA FQA'!$E:$E,'Main apportion'!$A18,'FA FQA'!$B:$B,'Main apportion'!BW$2,'FA FQA'!$D:$D,'Main apportion'!BW$3) -> 6297 | BX18: =SUMIFS('FA FQA'!$G:$G,'FA FQA'!$E:$E,'Main apportion'!$A18,'FA FQA'!$B:$B,'Main apportion'!BX$2,'FA FQA'!$D:$D,'Main apportion'!BX$3) -> 308030 | BY18: =SUMIFS('FA FQA'!$G:$G,'FA FQA'!$E:$E,'Main apportion'!$A18,'FA FQA'!$B:$B,'Main apportion'!BY$2,'FA FQA'!$D:$D,'Main apportion'!BY$3) -> 0 | BZ18: 474141 | CA18: 7393.9 | CB18: 2492.2 | CC18: 98.2 | CD18: 4803.5 | CE18: 0 | CF18: 0 | CG18: 0 | CH18: 0 | CI18: 2492.2 | CJ18: 98.2 | CK18: 4803.5 | CL18: 0 | CM18: 1.559430634 | CN18: 0 | CO18: 0 | CP18: 0 | CQ18: 0 | CR18: 2818.2 | CS18: 99.5 | CT18: 4835.5 | CU18: 1.8 | CV18: 2818.2 | CW18: 99.5 | CX18: 4835.5 | CY18: 1.8 | CZ18: 0.2014657239 | DA18: 0.0002054117429 | DB18: 0.7983104327 | DC18: 1.843163959e-05 | DD18: 335.2 | DE18: 0.3 | DF18: 1328.4 | DG18: 0 | DH18: 0.1893492943 | DI18: 0.0001848705686 | DJ18: 0.8104492466 | DK18: 1.658847563e-05 | DL18: 0 | DM18: 0 | DN18: 0 | DO18: 0 | DP18: 335.2 | DQ18: 0.3 | DR18: 1328.4 | DS18: 0 | DT18: 335.2 | DU18: 0.3 | DV18: 1328.4 | DW18: 0 | DX18: 0.1 | DY18: amend | DZ18: 1328.4 | EA18: 335.2 | EB18: 0.3 | EC18: 1328.5 | ED18: 0 | EE18: 0 | EF18: 3153.4 | EG18: 99.8 | EH18: 6164 | EI18: 1.8 | EJ18: 3153.4 | EK18: 99.8 | EL18: 6164 | EM18: 1.8 | EN18: 0 | EO18: 0
A19: COD/7XAD34 | B19: 644 | C19: 0 | D19: 644 | E19: =VLOOKUP(A19,'All stocks'!$A$5:$B$202,2,FALSE) -> 66 | F19: 66 | G19: 0.078803 | H19: 1 | I19: 0.1024 | J19: 0.0788 | K19: 51 | L19: 15 | M19: 2 | N19: =IF(L19-M19>=0,M19,IF(L19-M19<0,M19+(L19-M19),M19)) -> 2 | O19: 13 | P19: 0 | Q19: 0 | R19: 0 | S19: 0 | T19: 0 | U19: 0 | V19: 0.0236 | W19: 1 | X19: 13 | Y19: 0 | Z19: 0 | AA19: 51 | AB19: 0.257 | AC19: 0 | AD19: 0 | AE19: =SUMIFS('UK FQA'!D:D,'UK FQA'!B:B,A19,'UK FQA'!A:A,'Main apportion'!$AE$6) -> 14785 | AF19: =SUMIFS('UK FQA'!D:D,'UK FQA'!B:B,A19,'UK FQA'!A:A,'Main apportion'!$AF$6) -> 3507 | AG19: =SUMIFS('FA FQA'!G:G,'FA FQA'!E:E,'Main apportion'!A19,'FA FQA'!D:D,'Main apportion'!$AG$6) -> 574 | AH19: 13.107 | AI19: 12.0971931 | AJ19: 13.1 | AK19: 0.972 | AL19: 0.0016 | AM19: 0.0071 | AN19: 0.0193 | AO19: 12.7 | AP19: 0 | AQ19: 0.1 | AR19: 0.3 | AS19: 0 | AT19: 0 | AU19: 0 | AV19: 12.7 | AW19: 0 | AX19: 0.1 | AY19: 0.3 | AZ19: 0 | BA19: =SUMIFS('UK FQA'!D:D,'UK FQA'!B:B,'Main apportion'!A19,'UK FQA'!A:A,'Main apportion'!$BA$6) -> 0 | BB19: 0 | BC19: 0 | BD19: 1.979979709 | BE19: 2 | BF19: =SUMIFS('FA FQA'!$G:$G,'FA FQA'!$E:$E,'Main apportion'!$A19,'FA FQA'!$B:$B,'Main apportion'!BF$2,'FA FQA'!$D:$D,'Main apportion'!BF$3) -> 564 | BG19: =SUMIFS('FA FQA'!$G:$G,'FA FQA'!$E:$E,'Main apportion'!$A19,'FA FQA'!$B:$B,'Main apportion'!BG$2,'FA FQA'!$D:$D,'Main apportion'!BG$3) -> 4 | BH19: =SUMIFS('FA FQA'!$G:$G,'FA FQA'!$E:$E,'Main apportion'!$A19,'FA FQA'!$B:$B,'Main apportion'!BH$2,'FA FQA'!$D:$D,'Main apportion'!BH$3) -> 3 | BI19: =SUMIFS('FA FQA'!$G:$G,'FA FQA'!$E:$E,'Main apportion'!$A19,'FA FQA'!$B:$B,'Main apportion'!BI$2,'FA FQA'!$D:$D,'Main apportion'!BI$3) -> 3 | BJ19: 2 | BK19: 0 | BL19: 0 | BM19: 0 | BN19: 0 | BO19: 0 | BP19: 0 | BQ19: 2 | BR19: 0 | BS19: 0 | BT19: 0 | BU19: 0 | BV19: =SUMIFS('FA FQA'!$G:$G,'FA FQA'!$E:$E,'Main apportion'!$A19,'FA FQA'!$B:$B,'Main apportion'!BV$2,'FA FQA'!$D:$D,'Main apportion'!BV$3) -> 9181 | BW19: =SUMIFS('FA FQA'!$G:$G,'FA FQA'!$E:$E,'Main apportion'!$A19,'FA FQA'!$B:$B,'Main apportion'!BW$2,'FA FQA'!$D:$D,'Main apportion'!BW$3) -> 551 | BX19: =SUMIFS('FA FQA'!$G:$G,'FA FQA'!$E:$E,'Main apportion'!$A19,'FA FQA'!$B:$B,'Main apportion'!BX$2,'FA FQA'!$D:$D,'Main apportion'!BX$3) -> 822 | BY19: =SUMIFS('FA FQA'!$G:$G,'FA FQA'!$E:$E,'Main apportion'!$A19,'FA FQA'!$B:$B,'Main apportion'!BY$2,'FA FQA'!$D:$D,'Main apportion'!BY$3) -> 150 | BZ19: 10704 | CA19: 35.9 | CB19: 30.8 | CC19: 1.8 | CD19: 2.8 | CE19: 0.5 | CF19: 0 | CG19: 0 | CH19: 0 | CI19: 30.8 | CJ19: 1.8 | CK19: 2.8 | CL19: 0.5 | CM19: 0.3353886398 | CN19: 0 | CO19: 0 | CP19: 0 | CQ19: 0 | CR19: 45.5 | CS19: 1.8 | CT19: 2.9 | CU19: 0.8 | CV19: 45.5 | CW19: 1.8 | CX19: 2.9 | CY19: 0.8 | CZ19: 0.9149583766 | DA19: 0.02958126417 | DB19: 0.05125755138 | DC19: 0.004202807818 | DD19: 0 | DE19: 0 | DF19: 0 | DG19: 0 | DH19: 0.9257785212 | DI19: 0.02715978898 | DJ19: 0.04706168984 | DK19: 0 | DL19: 12 | DM19: 0.4 | DN19: 0.6 | DO19: 2 | DP19: 12 | DQ19: 0.4 | DR19: 0.6 | DS19: 2 | DT19: 12 | DU19: 0.4 | DV19: 0.6 | DW19: 2 | DX19: 0 | DY19: 0 | DZ19: 0 | EA19: 12 | EB19: 0.4 | EC19: 0.6 | ED19: 2 | EE19: 0 | EF19: 57.5 | EG19: 2.2 | EH19: 3.5 | EI19: 2.8 | EJ19: 57.5 | EK19: 2.2 | EL19: 3.5 | EM19: 2.8 | EN19: 0 | EO19: 0
A20: COD/N3M. | B20: 12613 | C20: 0 | D20: 12613 | E20: =VLOOKUP(A20,'All stocks'!$A$5:$B$202,2,FALSE) -> 1176 | F20: 1176 | G20: 0.163327 | H20: 0.5703 | I20: 0.1634 | J20: 0.0931 | K20: 1174 | L20: 2 | M20: 0 | N20: 0 | O20: 2 | P20: 0 | Q20: 0 | R20: 0 | S20: 0 | T20: 0 | U20: 0 | V20: 0.0703 | W20: 0 | X20: 2 | Y20: 0 | Z20: 0 | AA20: 1174 | AB20: 0 | AC20: 0 | AD20: 0 | AE20: =SUMIFS('UK FQA'!D:D,'UK FQA'!B:B,A20,'UK FQA'!A:A,'Main apportion'!$AE$6) -> 13150 | AF20: =SUMIFS('UK FQA'!D:D,'UK FQA'!B:B,A20,'UK FQA'!A:A,'Main apportion'!$AF$6) -> 0 | AG20: =SUMIFS('FA FQA'!G:G,'FA FQA'!E:E,'Main apportion'!A20,'FA FQA'!D:D,'Main apportion'!$AG$6) -> 0 | AH20: 0 | AI20: 0 | AJ20: 0 | AK20: 0 | AL20: 0 | AM20: 0 | AN20: 0 | AO20: 0 | AP20: 0 | AQ20: 0 | AR20: 0 | AS20: 0 | AT20: 0 | AU20: 0 | AV20: 0 | AW20: 0 | AX20: 0 | AY20: 0 | AZ20: 0 | BA20: =SUMIFS('UK FQA'!D:D,'UK FQA'!B:B,'Main apportion'!A20,'UK FQA'!A:A,'Main apportion'!$BA$6) -> 0 | BB20: 0 | BC20: 0 | BD20: 0 | BE20: 0 | BF20: =SUMIFS('FA FQA'!$G:$G,'FA FQA'!$E:$E,'Main apportion'!$A20,'FA FQA'!$B:$B,'Main apportion'!BF$2,'FA FQA'!$D:$D,'Main apportion'!BF$3) -> 0 | BG20: =SUMIFS('FA FQA'!$G:$G,'FA FQA'!$E:$E,'Main apportion'!$A20,'FA FQA'!$B:$B,'Main apportion'!BG$2,'FA FQA'!$D:$D,'Main apportion'!BG$3) -> 0 | BH20: =SUMIFS('FA FQA'!$G:$G,'FA FQA'!$E:$E,'Main apportion'!$A20,'FA FQA'!$B:$B,'Main apportion'!BH$2,'FA FQA'!$D:$D,'Main apportion'!BH$3) -> 0 | BI20: =SUMIFS('FA FQA'!$G:$G,'FA FQA'!$E:$E,'Main apportion'!$A20,'FA FQA'!$B:$B,'Main apportion'!BI$2,'FA FQA'!$D:$D,'Main apportion'!BI$3) -> 0 | BJ20: 0 | BK20: 0 | BL20: 0 | BM20: 0 | BN20: 0 | BO20: 0 | BP20: 0 | BQ20: 0 | BR20: 0 | BS20: 0 | BT20: 0 | BU20: 0 | BV20: =SUMIFS('FA FQA'!$G:$G,'FA FQA'!$E:$E,'Main apportion'!$A20,'FA FQA'!$B:$B,'Main apportion'!BV$2,'FA FQA'!$D:$D,'Main apportion'!BV$3) -> 13150 | BW20: =SUMIFS('FA FQA'!$G:$G,'FA FQA'!$E:$E,'Main apportion'!$A20,'FA FQA'!$B:$B,'Main apportion'!BW$2,'FA FQA'!$D:$D,'Main apportion'!BW$3) -> 0 | BX20: =SUMIFS('FA FQA'!$G:$G,'FA FQA'!$E:$E,'Main apportion'!$A20,'FA FQA'!$B:$B,'Main apportion'!BX$2,'FA FQA'!$D:$D,'Main apportion'!BX$3) -> 0 | BY20: =SUMIFS('FA FQA'!$G:$G,'FA FQA'!$E:$E,'Main apportion'!$A20,'FA FQA'!$B:$B,'Main apportion'!BY$2,'FA FQA'!$D:$D,'Main apportion'!BY$3) -> 0 | BZ20: 13150 | CA20: 1174 | CB20: 1174 | CC20: 0 | CD20: 0 | CE20: 0 | CF20: 0 | CG20: 0 | CH20: 0 | CI20: 1174 | CJ20: 0 | CK20: 0 | CL20: 0 | CM20: 8.927756654 | CN20: 0 | CO20: 0 | CP20: 0 | CQ20: 0 | CR20: 1174 | CS20: 0 | CT20: 0 | CU20: 0 | CV20: 1174 | CW20: 0 | CX20: 0 | CY20: 0 | CZ20: 1 | DA20: 0 | DB20: 0 | DC20: 0 | DD20: 0 | DE20: 0 | DF20: 0 | DG20: 0 | DH20: 1 | DI20: 0 | DJ20: 0 | DK20: 0 | DL20: 2 | DM20: 0 | DN20: 0 | DO20: 0 | DP20: 2 | DQ20: 0 | DR20: 0 | DS20: 0 | DT20: 2 | DU20: 0 | DV20: 0 | DW20: 0 | DX20: 0 | DY20: 0 | DZ20: 0 | EA20: 2 | EB20: 0 | EC20: 0 | ED20: 0 | EE20: 0 | EF20: 1176 | EG20: 0 | EH20: 0 | EI20: 0 | EJ20: 1176 | EK20: 0 | EL20: 0 | EM20: 0 | EN20: 0 | EO20: 0
A21: GHL/2A-C46 | B21: 1722 | C21: 0 | D21: 1722 | E21: =VLOOKUP(A21,'All stocks'!$A$5:$B$202,2,FALSE) -> 271 | F21: 271 | G21: 0.726496 | H21: 1 | I21: 0.7265 | J21: 0.7265 | K21: 271 | L21: 0 | M21: 0 | N21: 0 | O21: 0 | P21: 0 | Q21: 0 | R21: 0 | S21: 0 | T21: 0 | U21: 0 | V21: 0 | W21: 0 | X21: 0 | Y21: 0 | Z21: 0 | AA21: 271 | AB21: 0 | AC21: 0 | AD21: 0 | AE21: =SUMIFS('UK FQA'!D:D,'UK FQA'!B:B,A21,'UK FQA'!A:A,'Main apportion'!$AE$6) -> 9893 | AF21: =SUMIFS('UK FQA'!D:D,'UK FQA'!B:B,A21,'UK FQA'!A:A,'Main apportion'!$AF$6) -> 0 | AG21: =SUMIFS('FA FQA'!G:G,'FA FQA'!E:E,'Main apportion'!A21,'FA FQA'!D:D,'Main apportion'!$AG$6) -> 0 | AH21: 0 | AI21: 0 | AJ21: 0 | AK21: 0 | AL21: 0 | AM21: 0 | AN21: 0 | AO21: 0 | AP21: 0 | AQ21: 0 | AR21: 0 | AS21: 0 | AT21: 0 | AU21: 0 | AV21: 0 | AW21: 0 | AX21: 0 | AY21: 0 | AZ21: 0 | BA21: =SUMIFS('UK FQA'!D:D,'UK FQA'!B:B,'Main apportion'!A21,'UK FQA'!A:A,'Main apportion'!$BA$6) -> 0 | BB21: 0 | BC21: 0 | BD21: 0 | BE21: 0 | BF21: =SUMIFS('FA FQA'!$G:$G,'FA FQA'!$E:$E,'Main apportion'!$A21,'FA FQA'!$B:$B,'Main apportion'!BF$2,'FA FQA'!$D:$D,'Main apportion'!BF$3) -> 0 | BG21: =SUMIFS('FA FQA'!$G:$G,'FA FQA'!$E:$E,'Main apportion'!$A21,'FA FQA'!$B:$B,'Main apportion'!BG$2,'FA FQA'!$D:$D,'Main apportion'!BG$3) -> 0 | BH21: =SUMIFS('FA FQA'!$G:$G,'FA FQA'!$E:$E,'Main apportion'!$A21,'FA FQA'!$B:$B,'Main apportion'!BH$2,'FA FQA'!$D:$D,'Main apportion'!BH$3) -> 0 | BI21: =SUMIFS('FA FQA'!$G:$G,'FA FQA'!$E:$E,'Main apportion'!$A21,'FA FQA'!$B:$B,'Main apportion'!BI$2,'FA FQA'!$D:$D,'Main apportion'!BI$3) -> 0 | BJ21: 0 | BK21: 0 | BL21: 0 | BM21: 0 | BN21: 0 | BO21: 0 | BP21: 0 | BQ21: 0 | BR21: 0 | BS21: 0 | BT21: 0 | BU21: 0 | BV21: =SUMIFS('FA FQA'!$G:$G,'FA FQA'!$E:$E,'Main apportion'!$A21,'FA FQA'!$B:$B,'Main apportion'!BV$2,'FA FQA'!$D:$D,'Main apportion'!BV$3) -> 3180 | BW21: =SUMIFS('FA FQA'!$G:$G,'FA FQA'!$E:$E,'Main apportion'!$A21,'FA FQA'!$B:$B,'Main apportion'!BW$2,'FA FQA'!$D:$D,'Main apportion'!BW$3) -> 0 | BX21: =SUMIFS('FA FQA'!$G:$G,'FA FQA'!$E:$E,'Main apportion'!$A21,'FA FQA'!$B:$B,'Main apportion'!BX$2,'FA FQA'!$D:$D,'Main apportion'!BX$3) -> 6713 | BY21: =SUMIFS('FA FQA'!$G:$G,'FA FQA'!$E:$E,'Main apportion'!$A21,'FA FQA'!$B:$B,'Main apportion'!BY$2,'FA FQA'!$D:$D,'Main apportion'!BY$3) -> 0 | BZ21: 9893 | CA21: 271 | CB21: 87.1 | CC21: 0 | CD21: 183.9 | CE21: 0 | CF21: 0 | CG21: 0 | CH21: 0 | CI21: 87.1 | CJ21: 0 | CK21: 183.9 | CL21: 0 | CM21: 2.739310624 | CN21: 0 | CO21: 0 | CP21: 0 | CQ21: 0 | CR21: 87.1 | CS21: 0 | CT21: 183.9 | CU21: 0 | CV21: 87.1 | CW21: 0 | CX21: 183.9 | CY21: 0 | CZ21: 0.006622822294 | DA21: 0 | DB21: 0.9933771777 | DC21: 0 | DD21: 0 | DE21: 0 | DF21: 0 | DG21: 0 | DH21: 0.005962496855 | DI21: 0 | DJ21: 0.9940375031 | DK21: 0 | DL21: 0 | DM21: 0 | DN21: 0 | DO21: 0 | DP21: 0 | DQ21: 0 | DR21: 0 | DS21: 0 | DT21: 0 | DU21: 0 | DV21: 0 | DW21: 0 | DX21: 0 | DY21: 0 | DZ21: 0 | EA21: 0 | EB21: 0 | EC21: 0 | ED21: 0 | EE21: 0 | EF21: 87.1 | EG21: 0 | EH21: 183.9 | EI21: 0 | EJ21: 87.1 | EK21: 0 | EL21: 183.9 | EM21: 0 | EN21: 0 | EO21: 0
A22: HAD/07A. | B22: 1893 | C22: 0 | D22: 1893 | E22: =VLOOKUP(A22,'All stocks'!$A$5:$B$202,2,FALSE) -> 1060 | F22: 1060 | G22: 0.478824 | H22: 1 | I22: 0.5602 | J22: 0.4788 | K22: 906 | L22: 154 | M22: 0 | N22: 0 | O22: 154 | P22: 0 | Q22: 0 | R22: 0 | S22: 0 | T22: 0 | U22: 0 | V22: 0.0814 | W22: 0 | X22: 154 | Y22: 0 | Z22: 0 | AA22: 906 | AB22: 0 | AC22: 0 | AD22: 0 | AE22: =SUMIFS('UK FQA'!D:D,'UK FQA'!B:B,A22,'UK FQA'!A:A,'Main apportion'!$AE$6) -> 59276 | AF22: =SUMIFS('UK FQA'!D:D,'UK FQA'!B:B,A22,'UK FQA'!A:A,'Main apportion'!$AF$6) -> 517 | AG22: =SUMIFS('FA FQA'!G:G,'FA FQA'!E:E,'Main apportion'!A22,'FA FQA'!D:D,'Main apportion'!$AG$6) -> 194 | AH22: 0 | AI22: 7.90205142 | AJ22: 7.9 | AK22: 0.4431 | AL22: 0.3918 | AM22: 0.0136 | AN22: 0.1515 | AO22: =ROUND(IFERROR($AJ22*(AK22/SUM($AK22:$AN22)),0),1) -> 3.5 | AP22: 3.1 | AQ22: 0.1 | AR22: 1.2 | AS22: =IF(AJ22-SUM(AO22:AR22)=0,0,AJ22-SUM(AO22:AR22)) -> 8.881784197e-16 | AT22: amend | AU22: 3.5 | AV22: 3.5 | AW22: 3.1 | AX22: 0.1 | AY22: 1.2 | AZ22: 0 | BA22: =SUMIFS('UK FQA'!D:D,'UK FQA'!B:B,'Main apportion'!A22,'UK FQA'!A:A,'Main apportion'!$BA$6) -> 716 | BB22: 10.9 | BC22: 0 | BD22: 2.965179837 | BE22: 3 | BF22: =SUMIFS('FA FQA'!$G:$G,'FA FQA'!$E:$E,'Main apportion'!$A22,'FA FQA'!$B:$B,'Main apportion'!BF$2,'FA FQA'!$D:$D,'Main apportion'!BF$3) -> 81 | BG22: =SUMIFS('FA FQA'!$G:$G,'FA FQA'!$E:$E,'Main apportion'!$A22,'FA FQA'!$B:$B,'Main apportion'!BG$2,'FA FQA'!$D:$D,'Main apportion'!BG$3) -> 29 | BH22: =SUMIFS('FA FQA'!$G:$G,'FA FQA'!$E:$E,'Main apportion'!$A22,'FA FQA'!$B:$B,'Main apportion'!BH$2,'FA FQA'!$D:$D,'Main apportion'!BH$3) -> 84 | BI22: =SUMIFS('FA FQA'!$G:$G,'FA FQA'!$E:$E,'Main apportion'!$A22,'FA FQA'!$B:$B,'Main apportion'!BI$2,'FA FQA'!$D:$D,'Main apportion'!BI$3) -> 0 | BJ22: 1.3 | BK22: 0.4 | BL22: 1.3 | BM22: 0 | BN22: 0 | BO22: 0 | BP22: 0 | BQ22: 1.3 | BR22: 0.4 | BS22: 1.3 | BT22: 0 | BU22: 0 | BV22: =SUMIFS('FA FQA'!$G:$G,'FA FQA'!$E:$E,'Main apportion'!$A22,'FA FQA'!$B:$B,'Main apportion'!BV$2,'FA FQA'!$D:$D,'Main apportion'!BV$3) -> 11635 | BW22: =SUMIFS('FA FQA'!$G:$G,'FA FQA'!$E:$E,'Main apportion'!$A22,'FA FQA'!$B:$B,'Main apportion'!BW$2,'FA FQA'!$D:$D,'Main apportion'!BW$3) -> 42129 | BX22: =SUMIFS('FA FQA'!$G:$G,'FA FQA'!$E:$E,'Main apportion'!$A22,'FA FQA'!$B:$B,'Main apportion'!BX$2,'FA FQA'!$D:$D,'Main apportion'!BX$3) -> 4022 | BY22: =SUMIFS('FA FQA'!$G:$G,'FA FQA'!$E:$E,'Main apportion'!$A22,'FA FQA'!$B:$B,'Main apportion'!BY$2,'FA FQA'!$D:$D,'Main apportion'!BY$3) -> 63 | BZ22: 57849 | CA22: 884.2 | CB22: 177.8 | CC22: 643.9 | CD22: 61.5 | CE22: 1 | CF22: 0 | CG22: 0 | CH22: 0 | CI22: 177.8 | CJ22: 643.9 | CK22: 61.5 | CL22: 1 | CM22: 1.52846203 | CN22: 0 | CO22: 0 | CP22: 0 | CQ22: 0 | CR22: 193.5 | CS22: 647.4 | CT22: 62.9 | CU22: 2.2 | CV22: 193.5 | CW22: 647.4 | CX22: 62.9 | CY22: 2.2 | CZ22: 0.001327904171 | DA22: 0.9648668807 | DB22: 0.03368375293 | DC22: 0.00012146216 | DD22: 0 | DE22: 0 | DF22: 0 | DG22: 0 | DH22: 0.01040438385 | DI22: 0.9216574129 | DJ22: 0.032418475 | DK22: 0.03551972825 | DL22: 1.6 | DM22: 141.9 | DN22: 5 | DO22: 5.5 | DP22: 1.6 | DQ22: 141.9 | DR22: 5 | DS22: 5.5 | DT22: 1.6 | DU22: =ROUND(DQ22,1) -> 141.9 | DV22: 5 | DW22: 5.5 | DX22: 0 | DY22: 0 | DZ22: 0 | EA22: 1.6 | EB22: =IF(DU22=$DZ22,DU22+$DX22,DU22) -> 141.9 | EC22: 5 | ED22: 5.5 | EE22: 0 | EF22: 195.1 | EG22: 789.3 | EH22: 67.9 | EI22: 7.7 | EJ22: 195.1 | EK22: =ROUND(EG22,1) -> 789.3 | EL22: 67.9 | EM22: 7.7 | EN22: 0 | EO22: 0
A23: HAD/2AC4. | B23: 95862 | C23: 0 | D23: 95862 | E23: =VLOOKUP(A23,'All stocks'!$A$5:$B$202,2,FALSE) -> 61928 | F23: 61928 | G23: 0.841731 | H23: 0.77 | I23: 0.8417 | J23: 0.6481 | K23: 61928 | L23: 0 | M23: 0 | N23: 0 | O23: 0 | P23: 0 | Q23: 0 | R23: 0 | S23: 0 | T23: 0 | U23: 0 | V23: 0.1936 | W23: 0 | X23: 0 | Y23: 0 | Z23: 0 | AA23: 61928 | AB23: 0 | AC23: 100 | AD23: 0 | AE23: =SUMIFS('UK FQA'!D:D,'UK FQA'!B:B,A23,'UK FQA'!A:A,'Main apportion'!$AE$6) -> 721522 | AF23: =SUMIFS('UK FQA'!D:D,'UK FQA'!B:B,A23,'UK FQA'!A:A,'Main apportion'!$AF$6) -> 465 | AG23: =SUMIFS('FA FQA'!G:G,'FA FQA'!E:E,'Main apportion'!A23,'FA FQA'!D:D,'Main apportion'!$AG$6) -> 229 | AH23: 0 | AI23: 39.91079967 | AJ23: 100 | AK23: 0.9233 | AL23: 0 | AM23: 0.0591 | AN23: 0.0176 | AO23: 92.3 | AP23: 0 | AQ23: 5.9 | AR23: 1.8 | AS23: 0 | AT23: 0 | AU23: 0 | AV23: 92.3 | AW23: 0 | AX23: 5.9 | AY23: 1.8 | AZ23: 0 | BA23: =SUMIFS('UK FQA'!D:D,'UK FQA'!B:B,'Main apportion'!A23,'UK FQA'!A:A,'Main apportion'!$BA$6) -> 56 | BB23: 4.8 | BC23: 0 | BD23: 19.65499597 | BE23: 19.7 | BF23: =SUMIFS('FA FQA'!$G:$G,'FA FQA'!$E:$E,'Main apportion'!$A23,'FA FQA'!$B:$B,'Main apportion'!BF$2,'FA FQA'!$D:$D,'Main apportion'!BF$3) -> 0 | BG23: =SUMIFS('FA FQA'!$G:$G,'FA FQA'!$E:$E,'Main apportion'!$A23,'FA FQA'!$B:$B,'Main apportion'!BG$2,'FA FQA'!$D:$D,'Main apportion'!BG$3) -> 0 | BH23: =SUMIFS('FA FQA'!$G:$G,'FA FQA'!$E:$E,'Main apportion'!$A23,'FA FQA'!$B:$B,'Main apportion'!BH$2,'FA FQA'!$D:$D,'Main apportion'!BH$3) -> 229 | BI23: =SUMIFS('FA FQA'!$G:$G,'FA FQA'!$E:$E,'Main apportion'!$A23,'FA FQA'!$B:$B,'Main apportion'!BI$2,'FA FQA'!$D:$D,'Main apportion'!BI$3) -> 0 | BJ23: 0 | BK23: 0 | BL23: 19.7 | BM23: 0 | BN23: 0 | BO23: 0 | BP23: 0 | BQ23: 0 | BR23: 0 | BS23: 19.7 | BT23: 0 | BU23: 0 | BV23: =SUMIFS('FA FQA'!$G:$G,'FA FQA'!$E:$E,'Main apportion'!$A23,'FA FQA'!$B:$B,'Main apportion'!BV$2,'FA FQA'!$D:$D,'Main apportion'!BV$3) -> 148864 | BW23: =SUMIFS('FA FQA'!$G:$G,'FA FQA'!$E:$E,'Main apportion'!$A23,'FA FQA'!$B:$B,'Main apportion'!BW$2,'FA FQA'!$D:$D,'Main apportion'!BW$3) -> 7942 | BX23: =SUMIFS('FA FQA'!$G:$G,'FA FQA'!$E:$E,'Main apportion'!$A23,'FA FQA'!$B:$B,'Main apportion'!BX$2,'FA FQA'!$D:$D,'Main apportion'!BX$3) -> 563966 | BY23: =SUMIFS('FA FQA'!$G:$G,'FA FQA'!$E:$E,'Main apportion'!$A23,'FA FQA'!$B:$B,'Main apportion'!BY$2,'FA FQA'!$D:$D,'Main apportion'!BY$3) -> 0 | BZ23: 720772 | CA23: 61803.5 | CB23: 12764.5 | CC23: 681 | CD23: =ROUND(IFERROR(CA23*(BX23/$BZ23),0),1) -> 48358 | CE23: 0 | CF23: 0 | CG23: 0 | CH23: 0 | CI23: 12764.5 | CJ23: 681 | CK23: 48358 | CL23: 0 | CM23: 8.57462554 | CN23: 0 | CO23: 0 | CP23: 0 | CQ23: 0 | CR23: 12861.6 | CS23: 681 | CT23: 48383.6 | CU23: 1.8 | CV23: 12861.6 | CW23: 681 | CX23: 48383.6 | CY23: 1.8 | CZ23: 0.130264175 | DA23: 0.006214908412 | DB23: 0.8635027819 | DC23: 1.813465061e-05 | DD23: 0 | DE23: 0 | DF23: 0 | DG23: 0 | DH23: 0.1205667777 | DI23: 0.005593417571 | DJ23: 0.8738234836 | DK23: 1.632118555e-05 | DL23: 0 | DM23: 0 | DN23: 0 | DO23: 0 | DP23: 0 | DQ23: 0 | DR23: 0 | DS23: 0 | DT23: 0 | DU23: 0 | DV23: 0 | DW23: 0 | DX23: 0 | DY23: 0 | DZ23: 0 | EA23: 0 | EB23: 0 | EC23: 0 | ED23: 0 | EE23: 0 | EF23: 12861.6 | EG23: 681 | EH23: 48383.6 | EI23: 1.8 | EJ23: 12861.6 | EK23: 681 | EL23: 48383.6 | EM23: 1.8 | EN23: 0 | EO23: 0
A24: HAD/5BC6A. | B24: 10681 | C24: 0 | D24: 10681 | E24: =VLOOKUP(A24,'All stocks'!$A$5:$B$202,2,FALSE) -> 8610 | F24: 8610 | G24: 0.806053 | H24: 1 | I24: 0.8061 | J24: 0.8061 | K24: 8610 | L24: 0 | M24: 0 | N24: 0 | O24: 0 | P24: 0 | Q24: 0 | R24: 0 | S24: 0 | T24: 0 | U24: 0 | V24: 0 | W24: 0 | X24: 0 | Y24: 0 | Z24: 0 | AA24: 8610 | AB24: 0 | AC24: 10 | AD24: 0 | AE24: =SUMIFS('UK FQA'!D:D,'UK FQA'!B:B,A24,'UK FQA'!A:A,'Main apportion'!$AE$6) -> 104347 | AF24: =SUMIFS('UK FQA'!D:D,'UK FQA'!B:B,A24,'UK FQA'!A:A,'Main apportion'!$AF$6) -> 31 | AG24: =SUMIFS('FA FQA'!G:G,'FA FQA'!E:E,'Main apportion'!A24,'FA FQA'!D:D,'Main apportion'!$AG$6) -> 47 | AH24: 0 | AI24: 2.55790775 | AJ24: 10 | AK24: 0.0158 | AL24: 0.1286 | AM24: 0.8556 | AN24: 0 | AO24: =ROUND(IFERROR($AJ24*(AK24/SUM($AK24:$AN24)),0),1) -> 0.2 | AP24: 1.3 | AQ24: =ROUND(IFERROR($AJ24*(AM24/SUM($AK24:$AN24)),0),1) -> 8.6 | AR24: 0 | AS24: -0.1 | AT24: amend | AU24: 8.6 | AV24: 0.2 | AW24: =IF(AP24=$AU24,AP24+$AS24,AP24) -> 1.3 | AX24: =IF(AQ24=$AU24,AQ24+$AS24,AQ24) -> 8.5 | AY24: 0 | AZ24: 0 | BA24: =SUMIFS('UK FQA'!D:D,'UK FQA'!B:B,'Main apportion'!A24,'UK FQA'!A:A,'Main apportion'!$BA$6) -> 0 | BB24: 0 | BC24: 0 | BD24: 3.878118202 | BE24: 3.9 | BF24: =SUMIFS('FA FQA'!$G:$G,'FA FQA'!$E:$E,'Main apportion'!$A24,'FA FQA'!$B:$B,'Main apportion'!BF$2,'FA FQA'!$D:$D,'Main apportion'!BF$3) -> 22 | BG24: =SUMIFS('FA FQA'!$G:$G,'FA FQA'!$E:$E,'Main apportion'!$A24,'FA FQA'!$B:$B,'Main apportion'!BG$2,'FA FQA'!$D:$D,'Main apportion'!BG$3) -> 7 | BH24: =SUMIFS('FA FQA'!$G:$G,'FA FQA'!$E:$E,'Main apportion'!$A24,'FA FQA'!$B:$B,'Main apportion'!BH$2,'FA FQA'!$D:$D,'Main apportion'!BH$3) -> 18 | BI24: =SUMIFS('FA FQA'!$G:$G,'FA FQA'!$E:$E,'Main apportion'!$A24,'FA FQA'!$B:$B,'Main apportion'!BI$2,'FA FQA'!$D:$D,'Main apportion'!BI$3) -> 0 | BJ24: 1.8 | BK24: 0.6 | BL24: 1.5 | BM24: 0 | BN24: 0 | BO24: 0 | BP24: 0 | BQ24: 1.8 | BR24: 0.6 | BS24: 1.5 | BT24: 0 | BU24: 0 | BV24: =SUMIFS('FA FQA'!$G:$G,'FA FQA'!$E:$E,'Main apportion'!$A24,'FA FQA'!$B:$B,'Main apportion'!BV$2,'FA FQA'!$D:$D,'Main apportion'!BV$3) -> 17703 | BW24: =SUMIFS('FA FQA'!$G:$G,'FA FQA'!$E:$E,'Main apportion'!$A24,'FA FQA'!$B:$B,'Main apportion'!BW$2,'FA FQA'!$D:$D,'Main apportion'!BW$3) -> 3516 | BX24: =SUMIFS('FA FQA'!$G:$G,'FA FQA'!$E:$E,'Main apportion'!$A24,'FA FQA'!$B:$B,'Main apportion'!BX$2,'FA FQA'!$D:$D,'Main apportion'!BX$3) -> 83022 | BY24: =SUMIFS('FA FQA'!$G:$G,'FA FQA'!$E:$E,'Main apportion'!$A24,'FA FQA'!$B:$B,'Main apportion'!BY$2,'FA FQA'!$D:$D,'Main apportion'!BY$3) -> 28 | BZ24: 104269 | CA24: 8596.1 | CB24: 1459.5 | CC24: 289.9 | CD24: 6844.5 | CE24: 2.3 | CF24: -0.1 | CG24: amend | CH24: 6844.5 | CI24: 1459.5 | CJ24: 289.9 | CK24: 6844.4 | CL24: 2.3 | CM24: 8.244252846 | CN24: 0 | CO24: 0 | CP24: 0 | CQ24: 0 | CR24: 1461.5 | CS24: 291.8 | CT24: 6854.4 | CU24: 2.3 | CV24: 1461.5 | CW24: 291.8 | CX24: 6854.4 | CY24: 2.3 | CZ24: 0.003647062532 | DA24: 0.009704267627 | DB24: 0.9866486698 | DC24: 0 | DD24: 0 | DE24: 0 | DF24: 0 | DG24: 0 | DH24: 0.003282356278 | DI24: 0.01024027967 | DJ24: 0.9864773641 | DK24: 0 | DL24: 0 | DM24: 0 | DN24: 0 | DO24: 0 | DP24: 0 | DQ24: 0 | DR24: 0 | DS24: 0 | DT24: 0 | DU24: 0 | DV24: 0 | DW24: 0 | DX24: 0 | DY24: 0 | DZ24: 0 | EA24: 0 | EB24: 0 | EC24: 0 | ED24: 0 | EE24: 0 | EF24: 1461.5 | EG24: 291.8 | EH24: 6854.4 | EI24: 2.3 | EJ24: 1461.5 | EK24: 291.8 | EL24: 6854.4 | EM24: 2.3 | EN24: 0 | EO24: 1.818989404e-12
A25: HAD/6B1214 | B25: 10195 | C25: 0 | D25: 10195 | E25: =VLOOKUP(A25,'All stocks'!$A$5:$B$202,2,FALSE) -> 8666 | F25: 8666 | G25: 0.806053 | H25: 1 | I25: 0.85 | J25: 0.8061 | K25: 8218 | L25: 448 | M25: 0 | N25: 0 | O25: 448 | P25: 0 | Q25: 0 | R25: 0 | S25: 0 | T25: 0 | U25: 0 | V25: 0.0439 | W25: 0 | X25: 448 | Y25: 0 | Z25: 0 | AA25: 8218 | AB25: 0 | AC25: 0 | AD25: 0 | AE25: =SUMIFS('UK FQA'!D:D,'UK FQA'!B:B,A25,'UK FQA'!A:A,'Main apportion'!$AE$6) -> 46756 | AF25: =SUMIFS('UK FQA'!D:D,'UK FQA'!B:B,A25,'UK FQA'!A:A,'Main apportion'!$AF$6) -> 0 | AG25: =SUMIFS('FA FQA'!G:G,'FA FQA'!E:E,'Main apportion'!A25,'FA FQA'!D:D,'Main apportion'!$AG$6) -> 0 | AH25: 0 | AI25: 0 | AJ25: 0 | AK25: 0 | AL25: 0 | AM25: 0 | AN25: 0 | AO25: 0 | AP25: 0 | AQ25: 0 | AR25: 0 | AS25: 0 | AT25: 0 | AU25: 0 | AV25: 0 | AW25: 0 | AX25: 0 | AY25: 0 | AZ25: 0 | BA25: =SUMIFS('UK FQA'!D:D,'UK FQA'!B:B,'Main apportion'!A25,'UK FQA'!A:A,'Main apportion'!$BA$6) -> 0 | BB25: 0 | BC25: 0 | BD25: 0 | BE25: 0 | BF25: =SUMIFS('FA FQA'!$G:$G,'FA FQA'!$E:$E,'Main apportion'!$A25,'FA FQA'!$B:$B,'Main apportion'!BF$2,'FA FQA'!$D:$D,'Main apportion'!BF$3) -> 0 | BG25: =SUMIFS('FA FQA'!$G:$G,'FA FQA'!$E:$E,'Main apportion'!$A25,'FA FQA'!$B:$B,'Main apportion'!BG$2,'FA FQA'!$D:$D,'Main apportion'!BG$3) -> 0 | BH25: =SUMIFS('FA FQA'!$G:$G,'FA FQA'!$E:$E,'Main apportion'!$A25,'FA FQA'!$B:$B,'Main apportion'!BH$2,'FA FQA'!$D:$D,'Main apportion'!BH$3) -> 0 | BI25: =SUMIFS('FA FQA'!$G:$G,'FA FQA'!$E:$E,'Main apportion'!$A25,'FA FQA'!$B:$B,'Main apportion'!BI$2,'FA FQA'!$D:$D,'Main apportion'!BI$3) -> 0 | BJ25: 0 | BK25: 0 | BL25: 0 | BM25: 0 | BN25: 0 | BO25: 0 | BP25: 0 | BQ25: 0 | BR25: 0 | BS25: 0 | BT25: 0 | BU25: 0 | BV25: =SUMIFS('FA FQA'!$G:$G,'FA FQA'!$E:$E,'Main apportion'!$A25,'FA FQA'!$B:$B,'Main apportion'!BV$2,'FA FQA'!$D:$D,'Main apportion'!BV$3) -> 10825 | BW25: =SUMIFS('FA FQA'!$G:$G,'FA FQA'!$E:$E,'Main apportion'!$A25,'FA FQA'!$B:$B,'Main apportion'!BW$2,'FA FQA'!$D:$D,'Main apportion'!BW$3) -> 378 | BX25: =SUMIFS('FA FQA'!$G:$G,'FA FQA'!$E:$E,'Main apportion'!$A25,'FA FQA'!$B:$B,'Main apportion'!BX$2,'FA FQA'!$D:$D,'Main apportion'!BX$3) -> 35553 | BY25: =SUMIFS('FA FQA'!$G:$G,'FA FQA'!$E:$E,'Main apportion'!$A25,'FA FQA'!$B:$B,'Main apportion'!BY$2,'FA FQA'!$D:$D,'Main apportion'!BY$3) -> 0 | BZ25: 46756 | CA25: 8218 | CB25: 1902.6 | CC25: 66.4 | CD25: 6248.9 | CE25: 0 | CF25: 0.1 | CG25: amend | CH25: 6248.9 | CI25: 1902.6 | CJ25: 66.4 | CK25: 6249 | CL25: 0 | CM25: 17.57613996 | CN25: 0 | CO25: 0 | CP25: 0 | CQ25: 0 | CR25: 1902.6 | CS25: 66.4 | CT25: 6249 | CU25: 0 | CV25: 1902.6 | CW25: 66.4 | CX25: 6249 | CY25: 0 | CZ25: 0 | DA25: 0 | DB25: 1 | DC25: 0 | DD25: 0 | DE25: 0 | DF25: 0 | DG25: 0 | DH25: 0 | DI25: 0 | DJ25: 1 | DK25: 0 | DL25: 0 | DM25: 0 | DN25: 448 | DO25: 0 | DP25: 0 | DQ25: 0 | DR25: 448 | DS25: 0 | DT25: 0 | DU25: 0 | DV25: 448 | DW25: 0 | DX25: 0 | DY25: 0 | DZ25: 0 | EA25: 0 | EB25: 0 | EC25: 448 | ED25: 0 | EE25: 0 | EF25: 1902.6 | EG25: 66.4 | EH25: 6697 | EI25: 0 | EJ25: 1902.6 | EK25: 66.4 | EL25: 6697 | EM25: 0 | EN25: 0 | EO25: 0
A26: HAD/7X7A34 | B26: 6353 | C26: -0.0396 | D26: =IFERROR(ROUND(B26*(1+C26),0),"") -> 6101 | E26: =VLOOKUP(A26,'All stocks'!$A$5:$B$202,2,FALSE) -> 1271 | F26: =IF(C26<0,ROUND(D26*I26,0),E26) -> 1220 | G26: 0.1 | H26: 1 | I26: 0.2 | J26: 0.1 | K26: 610 | L26: 610 | M26: 0 | N26: 0 | O26: 610 | P26: 0 | Q26: 0 | R26: 0 | S26: 0 | T26: 0 | U26: 0 | V26: 0.1 | W26: 0 | X26: 610 | Y26: 0 | Z26: 0 | AA26: 610 | AB26: 0.033 | AC26: 0 | AD26: 0 | AE26: =SUMIFS('UK FQA'!D:D,'UK FQA'!B:B,A26,'UK FQA'!A:A,'Main apportion'!$AE$6) -> 6892 | AF26: =SUMIFS('UK FQA'!D:D,'UK FQA'!B:B,A26,'UK FQA'!A:A,'Main apportion'!$AF$6) -> 128 | AG26: =SUMIFS('FA FQA'!G:G,'FA FQA'!E:E,'Main apportion'!A26,'FA FQA'!D:D,'Main apportion'!$AG$6) -> 33 | AH26: 20.13 | AI26: 11.32907719 | AJ26: 20.1 | AK26: 0.9848 | AL26: 0.0067 | AM26: 0.0036 | AN26: 0.0049 | AO26: 19.8 | AP26: 0.1 | AQ26: 0.1 | AR26: 0.1 | AS26: =IF(AJ26-SUM(AO26:AR26)=0,0,AJ26-SUM(AO26:AR26)) -> -3.552713679e-15 | AT26: amend | AU26: 19.8 | AV26: 19.8 | AW26: 0.1 | AX26: 0.1 | AY26: 0.1 | AZ26: 0 | BA26: =SUMIFS('UK FQA'!D:D,'UK FQA'!B:B,'Main apportion'!A26,'UK FQA'!A:A,'Main apportion'!$BA$6) -> 0 | BB26: 0 | BC26: 0 | BD26: 2.920777713 | BE26: 2.9 | BF26: =SUMIFS('FA FQA'!$G:$G,'FA FQA'!$E:$E,'Main apportion'!$A26,'FA FQA'!$B:$B,'Main apportion'!BF$2,'FA FQA'!$D:$D,'Main apportion'!BF$3) -> 32 | BG26: =SUMIFS('FA FQA'!$G:$G,'FA FQA'!$E:$E,'Main apportion'!$A26,'FA FQA'!$B:$B,'Main apportion'!BG$2,'FA FQA'!$D:$D,'Main apportion'!BG$3) -> 1 | BH26: =SUMIFS('FA FQA'!$G:$G,'FA FQA'!$E:$E,'Main apportion'!$A26,'FA FQA'!$B:$B,'Main apportion'!BH$2,'FA FQA'!$D:$D,'Main apportion'!BH$3) -> 0 | BI26: =SUMIFS('FA FQA'!$G:$G,'FA FQA'!$E:$E,'Main apportion'!$A26,'FA FQA'!$B:$B,'Main apportion'!BI$2,'FA FQA'!$D:$D,'Main apportion'!BI$3) -> 0 | BJ26: 2.8 | BK26: 0.1 | BL26: 0 | BM26: 0 | BN26: 0 | BO26: 0 | BP26: 0 | BQ26: 2.8 | BR26: 0.1 | BS26: 0 | BT26: 0 | BU26: 0 | BV26: =SUMIFS('FA FQA'!$G:$G,'FA FQA'!$E:$E,'Main apportion'!$A26,'FA FQA'!$B:$B,'Main apportion'!BV$2,'FA FQA'!$D:$D,'Main apportion'!BV$3) -> 3074 | BW26: =SUMIFS('FA FQA'!$G:$G,'FA FQA'!$E:$E,'Main apportion'!$A26,'FA FQA'!$B:$B,'Main apportion'!BW$2,'FA FQA'!$D:$D,'Main apportion'!BW$3) -> 2621 | BX26: =SUMIFS('FA FQA'!$G:$G,'FA FQA'!$E:$E,'Main apportion'!$A26,'FA FQA'!$B:$B,'Main apportion'!BX$2,'FA FQA'!$D:$D,'Main apportion'!BX$3) -> 893 | BY26: =SUMIFS('FA FQA'!$G:$G,'FA FQA'!$E:$E,'Main apportion'!$A26,'FA FQA'!$B:$B,'Main apportion'!BY$2,'FA FQA'!$D:$D,'Main apportion'!BY$3) -> 143 | BZ26: 6731 | CA26: 587 | CB26: =ROUND(IFERROR(CA26*(BV26/$BZ26),0),1) -> 268.1 | CC26: 228.6 | CD26: 77.9 | CE26: 12.5 | CF26: -0.1 | CG26: amend | CH26: 268.1 | CI26: 268 | CJ26: 228.6 | CK26: 77.9 | CL26: 12.5 | CM26: 8.72232952 | CN26: 0 | CO26: 0 | CP26: 0 | CQ26: 0 | CR26: 290.6 | CS26: 228.8 | CT26: 78 | CU26: 12.6 | CV26: 290.6 | CW26: 228.8 | CX26: 78 | CY26: 12.6 | CZ26: 0.6967652871 | DA26: 0.1831369647 | DB26: 0.1183911441 | DC26: 0.001706604032 | DD26: 0 | DE26: 0 | DF26: 0 | DG26: 0 | DH26: 0.7131031935 | DI26: 0.1648232683 | DJ26: 0.1065520297 | DK26: 0.01552150852 | DL26: 435 | DM26: 100.5 | DN26: 65 | DO26: 9.5 | DP26: 435 | DQ26: 100.5 | DR26: 65 | DS26: 9.5 | DT26: =ROUND(DP26,1) -> 435 | DU26: =ROUND(DQ26,1) -> 100.5 | DV26: 65 | DW26: 9.5 | DX26: 0 | DY26: 0 | DZ26: 0 | EA26: 435 | EB26: =IF(DU26=$DZ26,DU26+$DX26,DU26) -> 100.5 | EC26: 65 | ED26: 9.5 | EE26: 0 | EF26: 725.6 | EG26: 329.3 | EH26: 143 | EI26: 22.1 | EJ26: 725.6 | EK26: 329.3 | EL26: 143 | EM26: 22.1 | EN26: 0 | EO26: 0
A27: HER/06ACL. | B27: 0 | C27: 0 | D27: =IFERROR(ROUND(B27*(1+C27),0),"") -> 0 | E27: =VLOOKUP(A27,'All stocks'!$A$5:$B$202,2,FALSE) -> 0 | F27: =IF(C27<0,ROUND(D27*I27,0),E27) -> 0 | G27: 1 | H27: 1 | I27: 1 | J27: 1 | K27: 0 | L27: 0 | M27: 0 | N27: 0 | O27: 0 | P27: 0 | Q27: 0 | R27: 0 | S27: 0 | T27: 0 | U27: 0 | V27: 0 | W27: 0 | X27: 0 | Y27: 0 | Z27: 0 | AA27: 0 | AB27: 0 | AC27: 0 | AD27: 0 | AE27: =SUMIFS('UK FQA'!D:D,'UK FQA'!B:B,A27,'UK FQA'!A:A,'Main apportion'!$AE$6) -> 5726 | AF27: =SUMIFS('UK FQA'!D:D,'UK FQA'!B:B,A27,'UK FQA'!A:A,'Main apportion'!$AF$6) -> 0 | AG27: =SUMIFS('FA FQA'!G:G,'FA FQA'!E:E,'Main apportion'!A27,'FA FQA'!D:D,'Main apportion'!$AG$6) -> 0 | AH27: 0 | AI27: 0 | AJ27: 0 | AK27: 0 | AL27: 0 | AM27: 0 | AN27: 0 | AO27: 0 | AP27: 0 | AQ27: 0 | AR27: 0 | AS27: 0 | AT27: 0 | AU27: 0 | AV27: 0 | AW27: 0 | AX27: 0 | AY27: 0 | AZ27: 0 | BA27: =SUMIFS('UK FQA'!D:D,'UK FQA'!B:B,'Main apportion'!A27,'UK FQA'!A:A,'Main apportion'!$BA$6) -> 0 | BB27: 0 | BC27: 0 | BD27: 0 | BE27: 0 | BF27: =SUMIFS('FA FQA'!$G:$G,'FA FQA'!$E:$E,'Main apportion'!$A27,'FA FQA'!$B:$B,'Main apportion'!BF$2,'FA FQA'!$D:$D,'Main apportion'!BF$3) -> 0 | BG27: =SUMIFS('FA FQA'!$G:$G,'FA FQA'!$E:$E,'Main apportion'!$A27,'FA FQA'!$B:$B,'Main apportion'!BG$2,'FA FQA'!$D:$D,'Main apportion'!BG$3) -> 0 | BH27: =SUMIFS('FA FQA'!$G:$G,'FA FQA'!$E:$E,'Main apportion'!$A27,'FA FQA'!$B:$B,'Main apportion'!BH$2,'FA FQA'!$D:$D,'Main apportion'!BH$3) -> 0 | BI27: =SUMIFS('FA FQA'!$G:$G,'FA FQA'!$E:$E,'Main apportion'!$A27,'FA FQA'!$B:$B,'Main apportion'!BI$2,'FA FQA'!$D:$D,'Main apportion'!BI$3) -> 0 | BJ27: 0 | BK27: 0 | BL27: 0 | BM27: 0 | BN27: 0 | BO27: 0 | BP27: 0 | BQ27: 0 | BR27: 0 | BS27: 0 | BT27: 0 | BU27: 0 | BV27: =SUMIFS('FA FQA'!$G:$G,'FA FQA'!$E:$E,'Main apportion'!$A27,'FA FQA'!$B:$B,'Main apportion'!BV$2,'FA FQA'!$D:$D,'Main apportion'!BV$3) -> 758 | BW27: =SUMIFS('FA FQA'!$G:$G,'FA FQA'!$E:$E,'Main apportion'!$A27,'FA FQA'!$B:$B,'Main apportion'!BW$2,'FA FQA'!$D:$D,'Main apportion'!BW$3) -> 3262 | BX27: =SUMIFS('FA FQA'!$G:$G,'FA FQA'!$E:$E,'Main apportion'!$A27,'FA FQA'!$B:$B,'Main apportion'!BX$2,'FA FQA'!$D:$D,'Main apportion'!BX$3) -> 1706 | BY27: =SUMIFS('FA FQA'!$G:$G,'FA FQA'!$E:$E,'Main apportion'!$A27,'FA FQA'!$B:$B,'Main apportion'!BY$2,'FA FQA'!$D:$D,'Main apportion'!BY$3) -> 0 | BZ27: 5726 | CA27: 0 | CB27: 0 | CC27: 0 | CD27: 0 | CE27: 0 | CF27: 0 | CG27: 0 | CH27: 0 | CI27: 0 | CJ27: 0 | CK27: 0 | CL27: 0 | CM27: 0 | CN27: 0 | CO27: 0 | CP27: 0 | CQ27: 0 | CR27: 0 | CS27: 0 | CT27: 0 | CU27: 0 | CV27: 0 | CW27: 0 | CX27: 0 | CY27: 0 | CZ27: 0 | DA27: 0 | DB27: 0 | DC27: 0 | DD27: 0 | DE27: 0 | DF27: 0 | DG27: 0 | DH27: 0 | DI27: 0 | DJ27: 0 | DK27: 0 | DL27: 0 | DM27: 0 | DN27: 0 | DO27: 0 | DP27: 0 | DQ27: 0 | DR27: 0 | DS27: 0 | DT27: 0 | DU27: 0 | DV27: 0 | DW27: 0 | DX27: 0 | DY27: 0 | DZ27: 0 | EA27: 0 | EB27: 0 | EC27: 0 | ED27: 0 | EE27: 0 | EF27: 0 | EG27: 0 | EH27: 0 | EI27: 0 | EJ27: 0 | EK27: 0 | EL27: 0 | EM27: 0 | EN27: 0 | EO27: 0
A28: HER/07A/MM | B28: 5223 | C28: 0 | D28: 5223 | E28: =VLOOKUP(A28,'All stocks'!$A$5:$B$202,2,FALSE) -> 5171 | F28: 5171 | G28: 0.739683 | H28: 1 | I28: 0.9901 | J28: =ROUND(IFERROR(G28*H28,""),4) -> 0.7397 | K28: =IF(J28>1,ROUND(J28,0),IFERROR(ROUND(IF(OR(J28*D28>F28,I28=J28),F28,J28*D28),0),"")) -> 3863 | L28: =IFERROR(ROUND(IFERROR(IF(F28-K28<=0,0,F28-K28),""),0),0)-300 -> 1008 | M28: 20 | N28: 20 | O28: 988 | P28: 0.23279 | Q28: 1215.9 | R28: 0.23279 | S28: 1 | T28: 0 | U28: 988 | V28: 0.01761 | W28: 1 | X28: =IFERROR(IF(U28=0,L28-N28,IF(F28-K28-U28<0,0,F28-K28-N28-U28)),0)-300 -> 0 | Y28: =ROUND(MAX(30,0.008*K28),1) -> 30.9 | Z28: 0 | AA28: 3832.1 | AB28: 0 | AC28: 0 | AD28: 0 | AE28: =SUMIFS('UK FQA'!D:D,'UK FQA'!B:B,A28,'UK FQA'!A:A,'Main apportion'!$AE$6) -> 51084 | AF28: =SUMIFS('UK FQA'!D:D,'UK FQA'!B:B,A28,'UK FQA'!A:A,'Main apportion'!$AF$6) -> 0 | AG28: =SUMIFS('FA FQA'!G:G,'FA FQA'!E:E,'Main apportion'!A28,'FA FQA'!D:D,'Main apportion'!$AG$6) -> 0 | AH28: 0 | AI28: 0 | AJ28: 0 | AK28: 0 | AL28: 0 | AM28: 0 | AN28: 0 | AO28: 0 | AP28: 0 | AQ28: 0 | AR28: 0 | AS28: 0 | AT28: 0 | AU28: 0 | AV28: 0 | AW28: 0 | AX28: 0 | AY28: 0 | AZ28: 0 | BA28: =SUMIFS('UK FQA'!D:D,'UK FQA'!B:B,'Main apportion'!A28,'UK FQA'!A:A,'Main apportion'!$BA$6) -> 0 | BB28: 0 | BC28: 0 | BD28: 0 | BE28: 0 | BF28: =SUMIFS('FA FQA'!$G:$G,'FA FQA'!$E:$E,'Main apportion'!$A28,'FA FQA'!$B:$B,'Main apportion'!BF$2,'FA FQA'!$D:$D,'Main apportion'!BF$3) -> 0 | BG28: =SUMIFS('FA FQA'!$G:$G,'FA FQA'!$E:$E,'Main apportion'!$A28,'FA FQA'!$B:$B,'Main apportion'!BG$2,'FA FQA'!$D:$D,'Main apportion'!BG$3) -> 0 | BH28: =SUMIFS('FA FQA'!$G:$G,'FA FQA'!$E:$E,'Main apportion'!$A28,'FA FQA'!$B:$B,'Main apportion'!BH$2,'FA FQA'!$D:$D,'Main apportion'!BH$3) -> 0 | BI28: =SUMIFS('FA FQA'!$G:$G,'FA FQA'!$E:$E,'Main apportion'!$A28,'FA FQA'!$B:$B,'Main apportion'!BI$2,'FA FQA'!$D:$D,'Main apportion'!BI$3) -> 0 | BJ28: 0 | BK28: 0 | BL28: 0 | BM28: 0 | BN28: 0 | BO28: 0 | BP28: 0 | BQ28: 0 | BR28: 0 | BS28: 0 | BT28: 0 | BU28: 0 | BV28: =SUMIFS('FA FQA'!$G:$G,'FA FQA'!$E:$E,'Main apportion'!$A28,'FA FQA'!$B:$B,'Main apportion'!BV$2,'FA FQA'!$D:$D,'Main apportion'!BV$3) -> 10408 | BW28: =SUMIFS('FA FQA'!$G:$G,'FA FQA'!$E:$E,'Main apportion'!$A28,'FA FQA'!$B:$B,'Main apportion'!BW$2,'FA FQA'!$D:$D,'Main apportion'!BW$3) -> 40660 | BX28: =SUMIFS('FA FQA'!$G:$G,'FA FQA'!$E:$E,'Main apportion'!$A28,'FA FQA'!$B:$B,'Main apportion'!BX$2,'FA FQA'!$D:$D,'Main apportion'!BX$3) -> 16 | BY28: =SUMIFS('FA FQA'!$G:$G,'FA FQA'!$E:$E,'Main apportion'!$A28,'FA FQA'!$B:$B,'Main apportion'!BY$2,'FA FQA'!$D:$D,'Main apportion'!BY$3) -> 0 | BZ28: 51084 | CA28: 3832.1 | CB28: 780.8 | CC28: =ROUND(IFERROR(CA28*(BW28/$BZ28),0),1) -> 3050.1 | CD28: 1.2 | CE28: 0 | CF28: 0 | CG28: 0 | CH28: 0 | CI28: 780.8 | CJ28: 3050.1 | CK28: 1.2 | CL28: 0 | CM28: 7.501566048 | CN28: 0 | CO28: =Y28 -> 30.9 | CP28: 0 | CQ28: 0 | CR28: 780.8 | CS28: 3081 | CT28: 1.2 | CU28: 0 | CV28: 780.8 | CW28: 3081 | CX28: 1.2 | CY28: 0 | CZ28: 0.03333642312 | DA28: 0.9666635769 | DB28: 0 | DC28: 0 | DD28: 32.9 | DE28: 955.1 | DF28: 0 | DG28: 20 | DH28: 0.09097850508 | DI28: 0.8904000016 | DJ28: 0.01298484567 | DK28: 0.005636647691 | DL28: 0 | DM28: 0 | DN28: 0 | DO28: 0 | DP28: 32.9 | DQ28: 955.1 | DR28: 0 | DS28: 20 | DT28: 32.9 | DU28: 955.1 | DV28: 0 | DW28: 20 | DX28: 0 | DY28: 0 | DZ28: 0 | EA28: 32.9 | EB28: 955.1 | EC28: 0 | ED28: 20 | EE28: 0 | EF28: 813.7 | EG28: 4036.1 | EH28: 1.2 | EI28: 20 | EJ28: =ROUND(EF28,1)+300 -> 1113.7 | EK28: 4036.1 | EL28: 1.2 | EM28: 20 | EN28: 0 | EO28: 0
A29: HER/1/2- | B29: 401794 | C29: 0 | D29: 401794 | E29: =VLOOKUP(A29,'All stocks'!$A$5:$B$202,2,FALSE) -> 7847 | F29: 7847 | G29: 0.219055 | H29: 0.0651 | I29: 0.3 | J29: 0.0143 | K29: 5746 | L29: 2101 | M29: 0 | N29: 0 | O29: 2101 | P29: 0 | Q29: 0 | R29: 0 | S29: 0 | T29: 0 | U29: 0 | V29: 0.2857 | W29: 0 | X29: 2101 | Y29: 0 | Z29: 0 | AA29: 5746 | AB29: 0 | AC29: 0 | AD29: 0 | AE29: =SUMIFS('UK FQA'!D:D,'UK FQA'!B:B,A29,'UK FQA'!A:A,'Main apportion'!$AE$6) -> 170593 | AF29: =SUMIFS('UK FQA'!D:D,'UK FQA'!B:B,A29,'UK FQA'!A:A,'Main apportion'!$AF$6) -> 0 | AG29: =SUMIFS('FA FQA'!G:G,'FA FQA'!E:E,'Main apportion'!A29,'FA FQA'!D:D,'Main apportion'!$AG$6) -> 0 | AH29: 0 | AI29: 0 | AJ29: 0 | AK29: 0 | AL29: 0 | AM29: 0 | AN29: 0 | AO29: 0 | AP29: 0 | AQ29: 0 | AR29: 0 | AS29: 0 | AT29: 0 | AU29: 0 | AV29: 0 | AW29: 0 | AX29: 0 | AY29: 0 | AZ29: 0 | BA29: =SUMIFS('UK FQA'!D:D,'UK FQA'!B:B,'Main apportion'!A29,'UK FQA'!A:A,'Main apportion'!$BA$6) -> 0 | BB29: 0 | BC29: 0 | BD29: 0 | BE29: 0 | BF29: =SUMIFS('FA FQA'!$G:$G,'FA FQA'!$E:$E,'Main apportion'!$A29,'FA FQA'!$B:$B,'Main apportion'!BF$2,'FA FQA'!$D:$D,'Main apportion'!BF$3) -> 0 | BG29: =SUMIFS('FA FQA'!$G:$G,'FA FQA'!$E:$E,'Main apportion'!$A29,'FA FQA'!$B:$B,'Main apportion'!BG$2,'FA FQA'!$D:$D,'Main apportion'!BG$3) -> 0 | BH29: =SUMIFS('FA FQA'!$G:$G,'FA FQA'!$E:$E,'Main apportion'!$A29,'FA FQA'!$B:$B,'Main apportion'!BH$2,'FA FQA'!$D:$D,'Main apportion'!BH$3) -> 0 | BI29: =SUMIFS('FA FQA'!$G:$G,'FA FQA'!$E:$E,'Main apportion'!$A29,'FA FQA'!$B:$B,'Main apportion'!BI$2,'FA FQA'!$D:$D,'Main apportion'!BI$3) -> 0 | BJ29: 0 | BK29: 0 | BL29: 0 | BM29: 0 | BN29: 0 | BO29: 0 | BP29: 0 | BQ29: 0 | BR29: 0 | BS29: 0 | BT29: 0 | BU29: 0 | BV29: =SUMIFS('FA FQA'!$G:$G,'FA FQA'!$E:$E,'Main apportion'!$A29,'FA FQA'!$B:$B,'Main apportion'!BV$2,'FA FQA'!$D:$D,'Main apportion'!BV$3) -> 0 | BW29: =SUMIFS('FA FQA'!$G:$G,'FA FQA'!$E:$E,'Main apportion'!$A29,'FA FQA'!$B:$B,'Main apportion'!BW$2,'FA FQA'!$D:$D,'Main apportion'!BW$3) -> 4225 | BX29: =SUMIFS('FA FQA'!$G:$G,'FA FQA'!$E:$E,'Main apportion'!$A29,'FA FQA'!$B:$B,'Main apportion'!BX$2,'FA FQA'!$D:$D,'Main apportion'!BX$3) -> 166368 | BY29: =SUMIFS('FA FQA'!$G:$G,'FA FQA'!$E:$E,'Main apportion'!$A29,'FA FQA'!$B:$B,'Main apportion'!BY$2,'FA FQA'!$D:$D,'Main apportion'!BY$3) -> 0 | BZ29: 170593 | CA29: 5746 | CB29: 0 | CC29: 142.3 | CD29: 5603.7 | CE29: 0 | CF29: 0 | CG29: 0 | CH29: 0 | CI29: 0 | CJ29: 142.3 | CK29: 5603.7 | CL29: 0 | CM29: 3.368250749 | CN29: 0 | CO29: 0 | CP29: 0 | CQ29: 0 | CR29: 0 | CS29: 142.3 | CT29: 5603.7 | CU29: 0 | CV29: 0 | CW29: 142.3 | CX29: 5603.7 | CY29: 0 | CZ29: 0.006459175317 | DA29: 0.0001629351204 | DB29: 0.9933778896 | DC29: 0 | DD29: 0 | DE29: 0 | DF29: 0 | DG29: 0 | DH29: 0.006459175317 | DI29: 0.0001629351204 | DJ29: 0.9933778896 | DK29: 0 | DL29: 13.6 | DM29: 0.3 | DN29: 2087.1 | DO29: 0 | DP29: 13.6 | DQ29: 0.3 | DR29: 2087.1 | DS29: 0 | DT29: 13.6 | DU29: 0.3 | DV29: 2087.1 | DW29: 0 | DX29: 0 | DY29: 0 | DZ29: 0 | EA29: 13.6 | EB29: 0.3 | EC29: =IF(DV29=$DZ29,DV29+$DX29,DV29) -> 2087.1 | ED29: 0 | EE29: 0 | EF29: 13.6 | EG29: 142.6 | EH29: 7690.8 | EI29: 0 | EJ29: 13.6 | EK29: 142.6 | EL29: 7690.8 | EM29: 0 | EN29: 0 | EO29: 0
A30: HER/4AB. | B30: 388542 | C30: 0 | D30: 388542 | E30: =VLOOKUP(A30,'All stocks'!$A$5:$B$202,2,FALSE) -> 73681.3 | F30: 73681.3 | G30: 0.231666 | H30: 0.6 | I30: 0.3232 | J30: 0.139 | K30: 54007 | L30: 19674 | M30: 0 | N30: 0 | O30: 19674 | P30: 0.005923 | Q30: 2301.3 | R30: 0.005923 | S30: 0 | T30: 0 | U30: 2301.3 | V30: 0.178277 | W30: 1 | X30: 17373 | Y30: 0 | Z30: 0 | AA30: 54007 | AB30: 0 | AC30: 0 | AD30: 0 | AE30: =SUMIFS('UK FQA'!D:D,'UK FQA'!B:B,A30,'UK FQA'!A:A,'Main apportion'!$AE$6) -> 507211 | AF30: =SUMIFS('UK FQA'!D:D,'UK FQA'!B:B,A30,'UK FQA'!A:A,'Main apportion'!$AF$6) -> 0 | AG30: =SUMIFS('FA FQA'!G:G,'FA FQA'!E:E,'Main apportion'!A30,'FA FQA'!D:D,'Main apportion'!$AG$6) -> 0 | AH30: 0 | AI30: 0 | AJ30: 0 | AK30: 0 | AL30: 0 | AM30: 0 | AN30: 0 | AO30: 0 | AP30: 0 | AQ30: 0 | AR30: 0 | AS30: 0 | AT30: 0 | AU30: 0 | AV30: 0 | AW30: 0 | AX30: 0 | AY30: 0 | AZ30: 0 | BA30: =SUMIFS('UK FQA'!D:D,'UK FQA'!B:B,'Main apportion'!A30,'UK FQA'!A:A,'Main apportion'!$BA$6) -> 0 | BB30: 0 | BC30: 0 | BD30: 0 | BE30: 0 | BF30: =SUMIFS('FA FQA'!$G:$G,'FA FQA'!$E:$E,'Main apportion'!$A30,'FA FQA'!$B:$B,'Main apportion'!BF$2,'FA FQA'!$D:$D,'Main apportion'!BF$3) -> 0 | BG30: =SUMIFS('FA FQA'!$G:$G,'FA FQA'!$E:$E,'Main apportion'!$A30,'FA FQA'!$B:$B,'Main apportion'!BG$2,'FA FQA'!$D:$D,'Main apportion'!BG$3) -> 0 | BH30: =SUMIFS('FA FQA'!$G:$G,'FA FQA'!$E:$E,'Main apportion'!$A30,'FA FQA'!$B:$B,'Main apportion'!BH$2,'FA FQA'!$D:$D,'Main apportion'!BH$3) -> 0 | BI30: =SUMIFS('FA FQA'!$G:$G,'FA FQA'!$E:$E,'Main apportion'!$A30,'FA FQA'!$B:$B,'Main apportion'!BI$2,'FA FQA'!$D:$D,'Main apportion'!BI$3) -> 0 | BJ30: 0 | BK30: 0 | BL30: 0 | BM30: 0 | BN30: 0 | BO30: 0 | BP30: 0 | BQ30: 0 | BR30: 0 | BS30: 0 | BT30: 0 | BU30: 0 | BV30: =SUMIFS('FA FQA'!$G:$G,'FA FQA'!$E:$E,'Main apportion'!$A30,'FA FQA'!$B:$B,'Main apportion'!BV$2,'FA FQA'!$D:$D,'Main apportion'!BV$3) -> 94061 | BW30: =SUMIFS('FA FQA'!$G:$G,'FA FQA'!$E:$E,'Main apportion'!$A30,'FA FQA'!$B:$B,'Main apportion'!BW$2,'FA FQA'!$D:$D,'Main apportion'!BW$3) -> 50787 | BX30: =SUMIFS('FA FQA'!$G:$G,'FA FQA'!$E:$E,'Main apportion'!$A30,'FA FQA'!$B:$B,'Main apportion'!BX$2,'FA FQA'!$D:$D,'Main apportion'!BX$3) -> 362363 | BY30: =SUMIFS('FA FQA'!$G:$G,'FA FQA'!$E:$E,'Main apportion'!$A30,'FA FQA'!$B:$B,'Main apportion'!BY$2,'FA FQA'!$D:$D,'Main apportion'!BY$3) -> 0 | BZ30: 507211 | CA30: 54007 | CB30: 10015.5 | CC30: 5407.7 | CD30: 38583.8 | CE30: 0 | CF30: 0 | CG30: 0 | CH30: 0 | CI30: 10015.5 | CJ30: 5407.7 | CK30: 38583.8 | CL30: 0 | CM30: 10.6478369 | CN30: 0 | CO30: 0 | CP30: 0 | CQ30: 0 | CR30: 10015.5 | CS30: 5407.7 | CT30: 38583.8 | CU30: 0 | CV30: 10015.5 | CW30: 5407.7 | CX30: 38583.8 | CY30: 0 | CZ30: 0.2256447009 | DA30: 0.07735494082 | DB30: 0.6970003583 | DC30: 0 | DD30: 519.3 | DE30: 178 | DF30: 1604 | DG30: 0 | DH30: 0.2154587757 | DI30: 0.06961944674 | DJ30: 0.7149217776 | DK30: 0 | DL30: 3743.2 | DM30: 1209.5 | DN30: 12420.3 | DO30: 0 | DP30: 4262.5 | DQ30: 1387.5 | DR30: =DF30+DN30 -> 14024.3 | DS30: 0 | DT30: 4262.5 | DU30: 1387.5 | DV30: 14024.3 | DW30: 0 | DX30: -0.3 | DY30: amend | DZ30: 14024.3 | EA30: 4262.5 | EB30: 1387.5 | EC30: =IF(DV30=$DZ30,DV30+$DX30,DV30)+0.3 -> 14024.3 | ED30: 0 | EE30: -0.3 | EF30: 14278 | EG30: 6795.2 | EH30: 52608.1 | EI30: 0 | EJ30: 14278 | EK30: 6795.2 | EL30: 52608.1 | EM30: 0 | EN30: 0 | EO30: 0
A31: HER/4CXB7D | B31: 388542 | C31: 0 | D31: 388542 | E31: =VLOOKUP(A31,'All stocks'!$A$5:$B$202,2,FALSE) -> 5278 | F31: 5278 | G31: 0.095799 | H31: 0.11 | I31: 0.1235 | J31: 0.0105 | K31: 4080 | L31: 1198 | M31: 0 | N31: 0 | O31: 1198 | P31: 0.0004 | Q31: 155.4 | R31: 0.0004 | S31: 0 | T31: 0 | U31: 155.4 | V31: 0.1126 | W31: 0 | X31: 1042.6 | Y31: 0 | Z31: 0 | AA31: 4080 | AB31: 0 | AC31: 0 | AD31: 0 | AE31: =SUMIFS('UK FQA'!D:D,'UK FQA'!B:B,A31,'UK FQA'!A:A,'Main apportion'!$AE$6) -> 28013 | AF31: =SUMIFS('UK FQA'!D:D,'UK FQA'!B:B,A31,'UK FQA'!A:A,'Main apportion'!$AF$6) -> 786 | AG31: =SUMIFS('FA FQA'!G:G,'FA FQA'!E:E,'Main apportion'!A31,'FA FQA'!D:D,'Main apportion'!$AG$6) -> 5 | AH31: 0 | AI31: 114.4782779 | AJ31: 114.5 | AK31: 0.9857 | AL31: 0.0091 | AM31: 0.0048 | AN31: 0.0004 | AO31: =ROUND(IFERROR($AJ31*(AK31/SUM($AK31:$AN31)),0),1) -> 112.9 | AP31: 1 | AQ31: 0.5 | AR31: 0 | AS31: 0.1 | AT31: amend | AU31: 112.9 | AV31: 113 | AW31: 1 | AX31: 0.5 | AY31: 0 | AZ31: 0 | BA31: =SUMIFS('UK FQA'!D:D,'UK FQA'!B:B,'Main apportion'!A31,'UK FQA'!A:A,'Main apportion'!$BA$6) -> 0 | BB31: 0 | BC31: 0 | BD31: 0.7282333202 | BE31: 0.7 | BF31: =SUMIFS('FA FQA'!$G:$G,'FA FQA'!$E:$E,'Main apportion'!$A31,'FA FQA'!$B:$B,'Main apportion'!BF$2,'FA FQA'!$D:$D,'Main apportion'!BF$3) -> 5 | BG31: =SUMIFS('FA FQA'!$G:$G,'FA FQA'!$E:$E,'Main apportion'!$A31,'FA FQA'!$B:$B,'Main apportion'!BG$2,'FA FQA'!$D:$D,'Main apportion'!BG$3) -> 0 | BH31: =SUMIFS('FA FQA'!$G:$G,'FA FQA'!$E:$E,'Main apportion'!$A31,'FA FQA'!$B:$B,'Main apportion'!BH$2,'FA FQA'!$D:$D,'Main apportion'!BH$3) -> 0 | BI31: =SUMIFS('FA FQA'!$G:$G,'FA FQA'!$E:$E,'Main apportion'!$A31,'FA FQA'!$B:$B,'Main apportion'!BI$2,'FA FQA'!$D:$D,'Main apportion'!BI$3) -> 0 | BJ31: 0.7 | BK31: 0 | BL31: 0 | BM31: 0 | BN31: 0 | BO31: 0 | BP31: 0 | BQ31: 0.7 | BR31: 0 | BS31: 0 | BT31: 0 | BU31: 0 | BV31: =SUMIFS('FA FQA'!$G:$G,'FA FQA'!$E:$E,'Main apportion'!$A31,'FA FQA'!$B:$B,'Main apportion'!BV$2,'FA FQA'!$D:$D,'Main apportion'!BV$3) -> 27114 | BW31: =SUMIFS('FA FQA'!$G:$G,'FA FQA'!$E:$E,'Main apportion'!$A31,'FA FQA'!$B:$B,'Main apportion'!BW$2,'FA FQA'!$D:$D,'Main apportion'!BW$3) -> 24 | BX31: =SUMIFS('FA FQA'!$G:$G,'FA FQA'!$E:$E,'Main apportion'!$A31,'FA FQA'!$B:$B,'Main apportion'!BX$2,'FA FQA'!$D:$D,'Main apportion'!BX$3) -> 84 | BY31: =SUMIFS('FA FQA'!$G:$G,'FA FQA'!$E:$E,'Main apportion'!$A31,'FA FQA'!$B:$B,'Main apportion'!BY$2,'FA FQA'!$D:$D,'Main apportion'!BY$3) -> 0 | BZ31: 27222 | CA31: 3964.8 | CB31: 3949.1 | CC31: 3.5 | CD31: 12.2 | CE31: 0 | CF31: 0 | CG31: 0 | CH31: 0 | CI31: 3949.1 | CJ31: 3.5 | CK31: 12.2 | CL31: 0 | CM31: 14.56469032 | CN31: 0 | CO31: 0 | CP31: 0 | CQ31: 0 | CR31: 4062.8 | CS31: 4.5 | CT31: 12.7 | CU31: 0 | CV31: 4062.8 | CW31: 4.5 | CX31: 12.7 | CY31: 0 | CZ31: 0.9985770714 | DA31: 0 | DB31: 0.001422577983 | DC31: 3.50611892e-07 | DD31: 155.2 | DE31: 0 | DF31: 0.2 | DG31: 0 | DH31: 0.9987193643 | DI31: 0 | DJ31: 0.001280320185 | DK31: 3.155507028e-07 | DL31: 1041.3 | DM31: 0 | DN31: 1.3 | DO31: 0 | DP31: 1196.5 | DQ31: 0 | DR31: 1.5 | DS31: 0 | DT31: 1196.5 | DU31: 0 | DV31: 1.5 | DW31: 0 | DX31: 0 | DY31: 0 | DZ31: 0 | EA31: 1196.5 | EB31: 0 | EC31: 1.5 | ED31: 0 | EE31: 0 | EF31: 5259.3 | EG31: 4.5 | EH31: 14.2 | EI31: 0 | EJ31: 5259.3 | EK31: 4.5 | EL31: 14.2 | EM31: 0 | EN31: 0 | EO31: 0
A32: HER/5B6ANB | B32: 1745 | C32: 0 | D32: =IFERROR(ROUND(B32*(1+C32),0),"") -> 1745 | E32: =VLOOKUP(A32,'All stocks'!$A$5:$B$202,2,FALSE) -> 1160 | F32: =IF(C32<0,ROUND(D32*I32,0),E32) -> 1160 | G32: 0.6042 | H32: 1 | I32: 0.6647 | J32: =ROUND(IFERROR(G32*H32,""),4) -> 0.6042 | K32: =IF(J32>1,ROUND(J32,0),IFERROR(ROUND(IF(OR(J32*D32>F32,I32=J32),F32,J32*D32),0),"")) -> 1054 | L32: =IFERROR(ROUND(IFERROR(IF(F32-K32<=0,0,F32-K32),""),0),0) -> 106 | M32: 0 | N32: =IF(L32-M32>=0,M32,IF(L32-M32<0,M32+(L32-M32),M32)) -> 0 | O32: =IFERROR(IF(L32-N32<>L32,L32-N32,L32),0) -> 106 | P32: 0.0684 | Q32: =ROUND(IFERROR(P32*D32,0),1) -> 119.4 | R32: =IFERROR(IF(IF((I32-J32)>P32,P32,I32-J32)<0,0,IF((I32-J32)>P32,P32,I32-J32)),0) -> 0.0605 | S32: 0 | T32: 0 | U32: =ROUND(IF(S32=0,IFERROR(IF(R32<=0,0,IF(L32=0,0,IF(L32>=Q32,Q32,L32))),0),IFERROR(IF(R32<=0,0,IF(L32=0,0,IF(L32>=Q32,Q32,L32))),0)-N32),1) -> 106 | V32: =IFERROR(IF(I32-J32-R32<=0,0,I32-J32-R32),0) -> 0 | W32: 0 | X32: =IFERROR(IF(U32=0,L32-N32,IF(F32-K32-U32<0,0,F32-K32-N32-U32)),0) -> 0 | Y32: 0 | Z32: 0 | AA32: =K32-Y32-Z32 -> 1054 | AB32: 0 | AC32: 0 | AD32: 0 | AE32: =SUMIFS('UK FQA'!D:D,'UK FQA'!B:B,A32,'UK FQA'!A:A,'Main apportion'!$AE$6) -> 421328 | AF32: =SUMIFS('UK FQA'!D:D,'UK FQA'!B:B,A32,'UK FQA'!A:A,'Main apportion'!$AF$6) -> 0 | AG32: =SUMIFS('FA FQA'!G:G,'FA FQA'!E:E,'Main apportion'!A32,'FA FQA'!D:D,'Main apportion'!$AG$6) -> 0 | AH32: =AA32*AB32 -> 0 | AI32: =IFERROR(AA32*(AF32/AE32),0) -> 0 | AJ32: =ROUND((MAX(AH32,AC32,AI32)),1) -> 0 | AK32: 0.25 | AL32: 0.25 | AM32: 0.25 | AN32: 0.25 | AO32: =ROUND(IFERROR($AJ32*(AK32/SUM($AK32:$AN32)),0),1) -> 0 | AP32: =ROUND(IFERROR($AJ32*(AL32/SUM($AK32:$AN32)),0),1) -> 0 | AQ32: =ROUND(IFERROR($AJ32*(AM32/SUM($AK32:$AN32)),0),1) -> 0 | AR32: =ROUND(IFERROR($AJ32*(AN32/SUM($AK32:$AN32)),0),1) -> 0 | AS32: =IF(AJ32-SUM(AO32:AR32)=0,0,AJ32-SUM(AO32:AR32)) -> 0 | AT32: =IF(AS32<>0,"amend",0) -> 0 | AU32: =IF(AT32="amend",MAX(AO32:AR32),0) -> 0 | AV32: =IF(AO32=$AU32,AO32+$AS32,AO32) -> 0 | AW32: =IF(AP32=$AU32,AP32+$AS32,AP32) -> 0 | AX32: =IF(AQ32=$AU32,AQ32+$AS32,AQ32) -> 0 | AY32: =IF(AR32=$AU32,AR32+$AS32,AR32) -> 0 | AZ32: =SUM(AV32:AY32)-AJ32 -> 0 | BA32: =SUMIFS('UK FQA'!D:D,'UK FQA'!B:B,'Main apportion'!A32,'UK FQA'!A:A,'Main apportion'!$BA$6) -> 0 | BB32: =ROUND(IFERROR(AA32*(BA32/AE32),0),1) -> 0 | BC32: =AA32*AD32 -> 0 | BD32: =IFERROR(AA32*(AG32/AE32),0) -> 0 | BE32: =ROUND((IFERROR(MAX(BC32,BD32),0)),1) -> 0 | BF32: =SUMIFS('FA FQA'!$G:$G,'FA FQA'!$E:$E,'Main apportion'!$A32,'FA FQA'!$B:$B,'Main apportion'!BF$2,'FA FQA'!$D:$D,'Main apportion'!BF$3) -> 0 | BG32: =SUMIFS('FA FQA'!$G:$G,'FA FQA'!$E:$E,'Main apportion'!$A32,'FA FQA'!$B:$B,'Main apportion'!BG$2,'FA FQA'!$D:$D,'Main apportion'!BG$3) -> 0 | BH32: =SUMIFS('FA FQA'!$G:$G,'FA FQA'!$E:$E,'Main apportion'!$A32,'FA FQA'!$B:$B,'Main apportion'!BH$2,'FA FQA'!$D:$D,'Main apportion'!BH$3) -> 0 | BI32: =SUMIFS('FA FQA'!$G:$G,'FA FQA'!$E:$E,'Main apportion'!$A32,'FA FQA'!$B:$B,'Main apportion'!BI$2,'FA FQA'!$D:$D,'Main apportion'!BI$3) -> 0 | BJ32: =ROUND(IFERROR($BE32*(BF32/$AG32),0),1) -> 0 | BK32: =ROUND(IFERROR($BE32*(BG32/$AG32),0),1) -> 0 | BL32: =ROUND(IFERROR($BE32*(BH32/$AG32),0),1) -> 0 | BM32: =ROUND(IFERROR($BE32*(BI32/$AG32),0),1) -> 0 | BN32: =BE32-SUM(BJ32:BM32) -> 0 | BO32: =IF(BN32<>0,"amend",0) -> 0 | BP32: =IF(BO32="amend",MAX(BJ32:BM32),0) -> 0 | BQ32: =IF(BJ32=$BP32,BJ32+$BN32,BJ32) -> 0 | BR32: =IF(BK32=$BP32,BK32+$BN32,BK32) -> 0 | BS32: =IF(BL32=$BP32,BL32+$BN32,BL32) -> 0 | BT32: =IF(BM32=$BP32,BM32+$BN32,BM32) -> 0 | BU32: =SUM(BQ32:BT32)-BE32 -> 0 | BV32: =SUMIFS('FA FQA'!$G:$G,'FA FQA'!$E:$E,'Main apportion'!$A32,'FA FQA'!$B:$B,'Main apportion'!BV$2,'FA FQA'!$D:$D,'Main apportion'!BV$3) -> 67260 | BW32: =SUMIFS('FA FQA'!$G:$G,'FA FQA'!$E:$E,'Main apportion'!$A32,'FA FQA'!$B:$B,'Main apportion'!BW$2,'FA FQA'!$D:$D,'Main apportion'!BW$3) -> 38123 | BX32: =SUMIFS('FA FQA'!$G:$G,'FA FQA'!$E:$E,'Main apportion'!$A32,'FA FQA'!$B:$B,'Main apportion'!BX$2,'FA FQA'!$D:$D,'Main apportion'!BX$3) -> 315945 | BY32: =SUMIFS('FA FQA'!$G:$G,'FA FQA'!$E:$E,'Main apportion'!$A32,'FA FQA'!$B:$B,'Main apportion'!BY$2,'FA FQA'!$D:$D,'Main apportion'!BY$3) -> 0 | BZ32: =SUM(BV32:BY32) -> 421328 | CA32: =ROUND(AA32-AJ32-BE32-BB32,1) -> 1054 | CB32: =ROUND(IFERROR(CA32*(BV32/$BZ32),0),1) -> 168.3 | CC32: =ROUND(IFERROR(CA32*(BW32/$BZ32),0),1) -> 95.4 | CD32: =ROUND(IFERROR(CA32*(BX32/$BZ32),0),1) -> 790.4 | CE32: =ROUND(IFERROR($CA32*(BY32/$BZ32),0),1) -> 0 | CF32: =CA32-SUM(CB32:CE32) -> -0.1 | CG32: =IF(CF32<>0,"amend",0) -> amend | CH32: =IF(CG32="amend",MAX(CB32:CE32),0) -> 790.4 | CI32: =IF(CB32=$CH32,CB32+$CF32,CB32) -> 168.3 | CJ32: =IF(CC32=$CH32,CC32+$CF32,CC32) -> 95.4 | CK32: =IF(CD32=$CH32,CD32+$CF32,CD32) -> 790.3 | CL32: =IF(CE32=$CH32,CE32+$CF32,CE32) -> 0 | CM32: =IFERROR(100*SUM(CB32:CE32)/BZ32,0) -> 0.2501851289 | CN32: 0 | CO32: 0 | CP32: 0 | CQ32: 0 | CR32: =SUM(AV32,BB32,BQ32,CI32,CN32) -> 168.3 | CS32: =SUM(AW32,BR32,CJ32,CO32) -> 95.4 | CT32: =SUM(AX32,BS32,CK32,CP32) -> 790.3 | CU32: =SUM(AY32,BT32,CL32,CQ32) -> 0 | CV32: =ROUND(CR32,1) -> 168.3 | CW32: =ROUND(CS32,1) -> 95.4 | CX32: =ROUND(CT32,1) -> 790.3 | CY32: =ROUND(CU32,1) -> 0 | CZ32: 0.2215 | DA32: 0.1077 | DB32: 0.6708 | DC32: 0 | DD32: =ROUND(IFERROR(IF($T32=1,$CZ32/SUM($CZ32:$DB32)*$U32,CZ32*$U32),0),1) -> 23.5 | DE32: =ROUND(IFERROR(IF($T32=1,$DA32/SUM($CZ32:$DB32)*$U32,DA32*$U32),0),1) -> 11.4 | DF32: =ROUND(IFERROR(IF($T32=1,$DB32/SUM($CZ32:$DB32)*$U32,DB32*$U32),0),1) -> 71.1 | DG32: =ROUND(IF(S32=1,N32,(IF(T32=1,0,IFERROR(DC32*$U32,0)))),1) -> 0 | DH32: 0.1994 | DI32: 0.0977 | DJ32: 0.7029 | DK32: 0 | DL32: =ROUND(IFERROR(DH32*$X32,0),1) -> 0 | DM32: =ROUND(IFERROR(DI32*$X32,0),1) -> 0 | DN32: =ROUND(IFERROR(DJ32*$X32,0),1) -> 0 | DO32: =ROUND(IF(AND(N32>0,S32<>1),N32,IFERROR(DK32*$X32,0)),1) -> 0 | DP32: =DD32+DL32 -> 23.5 | DQ32: =DE32+DM32 -> 11.4 | DR32: =DF32+DN32 -> 71.1 | DS32: =DG32+DO32 -> 0 | DT32: =ROUND(DP32,1) -> 23.5 | DU32: =ROUND(DQ32,1) -> 11.4 | DV32: =ROUND(DR32,1) -> 71.1 | DW32: =ROUND(DS32,1) -> 0 | DX32: =L32-(SUM(DT32:DW32)) -> 0 | DY32: =IF(DX32<>0,"amend",0) -> 0 | DZ32: =IF(DY32="amend",MAX(DT32:DW32),0) -> 0 | EA32: =IF(DT32=$DZ32,DT32+$DX32,DT32) -> 23.5 | EB32: =IF(DU32=$DZ32,DU32+$DX32,DU32) -> 11.4 | EC32: =IF(DV32=$DZ32,DV32+$DX32,DV32) -> 71.1 | ED32: =IF(DW32=$DZ32,DW32+$DX32,DW32) -> 0 | EE32: =L32-SUM(EA32:ED32) -> 0 | EF32: =IFERROR(EA32+CV32,0) -> 191.8 | EG32: =IFERROR(EB32+CW32,0) -> 106.8 | EH32: =IFERROR(EC32+CX32,0) -> 861.4 | EI32: =IFERROR(ED32+CY32,0) -> 0 | EJ32: =ROUND(EF32,1) -> 191.8 | EK32: =ROUND(EG32,1) -> 106.8 | EL32: =ROUND(EH32,1) -> 861.4 | EM32: =ROUND(EI32,1) -> 0 | EN32: =K32-SUM(CV32:CY32) -> 0 | EO32: =IFERROR(F32-SUM(EJ32:EM32),0) -> 0
A33: HER/7EF. | B33: 357 | C33: 0 | D33: 357 | E33: =VLOOKUP(A33,'All stocks'!$A$5:$B$202,2,FALSE) -> 179 | F33: 179 | G33: 0.5 | H33: 1 | I33: 0.5 | J33: 0.5 | K33: 179 | L33: 0 | M33: 0 | N33: 0 | O33: 0 | P33: 0 | Q33: 0 | R33: 0 | S33: 0 | T33: 0 | U33: 0 | V33: 0 | W33: 0 | X33: 0 | Y33: 0 | Z33: 0 | AA33: 179 | AB33: 0 | AC33: 0 | AD33: 0 | AE33: =SUMIFS('UK FQA'!D:D,'UK FQA'!B:B,A33,'UK FQA'!A:A,'Main apportion'!$AE$6) -> 4618 | AF33: =SUMIFS('UK FQA'!D:D,'UK FQA'!B:B,A33,'UK FQA'!A:A,'Main apportion'!$AF$6) -> 157 | AG33: =SUMIFS('FA FQA'!G:G,'FA FQA'!E:E,'Main apportion'!A33,'FA FQA'!D:D,'Main apportion'!$AG$6) -> 1 | AH33: 0 | AI33: 6.085534864 | AJ33: 6.1 | AK33: 0.9637 | AL33: 0 | AM33: 0.0001 | AN33: 0.0362 | AO33: 5.9 | AP33: 0 | AQ33: 0 | AR33: 0.2 | AS33: =IF(AJ33-SUM(AO33:AR33)=0,0,AJ33-SUM(AO33:AR33)) -> -8.881784197e-16 | AT33: amend | AU33: 5.9 | AV33: 5.9 | AW33: 0 | AX33: 0 | AY33: 0.2 | AZ33: 0 | BA33: =SUMIFS('UK FQA'!D:D,'UK FQA'!B:B,'Main apportion'!A33,'UK FQA'!A:A,'Main apportion'!$BA$6) -> 724 | BB33: 28.1 | BC33: 0 | BD33: 0.03876136856 | BE33: 0 | BF33: =SUMIFS('FA FQA'!$G:$G,'FA FQA'!$E:$E,'Main apportion'!$A33,'FA FQA'!$B:$B,'Main apportion'!BF$2,'FA FQA'!$D:$D,'Main apportion'!BF$3) -> 1 | BG33: =SUMIFS('FA FQA'!$G:$G,'FA FQA'!$E:$E,'Main apportion'!$A33,'FA FQA'!$B:$B,'Main apportion'!BG$2,'FA FQA'!$D:$D,'Main apportion'!BG$3) -> 0 | BH33: =SUMIFS('FA FQA'!$G:$G,'FA FQA'!$E:$E,'Main apportion'!$A33,'FA FQA'!$B:$B,'Main apportion'!BH$2,'FA FQA'!$D:$D,'Main apportion'!BH$3) -> 0 | BI33: =SUMIFS('FA FQA'!$G:$G,'FA FQA'!$E:$E,'Main apportion'!$A33,'FA FQA'!$B:$B,'Main apportion'!BI$2,'FA FQA'!$D:$D,'Main apportion'!BI$3) -> 0 | BJ33: 0 | BK33: 0 | BL33: 0 | BM33: 0 | BN33: 0 | BO33: 0 | BP33: 0 | BQ33: 0 | BR33: 0 | BS33: 0 | BT33: 0 | BU33: 0 | BV33: =SUMIFS('FA FQA'!$G:$G,'FA FQA'!$E:$E,'Main apportion'!$A33,'FA FQA'!$B:$B,'Main apportion'!BV$2,'FA FQA'!$D:$D,'Main apportion'!BV$3) -> 3736 | BW33: =SUMIFS('FA FQA'!$G:$G,'FA FQA'!$E:$E,'Main apportion'!$A33,'FA FQA'!$B:$B,'Main apportion'!BW$2,'FA FQA'!$D:$D,'Main apportion'!BW$3) -> 0 | BX33: =SUMIFS('FA FQA'!$G:$G,'FA FQA'!$E:$E,'Main apportion'!$A33,'FA FQA'!$B:$B,'Main apportion'!BX$2,'FA FQA'!$D:$D,'Main apportion'!BX$3) -> 0 | BY33: =SUMIFS('FA FQA'!$G:$G,'FA FQA'!$E:$E,'Main apportion'!$A33,'FA FQA'!$B:$B,'Main apportion'!BY$2,'FA FQA'!$D:$D,'Main apportion'!BY$3) -> 0 | BZ33: 3736 | CA33: 144.8 | CB33: 144.8 | CC33: 0 | CD33: 0 | CE33: 0 | CF33: 0 | CG33: 0 | CH33: 0 | CI33: 144.8 | CJ33: 0 | CK33: 0 | CL33: 0 | CM33: 3.875802998 | CN33: 0 | CO33: 0 | CP33: 0 | CQ33: 0 | CR33: 178.8 | CS33: 0 | CT33: 0 | CU33: 0.2 | CV33: 178.8 | CW33: 0 | CX33: 0 | CY33: 0.2 | CZ33: 0.9995674294 | DA33: 0 | DB33: 3.225047355e-05 | DC33: 0.0004003200983 | DD33: 0 | DE33: 0 | DF33: 0 | DG33: 0 | DH33: 0.9995324316 | DI33: 0 | DJ33: 2.902542619e-05 | DK33: 0.0004385429867 | DL33: 0 | DM33: 0 | DN33: 0 | DO33: 0 | DP33: 0 | DQ33: 0 | DR33: 0 | DS33: 0 | DT33: 0 | DU33: 0 | DV33: 0 | DW33: 0 | DX33: 0 | DY33: 0 | DZ33: 0 | EA33: 0 | EB33: 0 | EC33: 0 | ED33: 0 | EE33: 0 | EF33: 178.8 | EG33: 0 | EH33: 0 | EI33: 0.2 | EJ33: 178.8 | EK33: 0 | EL33: 0 | EM33: 0.2 | EN33: 0 | EO33: 0
A34: HKE/2AC4-C | B34: 2021 | C34: 0 | D34: 2021 | E34: =VLOOKUP(A34,'All stocks'!$A$5:$B$202,2,FALSE) -> 1082 | F34: 1082 | G34: 0.180094 | H34: 1 | I34: 0.5355 | J34: 0.1801 | K34: 364 | L34: 718 | M34: 0 | N34: 0 | O34: 718 | P34: 0 | Q34: 0 | R34: 0 | S34: 0 | T34: 0 | U34: 0 | V34: 0.3554 | W34: 0 | X34: 718 | Y34: 0 | Z34: 0 | AA34: 364 | AB34: 0 | AC34: 0 | AD34: 0 | AE34: =SUMIFS('UK FQA'!D:D,'UK FQA'!B:B,A34,'UK FQA'!A:A,'Main apportion'!$AE$6) -> 3375 | AF34: =SUMIFS('UK FQA'!D:D,'UK FQA'!B:B,A34,'UK FQA'!A:A,'Main apportion'!$AF$6) -> 1 | AG34: =SUMIFS('FA FQA'!G:G,'FA FQA'!E:E,'Main apportion'!A34,'FA FQA'!D:D,'Main apportion'!$AG$6) -> 0 | AH34: 0 | AI34: 0.1078518519 | AJ34: 0.1 | AK34: 0.9885 | AL34: 0 | AM34: 0.0051 | AN34: 0.0064 | AO34: 0.1 | AP34: 0 | AQ34: 0 | AR34: 0 | AS34: 0 | AT34: 0 | AU34: 0 | AV34: 0.1 | AW34: 0 | AX34: 0 | AY34: 0 | AZ34: 0 | BA34: =SUMIFS('UK FQA'!D:D,'UK FQA'!B:B,'Main apportion'!A34,'UK FQA'!A:A,'Main apportion'!$BA$6) -> 2 | BB34: 0.2 | BC34: 0 | BD34: 0 | BE34: 0 | BF34: =SUMIFS('FA FQA'!$G:$G,'FA FQA'!$E:$E,'Main apportion'!$A34,'FA FQA'!$B:$B,'Main apportion'!BF$2,'FA FQA'!$D:$D,'Main apportion'!BF$3) -> 0 | BG34: =SUMIFS('FA FQA'!$G:$G,'FA FQA'!$E:$E,'Main apportion'!$A34,'FA FQA'!$B:$B,'Main apportion'!BG$2,'FA FQA'!$D:$D,'Main apportion'!BG$3) -> 0 | BH34: =SUMIFS('FA FQA'!$G:$G,'FA FQA'!$E:$E,'Main apportion'!$A34,'FA FQA'!$B:$B,'Main apportion'!BH$2,'FA FQA'!$D:$D,'Main apportion'!BH$3) -> 0 | BI34: =SUMIFS('FA FQA'!$G:$G,'FA FQA'!$E:$E,'Main apportion'!$A34,'FA FQA'!$B:$B,'Main apportion'!BI$2,'FA FQA'!$D:$D,'Main apportion'!BI$3) -> 0 | BJ34: 0 | BK34: 0 | BL34: 0 | BM34: 0 | BN34: 0 | BO34: 0 | BP34: 0 | BQ34: 0 | BR34: 0 | BS34: 0 | BT34: 0 | BU34: 0 | BV34: =SUMIFS('FA FQA'!$G:$G,'FA FQA'!$E:$E,'Main apportion'!$A34,'FA FQA'!$B:$B,'Main apportion'!BV$2,'FA FQA'!$D:$D,'Main apportion'!BV$3) -> 902 | BW34: =SUMIFS('FA FQA'!$G:$G,'FA FQA'!$E:$E,'Main apportion'!$A34,'FA FQA'!$B:$B,'Main apportion'!BW$2,'FA FQA'!$D:$D,'Main apportion'!BW$3) -> 38 | BX34: =SUMIFS('FA FQA'!$G:$G,'FA FQA'!$E:$E,'Main apportion'!$A34,'FA FQA'!$B:$B,'Main apportion'!BX$2,'FA FQA'!$D:$D,'Main apportion'!BX$3) -> 2432 | BY34: =SUMIFS('FA FQA'!$G:$G,'FA FQA'!$E:$E,'Main apportion'!$A34,'FA FQA'!$B:$B,'Main apportion'!BY$2,'FA FQA'!$D:$D,'Main apportion'!BY$3) -> 0 | BZ34: 3372 | CA34: 363.7 | CB34: 97.3 | CC34: 4.1 | CD34: 262.3 | CE34: 0 | CF34: 0 | CG34: 0 | CH34: 0 | CI34: 97.3 | CJ34: 4.1 | CK34: 262.3 | CL34: 0 | CM34: 10.78588375 | CN34: 0 | CO34: 0 | CP34: 0 | CQ34: 0 | CR34: 97.6 | CS34: 4.1 | CT34: 262.3 | CU34: 0 | CV34: 97.6 | CW34: 4.1 | CX34: 262.3 | CY34: 0 | CZ34: 0.354891187 | DA34: 0.0006043080065 | DB34: 0.644504505 | DC34: 0 | DD34: 0 | DE34: 0 | DF34: 0 | DG34: 0 | DH34: 0.3196802042 | DI34: 0.0005438772059 | DJ34: 0.6797759186 | DK34: 0 | DL34: 229.5 | DM34: 0.4 | DN34: 488.1 | DO34: 0 | DP34: 229.5 | DQ34: 0.4 | DR34: 488.1 | DS34: 0 | DT34: 229.5 | DU34: 0.4 | DV34: 488.1 | DW34: 0 | DX34: 0 | DY34: 0 | DZ34: 0 | EA34: 229.5 | EB34: 0.4 | EC34: 488.1 | ED34: 0 | EE34: 0 | EF34: 327.1 | EG34: 4.5 | EH34: 750.4 | EI34: 0 | EJ34: 327.1 | EK34: 4.5 | EL34: 750.4 | EM34: 0 | EN34: 0 | EO34: 0
A35: HKE/571214 | B35: 32479 | C35: 0 | D35: 32479 | E35: =VLOOKUP(A35,'All stocks'!$A$5:$B$202,2,FALSE) -> 6756 | F35: 6756 | G35: 0.179715 | H35: 1 | I35: 0.208 | J35: 0.1797 | K35: 5836 | L35: 920 | M35: 0 | N35: 0 | O35: 920 | P35: 0 | Q35: 0 | R35: 0 | S35: 0 | T35: 0 | U35: 0 | V35: 0.0283 | W35: 0 | X35: 920 | Y35: 0 | Z35: 0 | AA35: 5836 | AB35: 0.01 | AC35: 0 | AD35: 0 | AE35: =SUMIFS('UK FQA'!D:D,'UK FQA'!B:B,A35,'UK FQA'!A:A,'Main apportion'!$AE$6) -> 54585 | AF35: =SUMIFS('UK FQA'!D:D,'UK FQA'!B:B,A35,'UK FQA'!A:A,'Main apportion'!$AF$6) -> 85 | AG35: =SUMIFS('FA FQA'!G:G,'FA FQA'!E:E,'Main apportion'!A35,'FA FQA'!D:D,'Main apportion'!$AG$6) -> 10 | AH35: 58.36 | AI35: 9.087844646 | AJ35: 58.4 | AK35: 0.8858 | AL35: 0.0635 | AM35: 0.0367 | AN35: 0.014 | AO35: =ROUND(IFERROR($AJ35*(AK35/SUM($AK35:$AN35)),0),1) -> 51.7 | AP35: 3.7 | AQ35: 2.1 | AR35: 0.8 | AS35: =IF(AJ35-SUM(AO35:AR35)=0,0,AJ35-SUM(AO35:AR35)) -> 0.1 | AT35: amend | AU35: 51.7 | AV35: 51.8 | AW35: 3.7 | AX35: 2.1 | AY35: 0.8 | AZ35: 0 | BA35: =SUMIFS('UK FQA'!D:D,'UK FQA'!B:B,'Main apportion'!A35,'UK FQA'!A:A,'Main apportion'!$BA$6) -> 0 | BB35: 0 | BC35: 0 | BD35: 1.069158194 | BE35: 1.1 | BF35: =SUMIFS('FA FQA'!$G:$G,'FA FQA'!$E:$E,'Main apportion'!$A35,'FA FQA'!$B:$B,'Main apportion'!BF$2,'FA FQA'!$D:$D,'Main apportion'!BF$3) -> 6 | BG35: =SUMIFS('FA FQA'!$G:$G,'FA FQA'!$E:$E,'Main apportion'!$A35,'FA FQA'!$B:$B,'Main apportion'!BG$2,'FA FQA'!$D:$D,'Main apportion'!BG$3) -> 0 | BH35: =SUMIFS('FA FQA'!$G:$G,'FA FQA'!$E:$E,'Main apportion'!$A35,'FA FQA'!$B:$B,'Main apportion'!BH$2,'FA FQA'!$D:$D,'Main apportion'!BH$3) -> 4 | BI35: =SUMIFS('FA FQA'!$G:$G,'FA FQA'!$E:$E,'Main apportion'!$A35,'FA FQA'!$B:$B,'Main apportion'!BI$2,'FA FQA'!$D:$D,'Main apportion'!BI$3) -> 0 | BJ35: 0.7 | BK35: 0 | BL35: 0.4 | BM35: 0 | BN35: 0 | BO35: 0 | BP35: 0 | BQ35: 0.7 | BR35: 0 | BS35: 0.4 | BT35: 0 | BU35: 0 | BV35: =SUMIFS('FA FQA'!$G:$G,'FA FQA'!$E:$E,'Main apportion'!$A35,'FA FQA'!$B:$B,'Main apportion'!BV$2,'FA FQA'!$D:$D,'Main apportion'!BV$3) -> 24331 | BW35: =SUMIFS('FA FQA'!$G:$G,'FA FQA'!$E:$E,'Main apportion'!$A35,'FA FQA'!$B:$B,'Main apportion'!BW$2,'FA FQA'!$D:$D,'Main apportion'!BW$3) -> 6139 | BX35: =SUMIFS('FA FQA'!$G:$G,'FA FQA'!$E:$E,'Main apportion'!$A35,'FA FQA'!$B:$B,'Main apportion'!BX$2,'FA FQA'!$D:$D,'Main apportion'!BX$3) -> 23552 | BY35: =SUMIFS('FA FQA'!$G:$G,'FA FQA'!$E:$E,'Main apportion'!$A35,'FA FQA'!$B:$B,'Main apportion'!BY$2,'FA FQA'!$D:$D,'Main apportion'!BY$3) -> 468 | BZ35: 54490 | CA35: 5776.5 | CB35: 2579.3 | CC35: 650.8 | CD35: 2496.8 | CE35: 49.6 | CF35: 0 | CG35: 0 | CH35: 0 | CI35: 2579.3 | CJ35: 650.8 | CK35: 2496.8 | CL35: 49.6 | CM35: 10.60102771 | CN35: 0 | CO35: 0 | CP35: 0 | CQ35: 0 | CR35: 2631.8 | CS35: 654.5 | CT35: 2499.3 | CU35: 50.4 | CV35: 2631.8 | CW35: 654.5 | CX35: 2499.3 | CY35: 50.4 | CZ35: 0.4711587771 | DA35: 0.01849239885 | DB35: 0.5094674404 | DC35: 0.0008813836329 | DD35: 0 | DE35: 0 | DF35: 0 | DG35: 0 | DH35: 0.4501245213 | DI35: 0.01694653986 | DJ35: 0.5315653417 | DK35: 0.001363597158 | DL35: 414.1 | DM35: 15.6 | DN35: 489 | DO35: 1.3 | DP35: 414.1 | DQ35: 15.6 | DR35: 489 | DS35: 1.3 | DT35: 414.1 | DU35: 15.6 | DV35: 489 | DW35: 1.3 | DX35: 0 | DY35: 0 | DZ35: 0 | EA35: 414.1 | EB35: 15.6 | EC35: 489 | ED35: 1.3 | EE35: 0 | EF35: 3045.9 | EG35: 670.1 | EH35: 2988.3 | EI35: 51.7 | EJ35: 3045.9 | EK35: 670.1 | EL35: 2988.3 | EM35: 51.7 | EN35: 0 | EO35: 0
A36: JAX/2A-14 | B36: 65221 | C36: -0.0352 | D36: 62925 | E36: =VLOOKUP(A36,'All stocks'!$A$5:$B$202,2,FALSE) -> 6124 | F36: 5909 | G36: 0.093921 | H36: 1 | I36: 0.0939 | J36: 0.0939 | K36: 5909 | L36: 0 | M36: 0 | N36: 0 | O36: 0 | P36: 0 | Q36: 0 | R36: 0 | S36: 0 | T36: 0 | U36: 0 | V36: 0 | W36: 0 | X36: 0 | Y36: 0 | Z36: 0 | AA36: 5909 | AB36: 0 | AC36: 0 | AD36: 0 | AE36: =SUMIFS('UK FQA'!D:D,'UK FQA'!B:B,A36,'UK FQA'!A:A,'Main apportion'!$AE$6) -> 5909 | AF36: =SUMIFS('UK FQA'!D:D,'UK FQA'!B:B,A36,'UK FQA'!A:A,'Main apportion'!$AF$6) -> 0 | AG36: =SUMIFS('FA FQA'!G:G,'FA FQA'!E:E,'Main apportion'!A36,'FA FQA'!D:D,'Main apportion'!$AG$6) -> 0.8596025779 | AH36: 0 | AI36: 0 | AJ36: 0 | AK36: 0 | AL36: 0 | AM36: 0 | AN36: 0 | AO36: 0 | AP36: 0 | AQ36: 0 | AR36: 0 | AS36: 0 | AT36: 0 | AU36: 0 | AV36: 0 | AW36: 0 | AX36: 0 | AY36: 0 | AZ36: 0 | BA36: =SUMIFS('UK FQA'!D:D,'UK FQA'!B:B,'Main apportion'!A36,'UK FQA'!A:A,'Main apportion'!$BA$6) -> 0 | BB36: 0 | BC36: 0 | BD36: 0.8596025779 | BE36: 0.9 | BF36: =SUMIFS('FA FQA'!$G:$G,'FA FQA'!$E:$E,'Main apportion'!$A36,'FA FQA'!$B:$B,'Main apportion'!BF$2,'FA FQA'!$D:$D,'Main apportion'!BF$3) -> 0.8593998483 | BG36: =SUMIFS('FA FQA'!$G:$G,'FA FQA'!$E:$E,'Main apportion'!$A36,'FA FQA'!$B:$B,'Main apportion'!BG$2,'FA FQA'!$D:$D,'Main apportion'!BG$3) -> 0 | BH36: =SUMIFS('FA FQA'!$G:$G,'FA FQA'!$E:$E,'Main apportion'!$A36,'FA FQA'!$B:$B,'Main apportion'!BH$2,'FA FQA'!$D:$D,'Main apportion'!BH$3) -> 0.0002027295675 | BI36: =SUMIFS('FA FQA'!$G:$G,'FA FQA'!$E:$E,'Main apportion'!$A36,'FA FQA'!$B:$B,'Main apportion'!BI$2,'FA FQA'!$D:$D,'Main apportion'!BI$3) -> 0 | BJ36: 0.9 | BK36: 0 | BL36: 0 | BM36: 0 | BN36: 0 | BO36: 0 | BP36: 0 | BQ36: 0.9 | BR36: 0 | BS36: 0 | BT36: 0 | BU36: 0 | BV36: =SUMIFS('FA FQA'!$G:$G,'FA FQA'!$E:$E,'Main apportion'!$A36,'FA FQA'!$B:$B,'Main apportion'!BV$2,'FA FQA'!$D:$D,'Main apportion'!BV$3) -> 2262.96464 | BW36: =SUMIFS('FA FQA'!$G:$G,'FA FQA'!$E:$E,'Main apportion'!$A36,'FA FQA'!$B:$B,'Main apportion'!BW$2,'FA FQA'!$D:$D,'Main apportion'!BW$3) -> 1261.547495 | BX36: =SUMIFS('FA FQA'!$G:$G,'FA FQA'!$E:$E,'Main apportion'!$A36,'FA FQA'!$B:$B,'Main apportion'!BX$2,'FA FQA'!$D:$D,'Main apportion'!BX$3) -> 2383.228198 | BY36: =SUMIFS('FA FQA'!$G:$G,'FA FQA'!$E:$E,'Main apportion'!$A36,'FA FQA'!$B:$B,'Main apportion'!BY$2,'FA FQA'!$D:$D,'Main apportion'!BY$3) -> 0.4000654466 | BZ36: =SUM(BV36:BY36) -> 5908.140397 | CA36: 5908.1 | CB36: 2262.9 | CC36: 1261.5 | CD36: 2383.2 | CE36: 0.4 | CF36: 0.1 | CG36: amend | CH36: 2383.2 | CI36: 2262.9 | CJ36: 1261.5 | CK36: 2383.3 | CL36: 0.4 | CM36: n/a | CN36: 0 | CO36: 0 | CP36: 0 | CQ36: 0 | CR36: 2263.8 | CS36: 1261.5 | CT36: 2383.3 | CU36: 0.4 | CV36: 2263.8 | CW36: 1261.5 | CX36: =ROUND(CT36,1) -> 2383.3 | CY36: 0.4 | CZ36: 0.6492916146 | DA36: 0.217557795 | DB36: 0.1331403933 | DC36: 1.019706823e-05 | DD36: 0 | DE36: 0 | DF36: 0 | DG36: 0 | DH36: 0.6128081235 | DI36: 0.1958502263 | DJ36: 0.1913316903 | DK36: 9.960011066e-06 | DL36: 0 | DM36: 0 | DN36: 0 | DO36: 0 | DP36: 0 | DQ36: 0 | DR36: 0 | DS36: 0 | DT36: 0 | DU36: 0 | DV36: 0 | DW36: 0 | DX36: 0 | DY36: 0 | DZ36: 0 | EA36: 0 | EB36: 0 | EC36: 0 | ED36: 0 | EE36: 0 | EF36: 2263.8 | EG36: 1261.5 | EH36: 2383.3 | EI36: 0.4 | EJ36: 2263.8 | EK36: 1261.5 | EL36: 2383.3 | EM36: 0.4 | EN36: 0 | EO36: 0
A37: JAX/4BC7D | B37: 970 | C37: 0 | D37: 970 | E37: =VLOOKUP(A37,'All stocks'!$A$5:$B$202,2,FALSE) -> 388 | F37: 388 | G37: 0.113486 | H37: 1 | I37: 0.4 | J37: 0.1135 | K37: 110 | L37: 278 | M37: 0 | N37: 0 | O37: 278 | P37: 0.069666 | Q37: 67.6 | R37: 0.069666 | S37: 0 | T37: 0 | U37: 67.6 | V37: 0.216834 | W37: 0 | X37: 210.4 | Y37: 0 | Z37: 0 | AA37: 110 | AB37: 0 | AC37: 0 | AD37: 0 | AE37: =SUMIFS('UK FQA'!D:D,'UK FQA'!B:B,A37,'UK FQA'!A:A,'Main apportion'!$AE$6) -> 110 | AF37: =SUMIFS('UK FQA'!D:D,'UK FQA'!B:B,A37,'UK FQA'!A:A,'Main apportion'!$AF$6) -> 0 | AG37: =SUMIFS('FA FQA'!G:G,'FA FQA'!E:E,'Main apportion'!A37,'FA FQA'!D:D,'Main apportion'!$AG$6) -> 0.006988230164 | AH37: 0 | AI37: 0 | AJ37: 0 | AK37: 0 | AL37: 0 | AM37: 0 | AN37: 0 | AO37: 0 | AP37: 0 | AQ37: 0 | AR37: 0 | AS37: 0 | AT37: 0 | AU37: 0 | AV37: 0 | AW37: 0 | AX37: 0 | AY37: 0 | AZ37: 0 | BA37: =SUMIFS('UK FQA'!D:D,'UK FQA'!B:B,'Main apportion'!A37,'UK FQA'!A:A,'Main apportion'!$BA$6) -> 0 | BB37: 0 | BC37: 0 | BD37: 0.006988230164 | BE37: 0 | BF37: =SUMIFS('FA FQA'!$G:$G,'FA FQA'!$E:$E,'Main apportion'!$A37,'FA FQA'!$B:$B,'Main apportion'!BF$2,'FA FQA'!$D:$D,'Main apportion'!BF$3) -> 0.005652250249 | BG37: =SUMIFS('FA FQA'!$G:$G,'FA FQA'!$E:$E,'Main apportion'!$A37,'FA FQA'!$B:$B,'Main apportion'!BG$2,'FA FQA'!$D:$D,'Main apportion'!BG$3) -> 0 | BH37: =SUMIFS('FA FQA'!$G:$G,'FA FQA'!$E:$E,'Main apportion'!$A37,'FA FQA'!$B:$B,'Main apportion'!BH$2,'FA FQA'!$D:$D,'Main apportion'!BH$3) -> 0.001335979915 | BI37: =SUMIFS('FA FQA'!$G:$G,'FA FQA'!$E:$E,'Main apportion'!$A37,'FA FQA'!$B:$B,'Main apportion'!BI$2,'FA FQA'!$D:$D,'Main apportion'!BI$3) -> 0 | BJ37: 0 | BK37: 0 | BL37: 0 | BM37: 0 | BN37: 0 | BO37: 0 | BP37: 0 | BQ37: 0 | BR37: 0 | BS37: 0 | BT37: 0 | BU37: 0 | BV37: =SUMIFS('FA FQA'!$G:$G,'FA FQA'!$E:$E,'Main apportion'!$A37,'FA FQA'!$B:$B,'Main apportion'!BV$2,'FA FQA'!$D:$D,'Main apportion'!BV$3) -> 20.26075007 | BW37: =SUMIFS('FA FQA'!$G:$G,'FA FQA'!$E:$E,'Main apportion'!$A37,'FA FQA'!$B:$B,'Main apportion'!BW$2,'FA FQA'!$D:$D,'Main apportion'!BW$3) -> 34.29607991 | BX37: =SUMIFS('FA FQA'!$G:$G,'FA FQA'!$E:$E,'Main apportion'!$A37,'FA FQA'!$B:$B,'Main apportion'!BX$2,'FA FQA'!$D:$D,'Main apportion'!BX$3) -> 55.43355057 | BY37: =SUMIFS('FA FQA'!$G:$G,'FA FQA'!$E:$E,'Main apportion'!$A37,'FA FQA'!$B:$B,'Main apportion'!BY$2,'FA FQA'!$D:$D,'Main apportion'!BY$3) -> 0.002631219943 | BZ37: =SUM(BV37:BY37) -> 109.9930118 | CA37: 110 | CB37: 20.3 | CC37: 34.3 | CD37: 55.4 | CE37: 0 | CF37: 0 | CG37: 0 | CH37: 0 | CI37: 20.3 | CJ37: 34.3 | CK37: 55.4 | CL37: 0 | CM37: n/a | CN37: 0 | CO37: 0 | CP37: 0 | CQ37: 0 | CR37: 20.3 | CS37: 34.3 | CT37: 55.4 | CU37: 0 | CV37: 20.3 | CW37: 34.3 | CX37: 55.4 | CY37: 0 | CZ37: 0.9805308463 | DA37: 0.002515957166 | DB37: 0.01695307851 | DC37: 1.17979998e-07 | DD37: 66.3 | DE37: 0.2 | DF37: 1.1 | DG37: 0 | DH37: 0.9811265368 | DI37: 0.002264361449 | DJ37: 0.01660899553 | DK37: 1.061819982e-07 | DL37: 206.4 | DM37: 0.5 | DN37: 3.5 | DO37: 0 | DP37: 272.7 | DQ37: 0.7 | DR37: 4.6 | DS37: 0 | DT37: 272.7 | DU37: 0.7 | DV37: 4.6 | DW37: 0 | DX37: 0 | DY37: 0 | DZ37: 0 | EA37: 272.7 | EB37: 0.7 | EC37: 4.6 | ED37: 0 | EE37: 0 | EF37: 293 | EG37: 35 | EH37: 60 | EI37: 0 | EJ37: 293 | EK37: 35 | EL37: 60 | EM37: 0 | EN37: 0 | EO37: 0
A38: L/W/2AC4-C | B38: 2227 | C38: 0 | D38: 2227 | E38: =VLOOKUP(A38,'All stocks'!$A$5:$B$202,2,FALSE) -> 1470 | F38: 1470 | G38: 0.610832 | H38: 1 | I38: 0.66 | J38: 0.6108 | K38: 1360 | L38: 110 | M38: 0 | N38: 0 | O38: 110 | P38: 0 | Q38: 0 | R38: 0 | S38: 0 | T38: 0 | U38: 0 | V38: 0.0492 | W38: 0 | X38: 110 | Y38: 0 | Z38: 0 | AA38: 1360 | AB38: 0 | AC38: 0 | AD38: 0 | AE38: =SUMIFS('UK FQA'!D:D,'UK FQA'!B:B,A38,'UK FQA'!A:A,'Main apportion'!$AE$6) -> 40705 | AF38: =SUMIFS('UK FQA'!D:D,'UK FQA'!B:B,A38,'UK FQA'!A:A,'Main apportion'!$AF$6) -> 227 | AG38: =SUMIFS('FA FQA'!G:G,'FA FQA'!E:E,'Main apportion'!A38,'FA FQA'!D:D,'Main apportion'!$AG$6) -> 11 | AH38: 0 | AI38: 7.58432625 | AJ38: 7.6 | AK38: 0.9649 | AL38: 0 | AM38: 0.0255 | AN38: 0.0096 | AO38: 7.3 | AP38: 0 | AQ38: 0.2 | AR38: 0.1 | AS38: 0 | AT38: 0 | AU38: 0 | AV38: 7.3 | AW38: 0 | AX38: 0.2 | AY38: 0.1 | AZ38: 0 | BA38: =SUMIFS('UK FQA'!D:D,'UK FQA'!B:B,'Main apportion'!A38,'UK FQA'!A:A,'Main apportion'!$BA$6) -> 2491 | BB38: 83.2 | BC38: 0 | BD38: 0.3675224174 | BE38: 0.4 | BF38: =SUMIFS('FA FQA'!$G:$G,'FA FQA'!$E:$E,'Main apportion'!$A38,'FA FQA'!$B:$B,'Main apportion'!BF$2,'FA FQA'!$D:$D,'Main apportion'!BF$3) -> 1 | BG38: =SUMIFS('FA FQA'!$G:$G,'FA FQA'!$E:$E,'Main apportion'!$A38,'FA FQA'!$B:$B,'Main apportion'!BG$2,'FA FQA'!$D:$D,'Main apportion'!BG$3) -> 0 | BH38: =SUMIFS('FA FQA'!$G:$G,'FA FQA'!$E:$E,'Main apportion'!$A38,'FA FQA'!$B:$B,'Main apportion'!BH$2,'FA FQA'!$D:$D,'Main apportion'!BH$3) -> 10 | BI38: =SUMIFS('FA FQA'!$G:$G,'FA FQA'!$E:$E,'Main apportion'!$A38,'FA FQA'!$B:$B,'Main apportion'!BI$2,'FA FQA'!$D:$D,'Main apportion'!BI$3) -> 0 | BJ38: =ROUND(IFERROR($BE38*(BF38/$AG38),0),1) -> 0 | BK38: =ROUND(IFERROR($BE38*(BG38/$AG38),0),1) -> 0 | BL38: =ROUND(IFERROR($BE38*(BH38/$AG38),0),1) -> 0.4 | BM38: =ROUND(IFERROR($BE38*(BI38/$AG38),0),1) -> 0 | BN38: 0 | BO38: 0 | BP38: 0 | BQ38: =IF(BJ38=$BP38,BJ38+$BN38,BJ38) -> 0 | BR38: =IF(BK38=$BP38,BK38+$BN38,BK38) -> 0 | BS38: =IF(BL38=$BP38,BL38+$BN38,BL38) -> 0.4 | BT38: 0 | BU38: 0 | BV38: =SUMIFS('FA FQA'!$G:$G,'FA FQA'!$E:$E,'Main apportion'!$A38,'FA FQA'!$B:$B,'Main apportion'!BV$2,'FA FQA'!$D:$D,'Main apportion'!BV$3) -> 13947 | BW38: =SUMIFS('FA FQA'!$G:$G,'FA FQA'!$E:$E,'Main apportion'!$A38,'FA FQA'!$B:$B,'Main apportion'!BW$2,'FA FQA'!$D:$D,'Main apportion'!BW$3) -> 830 | BX38: =SUMIFS('FA FQA'!$G:$G,'FA FQA'!$E:$E,'Main apportion'!$A38,'FA FQA'!$B:$B,'Main apportion'!BX$2,'FA FQA'!$D:$D,'Main apportion'!BX$3) -> 23199 | BY38: =SUMIFS('FA FQA'!$G:$G,'FA FQA'!$E:$E,'Main apportion'!$A38,'FA FQA'!$B:$B,'Main apportion'!BY$2,'FA FQA'!$D:$D,'Main apportion'!BY$3) -> 0 | BZ38: 37976 | CA38: =ROUND(AA38-AJ38-BE38-BB38,1) -> 1268.8 | CB38: 466 | CC38: 27.7 | CD38: =ROUND(IFERROR(CA38*(BX38/$BZ38),0),1) -> 775.1 | CE38: 0 | CF38: 0 | CG38: 0 | CH38: 0 | CI38: 466 | CJ38: 27.7 | CK38: 775.1 | CL38: 0 | CM38: =IFERROR(100*SUM(CB38:CE38)/BZ38,0) -> 3.34105751 | CN38: 0 | CO38: 0 | CP38: 0 | CQ38: 0 | CR38: 556.5 | CS38: 27.7 | CT38: =SUM(AX38,BS38,CK38,CP38) -> 775.7 | CU38: 0.1 | CV38: 556.5 | CW38: 27.7 | CX38: 775.7 | CY38: 0.1 | CZ38: 0.2416258652 | DA38: 0.00227231179 | DB38: 0.7560215628 | DC38: 8.026018225e-05 | DD38: 0 | DE38: 0 | DF38: 0 | DG38: 0 | DH38: 0.2462153395 | DI38: 0.002045080611 | DJ38: 0.7516673457 | DK38: 7.223416403e-05 | DL38: 27.1 | DM38: 0.2 | DN38: 82.7 | DO38: 0 | DP38: 27.1 | DQ38: 0.2 | DR38: 82.7 | DS38: 0 | DT38: 27.1 | DU38: 0.2 | DV38: =ROUND(DR38,1)+0.1 -> 82.8 | DW38: 0 | DX38: -0.1 | DY38: amend | DZ38: 82.8 | EA38: 27.1 | EB38: 0.2 | EC38: 82.7 | ED38: 0 | EE38: 0 | EF38: 583.6 | EG38: 27.9 | EH38: 858.4 | EI38: 0.1 | EJ38: 583.6 | EK38: 27.9 | EL38: 858.4 | EM38: 0.1 | EN38: 0 | EO38: 0
A39: LEZ/07. | B39: 20030 | C39: -0.0495 | D39: 19039 | E39: =VLOOKUP(A39,'All stocks'!$A$5:$B$202,2,FALSE) -> 4306 | F39: 4093 | G39: 0.143364 | H39: 1 | I39: 0.215 | J39: 0.1434 | K39: 2730 | L39: 1363 | M39: 0 | N39: 0 | O39: 1363 | P39: 0.00071 | Q39: 13.5 | R39: 0.00071 | S39: 0 | T39: 0 | U39: 13.5 | V39: 0.07089 | W39: 0 | X39: 1349.5 | Y39: 0 | Z39: 0 | AA39: 2730 | AB39: 0.015 | AC39: 0 | AD39: 0 | AE39: =SUMIFS('UK FQA'!D:D,'UK FQA'!B:B,A39,'UK FQA'!A:A,'Main apportion'!$AE$6) -> 28504 | AF39: =SUMIFS('UK FQA'!D:D,'UK FQA'!B:B,A39,'UK FQA'!A:A,'Main apportion'!$AF$6) -> 163 | AG39: =SUMIFS('FA FQA'!G:G,'FA FQA'!E:E,'Main apportion'!A39,'FA FQA'!D:D,'Main apportion'!$AG$6) -> 41 | AH39: 40.95 | AI39: 15.61149312 | AJ39: 41 | AK39: 0.9341 | AL39: 0.0608 | AM39: 0.0034 | AN39: 0.0017 | AO39: 38.3 | AP39: 2.5 | AQ39: 0.1 | AR39: 0.1 | AS39: 0 | AT39: 0 | AU39: 0 | AV39: 38.3 | AW39: 2.5 | AX39: 0.1 | AY39: 0.1 | AZ39: 0 | BA39: =SUMIFS('UK FQA'!D:D,'UK FQA'!B:B,'Main apportion'!A39,'UK FQA'!A:A,'Main apportion'!$BA$6) -> 0 | BB39: 0 | BC39: 0 | BD39: 3.926817289 | BE39: 3.9 | BF39: =SUMIFS('FA FQA'!$G:$G,'FA FQA'!$E:$E,'Main apportion'!$A39,'FA FQA'!$B:$B,'Main apportion'!BF$2,'FA FQA'!$D:$D,'Main apportion'!BF$3) -> 40 | BG39: =SUMIFS('FA FQA'!$G:$G,'FA FQA'!$E:$E,'Main apportion'!$A39,'FA FQA'!$B:$B,'Main apportion'!BG$2,'FA FQA'!$D:$D,'Main apportion'!BG$3) -> 0 | BH39: =SUMIFS('FA FQA'!$G:$G,'FA FQA'!$E:$E,'Main apportion'!$A39,'FA FQA'!$B:$B,'Main apportion'!BH$2,'FA FQA'!$D:$D,'Main apportion'!BH$3) -> 1 | BI39: =SUMIFS('FA FQA'!$G:$G,'FA FQA'!$E:$E,'Main apportion'!$A39,'FA FQA'!$B:$B,'Main apportion'!BI$2,'FA FQA'!$D:$D,'Main apportion'!BI$3) -> 0 | BJ39: 3.8 | BK39: 0 | BL39: 0.1 | BM39: 0 | BN39: 0 | BO39: 0 | BP39: 0 | BQ39: 3.8 | BR39: 0 | BS39: 0.1 | BT39: 0 | BU39: 0 | BV39: =SUMIFS('FA FQA'!$G:$G,'FA FQA'!$E:$E,'Main apportion'!$A39,'FA FQA'!$B:$B,'Main apportion'!BV$2,'FA FQA'!$D:$D,'Main apportion'!BV$3) -> 23549 | BW39: =SUMIFS('FA FQA'!$G:$G,'FA FQA'!$E:$E,'Main apportion'!$A39,'FA FQA'!$B:$B,'Main apportion'!BW$2,'FA FQA'!$D:$D,'Main apportion'!BW$3) -> 363 | BX39: =SUMIFS('FA FQA'!$G:$G,'FA FQA'!$E:$E,'Main apportion'!$A39,'FA FQA'!$B:$B,'Main apportion'!BX$2,'FA FQA'!$D:$D,'Main apportion'!BX$3) -> 1753 | BY39: =SUMIFS('FA FQA'!$G:$G,'FA FQA'!$E:$E,'Main apportion'!$A39,'FA FQA'!$B:$B,'Main apportion'!BY$2,'FA FQA'!$D:$D,'Main apportion'!BY$3) -> 2635 | BZ39: 28300 | CA39: 2685.1 | CB39: 2234.3 | CC39: 34.4 | CD39: 166.3 | CE39: 250 | CF39: 0.1 | CG39: amend | CH39: 2234.3 | CI39: 2234.4 | CJ39: 34.4 | CK39: 166.3 | CL39: 250 | CM39: 9.487632509 | CN39: 0 | CO39: 0 | CP39: 0 | CQ39: 0 | CR39: 2276.5 | CS39: 36.9 | CT39: 166.5 | CU39: 250.1 | CV39: 2276.5 | CW39: 36.9 | CX39: 166.5 | CY39: 250.1 | CZ39: 0.8555472984 | DA39: 0.002398168388 | DB39: 0.08546936987 | DC39: 0.05658516331 | DD39: 11.5 | DE39: 0 | DF39: 1.2 | DG39: 0.8 | DH39: 0.8603554791 | DI39: 0.002175819071 | DJ39: 0.07692371903 | DK39: 0.06054498278 | DL39: 1161 | DM39: 2.9 | DN39: 103.8 | DO39: 81.7 | DP39: 1172.5 | DQ39: 2.9 | DR39: 105 | DS39: 82.5 | DT39: 1172.5 | DU39: 2.9 | DV39: 105 | DW39: 82.5 | DX39: 0.1 | DY39: amend | DZ39: 1172.5 | EA39: =IF(DT39=$DZ39,DT39+$DX39,DT39) -> 1172.6 | EB39: 2.9 | EC39: 105 | ED39: 82.5 | EE39: 0 | EF39: 3449.1 | EG39: 39.8 | EH39: 271.5 | EI39: 332.6 | EJ39: 3449.1 | EK39: 39.8 | EL39: 271.5 | EM39: 332.6 | EN39: 0 | EO39: 0
A40: LEZ/2AC4-C | B40: 2895 | C40: 0 | D40: 2895 | E40: =VLOOKUP(A40,'All stocks'!$A$5:$B$202,2,FALSE) -> 2787 | F40: 2787 | G40: 0.962564 | H40: 1 | I40: 0.9626 | J40: 0.9626 | K40: 2787 | L40: 0 | M40: 0 | N40: 0 | O40: 0 | P40: 0 | Q40: 0 | R40: 0 | S40: 0 | T40: 0 | U40: 0 | V40: 0 | W40: 0 | X40: 0 | Y40: 0 | Z40: 0 | AA40: 2787 | AB40: 0 | AC40: 0 | AD40: 0 | AE40: =SUMIFS('UK FQA'!D:D,'UK FQA'!B:B,A40,'UK FQA'!A:A,'Main apportion'!$AE$6) -> 25650 | AF40: =SUMIFS('UK FQA'!D:D,'UK FQA'!B:B,A40,'UK FQA'!A:A,'Main apportion'!$AF$6) -> 20 | AG40: =SUMIFS('FA FQA'!G:G,'FA FQA'!E:E,'Main apportion'!A40,'FA FQA'!D:D,'Main apportion'!$AG$6) -> 0 | AH40: 0 | AI40: 2.173099415 | AJ40: 2.2 | AK40: 0.0375 | AL40: 0 | AM40: 0.9625 | AN40: 0 | AO40: 0.1 | AP40: 0 | AQ40: 2.1 | AR40: 0 | AS40: 0 | AT40: 0 | AU40: 0 | AV40: 0.1 | AW40: 0 | AX40: 2.1 | AY40: 0 | AZ40: 0 | BA40: =SUMIFS('UK FQA'!D:D,'UK FQA'!B:B,'Main apportion'!A40,'UK FQA'!A:A,'Main apportion'!$BA$6) -> 0 | BB40: 0 | BC40: 0 | BD40: 0 | BE40: 0 | BF40: =SUMIFS('FA FQA'!$G:$G,'FA FQA'!$E:$E,'Main apportion'!$A40,'FA FQA'!$B:$B,'Main apportion'!BF$2,'FA FQA'!$D:$D,'Main apportion'!BF$3) -> 0 | BG40: =SUMIFS('FA FQA'!$G:$G,'FA FQA'!$E:$E,'Main apportion'!$A40,'FA FQA'!$B:$B,'Main apportion'!BG$2,'FA FQA'!$D:$D,'Main apportion'!BG$3) -> 0 | BH40: =SUMIFS('FA FQA'!$G:$G,'FA FQA'!$E:$E,'Main apportion'!$A40,'FA FQA'!$B:$B,'Main apportion'!BH$2,'FA FQA'!$D:$D,'Main apportion'!BH$3) -> 0 | BI40: =SUMIFS('FA FQA'!$G:$G,'FA FQA'!$E:$E,'Main apportion'!$A40,'FA FQA'!$B:$B,'Main apportion'!BI$2,'FA FQA'!$D:$D,'Main apportion'!BI$3) -> 0 | BJ40: 0 | BK40: 0 | BL40: 0 | BM40: 0 | BN40: 0 | BO40: 0 | BP40: 0 | BQ40: 0 | BR40: 0 | BS40: 0 | BT40: 0 | BU40: 0 | BV40: =SUMIFS('FA FQA'!$G:$G,'FA FQA'!$E:$E,'Main apportion'!$A40,'FA FQA'!$B:$B,'Main apportion'!BV$2,'FA FQA'!$D:$D,'Main apportion'!BV$3) -> 4085 | BW40: =SUMIFS('FA FQA'!$G:$G,'FA FQA'!$E:$E,'Main apportion'!$A40,'FA FQA'!$B:$B,'Main apportion'!BW$2,'FA FQA'!$D:$D,'Main apportion'!BW$3) -> 135 | BX40: =SUMIFS('FA FQA'!$G:$G,'FA FQA'!$E:$E,'Main apportion'!$A40,'FA FQA'!$B:$B,'Main apportion'!BX$2,'FA FQA'!$D:$D,'Main apportion'!BX$3) -> 21410 | BY40: =SUMIFS('FA FQA'!$G:$G,'FA FQA'!$E:$E,'Main apportion'!$A40,'FA FQA'!$B:$B,'Main apportion'!BY$2,'FA FQA'!$D:$D,'Main apportion'!BY$3) -> 0 | BZ40: 25630 | CA40: 2784.8 | CB40: 443.9 | CC40: 14.7 | CD40: 2326.3 | CE40: 0 | CF40: -0.1 | CG40: amend | CH40: 2326.3 | CI40: 443.9 | CJ40: 14.7 | CK40: 2326.2 | CL40: 0 | CM40: 10.86578229 | CN40: 0 | CO40: 0 | CP40: 0 | CQ40: 0 | CR40: 444 | CS40: 14.7 | CT40: 2328.3 | CU40: 0 | CV40: 444 | CW40: 14.7 | CX40: 2328.3 | CY40: 0 | CZ40: 0.04400208692 | DA40: 0.0001635515105 | DB40: 0.9558343616 | DC40: 0 | DD40: 0 | DE40: 0 | DF40: 0 | DG40: 0 | DH40: 0.03985403228 | DI40: 0.0001471963595 | DJ40: 0.9599987714 | DK40: 0 | DL40: 0 | DM40: 0 | DN40: 0 | DO40: 0 | DP40: 0 | DQ40: 0 | DR40: 0 | DS40: 0 | DT40: 0 | DU40: 0 | DV40: 0 | DW40: 0 | DX40: 0 | DY40: 0 | DZ40: 0 | EA40: 0 | EB40: 0 | EC40: 0 | ED40: 0 | EE40: 0 | EF40: 444 | EG40: 14.7 | EH40: 2328.3 | EI40: 0 | EJ40: 444 | EK40: 14.7 | EL40: 2328.3 | EM40: 0 | EN40: 0 | EO40: 0
A41: LEZ/56-14 | B41: 5847 | C41: 0 | D41: 5847 | E41: =VLOOKUP(A41,'All stocks'!$A$5:$B$202,2,FALSE) -> 2593 | F41: =IF(C41<0,ROUND(D41*I41,0),E41) -> 2593 | G41: 0.313636 | H41: 1 | I41: 0.4435 | J41: 0.3136 | K41: 1834 | L41: =IFERROR(ROUND(IFERROR(IF(F41-K41<=0,0,F41-K41),""),0),0) -> 759 | M41: 0 | N41: 0 | O41: =IFERROR(IF(L41-N41<>L41,L41-N41,L41),0) -> 759 | P41: 0 | Q41: 0 | R41: 0 | S41: 0 | T41: 0 | U41: 0 | V41: 0.1299 | W41: 0 | X41: 759 | Y41: 0 | Z41: 0 | AA41: 1834 | AB41: 0 | AC41: 5 | AD41: 0 | AE41: =SUMIFS('UK FQA'!D:D,'UK FQA'!B:B,A41,'UK FQA'!A:A,'Main apportion'!$AE$6) -> 14802 | AF41: =SUMIFS('UK FQA'!D:D,'UK FQA'!B:B,A41,'UK FQA'!A:A,'Main apportion'!$AF$6) -> 1 | AG41: =SUMIFS('FA FQA'!G:G,'FA FQA'!E:E,'Main apportion'!A41,'FA FQA'!D:D,'Main apportion'!$AG$6) -> 12 | AH41: 0 | AI41: 0.1239021754 | AJ41: 5 | AK41: 0 | AL41: 0 | AM41: 1 | AN41: 0 | AO41: 0 | AP41: 0 | AQ41: 5 | AR41: 0 | AS41: 0 | AT41: 0 | AU41: 0 | AV41: 0 | AW41: 0 | AX41: 5 | AY41: 0 | AZ41: 0 | BA41: =SUMIFS('UK FQA'!D:D,'UK FQA'!B:B,'Main apportion'!A41,'UK FQA'!A:A,'Main apportion'!$BA$6) -> 0 | BB41: 0 | BC41: 0 | BD41: 1.486826105 | BE41: 1.5 | BF41: =SUMIFS('FA FQA'!$G:$G,'FA FQA'!$E:$E,'Main apportion'!$A41,'FA FQA'!$B:$B,'Main apportion'!BF$2,'FA FQA'!$D:$D,'Main apportion'!BF$3) -> 0 | BG41: =SUMIFS('FA FQA'!$G:$G,'FA FQA'!$E:$E,'Main apportion'!$A41,'FA FQA'!$B:$B,'Main apportion'!BG$2,'FA FQA'!$D:$D,'Main apportion'!BG$3) -> 0 | BH41: =SUMIFS('FA FQA'!$G:$G,'FA FQA'!$E:$E,'Main apportion'!$A41,'FA FQA'!$B:$B,'Main apportion'!BH$2,'FA FQA'!$D:$D,'Main apportion'!BH$3) -> 12 | BI41: =SUMIFS('FA FQA'!$G:$G,'FA FQA'!$E:$E,'Main apportion'!$A41,'FA FQA'!$B:$B,'Main apportion'!BI$2,'FA FQA'!$D:$D,'Main apportion'!BI$3) -> 0 | BJ41: 0 | BK41: 0 | BL41: 1.5 | BM41: 0 | BN41: 0 | BO41: 0 | BP41: 0 | BQ41: 0 | BR41: 0 | BS41: 1.5 | BT41: 0 | BU41: 0 | BV41: =SUMIFS('FA FQA'!$G:$G,'FA FQA'!$E:$E,'Main apportion'!$A41,'FA FQA'!$B:$B,'Main apportion'!BV$2,'FA FQA'!$D:$D,'Main apportion'!BV$3) -> 4697 | BW41: =SUMIFS('FA FQA'!$G:$G,'FA FQA'!$E:$E,'Main apportion'!$A41,'FA FQA'!$B:$B,'Main apportion'!BW$2,'FA FQA'!$D:$D,'Main apportion'!BW$3) -> 523 | BX41: =SUMIFS('FA FQA'!$G:$G,'FA FQA'!$E:$E,'Main apportion'!$A41,'FA FQA'!$B:$B,'Main apportion'!BX$2,'FA FQA'!$D:$D,'Main apportion'!BX$3) -> 9569 | BY41: =SUMIFS('FA FQA'!$G:$G,'FA FQA'!$E:$E,'Main apportion'!$A41,'FA FQA'!$B:$B,'Main apportion'!BY$2,'FA FQA'!$D:$D,'Main apportion'!BY$3) -> 0 | BZ41: 14789 | CA41: 1827.5 | CB41: 580.4 | CC41: 64.6 | CD41: =ROUND(IFERROR(CA41*(BX41/$BZ41),0),1) -> 1182.5 | CE41: 0 | CF41: 0 | CG41: 0 | CH41: 0 | CI41: 580.4 | CJ41: 64.6 | CK41: 1182.5 | CL41: 0 | CM41: 12.35715735 | CN41: 0 | CO41: 0 | CP41: 0 | CQ41: 0 | CR41: 580.4 | CS41: 64.6 | CT41: 1189 | CU41: 0 | CV41: 580.4 | CW41: 64.6 | CX41: 1189 | CY41: 0 | CZ41: 0.03168023995 | DA41: 0.002874192534 | DB41: 0.9654454842 | DC41: 8.334036587e-08 | DD41: 0 | DE41: 0 | DF41: 0 | DG41: 0 | DH41: 0.02851221596 | DI41: 0.002601701554 | DJ41: 0.9688860075 | DK41: 7.500632928e-08 | DL41: 21.6 | DM41: 2 | DN41: 735.4 | DO41: 0 | DP41: 21.6 | DQ41: 2 | DR41: 735.4 | DS41: 0 | DT41: =ROUND(DP41,1) -> 21.6 | DU41: =ROUND(DQ41,1) -> 2 | DV41: =ROUND(DR41,1) -> 735.4 | DW41: =ROUND(DS41,1) -> 0 | DX41: =L41-(SUM(DT41:DW41)) -> 0 | DY41: 0 | DZ41: 0 | EA41: 21.6 | EB41: 2 | EC41: 735.4 | ED41: 0 | EE41: =L41-SUM(EA41:ED41) -> 0 | EF41: 602 | EG41: 66.6 | EH41: 1924.4 | EI41: 0 | EJ41: 602 | EK41: 66.6 | EL41: 1924.4 | EM41: 0 | EN41: 0 | EO41: 0
A42: LIN/04-C. | B42: 2266 | C42: -0.0274 | D42: 2204 | E42: =VLOOKUP(A42,'All stocks'!$A$5:$B$202,2,FALSE) -> 1813 | F42: 1763 | G42: 0.769396 | H42: 1 | I42: 0.8 | J42: 0.7694 | K42: 1696 | L42: 67 | M42: 0 | N42: 0 | O42: 67 | P42: 0.009073 | Q42: 20 | R42: 0.009073 | S42: 0 | T42: 0 | U42: 20 | V42: 0.021527 | W42: 0 | X42: 47 | Y42: 0 | Z42: 0 | AA42: 1696 | AB42: 0 | AC42: 0 | AD42: 0 | AE42: =SUMIFS('UK FQA'!D:D,'UK FQA'!B:B,A42,'UK FQA'!A:A,'Main apportion'!$AE$6) -> 36674 | AF42: =SUMIFS('UK FQA'!D:D,'UK FQA'!B:B,A42,'UK FQA'!A:A,'Main apportion'!$AF$6) -> 59 | AG42: =SUMIFS('FA FQA'!G:G,'FA FQA'!E:E,'Main apportion'!A42,'FA FQA'!D:D,'Main apportion'!$AG$6) -> 49 | AH42: 0 | AI42: 2.728472487 | AJ42: 2.7 | AK42: 0.8053 | AL42: 0.0002 | AM42: 0.1883 | AN42: 0.0062 | AO42: 2.2 | AP42: 0 | AQ42: 0.5 | AR42: 0 | AS42: 0 | AT42: 0 | AU42: 0 | AV42: 2.2 | AW42: 0 | AX42: 0.5 | AY42: 0 | AZ42: 0 | BA42: =SUMIFS('UK FQA'!D:D,'UK FQA'!B:B,'Main apportion'!A42,'UK FQA'!A:A,'Main apportion'!$BA$6) -> 0 | BB42: 0 | BC42: 0 | BD42: 2.266019523 | BE42: 2.3 | BF42: =SUMIFS('FA FQA'!$G:$G,'FA FQA'!$E:$E,'Main apportion'!$A42,'FA FQA'!$B:$B,'Main apportion'!BF$2,'FA FQA'!$D:$D,'Main apportion'!BF$3) -> 25 | BG42: =SUMIFS('FA FQA'!$G:$G,'FA FQA'!$E:$E,'Main apportion'!$A42,'FA FQA'!$B:$B,'Main apportion'!BG$2,'FA FQA'!$D:$D,'Main apportion'!BG$3) -> 0 | BH42: =SUMIFS('FA FQA'!$G:$G,'FA FQA'!$E:$E,'Main apportion'!$A42,'FA FQA'!$B:$B,'Main apportion'!BH$2,'FA FQA'!$D:$D,'Main apportion'!BH$3) -> 24 | BI42: =SUMIFS('FA FQA'!$G:$G,'FA FQA'!$E:$E,'Main apportion'!$A42,'FA FQA'!$B:$B,'Main apportion'!BI$2,'FA FQA'!$D:$D,'Main apportion'!BI$3) -> 0 | BJ42: 1.2 | BK42: 0 | BL42: 1.1 | BM42: 0 | BN42: 0 | BO42: 0 | BP42: 0 | BQ42: 1.2 | BR42: 0 | BS42: 1.1 | BT42: 0 | BU42: 0 | BV42: =SUMIFS('FA FQA'!$G:$G,'FA FQA'!$E:$E,'Main apportion'!$A42,'FA FQA'!$B:$B,'Main apportion'!BV$2,'FA FQA'!$D:$D,'Main apportion'!BV$3) -> 5420 | BW42: =SUMIFS('FA FQA'!$G:$G,'FA FQA'!$E:$E,'Main apportion'!$A42,'FA FQA'!$B:$B,'Main apportion'!BW$2,'FA FQA'!$D:$D,'Main apportion'!BW$3) -> 415 | BX42: =SUMIFS('FA FQA'!$G:$G,'FA FQA'!$E:$E,'Main apportion'!$A42,'FA FQA'!$B:$B,'Main apportion'!BX$2,'FA FQA'!$D:$D,'Main apportion'!BX$3) -> 30731 | BY42: =SUMIFS('FA FQA'!$G:$G,'FA FQA'!$E:$E,'Main apportion'!$A42,'FA FQA'!$B:$B,'Main apportion'!BY$2,'FA FQA'!$D:$D,'Main apportion'!BY$3) -> 0 | BZ42: 36566 | CA42: 1691 | CB42: 250.6 | CC42: 19.2 | CD42: =ROUND(IFERROR(CA42*(BX42/$BZ42),0),1) -> 1421.2 | CE42: 0 | CF42: 0 | CG42: 0 | CH42: 0 | CI42: 250.6 | CJ42: 19.2 | CK42: 1421.2 | CL42: 0 | CM42: 4.624514576 | CN42: 0 | CO42: 0 | CP42: 0 | CQ42: 0 | CR42: 254 | CS42: 19.2 | CT42: 1422.8 | CU42: 0 | CV42: 254 | CW42: 19.2 | CX42: 1422.8 | CY42: 0 | CZ42: 0.1252724444 | DA42: 0.0004673727378 | DB42: 0.874190375 | DC42: 6.980787528e-05 | DD42: 2.5 | DE42: 0 | DF42: 17.5 | DG42: 0 | DH42: 0.1131836311 | DI42: 0.000420635464 | DJ42: 0.8863329063 | DK42: 6.282708775e-05 | DL42: 5.3 | DM42: 0 | DN42: 41.7 | DO42: 0 | DP42: 7.8 | DQ42: 0 | DR42: 59.2 | DS42: 0 | DT42: 7.8 | DU42: 0 | DV42: 59.2 | DW42: 0 | DX42: 0 | DY42: 0 | DZ42: 0 | EA42: 7.8 | EB42: 0 | EC42: =IF(DV42=$DZ42,DV42+$DX42,DV42) -> 59.2 | ED42: 0 | EE42: 0 | EF42: 261.8 | EG42: 19.2 | EH42: 1482 | EI42: 0 | EJ42: 261.8 | EK42: 19.2 | EL42: 1482 | EM42: 0 | EN42: 0 | EO42: 0
A43: LIN/6X14. | B43: 10907 | C43: 0 | D43: 10907 | E43: =VLOOKUP(A43,'All stocks'!$A$5:$B$202,2,FALSE) -> 3765 | F43: 3765 | G43: 0.3383 | H43: 1 | I43: 0.38 | J43: 0.3383 | K43: 3690 | L43: 75 | M43: 0 | N43: 0 | O43: 75 | P43: 0 | Q43: 0 | R43: 0 | S43: 0 | T43: 0 | U43: 0 | V43: 0.0417 | W43: 0 | X43: 75 | Y43: 0 | Z43: 0 | AA43: 3690 | AB43: 0 | AC43: 0 | AD43: 0 | AE43: =SUMIFS('UK FQA'!D:D,'UK FQA'!B:B,A43,'UK FQA'!A:A,'Main apportion'!$AE$6) -> 55330 | AF43: =SUMIFS('UK FQA'!D:D,'UK FQA'!B:B,A43,'UK FQA'!A:A,'Main apportion'!$AF$6) -> 481 | AG43: =SUMIFS('FA FQA'!G:G,'FA FQA'!E:E,'Main apportion'!A43,'FA FQA'!D:D,'Main apportion'!$AG$6) -> 259 | AH43: 0 | AI43: 32.07825773 | AJ43: 32.1 | AK43: 0.9909 | AL43: 0.0022 | AM43: 0.0043 | AN43: 0.0026 | AO43: 31.8 | AP43: 0.1 | AQ43: 0.1 | AR43: 0.1 | AS43: 0 | AT43: 0 | AU43: 0 | AV43: =IF(AO43=$AU43,AO43+$AS43,AO43) -> 31.8 | AW43: 0.1 | AX43: 0.1 | AY43: 0.1 | AZ43: 0 | BA43: =SUMIFS('UK FQA'!D:D,'UK FQA'!B:B,'Main apportion'!A43,'UK FQA'!A:A,'Main apportion'!$BA$6) -> 0 | BB43: 0 | BC43: 0 | BD43: 17.27290801 | BE43: 17.3 | BF43: =SUMIFS('FA FQA'!$G:$G,'FA FQA'!$E:$E,'Main apportion'!$A43,'FA FQA'!$B:$B,'Main apportion'!BF$2,'FA FQA'!$D:$D,'Main apportion'!BF$3) -> 155 | BG43: =SUMIFS('FA FQA'!$G:$G,'FA FQA'!$E:$E,'Main apportion'!$A43,'FA FQA'!$B:$B,'Main apportion'!BG$2,'FA FQA'!$D:$D,'Main apportion'!BG$3) -> 0 | BH43: =SUMIFS('FA FQA'!$G:$G,'FA FQA'!$E:$E,'Main apportion'!$A43,'FA FQA'!$B:$B,'Main apportion'!BH$2,'FA FQA'!$D:$D,'Main apportion'!BH$3) -> 99 | BI43: =SUMIFS('FA FQA'!$G:$G,'FA FQA'!$E:$E,'Main apportion'!$A43,'FA FQA'!$B:$B,'Main apportion'!BI$2,'FA FQA'!$D:$D,'Main apportion'!BI$3) -> 5 | BJ43: =ROUND(IFERROR($BE43*(BF43/$AG43),0),1) -> 10.4 | BK43: 0 | BL43: 6.6 | BM43: 0.3 | BN43: 0 | BO43: 0 | BP43: 0 | BQ43: 10.4 | BR43: 0 | BS43: 6.6 | BT43: 0.3 | BU43: 0 | BV43: =SUMIFS('FA FQA'!$G:$G,'FA FQA'!$E:$E,'Main apportion'!$A43,'FA FQA'!$B:$B,'Main apportion'!BV$2,'FA FQA'!$D:$D,'Main apportion'!BV$3) -> 19481 | BW43: =SUMIFS('FA FQA'!$G:$G,'FA FQA'!$E:$E,'Main apportion'!$A43,'FA FQA'!$B:$B,'Main apportion'!BW$2,'FA FQA'!$D:$D,'Main apportion'!BW$3) -> 1683 | BX43: =SUMIFS('FA FQA'!$G:$G,'FA FQA'!$E:$E,'Main apportion'!$A43,'FA FQA'!$B:$B,'Main apportion'!BX$2,'FA FQA'!$D:$D,'Main apportion'!BX$3) -> 33279 | BY43: =SUMIFS('FA FQA'!$G:$G,'FA FQA'!$E:$E,'Main apportion'!$A43,'FA FQA'!$B:$B,'Main apportion'!BY$2,'FA FQA'!$D:$D,'Main apportion'!BY$3) -> 146 | BZ43: 54589 | CA43: 3640.6 | CB43: 1299.2 | CC43: 112.2 | CD43: =ROUND(IFERROR(CA43*(BX43/$BZ43),0),1) -> 2219.4 | CE43: 9.7 | CF43: 0.1 | CG43: amend | CH43: 2219.4 | CI43: 1299.2 | CJ43: 112.2 | CK43: 2219.5 | CL43: 9.7 | CM43: 6.668925974 | CN43: 0 | CO43: 0 | CP43: 0 | CQ43: 0 | CR43: 1341.4 | CS43: 112.3 | CT43: 2226.2 | CU43: 10.1 | CV43: 1341.4 | CW43: 112.3 | CX43: 2226.2 | CY43: 10.1 | CZ43: 0.2331822075 | DA43: 0.007179293925 | DB43: 0.7573932062 | DC43: 0.002245292431 | DD43: 0 | DE43: 0 | DF43: 0 | DG43: 0 | DH43: 0.2289179694 | DI43: 0.006701055137 | DJ43: 0.7603101696 | DK43: 0.004070805804 | DL43: 17.2 | DM43: 0.5 | DN43: 57 | DO43: 0.3 | DP43: 17.2 | DQ43: 0.5 | DR43: 57 | DS43: 0.3 | DT43: 17.2 | DU43: 0.5 | DV43: 57 | DW43: 0.3 | DX43: 0 | DY43: 0 | DZ43: 0 | EA43: =IF(DT43=$DZ43,DT43+$DX43,DT43) -> 17.2 | EB43: =IF(DU43=$DZ43,DU43+$DX43,DU43) -> 0.5 | EC43: =IF(DV43=$DZ43,DV43+$DX43,DV43) -> 57 | ED43: =IF(DW43=$DZ43,DW43+$DX43,DW43) -> 0.3 | EE43: 0 | EF43: 1358.6 | EG43: 112.8 | EH43: 2283.2 | EI43: 10.4 | EJ43: 1358.6 | EK43: 112.8 | EL43: 2283.2 | EM43: 10.4 | EN43: 0 | EO43: 4.547473509e-13
A44: mac.27.nea | B44: =576958 -> 576958 | C44: 0 | D44: 576958 | E44: =E45+E46 -> 187009 | F44: 187009 | G44: 0.473667 | H44: 0.4954 | J44: =ROUND((G45*H45)+(G46*H46),4) -> 0.2345 | K44: 135297 | L44: =IFERROR(ROUND(IFERROR(IF(F44-K44<=0,0,F44-K44),""),0),0) -> 51712 | M44: =50+150 -> 200 | N44: 200 | O44: 51512 | P44: 0.004199 | Q44: 2422.6 | R44: 0 | S44: 0 | T44: 0 | U44: 0 | V44: 0 | W44: 1 | X44: 51512 | AS44: 0 | AT44: 0 | AU44: 0 | AV44: 0 | AW44: 0 | AX44: 0 | AY44: 0 | AZ44: 0 | BF44: =SUMIFS('FA FQA'!$G:$G,'FA FQA'!$E:$E,'Main apportion'!$A44,'FA FQA'!$B:$B,'Main apportion'!BF$2,'FA FQA'!$D:$D,'Main apportion'!BF$3) -> 0 | BN44: 0 | BP44: 0 | BQ44: 0 | BR44: 0 | BS44: 0 | BT44: 0 | BU44: 0 | CZ44: 0.1125722023 | DA44: 0.07223430717 | DB44: 0.8151891381 | DC44: 4.352430816e-06 | DD44: 0 | DE44: 0 | DF44: 0 | DG44: 0 | DH44: 0.1028892821 | DI44: 0.06501453928 | DJ44: 0.8320961786 | DK44: 0 | DL44: 5300 | DM44: 3349 | DN44: 42862.9 | DO44: 200 | DP44: 5300 | DQ44: 3349 | DR44: 42862.9 | DS44: 0 | DT44: 5300 | DU44: 3349 | DV44: 42862.9 | DW44: 0 | DX44: =O44-(SUM(DT44:DW44)) -> 0.1 | DY44: amend | DZ44: 42862.9 | EA44: 5300 | EB44: =IF(DU44=$DZ44,DU44+$DX44,DU44)+IF(N44>150,150,0) -> 3499 | EC44: =IF(DV44=$DZ44,DV44+$DX44,DV44) -> 42863 | ED44: =IF(DW44=$DZ44,DW44+$DX44,DW44)+IF(N44>50,50,0) -> 50 | EE44: 0
A45: MAC/2A34. | B45: =576958 -> 576958 | C45: 0 | D45: 576958 | E45: =VLOOKUP(A45,'All stocks'!$A$5:$B$202,2,FALSE) -> 1415 | F45: 1415 | G45: 0.053256 | H45: 0.0324 | I45: 0.066 | J45: =ROUND(IFERROR(G45*H45,""),4) -> 0.0017 | K45: 981 | L45: =IFERROR(ROUND(IFERROR(IF(F45-K45<=0,0,F45-K45),""),0),0) -> 434 | M45: 0 | N45: 0 | O45: 434 | Y45: =ROUND(MAX(300,0.232*K45),1) -> 300 | Z45: 0 | AA45: =K45-Y45-Z45 -> 681 | AB45: 0 | AC45: 0 | AD45: 0 | AE45: =SUMIFS('UK FQA'!D:D,'UK FQA'!B:B,A45,'UK FQA'!A:A,'Main apportion'!$AE$6) -> 13018 | AF45: =SUMIFS('UK FQA'!D:D,'UK FQA'!B:B,A45,'UK FQA'!A:A,'Main apportion'!$AF$6) -> 0 | AG45: =SUMIFS('FA FQA'!G:G,'FA FQA'!E:E,'Main apportion'!A45,'FA FQA'!D:D,'Main apportion'!$AG$6) -> 0 | AH45: =AA45*AB45 -> 0 | AI45: =IFERROR(AA45*(AF45/AE45),0) -> 0 | AJ45: 0 | AK45: 0.0537 | AL45: 0.0003 | AM45: 0.9417 | AN45: 0.0043 | AO45: 0 | AP45: 0 | AQ45: 0 | AR45: 0 | AS45: 0 | AT45: 0 | AU45: 0 | AV45: 0 | AW45: 0 | AX45: 0 | AY45: 0 | AZ45: 0 | BA45: =SUMIFS('UK FQA'!D:D,'UK FQA'!B:B,'Main apportion'!A45,'UK FQA'!A:A,'Main apportion'!$BA$6) -> 0 | BB45: 0 | BC45: =AA45*AD45 -> 0 | BD45: =IFERROR(AA45*(AG45/AE45),0) -> 0 | BE45: 0 | BF45: =SUMIFS('FA FQA'!$G:$G,'FA FQA'!$E:$E,'Main apportion'!$A45,'FA FQA'!$B:$B,'Main apportion'!BF$2,'FA FQA'!$D:$D,'Main apportion'!BF$3) -> 0 | BG45: =SUMIFS('FA FQA'!$G:$G,'FA FQA'!$E:$E,'Main apportion'!$A45,'FA FQA'!$B:$B,'Main apportion'!BG$2,'FA FQA'!$D:$D,'Main apportion'!BG$3) -> 0 | BH45: =SUMIFS('FA FQA'!$G:$G,'FA FQA'!$E:$E,'Main apportion'!$A45,'FA FQA'!$B:$B,'Main apportion'!BH$2,'FA FQA'!$D:$D,'Main apportion'!BH$3) -> 0 | BI45: =SUMIFS('FA FQA'!$G:$G,'FA FQA'!$E:$E,'Main apportion'!$A45,'FA FQA'!$B:$B,'Main apportion'!BI$2,'FA FQA'!$D:$D,'Main apportion'!BI$3) -> 0 | BJ45: =ROUND(IFERROR($BE45*(BF45/$AG45),0),1) -> 0 | BK45: =ROUND(IFERROR($BE45*(BG45/$AG45),0),1) -> 0 | BL45: =ROUND(IFERROR($BE45*(BH45/$AG45),0),1) -> 0 | BM45: =ROUND(IFERROR($BE45*(BI45/$AG45),0),1) -> 0 | BN45: 0 | BO45: 0 | BP45: 0 | BQ45: 0 | BR45: 0 | BS45: 0 | BT45: 0 | BU45: 0 | BV45: =SUMIFS('FA FQA'!$G:$G,'FA FQA'!$E:$E,'Main apportion'!$A45,'FA FQA'!$B:$B,'Main apportion'!BV$2,'FA FQA'!$D:$D,'Main apportion'!BV$3) -> 2800 | BW45: =SUMIFS('FA FQA'!$G:$G,'FA FQA'!$E:$E,'Main apportion'!$A45,'FA FQA'!$B:$B,'Main apportion'!BW$2,'FA FQA'!$D:$D,'Main apportion'!BW$3) -> 664 | BX45: =SUMIFS('FA FQA'!$G:$G,'FA FQA'!$E:$E,'Main apportion'!$A45,'FA FQA'!$B:$B,'Main apportion'!BX$2,'FA FQA'!$D:$D,'Main apportion'!BX$3) -> 9554 | BY45: =SUMIFS('FA FQA'!$G:$G,'FA FQA'!$E:$E,'Main apportion'!$A45,'FA FQA'!$B:$B,'Main apportion'!BY$2,'FA FQA'!$D:$D,'Main apportion'!BY$3) -> 0 | BZ45: 13018 | CA45: 681 | CB45: 146.5 | CC45: 34.7 | CD45: =ROUND(IFERROR(CA45*(BX45/$BZ45),0),1) -> 499.8 | CE45: 0 | CF45: 0 | CG45: 0 | CH45: 0 | CI45: 146.5 | CJ45: 34.7 | CK45: 499.8 | CL45: 0 | CM45: =IFERROR(100*SUM(CB45:CE45)/BZ45,0) -> 5.231218313 | CN45: 0 | CO45: 0 | CP45: =Y45 -> 300 | CQ45: 0 | CR45: 146.5 | CS45: 34.7 | CT45: 799.8 | CU45: 0 | CV45: =ROUND(CR45,1) -> 146.5 | CW45: 34.7 | CX45: =ROUND(CT45,1) -> 799.8 | CY45: 0 | DP45: =$L45/SUM($L$45:$L$46)*DP$44 -> 44.48097153 | DQ45: =$L45/SUM($L$45:$L$46)*DQ$44 -> 28.10693843 | DR45: 359.7327235 | DS45: 0 | DT45: 44.5 | DU45: 28.1 | DV45: 359.7 | DW45: 0 | DX45: =O45-(SUM(DT45:DW45)) -> 1.7 | DY45: amend | DZ45: 359.7 | EA45: 44.5 | EB45: 28.1 | EC45: 361.4 | ED45: 0 | EE45: 0 | EF45: =IFERROR(EA45+CV45,0) -> 191 | EG45: =IFERROR(EB45+CW45,0) -> 62.8 | EH45: =IFERROR(EC45+CX45,0) -> 1161.2 | EI45: =IFERROR(ED45+CY45,0) -> 0 | EJ45: =ROUND(EF45,1) -> 191 | EK45: =ROUND(EG45,1) -> 62.8 | EL45: =ROUND(EH45,1) -> 1161.2 | EM45: =ROUND(EI45,1) -> 0 | EN45: =K45-SUM(CV45:CY45) -> 0 | EO45: =IFERROR(F45-SUM(EJ45:EM45),0) -> 0
A46: MAC/2CX14- | B46: =576958 -> 576958 | C46: 0 | D46: 576958 | E46: =VLOOKUP(A46,'All stocks'!$A$5:$B$202,2,FALSE) -> 185594 | F46: 185594 | G46: 0.583234 | H46: 0.3991 | I46: 0.692 | J46: =ROUND(IFERROR(G46*H46,""),4) -> 0.2328 | K46: 134316 | L46: =IFERROR(ROUND(IFERROR(IF(F46-K46<=0,0,F46-K46),""),0),0) -> 51278 | M46: =50+150 -> 200 | N46: 200 | O46: 51078 | Y46: =1750 -> 1750 | Z46: 0 | AA46: 132566 | AB46: 0 | AC46: 0 | AD46: 0 | AE46: =SUMIFS('UK FQA'!D:D,'UK FQA'!B:B,A46,'UK FQA'!A:A,'Main apportion'!$AE$6) -> 2051741 | AF46: =SUMIFS('UK FQA'!D:D,'UK FQA'!B:B,A46,'UK FQA'!A:A,'Main apportion'!$AF$6) -> 959 | AG46: =SUMIFS('FA FQA'!G:G,'FA FQA'!E:E,'Main apportion'!A46,'FA FQA'!D:D,'Main apportion'!$AG$6) -> 49 | AH46: 0 | AI46: 61.96239876 | AJ46: 62 | AK46: 0.7001 | AL46: 0.0945 | AM46: 0.1878 | AN46: 0.0176 | AO46: 43.4 | AP46: 5.9 | AQ46: 11.6 | AR46: 1.1 | AS46: 0 | AT46: 0 | AU46: 0 | AV46: 43.4 | AW46: 5.9 | AX46: 11.6 | AY46: 1.1 | AZ46: 0 | BA46: =SUMIFS('UK FQA'!D:D,'UK FQA'!B:B,'Main apportion'!A46,'UK FQA'!A:A,'Main apportion'!$BA$6) -> 0 | BB46: 0 | BC46: 0 | BD46: 3.165961981 | BE46: 3.2 | BF46: =SUMIFS('FA FQA'!$G:$G,'FA FQA'!$E:$E,'Main apportion'!$A46,'FA FQA'!$B:$B,'Main apportion'!BF$2,'FA FQA'!$D:$D,'Main apportion'!BF$3) -> 49 | BG46: =SUMIFS('FA FQA'!$G:$G,'FA FQA'!$E:$E,'Main apportion'!$A46,'FA FQA'!$B:$B,'Main apportion'!BG$2,'FA FQA'!$D:$D,'Main apportion'!BG$3) -> 0 | BH46: =SUMIFS('FA FQA'!$G:$G,'FA FQA'!$E:$E,'Main apportion'!$A46,'FA FQA'!$B:$B,'Main apportion'!BH$2,'FA FQA'!$D:$D,'Main apportion'!BH$3) -> 0 | BI46: =SUMIFS('FA FQA'!$G:$G,'FA FQA'!$E:$E,'Main apportion'!$A46,'FA FQA'!$B:$B,'Main apportion'!BI$2,'FA FQA'!$D:$D,'Main apportion'!BI$3) -> 0 | BJ46: 3.2 | BK46: 0 | BL46: 0 | BM46: 0 | BN46: 0 | BO46: 0 | BP46: 0 | BQ46: 3.2 | BR46: 0 | BS46: 0 | BT46: 0 | BU46: 0 | BV46: =SUMIFS('FA FQA'!$G:$G,'FA FQA'!$E:$E,'Main apportion'!$A46,'FA FQA'!$B:$B,'Main apportion'!BV$2,'FA FQA'!$D:$D,'Main apportion'!BV$3) -> 323888 | BW46: =SUMIFS('FA FQA'!$G:$G,'FA FQA'!$E:$E,'Main apportion'!$A46,'FA FQA'!$B:$B,'Main apportion'!BW$2,'FA FQA'!$D:$D,'Main apportion'!BW$3) -> 167437 | BX46: =SUMIFS('FA FQA'!$G:$G,'FA FQA'!$E:$E,'Main apportion'!$A46,'FA FQA'!$B:$B,'Main apportion'!BX$2,'FA FQA'!$D:$D,'Main apportion'!BX$3) -> 1559407 | BY46: =SUMIFS('FA FQA'!$G:$G,'FA FQA'!$E:$E,'Main apportion'!$A46,'FA FQA'!$B:$B,'Main apportion'!BY$2,'FA FQA'!$D:$D,'Main apportion'!BY$3) -> 1 | BZ46: 2050733 | CA46: 132500.8 | CB46: 20926.9 | CC46: 10818.3 | CD46: 100755.5 | CE46: 0.1 | CF46: 0 | CG46: 0 | CH46: 0 | CI46: 20926.9 | CJ46: 10818.3 | CK46: 100755.5 | CL46: 0.1 | CM46: 6.461143406 | CN46: =Y46 -> 1750 | CO46: 0 | CP46: 0 | CQ46: 0 | CR46: 22723.5 | CS46: 10824.2 | CT46: 100767.1 | CU46: 1.2 | CV46: 22723.5 | CW46: 10824.2 | CX46: 100767.1 | CY46: 1.2 | DP46: 5255.519028 | DQ46: =$L46/SUM($L$45:$L$46)*DQ$44 -> 3320.893062 | DR46: 42503.16728 | DS46: =DG46+DO46 -> 0 | DT46: 5255.5 | DU46: 3320.9 | DV46: =ROUND(DR46,1) -> 42503.2 | DW46: 0 | DX46: =O46-(SUM(DT46:DW46)) -> -1.6 | DY46: amend | DZ46: 42503.2 | EA46: 5255.5 | EB46: =IF(DU46=$DZ46,DU46+$DX46,DU46)+IF(N46>150,150,0) -> 3470.9 | EC46: =IF(DV46=$DZ46,DV46+$DX46,DV46) -> 42501.6 | ED46: =IF(DW46=$DZ46,DW46+$DX46,DW46)+IF(N46>50,50,0) -> 50 | EE46: 0 | EF46: 27979 | EG46: 14295.1 | EH46: 143268.7 | EI46: 51.2 | EJ46: 27979 | EK46: 14295.1 | EL46: 143268.7 | EM46: 51.2 | EN46: 0 | EO46: -2.910383046e-11
A47: NEP/07. | B47: 16689 | C47: 0 | D47: 16689 | E47: =VLOOKUP(A47,'All stocks'!$A$5:$B$202,2,FALSE) -> 7009 | F47: 7009 | G47: 0.328024 | H47: 1 | I47: 0.42 | J47: 0.328 | K47: 5474 | L47: =IFERROR(ROUND(IFERROR(IF(F47-K47<=0,0,F47-K47),""),0),0)-200 -> 1335 | M47: 0 | N47: 0 | O47: 1335 | P47: 0 | Q47: =ROUND(IFERROR(P47*D47,0),1) -> 0 | R47: =IFERROR(IF(IF((I47-J47)>P47,P47,I47-J47)<0,0,IF((I47-J47)>P47,P47,I47-J47)),0) -> 0 | S47: 0 | T47: 0 | U47: =ROUND(IF(S47=0,IFERROR(IF(R47<=0,0,IF(L47=0,0,IF(L47>=Q47,Q47,L47))),0),IFERROR(IF(R47<=0,0,IF(L47=0,0,IF(L47>=Q47,Q47,L47))),0)-N47),1) -> 0 | V47: =IFERROR(IF(I47-J47-R47<=0,0,I47-J47-R47),0) -> 0.092 | W47: 0 | X47: =IFERROR(IF(U47=0,L47-N47,IF(F47-K47-U47<0,0,F47-K47-N47-U47)),0) -> 1335 | Y47: 0 | Z47: 0 | AA47: 5474 | AB47: 0.007 | AC47: 0 | AD47: 0 | AE47: =SUMIFS('UK FQA'!D:D,'UK FQA'!B:B,A47,'UK FQA'!A:A,'Main apportion'!$AE$6) -> 59185 | AF47: =SUMIFS('UK FQA'!D:D,'UK FQA'!B:B,A47,'UK FQA'!A:A,'Main apportion'!$AF$6) -> 1152 | AG47: =SUMIFS('FA FQA'!G:G,'FA FQA'!E:E,'Main apportion'!A47,'FA FQA'!D:D,'Main apportion'!$AG$6) -> 139 | AH47: 38.318 | AI47: 106.5480781 | AJ47: 106.5 | AK47: 0.325 | AL47: 0.6093 | AM47: 0.0618 | AN47: 0.0039 | AO47: 34.6 | AP47: 64.9 | AQ47: 6.6 | AR47: 0.4 | AS47: 0 | AT47: 0 | AU47: 0 | AV47: 34.6 | AW47: 64.9 | AX47: 6.6 | AY47: 0.4 | AZ47: 0 | BA47: =SUMIFS('UK FQA'!D:D,'UK FQA'!B:B,'Main apportion'!A47,'UK FQA'!A:A,'Main apportion'!$BA$6) -> 0 | BB47: 0 | BC47: 0 | BD47: 12.8560615 | BE47: 12.9 | BF47: =SUMIFS('FA FQA'!$G:$G,'FA FQA'!$E:$E,'Main apportion'!$A47,'FA FQA'!$B:$B,'Main apportion'!BF$2,'FA FQA'!$D:$D,'Main apportion'!BF$3) -> 59 | BG47: =SUMIFS('FA FQA'!$G:$G,'FA FQA'!$E:$E,'Main apportion'!$A47,'FA FQA'!$B:$B,'Main apportion'!BG$2,'FA FQA'!$D:$D,'Main apportion'!BG$3) -> 0 | BH47: =SUMIFS('FA FQA'!$G:$G,'FA FQA'!$E:$E,'Main apportion'!$A47,'FA FQA'!$B:$B,'Main apportion'!BH$2,'FA FQA'!$D:$D,'Main apportion'!BH$3) -> 47 | BI47: =SUMIFS('FA FQA'!$G:$G,'FA FQA'!$E:$E,'Main apportion'!$A47,'FA FQA'!$B:$B,'Main apportion'!BI$2,'FA FQA'!$D:$D,'Main apportion'!BI$3) -> 33 | BJ47: =ROUND(IFERROR($BE47*(BF47/$AG47),0),1) -> 5.5 | BK47: 0 | BL47: 4.4 | BM47: 3.1 | BN47: -0.1 | BO47: amend | BP47: 5.5 | BQ47: 5.4 | BR47: 0 | BS47: 4.4 | BT47: 3.1 | BU47: 0 | BV47: =SUMIFS('FA FQA'!$G:$G,'FA FQA'!$E:$E,'Main apportion'!$A47,'FA FQA'!$B:$B,'Main apportion'!BV$2,'FA FQA'!$D:$D,'Main apportion'!BV$3) -> 4343 | BW47: =SUMIFS('FA FQA'!$G:$G,'FA FQA'!$E:$E,'Main apportion'!$A47,'FA FQA'!$B:$B,'Main apportion'!BW$2,'FA FQA'!$D:$D,'Main apportion'!BW$3) -> 49777 | BX47: =SUMIFS('FA FQA'!$G:$G,'FA FQA'!$E:$E,'Main apportion'!$A47,'FA FQA'!$B:$B,'Main apportion'!BX$2,'FA FQA'!$D:$D,'Main apportion'!BX$3) -> 3773 | BY47: =SUMIFS('FA FQA'!$G:$G,'FA FQA'!$E:$E,'Main apportion'!$A47,'FA FQA'!$B:$B,'Main apportion'!BY$2,'FA FQA'!$D:$D,'Main apportion'!BY$3) -> 1 | BZ47: 57894 | CA47: 5354.6 | CB47: 401.7 | CC47: 4603.9 | CD47: 349 | CE47: 0.1 | CF47: -0.1 | CG47: amend | CH47: 4603.9 | CI47: 401.7 | CJ47: 4603.8 | CK47: 349 | CL47: 0.1 | CM47: 9.249144989 | CN47: 0 | CO47: 0 | CP47: 0 | CQ47: 0 | CR47: 441.7 | CS47: 4668.7 | CT47: 360 | CU47: 3.6 | CV47: 441.7 | CW47: 4668.7 | CX47: 360 | CY47: 3.6 | CZ47: 0.02159777213 | DA47: 0.8952806781 | DB47: 0.08283026886 | DC47: 0.0002912809176 | DD47: =ROUND(IFERROR(IF($T47=1,$CZ47/SUM($CZ47:$DB47)*$U47,CZ47*$U47),0),1) -> 0 | DE47: =ROUND(IFERROR(IF($T47=1,$DA47/SUM($CZ47:$DB47)*$U47,DA47*$U47),0),1) -> 0 | DF47: =ROUND(IFERROR(IF($T47=1,$DB47/SUM($CZ47:$DB47)*$U47,DB47*$U47),0),1) -> 0 | DG47: =ROUND(IF(S47=1,N47,(IF(T47=1,0,IFERROR(DC47*$U47,0)))),1) -> 0 | DH47: 0.04510142831 | DI47: 0.8518654682 | DJ47: 0.07568049758 | DK47: 0.02735260591 | DL47: 60.2 | DM47: 1137.2 | DN47: 101 | DO47: =ROUND(IF(AND(N47>0,S47<>1),N47,IFERROR(DK47*$X47,0)),1) -> 36.5 | DP47: =DD47+DL47 -> 60.2 | DQ47: =DE47+DM47 -> 1137.2 | DR47: =DF47+DN47 -> 101 | DS47: 36.5 | DT47: 60.2 | DU47: =ROUND(DQ47,1) -> 1137.2 | DV47: 101 | DW47: 36.5 | DX47: 0.1 | DY47: amend | DZ47: 1137.2 | EA47: 60.2 | EB47: =IF(DU47=$DZ47,DU47+$DX47,DU47) -> 1137.3 | EC47: 101 | ED47: 36.5 | EE47: 0 | EF47: 501.9 | EG47: 5806 | EH47: 461 | EI47: 40.1 | EJ47: =ROUND(EF47,1)+200 -> 701.9 | EK47: 5806 | EL47: 461 | EM47: 40.1 | EN47: 0 | EO47: 0
A48: NEP/2AC4-C | B48: 15799 | C48: 0 | D48: 15799 | E48: =VLOOKUP(A48,'All stocks'!$A$5:$B$202,2,FALSE) -> 13685 | F48: 13685 | G48: 0.866154 | H48: 1 | I48: 0.8662 | J48: 0.8662 | K48: 13685 | L48: 0 | M48: 0 | N48: 0 | O48: 0 | P48: 0 | Q48: 0 | R48: 0 | S48: 0 | T48: 0 | U48: 0 | V48: 0 | W48: 0 | X48: =IFERROR(IF(U48=0,L48-N48,IF(F48-K48-U48<0,0,F48-K48-N48-U48)),0) -> 0 | Y48: 0 | Z48: 0 | AA48: 13685 | AB48: 0 | AC48: 0 | AD48: 0 | AE48: =SUMIFS('UK FQA'!D:D,'UK FQA'!B:B,A48,'UK FQA'!A:A,'Main apportion'!$AE$6) -> 117988 | AF48: =SUMIFS('UK FQA'!D:D,'UK FQA'!B:B,A48,'UK FQA'!A:A,'Main apportion'!$AF$6) -> 4860 | AG48: =SUMIFS('FA FQA'!G:G,'FA FQA'!E:E,'Main apportion'!A48,'FA FQA'!D:D,'Main apportion'!$AG$6) -> 496 | AH48: 0 | AI48: 563.6937655 | AJ48: 563.7 | AK48: 0.5089 | AL48: 0.0002 | AM48: 0.4862 | AN48: 0.0047 | AO48: =ROUND(IFERROR($AJ48*(AK48/SUM($AK48:$AN48)),0),1) -> 286.9 | AP48: 0.1 | AQ48: 274.1 | AR48: 2.6 | AS48: 0 | AT48: 0 | AU48: 0 | AV48: 286.9 | AW48: 0.1 | AX48: 274.1 | AY48: 2.6 | AZ48: 0 | BA48: =SUMIFS('UK FQA'!D:D,'UK FQA'!B:B,'Main apportion'!A48,'UK FQA'!A:A,'Main apportion'!$BA$6) -> 40 | BB48: 4.6 | BC48: 0 | BD48: 57.52924026 | BE48: 57.5 | BF48: =SUMIFS('FA FQA'!$G:$G,'FA FQA'!$E:$E,'Main apportion'!$A48,'FA FQA'!$B:$B,'Main apportion'!BF$2,'FA FQA'!$D:$D,'Main apportion'!BF$3) -> 37 | BG48: =SUMIFS('FA FQA'!$G:$G,'FA FQA'!$E:$E,'Main apportion'!$A48,'FA FQA'!$B:$B,'Main apportion'!BG$2,'FA FQA'!$D:$D,'Main apportion'!BG$3) -> 0 | BH48: =SUMIFS('FA FQA'!$G:$G,'FA FQA'!$E:$E,'Main apportion'!$A48,'FA FQA'!$B:$B,'Main apportion'!BH$2,'FA FQA'!$D:$D,'Main apportion'!BH$3) -> 454 | BI48: =SUMIFS('FA FQA'!$G:$G,'FA FQA'!$E:$E,'Main apportion'!$A48,'FA FQA'!$B:$B,'Main apportion'!BI$2,'FA FQA'!$D:$D,'Main apportion'!BI$3) -> 5 | BJ48: =ROUND(IFERROR($BE48*(BF48/$AG48),0),1) -> 4.3 | BK48: 0 | BL48: =ROUND(IFERROR($BE48*(BH48/$AG48),0),1) -> 52.6 | BM48: 0.6 | BN48: 0 | BO48: 0 | BP48: 0 | BQ48: 4.3 | BR48: 0 | BS48: 52.6 | BT48: 0.6 | BU48: 0 | BV48: =SUMIFS('FA FQA'!$G:$G,'FA FQA'!$E:$E,'Main apportion'!$A48,'FA FQA'!$B:$B,'Main apportion'!BV$2,'FA FQA'!$D:$D,'Main apportion'!BV$3) -> 29600 | BW48: =SUMIFS('FA FQA'!$G:$G,'FA FQA'!$E:$E,'Main apportion'!$A48,'FA FQA'!$B:$B,'Main apportion'!BW$2,'FA FQA'!$D:$D,'Main apportion'!BW$3) -> 4880 | BX48: =SUMIFS('FA FQA'!$G:$G,'FA FQA'!$E:$E,'Main apportion'!$A48,'FA FQA'!$B:$B,'Main apportion'!BX$2,'FA FQA'!$D:$D,'Main apportion'!BX$3) -> 78112 | BY48: =SUMIFS('FA FQA'!$G:$G,'FA FQA'!$E:$E,'Main apportion'!$A48,'FA FQA'!$B:$B,'Main apportion'!BY$2,'FA FQA'!$D:$D,'Main apportion'!BY$3) -> 0 | BZ48: 112592 | CA48: 13059.2 | CB48: 3433.2 | CC48: 566 | CD48: 9060 | CE48: 0 | CF48: 0 | CG48: 0 | CH48: 0 | CI48: 3433.2 | CJ48: 566 | CK48: 9060 | CL48: 0 | CM48: 11.59869262 | CN48: 0 | CO48: 0 | CP48: 0 | CQ48: 0 | CR48: 3729 | CS48: 566.1 | CT48: 9386.7 | CU48: 3.2 | CV48: 3729 | CW48: 566.1 | CX48: 9386.7 | CY48: 3.2 | CZ48: 0.138400461 | DA48: 0.03241179501 | DB48: 0.8289598438 | DC48: 0.0002279001699 | DD48: 0 | DE48: 0 | DF48: 0 | DG48: 0 | DH48: 0.1578485651 | DI48: 0.02917061551 | DJ48: 0.8127757092 | DK48: 0.0002051101529 | DL48: 0 | DM48: 0 | DN48: 0 | DO48: 0 | DP48: 0 | DQ48: 0 | DR48: 0 | DS48: 0 | DT48: 0 | DU48: 0 | DV48: 0 | DW48: 0 | DX48: 0 | DY48: 0 | DZ48: 0 | EA48: 0 | EB48: 0 | EC48: 0 | ED48: 0 | EE48: 0 | EF48: 3729 | EG48: 566.1 | EH48: 9386.7 | EI48: 3.2 | EJ48: 3729 | EK48: 566.1 | EL48: 9386.7 | EM48: 3.2 | EN48: 0 | EO48: -1.818989404e-12
A49: NEP/5BC6. | B49: 13637 | C49: 0 | D49: 13637 | E49: =VLOOKUP(A49,'All stocks'!$A$5:$B$202,2,FALSE) -> 13315 | F49: 13315 | G49: 0.976351 | H49: 1 | I49: 0.9764 | J49: 0.9764 | K49: 13315 | L49: 0 | M49: 0 | N49: 0 | O49: 0 | P49: 0 | Q49: 0 | R49: 0 | S49: 0 | T49: 0 | U49: 0 | V49: 0 | W49: 0 | X49: 0 | Y49: 0 | Z49: 0 | AA49: 13315 | AB49: 0.0956 | AC49: 0 | AD49: 0.02732559737 | AE49: =SUMIFS('UK FQA'!D:D,'UK FQA'!B:B,A49,'UK FQA'!A:A,'Main apportion'!$AE$6) -> 114540 | AF49: =SUMIFS('UK FQA'!D:D,'UK FQA'!B:B,A49,'UK FQA'!A:A,'Main apportion'!$AF$6) -> 9527 | AG49: =SUMIFS('FA FQA'!G:G,'FA FQA'!E:E,'Main apportion'!A49,'FA FQA'!D:D,'Main apportion'!$AG$6) -> 2471 | AH49: 1272.914 | AI49: 1107.490877 | AJ49: 1272.9 | AK49: 0.0408 | AL49: 0.0146 | AM49: 0.9279 | AN49: 0.0167 | AO49: 51.9 | AP49: 18.6 | AQ49: 1181.1 | AR49: 21.3 | AS49: =IF(AJ49-SUM(AO49:AR49)=0,0,AJ49-SUM(AO49:AR49)) -> 2.273736754e-13 | AT49: amend | AU49: 1181.1 | AV49: 51.9 | AW49: 18.6 | AX49: 1181.1 | AY49: 21.3 | AZ49: 0 | BA49: =SUMIFS('UK FQA'!D:D,'UK FQA'!B:B,'Main apportion'!A49,'UK FQA'!A:A,'Main apportion'!$BA$6) -> 0 | BB49: 0 | BC49: 363.840329 | BD49: 287.2478174 | BE49: 363.8 | BF49: =SUMIFS('FA FQA'!$G:$G,'FA FQA'!$E:$E,'Main apportion'!$A49,'FA FQA'!$B:$B,'Main apportion'!BF$2,'FA FQA'!$D:$D,'Main apportion'!BF$3) -> 333 | BG49: =SUMIFS('FA FQA'!$G:$G,'FA FQA'!$E:$E,'Main apportion'!$A49,'FA FQA'!$B:$B,'Main apportion'!BG$2,'FA FQA'!$D:$D,'Main apportion'!BG$3) -> 57 | BH49: =SUMIFS('FA FQA'!$G:$G,'FA FQA'!$E:$E,'Main apportion'!$A49,'FA FQA'!$B:$B,'Main apportion'!BH$2,'FA FQA'!$D:$D,'Main apportion'!BH$3) -> 2053 | BI49: =SUMIFS('FA FQA'!$G:$G,'FA FQA'!$E:$E,'Main apportion'!$A49,'FA FQA'!$B:$B,'Main apportion'!BI$2,'FA FQA'!$D:$D,'Main apportion'!BI$3) -> 28 | BJ49: 49 | BK49: 8.4 | BL49: 302.3 | BM49: 4.1 | BN49: 0 | BO49: 0 | BP49: 0 | BQ49: 49 | BR49: 8.4 | BS49: 302.3 | BT49: 4.1 | BU49: 0 | BV49: =SUMIFS('FA FQA'!$G:$G,'FA FQA'!$E:$E,'Main apportion'!$A49,'FA FQA'!$B:$B,'Main apportion'!BV$2,'FA FQA'!$D:$D,'Main apportion'!BV$3) -> 9372 | BW49: =SUMIFS('FA FQA'!$G:$G,'FA FQA'!$E:$E,'Main apportion'!$A49,'FA FQA'!$B:$B,'Main apportion'!BW$2,'FA FQA'!$D:$D,'Main apportion'!BW$3) -> 17276 | BX49: =SUMIFS('FA FQA'!$G:$G,'FA FQA'!$E:$E,'Main apportion'!$A49,'FA FQA'!$B:$B,'Main apportion'!BX$2,'FA FQA'!$D:$D,'Main apportion'!BX$3) -> 75574 | BY49: =SUMIFS('FA FQA'!$G:$G,'FA FQA'!$E:$E,'Main apportion'!$A49,'FA FQA'!$B:$B,'Main apportion'!BY$2,'FA FQA'!$D:$D,'Main apportion'!BY$3) -> 320 | BZ49: 102542 | CA49: 11678.3 | CB49: 1067.4 | CC49: 1967.5 | CD49: 8607 | CE49: 36.4 | CF49: 0 | CG49: 0 | CH49: 0 | CI49: 1067.4 | CJ49: 1967.5 | CK49: 8607 | CL49: 36.4 | CM49: 11.38879679 | CN49: 0 | CO49: 0 | CP49: 0 | CQ49: 0 | CR49: 1168.3 | CS49: 1994.5 | CT49: 10090.4 | CU49: 61.8 | CV49: 1168.3 | CW49: 1994.5 | CX49: 10090.4 | CY49: 61.8 | CZ49: 0.009805094975 | DA49: 0.1234545661 | DB49: 0.8665922694 | DC49: 0.0001480694623 | DD49: 0 | DE49: 0 | DF49: 0 | DG49: 0 | DH49: 0.008824585477 | DI49: 0.1140920855 | DJ49: 0.8769500665 | DK49: 0.0001332625161 | DL49: 0 | DM49: 0 | DN49: 0 | DO49: 0 | DP49: 0 | DQ49: 0 | DR49: 0 | DS49: 0 | DT49: 0 | DU49: 0 | DV49: 0 | DW49: 0 | DX49: 0 | DY49: 0 | DZ49: 0 | EA49: 0 | EB49: 0 | EC49: 0 | ED49: 0 | EE49: 0 | EF49: 1168.3 | EG49: 1994.5 | EH49: 10090.4 | EI49: 61.8 | EJ49: 1168.3 | EK49: 1994.5 | EL49: 10090.4 | EM49: 61.8 | EN49: 0 | EO49: 0
A50: PLE/07A. | B50: 1504 | C50: 0 | D50: 1504 | E50: =VLOOKUP(A50,'All stocks'!$A$5:$B$202,2,FALSE) -> 769 | F50: 769 | G50: 0.511111 | H50: 1 | I50: 0.5111 | J50: 0.5111 | K50: 769 | L50: 0 | M50: 0 | N50: 0 | O50: 0 | P50: 0 | Q50: 0 | R50: 0 | S50: 0 | T50: 0 | U50: 0 | V50: 0 | W50: 0 | X50: 0 | Y50: 0 | Z50: 0 | AA50: 769 | AB50: 0.046 | AC50: 0 | AD50: 0 | AE50: =SUMIFS('UK FQA'!D:D,'UK FQA'!B:B,A50,'UK FQA'!A:A,'Main apportion'!$AE$6) -> 9259 | AF50: =SUMIFS('UK FQA'!D:D,'UK FQA'!B:B,A50,'UK FQA'!A:A,'Main apportion'!$AF$6) -> 418 | AG50: =SUMIFS('FA FQA'!G:G,'FA FQA'!E:E,'Main apportion'!A50,'FA FQA'!D:D,'Main apportion'!$AG$6) -> 103 | AH50: 35.374 | AI50: 34.71670807 | AJ50: 35.4 | AK50: 0.7055 | AL50: 0.0601 | AM50: 0.0534 | AN50: 0.181 | AO50: 25 | AP50: 2.1 | AQ50: 1.9 | AR50: 6.4 | AS50: 0 | AT50: 0 | AU50: 0 | AV50: 25 | AW50: 2.1 | AX50: 1.9 | AY50: 6.4 | AZ50: 0 | BA50: =SUMIFS('UK FQA'!D:D,'UK FQA'!B:B,'Main apportion'!A50,'UK FQA'!A:A,'Main apportion'!$BA$6) -> 812 | BB50: 67.4 | BC50: 0 | BD50: 8.554595529 | BE50: 8.6 | BF50: =SUMIFS('FA FQA'!$G:$G,'FA FQA'!$E:$E,'Main apportion'!$A50,'FA FQA'!$B:$B,'Main apportion'!BF$2,'FA FQA'!$D:$D,'Main apportion'!BF$3) -> 79 | BG50: =SUMIFS('FA FQA'!$G:$G,'FA FQA'!$E:$E,'Main apportion'!$A50,'FA FQA'!$B:$B,'Main apportion'!BG$2,'FA FQA'!$D:$D,'Main apportion'!BG$3) -> 0 | BH50: =SUMIFS('FA FQA'!$G:$G,'FA FQA'!$E:$E,'Main apportion'!$A50,'FA FQA'!$B:$B,'Main apportion'!BH$2,'FA FQA'!$D:$D,'Main apportion'!BH$3) -> 24 | BI50: =SUMIFS('FA FQA'!$G:$G,'FA FQA'!$E:$E,'Main apportion'!$A50,'FA FQA'!$B:$B,'Main apportion'!BI$2,'FA FQA'!$D:$D,'Main apportion'!BI$3) -> 0 | BJ50: 6.6 | BK50: 0 | BL50: 2 | BM50: 0 | BN50: 0 | BO50: 0 | BP50: 0 | BQ50: 6.6 | BR50: 0 | BS50: 2 | BT50: 0 | BU50: 0 | BV50: =SUMIFS('FA FQA'!$G:$G,'FA FQA'!$E:$E,'Main apportion'!$A50,'FA FQA'!$B:$B,'Main apportion'!BV$2,'FA FQA'!$D:$D,'Main apportion'!BV$3) -> 3937 | BW50: =SUMIFS('FA FQA'!$G:$G,'FA FQA'!$E:$E,'Main apportion'!$A50,'FA FQA'!$B:$B,'Main apportion'!BW$2,'FA FQA'!$D:$D,'Main apportion'!BW$3) -> 3118 | BX50: =SUMIFS('FA FQA'!$G:$G,'FA FQA'!$E:$E,'Main apportion'!$A50,'FA FQA'!$B:$B,'Main apportion'!BX$2,'FA FQA'!$D:$D,'Main apportion'!BX$3) -> 796 | BY50: =SUMIFS('FA FQA'!$G:$G,'FA FQA'!$E:$E,'Main apportion'!$A50,'FA FQA'!$B:$B,'Main apportion'!BY$2,'FA FQA'!$D:$D,'Main apportion'!BY$3) -> 75 | BZ50: 7926 | CA50: 657.6 | CB50: 326.6 | CC50: 258.7 | CD50: 66 | CE50: 6.2 | CF50: 0.1 | CG50: amend | CH50: 326.6 | CI50: 326.7 | CJ50: 258.7 | CK50: 66 | CL50: 6.2 | CM50: 8.29548322 | CN50: 0 | CO50: 0 | CP50: 0 | CQ50: 0 | CR50: 425.7 | CS50: 260.8 | CT50: 69.9 | CU50: 12.6 | CV50: 425.7 | CW50: 260.8 | CX50: 69.9 | CY50: 12.6 | CZ50: 0.6237326068 | DA50: 0.3449441389 | DB50: 0.00633383547 | DC50: 0.02498941882 | DD50: 0 | DE50: 0 | DF50: 0 | DG50: 0 | DH50: 0.5914705723 | DI50: 0.3284987183 | DJ50: 0.00956367732 | DK50: 0.07046703204 | DL50: 0 | DM50: 0 | DN50: 0 | DO50: 0 | DP50: 0 | DQ50: 0 | DR50: 0 | DS50: 0 | DT50: 0 | DU50: 0 | DV50: 0 | DW50: 0 | DX50: 0 | DY50: 0 | DZ50: 0 | EA50: 0 | EB50: 0 | EC50: 0 | ED50: 0 | EE50: 0 | EF50: 425.7 | EG50: 260.8 | EH50: 69.9 | EI50: 12.6 | EJ50: 425.7 | EK50: 260.8 | EL50: 69.9 | EM50: 12.6 | EN50: 0 | EO50: 0
A51: PLE/2A3AX4 | B51: 155755 | C51: 0 | D51: 155755 | E51: =VLOOKUP(A51,'All stocks'!$A$5:$B$202,2,FALSE) -> 41228 | F51: =IF(C51<0,ROUND(D51*I51,0),E51) -> 41228 | G51: 0.284615 | H51: 0.93 | I51: 0.2846 | J51: 0.2647 | K51: =IF(J51>1,ROUND(J51,0),IFERROR(ROUND(IF(OR(J51*D51>F51,I51=J51),F51,J51*D51),0),"")) -> 41228 | L51: 0 | M51: 0 | N51: 0 | O51: 0 | P51: 0 | Q51: 0 | R51: 0 | S51: 0 | T51: 0 | U51: 0 | V51: 0.0199 | W51: 0 | X51: 0 | Y51: 0 | Z51: 0 | AA51: 41228 | AB51: 0 | AC51: 0 | AD51: 0 | AE51: =SUMIFS('UK FQA'!D:D,'UK FQA'!B:B,A51,'UK FQA'!A:A,'Main apportion'!$AE$6) -> 244595 | AF51: =SUMIFS('UK FQA'!D:D,'UK FQA'!B:B,A51,'UK FQA'!A:A,'Main apportion'!$AF$6) -> 582 | AG51: =SUMIFS('FA FQA'!G:G,'FA FQA'!E:E,'Main apportion'!A51,'FA FQA'!D:D,'Main apportion'!$AG$6) -> 11 | AH51: 0 | AI51: 98.0996995 | AJ51: 98.1 | AK51: 0.9421 | AL51: 0 | AM51: 0.0494 | AN51: 0.0085 | AO51: =ROUND(IFERROR($AJ51*(AK51/SUM($AK51:$AN51)),0),1) -> 92.4 | AP51: 0 | AQ51: 4.8 | AR51: 0.8 | AS51: 0.1 | AT51: amend | AU51: 92.4 | AV51: 92.5 | AW51: 0 | AX51: 4.8 | AY51: 0.8 | AZ51: 0 | BA51: =SUMIFS('UK FQA'!D:D,'UK FQA'!B:B,'Main apportion'!A51,'UK FQA'!A:A,'Main apportion'!$BA$6) -> 0 | BB51: 0 | BC51: 0 | BD51: 1.854118032 | BE51: 1.9 | BF51: =SUMIFS('FA FQA'!$G:$G,'FA FQA'!$E:$E,'Main apportion'!$A51,'FA FQA'!$B:$B,'Main apportion'!BF$2,'FA FQA'!$D:$D,'Main apportion'!BF$3) -> 7 | BG51: =SUMIFS('FA FQA'!$G:$G,'FA FQA'!$E:$E,'Main apportion'!$A51,'FA FQA'!$B:$B,'Main apportion'!BG$2,'FA FQA'!$D:$D,'Main apportion'!BG$3) -> 0 | BH51: =SUMIFS('FA FQA'!$G:$G,'FA FQA'!$E:$E,'Main apportion'!$A51,'FA FQA'!$B:$B,'Main apportion'!BH$2,'FA FQA'!$D:$D,'Main apportion'!BH$3) -> 4 | BI51: =SUMIFS('FA FQA'!$G:$G,'FA FQA'!$E:$E,'Main apportion'!$A51,'FA FQA'!$B:$B,'Main apportion'!BI$2,'FA FQA'!$D:$D,'Main apportion'!BI$3) -> 0 | BJ51: 1.2 | BK51: 0 | BL51: 0.7 | BM51: 0 | BN51: 0 | BO51: 0 | BP51: 0 | BQ51: 1.2 | BR51: 0 | BS51: 0.7 | BT51: 0 | BU51: 0 | BV51: =SUMIFS('FA FQA'!$G:$G,'FA FQA'!$E:$E,'Main apportion'!$A51,'FA FQA'!$B:$B,'Main apportion'!BV$2,'FA FQA'!$D:$D,'Main apportion'!BV$3) -> 182854 | BW51: =SUMIFS('FA FQA'!$G:$G,'FA FQA'!$E:$E,'Main apportion'!$A51,'FA FQA'!$B:$B,'Main apportion'!BW$2,'FA FQA'!$D:$D,'Main apportion'!BW$3) -> 3283 | BX51: =SUMIFS('FA FQA'!$G:$G,'FA FQA'!$E:$E,'Main apportion'!$A51,'FA FQA'!$B:$B,'Main apportion'!BX$2,'FA FQA'!$D:$D,'Main apportion'!BX$3) -> 57846 | BY51: =SUMIFS('FA FQA'!$G:$G,'FA FQA'!$E:$E,'Main apportion'!$A51,'FA FQA'!$B:$B,'Main apportion'!BY$2,'FA FQA'!$D:$D,'Main apportion'!BY$3) -> 19 | BZ51: 244002 | CA51: 41128 | CB51: 30821.1 | CC51: 553.4 | CD51: 9750.3 | CE51: 3.2 | CF51: 0 | CG51: 0 | CH51: 0 | CI51: 30821.1 | CJ51: 553.4 | CK51: 9750.3 | CL51: 3.2 | CM51: 16.85559954 | CN51: 0 | CO51: 0 | CP51: 0 | CQ51: 0 | CR51: 30914.8 | CS51: 553.4 | CT51: 9755.8 | CU51: 4 | CV51: 30914.8 | CW51: 553.4 | CX51: 9755.8 | CY51: 4 | CZ51: 0.7060895536 | DA51: 0.0003061207105 | DB51: 0.2935991016 | DC51: 5.224143362e-06 | DD51: 0 | DE51: 0 | DF51: 0 | DG51: 0 | DH51: 0.7255512731 | DI51: 0.0002755086394 | DJ51: 0.2741685166 | DK51: 4.701729026e-06 | DL51: 0 | DM51: 0 | DN51: 0 | DO51: 0 | DP51: 0 | DQ51: 0 | DR51: 0 | DS51: 0 | DT51: 0 | DU51: 0 | DV51: 0 | DW51: 0 | DX51: 0 | DY51: 0 | DZ51: 0 | EA51: 0 | EB51: 0 | EC51: 0 | ED51: 0 | EE51: 0 | EF51: 30914.8 | EG51: 553.4 | EH51: 9755.8 | EI51: 4 | EJ51: 30914.8 | EK51: 553.4 | EL51: 9755.8 | EM51: 4 | EN51: 0 | EO51: 0
A52: PLE/56-14 | B52: 592 | C52: 0 | D52: 592 | E52: =VLOOKUP(A52,'All stocks'!$A$5:$B$202,2,FALSE) -> 360 | F52: 360 | G52: 0.607735 | H52: 1 | I52: 0.6077 | J52: 0.6077 | K52: 360 | L52: 0 | M52: 0 | N52: =IF(L52-M52>=0,M52,IF(L52-M52<0,M52+(L52-M52),M52)) -> 0 | O52: 0 | P52: 0 | Q52: 0 | R52: 0 | S52: 0 | T52: 0 | U52: 0 | V52: 0 | W52: 0 | X52: 0 | Y52: 0 | Z52: 0 | AA52: 360 | AB52: 0 | AC52: 5 | AD52: 0 | AE52: =SUMIFS('UK FQA'!D:D,'UK FQA'!B:B,A52,'UK FQA'!A:A,'Main apportion'!$AE$6) -> 13981 | AF52: =SUMIFS('UK FQA'!D:D,'UK FQA'!B:B,A52,'UK FQA'!A:A,'Main apportion'!$AF$6) -> 35 | AG52: =SUMIFS('FA FQA'!G:G,'FA FQA'!E:E,'Main apportion'!A52,'FA FQA'!D:D,'Main apportion'!$AG$6) -> 9 | AH52: 0 | AI52: 0.9012230885 | AJ52: 5 | AK52: 0.0461 | AL52: 0.3209 | AM52: 0.633 | AN52: 0 | AO52: 0.2 | AP52: 1.6 | AQ52: 3.2 | AR52: 0 | AS52: 0 | AT52: 0 | AU52: 0 | AV52: 0.2 | AW52: 1.6 | AX52: 3.2 | AY52: 0 | AZ52: 0 | BA52: =SUMIFS('UK FQA'!D:D,'UK FQA'!B:B,'Main apportion'!A52,'UK FQA'!A:A,'Main apportion'!$BA$6) -> 0 | BB52: 0 | BC52: 0 | BD52: 0.2317430799 | BE52: 0.2 | BF52: =SUMIFS('FA FQA'!$G:$G,'FA FQA'!$E:$E,'Main apportion'!$A52,'FA FQA'!$B:$B,'Main apportion'!BF$2,'FA FQA'!$D:$D,'Main apportion'!BF$3) -> 8 | BG52: =SUMIFS('FA FQA'!$G:$G,'FA FQA'!$E:$E,'Main apportion'!$A52,'FA FQA'!$B:$B,'Main apportion'!BG$2,'FA FQA'!$D:$D,'Main apportion'!BG$3) -> 0 | BH52: =SUMIFS('FA FQA'!$G:$G,'FA FQA'!$E:$E,'Main apportion'!$A52,'FA FQA'!$B:$B,'Main apportion'!BH$2,'FA FQA'!$D:$D,'Main apportion'!BH$3) -> 1 | BI52: =SUMIFS('FA FQA'!$G:$G,'FA FQA'!$E:$E,'Main apportion'!$A52,'FA FQA'!$B:$B,'Main apportion'!BI$2,'FA FQA'!$D:$D,'Main apportion'!BI$3) -> 0 | BJ52: 0.2 | BK52: 0 | BL52: 0 | BM52: 0 | BN52: 0 | BO52: 0 | BP52: 0 | BQ52: 0.2 | BR52: 0 | BS52: 0 | BT52: 0 | BU52: 0 | BV52: =SUMIFS('FA FQA'!$G:$G,'FA FQA'!$E:$E,'Main apportion'!$A52,'FA FQA'!$B:$B,'Main apportion'!BV$2,'FA FQA'!$D:$D,'Main apportion'!BV$3) -> 2016 | BW52: =SUMIFS('FA FQA'!$G:$G,'FA FQA'!$E:$E,'Main apportion'!$A52,'FA FQA'!$B:$B,'Main apportion'!BW$2,'FA FQA'!$D:$D,'Main apportion'!BW$3) -> 371 | BX52: =SUMIFS('FA FQA'!$G:$G,'FA FQA'!$E:$E,'Main apportion'!$A52,'FA FQA'!$B:$B,'Main apportion'!BX$2,'FA FQA'!$D:$D,'Main apportion'!BX$3) -> 11501 | BY52: =SUMIFS('FA FQA'!$G:$G,'FA FQA'!$E:$E,'Main apportion'!$A52,'FA FQA'!$B:$B,'Main apportion'!BY$2,'FA FQA'!$D:$D,'Main apportion'!BY$3) -> 49 | BZ52: 13937 | CA52: 354.8 | CB52: 51.3 | CC52: 9.4 | CD52: =ROUND(IFERROR(CA52*(BX52/$BZ52),0),1) -> 292.8 | CE52: 1.2 | CF52: 0.1 | CG52: amend | CH52: 292.8 | CI52: 51.3 | CJ52: 9.4 | CK52: 292.9 | CL52: 1.2 | CM52: 2.545024037 | CN52: 0 | CO52: 0 | CP52: 0 | CQ52: 0 | CR52: 51.7 | CS52: 11 | CT52: 296.1 | CU52: 1.2 | CV52: 51.7 | CW52: 11 | CX52: 296.1 | CY52: 1.2 | CZ52: 0.007940939271 | DA52: 0.009928028782 | DB52: 0.9821059223 | DC52: 2.51096894e-05 | DD52: 0 | DE52: 0 | DF52: 0 | DG52: 0 | DH52: 0.007146845344 | DI52: 0.01086042433 | DJ52: 0.9819701316 | DK52: 2.259872046e-05 | DL52: 0 | DM52: 0 | DN52: 0 | DO52: 0 | DP52: 0 | DQ52: 0 | DR52: 0 | DS52: 0 | DT52: 0 | DU52: 0 | DV52: 0 | DW52: 0 | DX52: 0 | DY52: 0 | DZ52: 0 | EA52: 0 | EB52: 0 | EC52: 0 | ED52: 0 | EE52: 0 | EF52: 51.7 | EG52: 11 | EH52: 296.1 | EI52: 1.2 | EJ52: 51.7 | EK52: 11 | EL52: 296.1 | EM52: 1.2 | EN52: 0 | EO52: 0
A53: PLE/7DE. | B53: 3922 | C53: -0.1814 | D53: 3211 | E53: =VLOOKUP(A53,'All stocks'!$A$5:$B$202,2,FALSE) -> 1177 | F53: 963 | G53: 0.290909 | H53: 1 | I53: 0.3 | J53: 0.2909 | K53: 934 | L53: 29 | M53: 0 | N53: 0 | O53: 29 | P53: 0 | Q53: 0 | R53: 0 | S53: 0 | T53: 0 | U53: 0 | V53: 0.0091 | W53: 0 | X53: 29 | Y53: 0 | Z53: 0 | AA53: 934 | AB53: 0.21 | AC53: 0 | AD53: 0.0217386961 | AE53: =SUMIFS('UK FQA'!D:D,'UK FQA'!B:B,A53,'UK FQA'!A:A,'Main apportion'!$AE$6) -> 17817 | AF53: =SUMIFS('UK FQA'!D:D,'UK FQA'!B:B,A53,'UK FQA'!A:A,'Main apportion'!$AF$6) -> 2311 | AG53: =SUMIFS('FA FQA'!G:G,'FA FQA'!E:E,'Main apportion'!A53,'FA FQA'!D:D,'Main apportion'!$AG$6) -> 689 | AH53: 196.14 | AI53: 121.1468822 | AJ53: 196.1 | AK53: 0.978 | AL53: 0.0008 | AM53: 0.0071 | AN53: 0.0141 | AO53: =ROUND(IFERROR($AJ53*(AK53/SUM($AK53:$AN53)),0),1) -> 191.8 | AP53: 0.2 | AQ53: 1.4 | AR53: 2.8 | AS53: =IF(AJ53-SUM(AO53:AR53)=0,0,AJ53-SUM(AO53:AR53)) -> -0.1 | AT53: amend | AU53: 191.8 | AV53: 191.7 | AW53: 0.2 | AX53: 1.4 | AY53: 2.8 | AZ53: 0 | BA53: =SUMIFS('UK FQA'!D:D,'UK FQA'!B:B,'Main apportion'!A53,'UK FQA'!A:A,'Main apportion'!$BA$6) -> 0 | BB53: 0 | BC53: 20.30394216 | BD53: 36.11865073 | BE53: 36.1 | BF53: =SUMIFS('FA FQA'!$G:$G,'FA FQA'!$E:$E,'Main apportion'!$A53,'FA FQA'!$B:$B,'Main apportion'!BF$2,'FA FQA'!$D:$D,'Main apportion'!BF$3) -> 688 | BG53: =SUMIFS('FA FQA'!$G:$G,'FA FQA'!$E:$E,'Main apportion'!$A53,'FA FQA'!$B:$B,'Main apportion'!BG$2,'FA FQA'!$D:$D,'Main apportion'!BG$3) -> 0 | BH53: =SUMIFS('FA FQA'!$G:$G,'FA FQA'!$E:$E,'Main apportion'!$A53,'FA FQA'!$B:$B,'Main apportion'!BH$2,'FA FQA'!$D:$D,'Main apportion'!BH$3) -> 1 | BI53: =SUMIFS('FA FQA'!$G:$G,'FA FQA'!$E:$E,'Main apportion'!$A53,'FA FQA'!$B:$B,'Main apportion'!BI$2,'FA FQA'!$D:$D,'Main apportion'!BI$3) -> 0 | BJ53: 36 | BK53: 0 | BL53: 0.1 | BM53: 0 | BN53: 0 | BO53: 0 | BP53: 0 | BQ53: 36 | BR53: 0 | BS53: 0.1 | BT53: 0 | BU53: 0 | BV53: =SUMIFS('FA FQA'!$G:$G,'FA FQA'!$E:$E,'Main apportion'!$A53,'FA FQA'!$B:$B,'Main apportion'!BV$2,'FA FQA'!$D:$D,'Main apportion'!BV$3) -> 14079 | BW53: =SUMIFS('FA FQA'!$G:$G,'FA FQA'!$E:$E,'Main apportion'!$A53,'FA FQA'!$B:$B,'Main apportion'!BW$2,'FA FQA'!$D:$D,'Main apportion'!BW$3) -> 24 | BX53: =SUMIFS('FA FQA'!$G:$G,'FA FQA'!$E:$E,'Main apportion'!$A53,'FA FQA'!$B:$B,'Main apportion'!BX$2,'FA FQA'!$D:$D,'Main apportion'!BX$3) -> 325 | BY53: =SUMIFS('FA FQA'!$G:$G,'FA FQA'!$E:$E,'Main apportion'!$A53,'FA FQA'!$B:$B,'Main apportion'!BY$2,'FA FQA'!$D:$D,'Main apportion'!BY$3) -> 389 | BZ53: 14817 | CA53: 701.8 | CB53: 666.8 | CC53: 1.1 | CD53: 15.4 | CE53: 18.4 | CF53: 0.1 | CG53: amend | CH53: 666.8 | CI53: 666.9 | CJ53: 1.1 | CK53: 15.4 | CL53: 18.4 | CM53: 4.735776473 | CN53: 0 | CO53: 0 | CP53: 0 | CQ53: 0 | CR53: 894.6 | CS53: 1.3 | CT53: 16.9 | CU53: 21.2 | CV53: 894.6 | CW53: 1.3 | CX53: 16.9 | CY53: 21.2 | CZ53: 0.9842392447 | DA53: 0.0003008561389 | DB53: 0.008131368644 | DC53: 0.00732853051 | DD53: 0 | DE53: 0 | DF53: 0 | DG53: 0 | DH53: 0.9858153202 | DI53: 0.000270770525 | DJ53: 0.00731823178 | DK53: 0.006595677459 | DL53: 28.6 | DM53: 0 | DN53: 0.2 | DO53: 0.2 | DP53: 28.6 | DQ53: 0 | DR53: 0.2 | DS53: 0.2 | DT53: 28.6 | DU53: 0 | DV53: 0.2 | DW53: 0.2 | DX53: 0 | DY53: 0 | DZ53: 0 | EA53: 28.6 | EB53: 0 | EC53: 0.2 | ED53: 0.2 | EE53: 0 | EF53: 923.2 | EG53: 1.3 | EH53: 17.1 | EI53: 21.4 | EJ53: 923.2 | EK53: 1.3 | EL53: 17.1 | EM53: 21.4 | EN53: 0 | EO53: 0
A54: PLE/7FG. | B54: 114 | C54: -0.0415 | D54: 109 | E54: =VLOOKUP(A54,'All stocks'!$A$5:$B$202,2,FALSE) -> 30 | F54: 29 | G54: 0.234483 | H54: 1 | I54: 0.2626 | J54: 0.2345 | K54: 26 | L54: 3 | M54: 32 | N54: 3 | O54: 0 | P54: 0 | Q54: 0 | R54: 0 | S54: 0 | T54: 0 | U54: 0 | V54: 0.0281 | W54: 1 | X54: 0 | Y54: 0 | Z54: 0 | AA54: 26 | AB54: 0.187 | AC54: 0 | AD54: 0.004404095117 | AE54: =SUMIFS('UK FQA'!D:D,'UK FQA'!B:B,A54,'UK FQA'!A:A,'Main apportion'!$AE$6) -> 2494 | AF54: =SUMIFS('UK FQA'!D:D,'UK FQA'!B:B,A54,'UK FQA'!A:A,'Main apportion'!$AF$6) -> 208 | AG54: =SUMIFS('FA FQA'!G:G,'FA FQA'!E:E,'Main apportion'!A54,'FA FQA'!D:D,'Main apportion'!$AG$6) -> 3 | AH54: 4.862 | AI54: 2.16840417 | AJ54: 4.9 | AK54: 0.6637 | AL54: 0.0464 | AM54: 0.0004 | AN54: 0.2895 | AO54: =ROUND(IFERROR($AJ54*(AK54/SUM($AK54:$AN54)),0),1) -> 3.3 | AP54: 0.2 | AQ54: 0 | AR54: 1.4 | AS54: 0 | AT54: 0 | AU54: 0 | AV54: 3.3 | AW54: 0.2 | AX54: 0 | AY54: 1.4 | AZ54: 0 | BA54: =SUMIFS('UK FQA'!D:D,'UK FQA'!B:B,'Main apportion'!A54,'UK FQA'!A:A,'Main apportion'!$BA$6) -> 0 | BB54: 0 | BC54: 0.114506473 | BD54: 0.03127506014 | BE54: 0.1 | BF54: =SUMIFS('FA FQA'!$G:$G,'FA FQA'!$E:$E,'Main apportion'!$A54,'FA FQA'!$B:$B,'Main apportion'!BF$2,'FA FQA'!$D:$D,'Main apportion'!BF$3) -> 1 | BG54: =SUMIFS('FA FQA'!$G:$G,'FA FQA'!$E:$E,'Main apportion'!$A54,'FA FQA'!$B:$B,'Main apportion'!BG$2,'FA FQA'!$D:$D,'Main apportion'!BG$3) -> 2 | BH54: =SUMIFS('FA FQA'!$G:$G,'FA FQA'!$E:$E,'Main apportion'!$A54,'FA FQA'!$B:$B,'Main apportion'!BH$2,'FA FQA'!$D:$D,'Main apportion'!BH$3) -> 0 | BI54: =SUMIFS('FA FQA'!$G:$G,'FA FQA'!$E:$E,'Main apportion'!$A54,'FA FQA'!$B:$B,'Main apportion'!BI$2,'FA FQA'!$D:$D,'Main apportion'!BI$3) -> 0 | BJ54: 0 | BK54: 0.1 | BL54: 0 | BM54: 0 | BN54: 0 | BO54: 0 | BP54: 0 | BQ54: 0 | BR54: 0.1 | BS54: 0 | BT54: 0 | BU54: 0 | BV54: =SUMIFS('FA FQA'!$G:$G,'FA FQA'!$E:$E,'Main apportion'!$A54,'FA FQA'!$B:$B,'Main apportion'!BV$2,'FA FQA'!$D:$D,'Main apportion'!BV$3) -> 2028 | BW54: =SUMIFS('FA FQA'!$G:$G,'FA FQA'!$E:$E,'Main apportion'!$A54,'FA FQA'!$B:$B,'Main apportion'!BW$2,'FA FQA'!$D:$D,'Main apportion'!BW$3) -> 52 | BX54: =SUMIFS('FA FQA'!$G:$G,'FA FQA'!$E:$E,'Main apportion'!$A54,'FA FQA'!$B:$B,'Main apportion'!BX$2,'FA FQA'!$D:$D,'Main apportion'!BX$3) -> 25 | BY54: =SUMIFS('FA FQA'!$G:$G,'FA FQA'!$E:$E,'Main apportion'!$A54,'FA FQA'!$B:$B,'Main apportion'!BY$2,'FA FQA'!$D:$D,'Main apportion'!BY$3) -> 178 | BZ54: 2283 | CA54: 21 | CB54: 18.7 | CC54: 0.5 | CD54: 0.2 | CE54: 1.6 | CF54: 0 | CG54: 0 | CH54: 0 | CI54: 18.7 | CJ54: 0.5 | CK54: 0.2 | CL54: 1.6 | CM54: 0.9198423127 | CN54: 0 | CO54: 0 | CP54: 0 | CQ54: 0 | CR54: 22 | CS54: 0.8 | CT54: 0.2 | CU54: 3 | CV54: 22 | CW54: 0.8 | CX54: 0.2 | CY54: 3 | CZ54: 0.875628064 | DA54: 0.009364214331 | DB54: 0.004659303557 | DC54: 0.1103484181 | DD54: 0 | DE54: 0 | DF54: 0 | DG54: 0 | DH54: 0.8569520385 | DI54: 0.008427792898 | DJ54: 0.004193373201 | DK54: 0.1304267954 | DL54: 0 | DM54: 0 | DN54: 0 | DO54: 3 | DP54: 0 | DQ54: 0 | DR54: 0 | DS54: 3 | DT54: 0 | DU54: 0 | DV54: 0 | DW54: 3 | DX54: 0 | DY54: 0 | DZ54: 0 | EA54: 0 | EB54: 0 | EC54: 0 | ED54: 3 | EE54: 0 | EF54: 22 | EG54: 0.8 | EH54: 0.2 | EI54: 6 | EJ54: 22 | EK54: 0.8 | EL54: 0.2 | EM54: 6 | EN54: 0 | EO54: 0
A55: PLE/7HJK. | B55: 130 | C55: 0 | D55: 130 | E55: =VLOOKUP(A55,'All stocks'!$A$5:$B$202,2,FALSE) -> 23 | F55: 23 | G55: 0.125 | H55: 1 | I55: 0.1791 | J55: 0.125 | K55: 16 | L55: 7 | M55: 0 | N55: 0 | O55: 7 | P55: 0.043789 | Q55: 5.7 | R55: 0.043789 | S55: 0 | T55: 0 | U55: 5.7 | V55: 0.010311 | W55: 0 | X55: 1.3 | Y55: 0 | Z55: 0 | AA55: 16 | AB55: 0 | AC55: 0 | AD55: 0 | AE55: =SUMIFS('UK FQA'!D:D,'UK FQA'!B:B,A55,'UK FQA'!A:A,'Main apportion'!$AE$6) -> 2324 | AF55: =SUMIFS('UK FQA'!D:D,'UK FQA'!B:B,A55,'UK FQA'!A:A,'Main apportion'!$AF$6) -> 0 | AG55: =SUMIFS('FA FQA'!G:G,'FA FQA'!E:E,'Main apportion'!A55,'FA FQA'!D:D,'Main apportion'!$AG$6) -> 0 | AH55: 0 | AI55: 0 | AJ55: 0 | AK55: 0 | AL55: 0 | AM55: 0 | AN55: 0 | AO55: 0 | AP55: 0 | AQ55: 0 | AR55: 0 | AS55: 0 | AT55: 0 | AU55: 0 | AV55: 0 | AW55: 0 | AX55: 0 | AY55: 0 | AZ55: 0 | BA55: =SUMIFS('UK FQA'!D:D,'UK FQA'!B:B,'Main apportion'!A55,'UK FQA'!A:A,'Main apportion'!$BA$6) -> 0 | BB55: 0 | BC55: 0 | BD55: 0 | BE55: 0 | BF55: =SUMIFS('FA FQA'!$G:$G,'FA FQA'!$E:$E,'Main apportion'!$A55,'FA FQA'!$B:$B,'Main apportion'!BF$2,'FA FQA'!$D:$D,'Main apportion'!BF$3) -> 0 | BG55: =SUMIFS('FA FQA'!$G:$G,'FA FQA'!$E:$E,'Main apportion'!$A55,'FA FQA'!$B:$B,'Main apportion'!BG$2,'FA FQA'!$D:$D,'Main apportion'!BG$3) -> 0 | BH55: =SUMIFS('FA FQA'!$G:$G,'FA FQA'!$E:$E,'Main apportion'!$A55,'FA FQA'!$B:$B,'Main apportion'!BH$2,'FA FQA'!$D:$D,'Main apportion'!BH$3) -> 0 | BI55: =SUMIFS('FA FQA'!$G:$G,'FA FQA'!$E:$E,'Main apportion'!$A55,'FA FQA'!$B:$B,'Main apportion'!BI$2,'FA FQA'!$D:$D,'Main apportion'!BI$3) -> 0 | BJ55: 0 | BK55: 0 | BL55: 0 | BM55: 0 | BN55: 0 | BO55: 0 | BP55: 0 | BQ55: 0 | BR55: 0 | BS55: 0 | BT55: 0 | BU55: 0 | BV55: =SUMIFS('FA FQA'!$G:$G,'FA FQA'!$E:$E,'Main apportion'!$A55,'FA FQA'!$B:$B,'Main apportion'!BV$2,'FA FQA'!$D:$D,'Main apportion'!BV$3) -> 2100 | BW55: =SUMIFS('FA FQA'!$G:$G,'FA FQA'!$E:$E,'Main apportion'!$A55,'FA FQA'!$B:$B,'Main apportion'!BW$2,'FA FQA'!$D:$D,'Main apportion'!BW$3) -> 4 | BX55: =SUMIFS('FA FQA'!$G:$G,'FA FQA'!$E:$E,'Main apportion'!$A55,'FA FQA'!$B:$B,'Main apportion'!BX$2,'FA FQA'!$D:$D,'Main apportion'!BX$3) -> 34 | BY55: =SUMIFS('FA FQA'!$G:$G,'FA FQA'!$E:$E,'Main apportion'!$A55,'FA FQA'!$B:$B,'Main apportion'!BY$2,'FA FQA'!$D:$D,'Main apportion'!BY$3) -> 186 | BZ55: 2324 | CA55: 16 | CB55: 14.5 | CC55: 0 | CD55: 0.2 | CE55: 1.3 | CF55: 0 | CG55: 0 | CH55: 0 | CI55: 14.5 | CJ55: 0 | CK55: 0.2 | CL55: 1.3 | CM55: 0.6884681583 | CN55: 0 | CO55: 0 | CP55: 0 | CQ55: 0 | CR55: 14.5 | CS55: 0 | CT55: 0.2 | CU55: 1.3 | CV55: 14.5 | CW55: 0 | CX55: 0.2 | CY55: 1.3 | CZ55: 0.9662881638 | DA55: 0.0004589928808 | DB55: 0.03325284328 | DC55: 0 | DD55: 5.5 | DE55: 0 | DF55: 0.2 | DG55: 0 | DH55: 0.9696593475 | DI55: 0.0004130935927 | DJ55: 0.02992755895 | DK55: 0 | DL55: 1.3 | DM55: 0 | DN55: 0 | DO55: 0 | DP55: 6.8 | DQ55: 0 | DR55: 0.2 | DS55: 0 | DT55: 6.8 | DU55: 0 | DV55: 0.2 | DW55: 0 | DX55: 0 | DY55: 0 | DZ55: 0 | EA55: 6.8 | EB55: 0 | EC55: 0.2 | ED55: 0 | EE55: 0 | EF55: 21.3 | EG55: 0 | EH55: 0.4 | EI55: 1.3 | EJ55: 21.3 | EK55: 0 | EL55: 0.4 | EM55: 1.3 | EN55: 0 | EO55: 0
A56: POK/2C3A4 | B56: 71638 | C56: 0 | D56: 71638 | E56: =VLOOKUP(A56,'All stocks'!$A$5:$B$202,2,FALSE) -> 8940 | F56: 8940 | G56: 0.167258 | H56: 0.48 | I56: 0.26 | J56: 0.0803 | K56: 5753 | L56: 3187 | M56: 0 | N56: 0 | O56: 3187 | P56: 0.037307 | Q56: 2672.6 | R56: 0.037307 | S56: 0 | T56: 0 | U56: 2672.6 | V56: 0.142393 | W56: 0 | X56: 514.4 | Y56: 0 | Z56: 0 | AA56: 5753 | AB56: 0 | AC56: 20 | AD56: 0 | AE56: =SUMIFS('UK FQA'!D:D,'UK FQA'!B:B,A56,'UK FQA'!A:A,'Main apportion'!$AE$6) -> 87537 | AF56: =SUMIFS('UK FQA'!D:D,'UK FQA'!B:B,A56,'UK FQA'!A:A,'Main apportion'!$AF$6) -> 123 | AG56: =SUMIFS('FA FQA'!G:G,'FA FQA'!E:E,'Main apportion'!A56,'FA FQA'!D:D,'Main apportion'!$AG$6) -> 54 | AH56: 0 | AI56: 8.083656054 | AJ56: 20 | AK56: 0.4379 | AL56: 0 | AM56: 0.562 | AN56: 0.0001 | AO56: 8.8 | AP56: 0 | AQ56: 11.2 | AR56: 0 | AS56: 0 | AT56: 0 | AU56: 0 | AV56: 8.8 | AW56: 0 | AX56: 11.2 | AY56: 0 | AZ56: 0 | BA56: =SUMIFS('UK FQA'!D:D,'UK FQA'!B:B,'Main apportion'!A56,'UK FQA'!A:A,'Main apportion'!$BA$6) -> 0 | BB56: 0 | BC56: 0 | BD56: 3.54892217 | BE56: 3.5 | BF56: =SUMIFS('FA FQA'!$G:$G,'FA FQA'!$E:$E,'Main apportion'!$A56,'FA FQA'!$B:$B,'Main apportion'!BF$2,'FA FQA'!$D:$D,'Main apportion'!BF$3) -> 2 | BG56: =SUMIFS('FA FQA'!$G:$G,'FA FQA'!$E:$E,'Main apportion'!$A56,'FA FQA'!$B:$B,'Main apportion'!BG$2,'FA FQA'!$D:$D,'Main apportion'!BG$3) -> 0 | BH56: =SUMIFS('FA FQA'!$G:$G,'FA FQA'!$E:$E,'Main apportion'!$A56,'FA FQA'!$B:$B,'Main apportion'!BH$2,'FA FQA'!$D:$D,'Main apportion'!BH$3) -> 52 | BI56: =SUMIFS('FA FQA'!$G:$G,'FA FQA'!$E:$E,'Main apportion'!$A56,'FA FQA'!$B:$B,'Main apportion'!BI$2,'FA FQA'!$D:$D,'Main apportion'!BI$3) -> 0 | BJ56: 0.1 | BK56: 0 | BL56: 3.4 | BM56: 0 | BN56: 0 | BO56: 0 | BP56: 0 | BQ56: 0.1 | BR56: 0 | BS56: 3.4 | BT56: 0 | BU56: 0 | BV56: =SUMIFS('FA FQA'!$G:$G,'FA FQA'!$E:$E,'Main apportion'!$A56,'FA FQA'!$B:$B,'Main apportion'!BV$2,'FA FQA'!$D:$D,'Main apportion'!BV$3) -> 38796 | BW56: =SUMIFS('FA FQA'!$G:$G,'FA FQA'!$E:$E,'Main apportion'!$A56,'FA FQA'!$B:$B,'Main apportion'!BW$2,'FA FQA'!$D:$D,'Main apportion'!BW$3) -> 966 | BX56: =SUMIFS('FA FQA'!$G:$G,'FA FQA'!$E:$E,'Main apportion'!$A56,'FA FQA'!$B:$B,'Main apportion'!BX$2,'FA FQA'!$D:$D,'Main apportion'!BX$3) -> 47598 | BY56: =SUMIFS('FA FQA'!$G:$G,'FA FQA'!$E:$E,'Main apportion'!$A56,'FA FQA'!$B:$B,'Main apportion'!BY$2,'FA FQA'!$D:$D,'Main apportion'!BY$3) -> 0 | BZ56: 87360 | CA56: 5729.5 | CB56: 2544.4 | CC56: 63.4 | CD56: =ROUND(IFERROR(CA56*(BX56/$BZ56),0),1) -> 3121.7 | CE56: 0 | CF56: 0 | CG56: 0 | CH56: 0 | CI56: 2544.4 | CJ56: 63.4 | CK56: 3121.7 | CL56: 0 | CM56: 6.55849359 | CN56: 0 | CO56: 0 | CP56: 0 | CQ56: 0 | CR56: 2553.3 | CS56: 63.4 | CT56: 3136.3 | CU56: 0 | CV56: 2553.3 | CW56: 63.4 | CX56: 3136.3 | CY56: 0 | CZ56: 0.3704901122 | DA56: 0.0003533731699 | DB56: 0.6291565146 | DC56: 0 | DD56: 990.2 | DE56: 0.9 | DF56: 1681.5 | DG56: 0 | DH56: 0.33346406 | DI56: 0.000318035853 | DJ56: 0.6662179041 | DK56: 0 | DL56: 171.5 | DM56: 0.2 | DN56: 342.7 | DO56: 0 | DP56: 1161.7 | DQ56: 1.1 | DR56: 2024.2 | DS56: 0 | DT56: 1161.7 | DU56: 1.1 | DV56: =ROUND(DR56,1) -> 2024.2 | DW56: 0 | DX56: 0 | DY56: 0 | DZ56: 0 | EA56: 1161.7 | EB56: 1.1 | EC56: 2024.2 | ED56: 0 | EE56: 0 | EF56: 3715 | EG56: 64.5 | EH56: 5160.5 | EI56: 0 | EJ56: 3715 | EK56: 64.5 | EL56: 5160.5 | EM56: 0 | EN56: 0 | EO56: 0
A57: POK/56-14 | B57: 7433 | C57: 0 | D57: 7433 | E57: =VLOOKUP(A57,'All stocks'!$A$5:$B$202,2,FALSE) -> 3791 | F57: 3791 | G57: 0.411277 | H57: 1 | I57: 0.51 | J57: 0.4113 | K57: 3057 | L57: 734 | M57: 0 | N57: 0 | O57: 734 | P57: 0 | Q57: 0 | R57: 0 | S57: 0 | T57: 0 | U57: 0 | V57: 0.0987 | W57: 0 | X57: 734 | Y57: 0 | Z57: 0 | AA57: 3057 | AB57: 0 | AC57: 5 | AD57: 0 | AE57: =SUMIFS('UK FQA'!D:D,'UK FQA'!B:B,A57,'UK FQA'!A:A,'Main apportion'!$AE$6) -> 36928 | AF57: =SUMIFS('UK FQA'!D:D,'UK FQA'!B:B,A57,'UK FQA'!A:A,'Main apportion'!$AF$6) -> 6 | AG57: =SUMIFS('FA FQA'!G:G,'FA FQA'!E:E,'Main apportion'!A57,'FA FQA'!D:D,'Main apportion'!$AG$6) -> 18 | AH57: 0 | AI57: 0.4966962738 | AJ57: 5 | AK57: 0.25 | AL57: 0.25 | AM57: 0.25 | AN57: 0.25 | AO57: =ROUND(IFERROR($AJ57*(AK57/SUM($AK57:$AN57)),0),1) -> 1.3 | AP57: =ROUND(IFERROR($AJ57*(AL57/SUM($AK57:$AN57)),0),1) -> 1.3 | AQ57: =ROUND(IFERROR($AJ57*(AM57/SUM($AK57:$AN57)),0),1) -> 1.3 | AR57: =ROUND(IFERROR($AJ57*(AN57/SUM($AK57:$AN57)),0),1) -> 1.3 | AS57: -0.2 | AT57: amend | AU57: 1.3 | AV57: =IF(AO57=$AU57,AO57+$AS57,AO57)+0.1 -> 1.2 | AW57: =IF(AP57=$AU57,AP57+$AS57,AP57)+0.2 -> 1.3 | AX57: =IF(AQ57=$AU57,AQ57+$AS57,AQ57)+0.2 -> 1.3 | AY57: =IF(AR57=$AU57,AR57+$AS57,AR57)+0.1 -> 1.2 | AZ57: =SUM(AV57:AY57)-AJ57 -> 0 | BA57: =SUMIFS('UK FQA'!D:D,'UK FQA'!B:B,'Main apportion'!A57,'UK FQA'!A:A,'Main apportion'!$BA$6) -> 0 | BB57: 0 | BC57: 0 | BD57: 1.490088821 | BE57: 1.5 | BF57: =SUMIFS('FA FQA'!$G:$G,'FA FQA'!$E:$E,'Main apportion'!$A57,'FA FQA'!$B:$B,'Main apportion'!BF$2,'FA FQA'!$D:$D,'Main apportion'!BF$3) -> 15 | BG57: =SUMIFS('FA FQA'!$G:$G,'FA FQA'!$E:$E,'Main apportion'!$A57,'FA FQA'!$B:$B,'Main apportion'!BG$2,'FA FQA'!$D:$D,'Main apportion'!BG$3) -> 0 | BH57: =SUMIFS('FA FQA'!$G:$G,'FA FQA'!$E:$E,'Main apportion'!$A57,'FA FQA'!$B:$B,'Main apportion'!BH$2,'FA FQA'!$D:$D,'Main apportion'!BH$3) -> 3 | BI57: =SUMIFS('FA FQA'!$G:$G,'FA FQA'!$E:$E,'Main apportion'!$A57,'FA FQA'!$B:$B,'Main apportion'!BI$2,'FA FQA'!$D:$D,'Main apportion'!BI$3) -> 0 | BJ57: 1.3 | BK57: 0 | BL57: 0.3 | BM57: 0 | BN57: -0.1 | BO57: amend | BP57: 1.3 | BQ57: 1.2 | BR57: 0 | BS57: 0.3 | BT57: =IF(BM57=$BP57,BM57+$BN57,BM57) -> 0 | BU57: 0 | BV57: =SUMIFS('FA FQA'!$G:$G,'FA FQA'!$E:$E,'Main apportion'!$A57,'FA FQA'!$B:$B,'Main apportion'!BV$2,'FA FQA'!$D:$D,'Main apportion'!BV$3) -> 12115 | BW57: =SUMIFS('FA FQA'!$G:$G,'FA FQA'!$E:$E,'Main apportion'!$A57,'FA FQA'!$B:$B,'Main apportion'!BW$2,'FA FQA'!$D:$D,'Main apportion'!BW$3) -> 671 | BX57: =SUMIFS('FA FQA'!$G:$G,'FA FQA'!$E:$E,'Main apportion'!$A57,'FA FQA'!$B:$B,'Main apportion'!BX$2,'FA FQA'!$D:$D,'Main apportion'!BX$3) -> 24011 | BY57: =SUMIFS('FA FQA'!$G:$G,'FA FQA'!$E:$E,'Main apportion'!$A57,'FA FQA'!$B:$B,'Main apportion'!BY$2,'FA FQA'!$D:$D,'Main apportion'!BY$3) -> 107 | BZ57: 36904 | CA57: 3050.5 | CB57: 1001.4 | CC57: 55.5 | CD57: =ROUND(IFERROR(CA57*(BX57/$BZ57),0),1) -> 1984.8 | CE57: 8.8 | CF57: 0 | CG57: 0 | CH57: 0 | CI57: 1001.4 | CJ57: 55.5 | CK57: 1984.8 | CL57: 8.8 | CM57: 8.266041622 | CN57: 0 | CO57: 0 | CP57: 0 | CQ57: 0 | CR57: 1003.8 | CS57: 56.8 | CT57: =SUM(AX57,BS57,CK57,CP57) -> 1986.4 | CU57: 10 | CV57: 1003.8 | CW57: 56.8 | CX57: 1986.4 | CY57: 10 | CZ57: 0.08259769296 | DA57: 7.592946395e-05 | DB57: 0.9173263776 | DC57: 0 | DD57: 0 | DE57: 0 | DF57: 0 | DG57: 0 | DH57: 0.07433792366 | DI57: 8.372232027e-05 | DJ57: 0.925578354 | DK57: 0 | DL57: 54.6 | DM57: 0.1 | DN57: 679.4 | DO57: 0 | DP57: 54.6 | DQ57: 0.1 | DR57: 679.4 | DS57: 0 | DT57: 54.6 | DU57: 0.1 | DV57: 679.4 | DW57: 0 | DX57: -0.1 | DY57: amend | DZ57: 679.4 | EA57: 54.6 | EB57: 0.1 | EC57: 679.3 | ED57: 0 | EE57: 0 | EF57: 1058.4 | EG57: 56.9 | EH57: 2665.7 | EI57: 10 | EJ57: 1058.4 | EK57: 56.9 | EL57: =ROUND(EH57,1) -> 2665.7 | EM57: 10 | EN57: 0 | EO57: 0
A58: POK/7/3411 | B58: 1220 | C58: 0 | D58: 1220 | E58: =VLOOKUP(A58,'All stocks'!$A$5:$B$202,2,FALSE) -> 183 | F58: 183 | G58: 0.153453 | H58: 1 | I58: 0.15 | J58: 0.1535 | K58: 183 | L58: 0 | M58: 0 | N58: 0 | O58: 0 | P58: 0 | Q58: 0 | R58: 0 | S58: 0 | T58: 0 | U58: 0 | V58: 0 | W58: 0 | X58: 0 | Y58: 0 | Z58: 0 | AA58: 183 | AB58: 0.019 | AC58: 0 | AD58: 0 | AE58: =SUMIFS('UK FQA'!D:D,'UK FQA'!B:B,A58,'UK FQA'!A:A,'Main apportion'!$AE$6) -> 20476 | AF58: =SUMIFS('UK FQA'!D:D,'UK FQA'!B:B,A58,'UK FQA'!A:A,'Main apportion'!$AF$6) -> 70 | AG58: =SUMIFS('FA FQA'!G:G,'FA FQA'!E:E,'Main apportion'!A58,'FA FQA'!D:D,'Main apportion'!$AG$6) -> 33 | AH58: 3.477 | AI58: 0.6256104708 | AJ58: 3.5 | AK58: 0.9863 | AL58: 0 | AM58: 0.0011 | AN58: 0.0126 | AO58: 3.5 | AP58: 0 | AQ58: 0 | AR58: 0 | AS58: 0 | AT58: 0 | AU58: 0 | AV58: 3.5 | AW58: 0 | AX58: 0 | AY58: 0 | AZ58: 0 | BA58: =SUMIFS('UK FQA'!D:D,'UK FQA'!B:B,'Main apportion'!A58,'UK FQA'!A:A,'Main apportion'!$BA$6) -> 0 | BB58: 0 | BC58: 0 | BD58: 0.2949306505 | BE58: 0.3 | BF58: =SUMIFS('FA FQA'!$G:$G,'FA FQA'!$E:$E,'Main apportion'!$A58,'FA FQA'!$B:$B,'Main apportion'!BF$2,'FA FQA'!$D:$D,'Main apportion'!BF$3) -> 16 | BG58: =SUMIFS('FA FQA'!$G:$G,'FA FQA'!$E:$E,'Main apportion'!$A58,'FA FQA'!$B:$B,'Main apportion'!BG$2,'FA FQA'!$D:$D,'Main apportion'!BG$3) -> 1 | BH58: =SUMIFS('FA FQA'!$G:$G,'FA FQA'!$E:$E,'Main apportion'!$A58,'FA FQA'!$B:$B,'Main apportion'!BH$2,'FA FQA'!$D:$D,'Main apportion'!BH$3) -> 14 | BI58: =SUMIFS('FA FQA'!$G:$G,'FA FQA'!$E:$E,'Main apportion'!$A58,'FA FQA'!$B:$B,'Main apportion'!BI$2,'FA FQA'!$D:$D,'Main apportion'!BI$3) -> 2 | BJ58: 0.1 | BK58: =ROUND(IFERROR($BE58*(BG58/$AG58),0),1) -> 0 | BL58: =ROUND(IFERROR($BE58*(BH58/$AG58),0),1) -> 0.1 | BM58: 0 | BN58: 0.1 | BO58: amend | BP58: 0.1 | BQ58: =IF(BJ58=$BP58,BJ58+$BN58,BJ58) -> 0.2 | BR58: 0 | BS58: =IF(BL58=$BP58,BL58+$BN58,BL58)-0.1 -> 0.1 | BT58: 0 | BU58: 0 | BV58: =SUMIFS('FA FQA'!$G:$G,'FA FQA'!$E:$E,'Main apportion'!$A58,'FA FQA'!$B:$B,'Main apportion'!BV$2,'FA FQA'!$D:$D,'Main apportion'!BV$3) -> 8349 | BW58: =SUMIFS('FA FQA'!$G:$G,'FA FQA'!$E:$E,'Main apportion'!$A58,'FA FQA'!$B:$B,'Main apportion'!BW$2,'FA FQA'!$D:$D,'Main apportion'!BW$3) -> 4342 | BX58: =SUMIFS('FA FQA'!$G:$G,'FA FQA'!$E:$E,'Main apportion'!$A58,'FA FQA'!$B:$B,'Main apportion'!BX$2,'FA FQA'!$D:$D,'Main apportion'!BX$3) -> 7336 | BY58: =SUMIFS('FA FQA'!$G:$G,'FA FQA'!$E:$E,'Main apportion'!$A58,'FA FQA'!$B:$B,'Main apportion'!BY$2,'FA FQA'!$D:$D,'Main apportion'!BY$3) -> 346 | BZ58: 20373 | CA58: 179.2 | CB58: =ROUND(IFERROR(CA58*(BV58/$BZ58),0),1) -> 73.4 | CC58: 38.2 | CD58: 64.5 | CE58: 3 | CF58: 0.1 | CG58: amend | CH58: 73.4 | CI58: 73.5 | CJ58: 38.2 | CK58: 64.5 | CL58: 3 | CM58: 0.8791046974 | CN58: 0 | CO58: 0 | CP58: 0 | CQ58: 0 | CR58: 77.2 | CS58: 38.2 | CT58: 64.6 | CU58: 3 | CV58: 77.2 | CW58: 38.2 | CX58: 64.6 | CY58: 3 | CZ58: 0.9247133437 | DA58: 0.05791418544 | DB58: 0.01682082707 | DC58: 0.0005516437764 | DD58: 0 | DE58: 0 | DF58: 0 | DG58: 0 | DH58: 0.8910266964 | DI58: 0.05443101175 | DJ58: 0.01628880707 | DK58: 0.03825348477 | DL58: 0 | DM58: 0 | DN58: 0 | DO58: 0 | DP58: 0 | DQ58: 0 | DR58: 0 | DS58: 0 | DT58: 0 | DU58: 0 | DV58: 0 | DW58: 0 | DX58: 0 | DY58: 0 | DZ58: 0 | EA58: 0 | EB58: 0 | EC58: 0 | ED58: 0 | EE58: 0 | EF58: 77.2 | EG58: 38.2 | EH58: 64.6 | EI58: 3 | EJ58: 77.2 | EK58: 38.2 | EL58: 64.6 | EM58: 3 | EN58: 0 | EO58: 0
A59: POL/07. | B59: 689 | C59: 0 | D59: 689 | E59: =VLOOKUP(A59,'All stocks'!$A$5:$B$202,2,FALSE) -> 172 | F59: =IF(C59<0,ROUND(D59*I59,0),E59) -> 172 | G59: 0.174364 | H59: 1 | I59: 0.25 | J59: 0.1744 | K59: 120 | L59: 52 | M59: 10 | N59: 10 | O59: 42 | P59: 0 | Q59: 0 | R59: 0 | S59: 0 | T59: 0 | U59: 0 | V59: 0.0756 | W59: 1 | X59: 42 | Y59: 0 | Z59: 0 | AA59: 120 | AB59: 0.109 | AC59: 0 | AD59: 0 | AE59: =SUMIFS('UK FQA'!D:D,'UK FQA'!B:B,A59,'UK FQA'!A:A,'Main apportion'!$AE$6) -> 23206 | AF59: =SUMIFS('UK FQA'!D:D,'UK FQA'!B:B,A59,'UK FQA'!A:A,'Main apportion'!$AF$6) -> 1987 | AG59: =SUMIFS('FA FQA'!G:G,'FA FQA'!E:E,'Main apportion'!A59,'FA FQA'!D:D,'Main apportion'!$AG$6) -> 267 | AH59: 13.08 | AI59: 10.2749289 | AJ59: 13.1 | AK59: 0.987 | AL59: 0.001 | AM59: 0.0103 | AN59: 0.0017 | AO59: =ROUND(IFERROR($AJ59*(AK59/SUM($AK59:$AN59)),0),1) -> 12.9 | AP59: 0 | AQ59: 0.1 | AR59: 0 | AS59: 0.1 | AT59: amend | AU59: 12.9 | AV59: =IF(AO59=$AU59,AO59+$AS59,AO59) -> 13 | AW59: 0 | AX59: 0.1 | AY59: 0 | AZ59: 0 | BA59: =SUMIFS('UK FQA'!D:D,'UK FQA'!B:B,'Main apportion'!A59,'UK FQA'!A:A,'Main apportion'!$BA$6) -> 1389 | BB59: 7.2 | BC59: 0 | BD59: 1.380677411 | BE59: 1.4 | BF59: =SUMIFS('FA FQA'!$G:$G,'FA FQA'!$E:$E,'Main apportion'!$A59,'FA FQA'!$B:$B,'Main apportion'!BF$2,'FA FQA'!$D:$D,'Main apportion'!BF$3) -> 154 | BG59: =SUMIFS('FA FQA'!$G:$G,'FA FQA'!$E:$E,'Main apportion'!$A59,'FA FQA'!$B:$B,'Main apportion'!BG$2,'FA FQA'!$D:$D,'Main apportion'!BG$3) -> 1 | BH59: =SUMIFS('FA FQA'!$G:$G,'FA FQA'!$E:$E,'Main apportion'!$A59,'FA FQA'!$B:$B,'Main apportion'!BH$2,'FA FQA'!$D:$D,'Main apportion'!BH$3) -> 16 | BI59: =SUMIFS('FA FQA'!$G:$G,'FA FQA'!$E:$E,'Main apportion'!$A59,'FA FQA'!$B:$B,'Main apportion'!BI$2,'FA FQA'!$D:$D,'Main apportion'!BI$3) -> 96 | BJ59: 0.8 | BK59: 0 | BL59: 0.1 | BM59: 0.5 | BN59: 0 | BO59: 0 | BP59: 0 | BQ59: 0.8 | BR59: 0 | BS59: 0.1 | BT59: 0.5 | BU59: 0 | BV59: =SUMIFS('FA FQA'!$G:$G,'FA FQA'!$E:$E,'Main apportion'!$A59,'FA FQA'!$B:$B,'Main apportion'!BV$2,'FA FQA'!$D:$D,'Main apportion'!BV$3) -> 15003 | BW59: =SUMIFS('FA FQA'!$G:$G,'FA FQA'!$E:$E,'Main apportion'!$A59,'FA FQA'!$B:$B,'Main apportion'!BW$2,'FA FQA'!$D:$D,'Main apportion'!BW$3) -> 2162 | BX59: =SUMIFS('FA FQA'!$G:$G,'FA FQA'!$E:$E,'Main apportion'!$A59,'FA FQA'!$B:$B,'Main apportion'!BX$2,'FA FQA'!$D:$D,'Main apportion'!BX$3) -> 1832 | BY59: =SUMIFS('FA FQA'!$G:$G,'FA FQA'!$E:$E,'Main apportion'!$A59,'FA FQA'!$B:$B,'Main apportion'!BY$2,'FA FQA'!$D:$D,'Main apportion'!BY$3) -> 566 | BZ59: 19563 | CA59: 98.3 | CB59: =ROUND(IFERROR(CA59*(BV59/$BZ59),0),1) -> 75.4 | CC59: 10.9 | CD59: 9.2 | CE59: 2.8 | CF59: 0 | CG59: 0 | CH59: 0 | CI59: 75.4 | CJ59: 10.9 | CK59: 9.2 | CL59: 2.8 | CM59: 0.5024791699 | CN59: 0 | CO59: 0 | CP59: 0 | CQ59: 0 | CR59: 96.4 | CS59: 10.9 | CT59: 9.4 | CU59: 3.3 | CV59: 96.4 | CW59: 10.9 | CX59: 9.4 | CY59: 3.3 | CZ59: 0.969969209 | DA59: 0.02458017172 | DB59: 0.004000941409 | DC59: 0.001449677858 | DD59: 0 | DE59: 0 | DF59: 0 | DG59: 0 | DH59: 0.9730800287 | DI59: 0.02304954825 | DJ59: 0.003870423082 | DK59: 0 | DL59: 40.9 | DM59: 1 | DN59: 0.2 | DO59: 10 | DP59: 40.9 | DQ59: 1 | DR59: 0.2 | DS59: 10 | DT59: 40.9 | DU59: 1 | DV59: 0.2 | DW59: 10 | DX59: -0.1 | DY59: amend | DZ59: =IF(DY59="amend",MAX(DT59:DW59),0) -> 40.9 | EA59: =IF(DT59=560.4,DT59+$DX59,DT59)-0.1 -> 40.8 | EB59: =IF(DU59=$DZ59,DU59+$DX59,DU59) -> 1 | EC59: =IF(DV59=$DZ59,DV59+$DX59,DV59) -> 0.2 | ED59: =IF(DW59=$DZ59,DW59+$DX59,DW59) -> 10 | EE59: 0 | EF59: 137.2 | EG59: 11.9 | EH59: 9.6 | EI59: 13.3 | EJ59: 137.2 | EK59: 11.9 | EL59: 9.6 | EM59: 13.3 | EN59: 0 | EO59: 0
A60: POL/56-14 | B60: 77 | C60: 0 | D60: 77 | E60: =VLOOKUP(A60,'All stocks'!$A$5:$B$202,2,FALSE) -> 26 | F60: 26 | G60: 0.366197 | H60: 1 | I60: 0.3662 | J60: 0.3662 | K60: 26 | L60: 0 | M60: 0 | N60: 0 | O60: 0 | P60: 0 | Q60: 0 | R60: 0 | S60: 0 | T60: 0 | U60: 0 | V60: 0 | W60: 0 | X60: 0 | Y60: 0 | Z60: 0 | AA60: 26 | AB60: 0 | AC60: 5 | AD60: 0 | AE60: =SUMIFS('UK FQA'!D:D,'UK FQA'!B:B,A60,'UK FQA'!A:A,'Main apportion'!$AE$6) -> 2863 | AF60: =SUMIFS('UK FQA'!D:D,'UK FQA'!B:B,A60,'UK FQA'!A:A,'Main apportion'!$AF$6) -> 8 | AG60: =SUMIFS('FA FQA'!G:G,'FA FQA'!E:E,'Main apportion'!A60,'FA FQA'!D:D,'Main apportion'!$AG$6) -> 3 | AH60: 0 | AI60: 0.07265106532 | AJ60: 5 | AK60: 0.0043 | AL60: 0.0267 | AM60: 0.969 | AN60: 0 | AO60: 0 | AP60: 0.1 | AQ60: =ROUND(IFERROR($AJ60*(AM60/SUM($AK60:$AN60)),0),1) -> 4.8 | AR60: 0 | AS60: =IF(AJ60-SUM(AO60:AR60)=0,0,AJ60-SUM(AO60:AR60)) -> 0.1 | AT60: amend | AU60: 4.8 | AV60: 0 | AW60: 0.1 | AX60: 4.9 | AY60: 0 | AZ60: 0 | BA60: =SUMIFS('UK FQA'!D:D,'UK FQA'!B:B,'Main apportion'!A60,'UK FQA'!A:A,'Main apportion'!$BA$6) -> 0 | BB60: 0 | BC60: 0 | BD60: 0.02724414949 | BE60: 0 | BF60: =SUMIFS('FA FQA'!$G:$G,'FA FQA'!$E:$E,'Main apportion'!$A60,'FA FQA'!$B:$B,'Main apportion'!BF$2,'FA FQA'!$D:$D,'Main apportion'!BF$3) -> 2 | BG60: =SUMIFS('FA FQA'!$G:$G,'FA FQA'!$E:$E,'Main apportion'!$A60,'FA FQA'!$B:$B,'Main apportion'!BG$2,'FA FQA'!$D:$D,'Main apportion'!BG$3) -> 0 | BH60: =SUMIFS('FA FQA'!$G:$G,'FA FQA'!$E:$E,'Main apportion'!$A60,'FA FQA'!$B:$B,'Main apportion'!BH$2,'FA FQA'!$D:$D,'Main apportion'!BH$3) -> 0 | BI60: =SUMIFS('FA FQA'!$G:$G,'FA FQA'!$E:$E,'Main apportion'!$A60,'FA FQA'!$B:$B,'Main apportion'!BI$2,'FA FQA'!$D:$D,'Main apportion'!BI$3) -> 1 | BJ60: 0 | BK60: 0 | BL60: 0 | BM60: 0 | BN60: 0 | BO60: 0 | BP60: 0 | BQ60: 0 | BR60: 0 | BS60: 0 | BT60: 0 | BU60: 0 | BV60: =SUMIFS('FA FQA'!$G:$G,'FA FQA'!$E:$E,'Main apportion'!$A60,'FA FQA'!$B:$B,'Main apportion'!BV$2,'FA FQA'!$D:$D,'Main apportion'!BV$3) -> 1012 | BW60: =SUMIFS('FA FQA'!$G:$G,'FA FQA'!$E:$E,'Main apportion'!$A60,'FA FQA'!$B:$B,'Main apportion'!BW$2,'FA FQA'!$D:$D,'Main apportion'!BW$3) -> 170 | BX60: =SUMIFS('FA FQA'!$G:$G,'FA FQA'!$E:$E,'Main apportion'!$A60,'FA FQA'!$B:$B,'Main apportion'!BX$2,'FA FQA'!$D:$D,'Main apportion'!BX$3) -> 1540 | BY60: =SUMIFS('FA FQA'!$G:$G,'FA FQA'!$E:$E,'Main apportion'!$A60,'FA FQA'!$B:$B,'Main apportion'!BY$2,'FA FQA'!$D:$D,'Main apportion'!BY$3) -> 130 | BZ60: 2852 | CA60: 21 | CB60: 7.5 | CC60: 1.3 | CD60: 11.3 | CE60: 1 | CF60: -0.1 | CG60: amend | CH60: 11.3 | CI60: 7.5 | CJ60: 1.3 | CK60: 11.2 | CL60: 1 | CM60: 0.7398316971 | CN60: 0 | CO60: 0 | CP60: 0 | CQ60: 0 | CR60: 7.5 | CS60: 1.4 | CT60: 16.1 | CU60: 1 | CV60: 7.5 | CW60: 1.4 | CX60: 16.1 | CY60: 1 | CZ60: 0.01493487247 | DA60: 0.02468268598 | DB60: 0.9603824416 | DC60: 0 | DD60: 0 | DE60: 0 | DF60: 0 | DG60: 0 | DH60: 0.01344138522 | DI60: 0.02501608131 | DJ60: 0.9615425335 | DK60: 0 | DL60: 0 | DM60: 0 | DN60: 0 | DO60: 0 | DP60: 0 | DQ60: 0 | DR60: 0 | DS60: 0 | DT60: 0 | DU60: 0 | DV60: 0 | DW60: 0 | DX60: 0 | DY60: 0 | DZ60: 0 | EA60: 0 | EB60: 0 | EC60: 0 | ED60: 0 | EE60: 0 | EF60: 7.5 | EG60: 1.4 | EH60: 16.1 | EI60: 1 | EJ60: 7.5 | EK60: 1.4 | EL60: 16.1 | EM60: 1 | EN60: 0 | EO60: 0
A61: PRA/2AC4-C | B61: 0 | C61: 0 | D61: 0 | E61: =VLOOKUP(A61,'All stocks'!$A$5:$B$202,2,FALSE) -> 0 | F61: 0 | G61: 0.220082 | H61: 1 | I61: 0.2201 | J61: 0.2201 | K61: 0 | L61: 0 | M61: 0 | N61: 0 | O61: 0 | P61: 0 | Q61: 0 | R61: 0 | S61: 0 | T61: 0 | U61: 0 | V61: 0 | W61: 0 | X61: 0 | Y61: 0 | Z61: 0 | AA61: 0 | AB61: 0 | AC61: 0 | AD61: 0 | AE61: =SUMIFS('UK FQA'!D:D,'UK FQA'!B:B,A61,'UK FQA'!A:A,'Main apportion'!$AE$6) -> 12342 | AF61: =SUMIFS('UK FQA'!D:D,'UK FQA'!B:B,A61,'UK FQA'!A:A,'Main apportion'!$AF$6) -> 60 | AG61: =SUMIFS('FA FQA'!G:G,'FA FQA'!E:E,'Main apportion'!A61,'FA FQA'!D:D,'Main apportion'!$AG$6) -> 424 | AH61: 0 | AI61: 0 | AJ61: 0 | AK61: 0.25 | AL61: 0.25 | AM61: 0.25 | AN61: 0.25 | AO61: =ROUND(IFERROR($AJ61*(AK61/SUM($AK61:$AN61)),0),1) -> 0 | AP61: =ROUND(IFERROR($AJ61*(AL61/SUM($AK61:$AN61)),0),1) -> 0 | AQ61: =ROUND(IFERROR($AJ61*(AM61/SUM($AK61:$AN61)),0),1) -> 0 | AR61: =ROUND(IFERROR($AJ61*(AN61/SUM($AK61:$AN61)),0),1) -> 0 | AS61: 0 | AT61: 0 | AU61: 0 | AV61: =IF(AO61=$AU61,AO61+$AS61,AO61) -> 0 | AW61: 0 | AX61: 0 | AY61: 0 | AZ61: 0 | BA61: =SUMIFS('UK FQA'!D:D,'UK FQA'!B:B,'Main apportion'!A61,'UK FQA'!A:A,'Main apportion'!$BA$6) -> 0 | BB61: 0 | BC61: 0 | BD61: 0 | BE61: 0 | BF61: =SUMIFS('FA FQA'!$G:$G,'FA FQA'!$E:$E,'Main apportion'!$A61,'FA FQA'!$B:$B,'Main apportion'!BF$2,'FA FQA'!$D:$D,'Main apportion'!BF$3) -> 424 | BG61: =SUMIFS('FA FQA'!$G:$G,'FA FQA'!$E:$E,'Main apportion'!$A61,'FA FQA'!$B:$B,'Main apportion'!BG$2,'FA FQA'!$D:$D,'Main apportion'!BG$3) -> 0 | BH61: =SUMIFS('FA FQA'!$G:$G,'FA FQA'!$E:$E,'Main apportion'!$A61,'FA FQA'!$B:$B,'Main apportion'!BH$2,'FA FQA'!$D:$D,'Main apportion'!BH$3) -> 0 | BI61: =SUMIFS('FA FQA'!$G:$G,'FA FQA'!$E:$E,'Main apportion'!$A61,'FA FQA'!$B:$B,'Main apportion'!BI$2,'FA FQA'!$D:$D,'Main apportion'!BI$3) -> 0 | BJ61: 0 | BK61: 0 | BL61: 0 | BM61: 0 | BN61: 0 | BO61: 0 | BP61: 0 | BQ61: 0 | BR61: 0 | BS61: 0 | BT61: 0 | BU61: 0 | BV61: =SUMIFS('FA FQA'!$G:$G,'FA FQA'!$E:$E,'Main apportion'!$A61,'FA FQA'!$B:$B,'Main apportion'!BV$2,'FA FQA'!$D:$D,'Main apportion'!BV$3) -> 3284 | BW61: =SUMIFS('FA FQA'!$G:$G,'FA FQA'!$E:$E,'Main apportion'!$A61,'FA FQA'!$B:$B,'Main apportion'!BW$2,'FA FQA'!$D:$D,'Main apportion'!BW$3) -> 555 | BX61: =SUMIFS('FA FQA'!$G:$G,'FA FQA'!$E:$E,'Main apportion'!$A61,'FA FQA'!$B:$B,'Main apportion'!BX$2,'FA FQA'!$D:$D,'Main apportion'!BX$3) -> 8019 | BY61: =SUMIFS('FA FQA'!$G:$G,'FA FQA'!$E:$E,'Main apportion'!$A61,'FA FQA'!$B:$B,'Main apportion'!BY$2,'FA FQA'!$D:$D,'Main apportion'!BY$3) -> 0 | BZ61: 11858 | CA61: 0 | CB61: 0 | CC61: 0 | CD61: 0 | CE61: 0 | CF61: 0 | CG61: 0 | CH61: 0 | CI61: 0 | CJ61: 0 | CK61: 0 | CL61: 0 | CM61: 0 | CN61: 0 | CO61: 0 | CP61: 0 | CQ61: 0 | CR61: 0 | CS61: 0 | CT61: 0 | CU61: 0 | CV61: 0 | CW61: 0 | CX61: 0 | CY61: 0 | CZ61: 0.928388961 | DA61: 0 | DB61: 0.07161103899 | DC61: 0 | DD61: 0 | DE61: 0 | DF61: 0 | DG61: 0 | DH61: 0.8355715424 | DI61: 0 | DJ61: 0.1644284576 | DK61: 0 | DL61: 0 | DM61: 0 | DN61: 0 | DO61: 0 | DP61: 0 | DQ61: 0 | DR61: 0 | DS61: 0 | DT61: 0 | DU61: 0 | DV61: 0 | DW61: 0 | DX61: 0 | DY61: 0 | DZ61: 0 | EA61: 0 | EB61: 0 | EC61: 0 | ED61: 0 | EE61: 0 | EF61: 0 | EG61: 0 | EH61: 0 | EI61: 0 | EJ61: 0 | EK61: 0 | EL61: =ROUND(EH61,1) -> 0 | EM61: 0 | EN61: 0 | EO61: 0
A62: RNG/5B67- | B62: 1326 | C62: 0 | D62: 1326 | E62: =VLOOKUP(A62,'All stocks'!$A$5:$B$202,2,FALSE) -> 64 | F62: 64 | G62: 0.048353 | H62: 1 | I62: 0.0484 | J62: 0.0484 | K62: 64 | L62: 0 | M62: 0 | N62: 0 | O62: 0 | P62: 0 | Q62: 0 | R62: 0 | S62: 0 | T62: 0 | U62: 0 | V62: 0 | W62: 0 | X62: 0 | Y62: 0 | Z62: 0 | AA62: 64 | AB62: 0 | AC62: 0 | AD62: 0 | AE62: =SUMIFS('UK FQA'!D:D,'UK FQA'!B:B,A62,'UK FQA'!A:A,'Main apportion'!$AE$6) -> 8369 | AF62: =SUMIFS('UK FQA'!D:D,'UK FQA'!B:B,A62,'UK FQA'!A:A,'Main apportion'!$AF$6) -> 0 | AG62: =SUMIFS('FA FQA'!G:G,'FA FQA'!E:E,'Main apportion'!A62,'FA FQA'!D:D,'Main apportion'!$AG$6) -> 0 | AH62: 0 | AI62: 0 | AJ62: 0 | AK62: 0 | AL62: 0 | AM62: 0 | AN62: 0 | AO62: 0 | AP62: 0 | AQ62: 0 | AR62: 0 | AS62: 0 | AT62: 0 | AU62: 0 | AV62: 0 | AW62: 0 | AX62: 0 | AY62: 0 | AZ62: 0 | BA62: =SUMIFS('UK FQA'!D:D,'UK FQA'!B:B,'Main apportion'!A62,'UK FQA'!A:A,'Main apportion'!$BA$6) -> 0 | BB62: 0 | BC62: 0 | BD62: 0 | BE62: 0 | BF62: =SUMIFS('FA FQA'!$G:$G,'FA FQA'!$E:$E,'Main apportion'!$A62,'FA FQA'!$B:$B,'Main apportion'!BF$2,'FA FQA'!$D:$D,'Main apportion'!BF$3) -> 0 | BG62: =SUMIFS('FA FQA'!$G:$G,'FA FQA'!$E:$E,'Main apportion'!$A62,'FA FQA'!$B:$B,'Main apportion'!BG$2,'FA FQA'!$D:$D,'Main apportion'!BG$3) -> 0 | BH62: =SUMIFS('FA FQA'!$G:$G,'FA FQA'!$E:$E,'Main apportion'!$A62,'FA FQA'!$B:$B,'Main apportion'!BH$2,'FA FQA'!$D:$D,'Main apportion'!BH$3) -> 0 | BI62: =SUMIFS('FA FQA'!$G:$G,'FA FQA'!$E:$E,'Main apportion'!$A62,'FA FQA'!$B:$B,'Main apportion'!BI$2,'FA FQA'!$D:$D,'Main apportion'!BI$3) -> 0 | BJ62: 0 | BK62: 0 | BL62: 0 | BM62: 0 | BN62: 0 | BO62: 0 | BP62: 0 | BQ62: 0 | BR62: 0 | BS62: 0 | BT62: 0 | BU62: 0 | BV62: =SUMIFS('FA FQA'!$G:$G,'FA FQA'!$E:$E,'Main apportion'!$A62,'FA FQA'!$B:$B,'Main apportion'!BV$2,'FA FQA'!$D:$D,'Main apportion'!BV$3) -> 2368 | BW62: =SUMIFS('FA FQA'!$G:$G,'FA FQA'!$E:$E,'Main apportion'!$A62,'FA FQA'!$B:$B,'Main apportion'!BW$2,'FA FQA'!$D:$D,'Main apportion'!BW$3) -> 0 | BX62: =SUMIFS('FA FQA'!$G:$G,'FA FQA'!$E:$E,'Main apportion'!$A62,'FA FQA'!$B:$B,'Main apportion'!BX$2,'FA FQA'!$D:$D,'Main apportion'!BX$3) -> 6001 | BY62: =SUMIFS('FA FQA'!$G:$G,'FA FQA'!$E:$E,'Main apportion'!$A62,'FA FQA'!$B:$B,'Main apportion'!BY$2,'FA FQA'!$D:$D,'Main apportion'!BY$3) -> 0 | BZ62: 8369 | CA62: 64 | CB62: 18.1 | CC62: 0 | CD62: 45.9 | CE62: 0 | CF62: 0 | CG62: 0 | CH62: 0 | CI62: 18.1 | CJ62: 0 | CK62: 45.9 | CL62: 0 | CM62: 0.7647269686 | CN62: 0 | CO62: 0 | CP62: 0 | CQ62: 0 | CR62: 18.1 | CS62: 0 | CT62: 45.9 | CU62: 0 | CV62: 18.1 | CW62: 0 | CX62: 45.9 | CY62: 0 | CZ62: 0 | DA62: 0 | DB62: 1 | DC62: 0 | DD62: 0 | DE62: 0 | DF62: 0 | DG62: 0 | DH62: 0.0004222373736 | DI62: 0 | DJ62: 0.9995777626 | DK62: 0 | DL62: 0 | DM62: 0 | DN62: 0 | DO62: 0 | DP62: 0 | DQ62: 0 | DR62: 0 | DS62: 0 | DT62: 0 | DU62: 0 | DV62: 0 | DW62: 0 | DX62: 0 | DY62: 0 | DZ62: 0 | EA62: 0 | EB62: 0 | EC62: 0 | ED62: 0 | EE62: 0 | EF62: 18.1 | EG62: 0 | EH62: 45.9 | EI62: 0 | EJ62: 18.1 | EK62: 0 | EL62: 45.9 | EM62: 0 | EN62: 0 | EO62: 0
A63: SOL/07A. | B63: 609 | C63: -0.0988 | D63: 549 | E63: =VLOOKUP(A63,'All stocks'!$A$5:$B$202,2,FALSE) -> 142 | F63: 128 | G63: 0.221875 | H63: 1 | I63: 0.233 | J63: 0.2219 | K63: 122 | L63: =IFERROR(ROUND(IFERROR(IF(F63-K63<=0,0,F63-K63),""),1),0) -> 6 | M63: 1 | N63: 1 | O63: 5 | P63: 0 | Q63: 0 | R63: 0 | S63: 0 | T63: 0 | U63: 0 | V63: 0.0111 | W63: 1 | X63: 5 | Y63: 0 | Z63: 0 | AA63: 122 | AB63: 0.09 | AC63: 0 | AD63: 0 | AE63: =SUMIFS('UK FQA'!D:D,'UK FQA'!B:B,A63,'UK FQA'!A:A,'Main apportion'!$AE$6) -> 3421 | AF63: =SUMIFS('UK FQA'!D:D,'UK FQA'!B:B,A63,'UK FQA'!A:A,'Main apportion'!$AF$6) -> 71 | AG63: =SUMIFS('FA FQA'!G:G,'FA FQA'!E:E,'Main apportion'!A63,'FA FQA'!D:D,'Main apportion'!$AG$6) -> 14 | AH63: 10.98 | AI63: 2.532008185 | AJ63: 11 | AK63: 0.6078 | AL63: 0.0742 | AM63: 0.0158 | AN63: 0.3022 | AO63: 6.7 | AP63: 0.8 | AQ63: 0.2 | AR63: 3.3 | AS63: 0 | AT63: =IF(AS63<>0,"amend",0) -> 0 | AU63: =IF(AT63="amend",MAX(AO63:AR63),0) -> 0 | AV63: 6.7 | AW63: 0.8 | AX63: 0.2 | AY63: 3.3 | AZ63: 0 | BA63: =SUMIFS('UK FQA'!D:D,'UK FQA'!B:B,'Main apportion'!A63,'UK FQA'!A:A,'Main apportion'!$BA$6) -> 0 | BB63: 0 | BC63: 0 | BD63: 0.4992692195 | BE63: 0.5 | BF63: =SUMIFS('FA FQA'!$G:$G,'FA FQA'!$E:$E,'Main apportion'!$A63,'FA FQA'!$B:$B,'Main apportion'!BF$2,'FA FQA'!$D:$D,'Main apportion'!BF$3) -> 6 | BG63: =SUMIFS('FA FQA'!$G:$G,'FA FQA'!$E:$E,'Main apportion'!$A63,'FA FQA'!$B:$B,'Main apportion'!BG$2,'FA FQA'!$D:$D,'Main apportion'!BG$3) -> 0 | BH63: =SUMIFS('FA FQA'!$G:$G,'FA FQA'!$E:$E,'Main apportion'!$A63,'FA FQA'!$B:$B,'Main apportion'!BH$2,'FA FQA'!$D:$D,'Main apportion'!BH$3) -> 8 | BI63: =SUMIFS('FA FQA'!$G:$G,'FA FQA'!$E:$E,'Main apportion'!$A63,'FA FQA'!$B:$B,'Main apportion'!BI$2,'FA FQA'!$D:$D,'Main apportion'!BI$3) -> 0 | BJ63: 0.2 | BK63: 0 | BL63: 0.3 | BM63: 0 | BN63: 0 | BO63: 0 | BP63: 0 | BQ63: 0.2 | BR63: 0 | BS63: 0.3 | BT63: 0 | BU63: 0 | BV63: =SUMIFS('FA FQA'!$G:$G,'FA FQA'!$E:$E,'Main apportion'!$A63,'FA FQA'!$B:$B,'Main apportion'!BV$2,'FA FQA'!$D:$D,'Main apportion'!BV$3) -> 2650 | BW63: =SUMIFS('FA FQA'!$G:$G,'FA FQA'!$E:$E,'Main apportion'!$A63,'FA FQA'!$B:$B,'Main apportion'!BW$2,'FA FQA'!$D:$D,'Main apportion'!BW$3) -> 466 | BX63: =SUMIFS('FA FQA'!$G:$G,'FA FQA'!$E:$E,'Main apportion'!$A63,'FA FQA'!$B:$B,'Main apportion'!BX$2,'FA FQA'!$D:$D,'Main apportion'!BX$3) -> 123 | BY63: =SUMIFS('FA FQA'!$G:$G,'FA FQA'!$E:$E,'Main apportion'!$A63,'FA FQA'!$B:$B,'Main apportion'!BY$2,'FA FQA'!$D:$D,'Main apportion'!BY$3) -> 97 | BZ63: 3336 | CA63: 110.5 | CB63: =ROUND(IFERROR(CA63*(BV63/$BZ63),0),1) -> 87.8 | CC63: 15.4 | CD63: 4.1 | CE63: 3.2 | CF63: 0 | CG63: 0 | CH63: 0 | CI63: 87.8 | CJ63: 15.4 | CK63: 4.1 | CL63: 3.2 | CM63: 3.31235012 | CN63: 0 | CO63: 0 | CP63: 0 | CQ63: 0 | CR63: 94.7 | CS63: 16.2 | CT63: 4.6 | CU63: 6.5 | CV63: 94.7 | CW63: 16.2 | CX63: 4.6 | CY63: 6.5 | CZ63: 0.4246751607 | DA63: 0.4997092947 | DB63: 0.04488775678 | DC63: 0.03072778785 | DD63: 0 | DE63: 0 | DF63: 0 | DG63: 0 | DH63: 0.4542327234 | DI63: 0.5014012922 | DJ63: 0.0443659844 | DK63: 0 | DL63: 2.3 | DM63: 2.5 | DN63: 0.2 | DO63: 1 | DP63: 2.3 | DQ63: 2.5 | DR63: 0.2 | DS63: 1 | DT63: 2.3 | DU63: 2.5 | DV63: 0.2 | DW63: 1 | DX63: 0 | DY63: 0 | DZ63: 0 | EA63: 2.3 | EB63: 2.5 | EC63: 0.2 | ED63: 1 | EE63: 0 | EF63: 97 | EG63: 18.7 | EH63: 4.8 | EI63: 7.5 | EJ63: 97 | EK63: 18.7 | EL63: 4.8 | EM63: 7.5 | EN63: 0 | EO63: 0
A64: SOL/07D. | B64: 1209 | C64: -0.0231 | D64: 1181 | E64: =VLOOKUP(A64,'All stocks'!$A$5:$B$202,2,FALSE) -> 242 | F64: 236 | G64: 0.192308 | H64: 1 | I64: 0.2 | J64: 0.1923 | K64: 227 | L64: 9 | M64: 0 | N64: 0 | O64: 9 | P64: 0 | Q64: 0 | R64: 0 | S64: 0 | T64: 0 | U64: 0 | V64: 0.0077 | W64: 0 | X64: 9 | Y64: 0 | Z64: 0 | AA64: 227 | AB64: 0.348 | AC64: 0 | AD64: 0.01356727238 | AE64: =SUMIFS('UK FQA'!D:D,'UK FQA'!B:B,A64,'UK FQA'!A:A,'Main apportion'!$AE$6) -> 7582 | AF64: =SUMIFS('UK FQA'!D:D,'UK FQA'!B:B,A64,'UK FQA'!A:A,'Main apportion'!$AF$6) -> 2840 | AG64: =SUMIFS('FA FQA'!G:G,'FA FQA'!E:E,'Main apportion'!A64,'FA FQA'!D:D,'Main apportion'!$AG$6) -> 240 | AH64: 78.996 | AI64: 85.02769718 | AJ64: 85 | AK64: 0.9808 | AL64: 0.0003 | AM64: 0.011 | AN64: 0.0079 | AO64: =ROUND(IFERROR($AJ64*(AK64/SUM($AK64:$AN64)),0),1) -> 83.4 | AP64: 0 | AQ64: 0.9 | AR64: 0.7 | AS64: =IF(AJ64-SUM(AO64:AR64)=0,0,AJ64-SUM(AO64:AR64)) -> -1.421085472e-14 | AT64: amend | AU64: 83.4 | AV64: 83.4 | AW64: 0 | AX64: 0.9 | AY64: 0.7 | AZ64: 0 | BA64: =SUMIFS('UK FQA'!D:D,'UK FQA'!B:B,'Main apportion'!A64,'UK FQA'!A:A,'Main apportion'!$BA$6) -> 496 | BB64: 14.8 | BC64: 3.079770831 | BD64: 7.185439198 | BE64: 7.2 | BF64: =SUMIFS('FA FQA'!$G:$G,'FA FQA'!$E:$E,'Main apportion'!$A64,'FA FQA'!$B:$B,'Main apportion'!BF$2,'FA FQA'!$D:$D,'Main apportion'!BF$3) -> 240 | BG64: =SUMIFS('FA FQA'!$G:$G,'FA FQA'!$E:$E,'Main apportion'!$A64,'FA FQA'!$B:$B,'Main apportion'!BG$2,'FA FQA'!$D:$D,'Main apportion'!BG$3) -> 0 | BH64: =SUMIFS('FA FQA'!$G:$G,'FA FQA'!$E:$E,'Main apportion'!$A64,'FA FQA'!$B:$B,'Main apportion'!BH$2,'FA FQA'!$D:$D,'Main apportion'!BH$3) -> 0 | BI64: =SUMIFS('FA FQA'!$G:$G,'FA FQA'!$E:$E,'Main apportion'!$A64,'FA FQA'!$B:$B,'Main apportion'!BI$2,'FA FQA'!$D:$D,'Main apportion'!BI$3) -> 0 | BJ64: 7.2 | BK64: 0 | BL64: 0 | BM64: 0 | BN64: 0 | BO64: 0 | BP64: 0 | BQ64: 7.2 | BR64: 0 | BS64: 0 | BT64: 0 | BU64: 0 | BV64: =SUMIFS('FA FQA'!$G:$G,'FA FQA'!$E:$E,'Main apportion'!$A64,'FA FQA'!$B:$B,'Main apportion'!BV$2,'FA FQA'!$D:$D,'Main apportion'!BV$3) -> 3794 | BW64: =SUMIFS('FA FQA'!$G:$G,'FA FQA'!$E:$E,'Main apportion'!$A64,'FA FQA'!$B:$B,'Main apportion'!BW$2,'FA FQA'!$D:$D,'Main apportion'!BW$3) -> 4 | BX64: =SUMIFS('FA FQA'!$G:$G,'FA FQA'!$E:$E,'Main apportion'!$A64,'FA FQA'!$B:$B,'Main apportion'!BX$2,'FA FQA'!$D:$D,'Main apportion'!BX$3) -> 142 | BY64: =SUMIFS('FA FQA'!$G:$G,'FA FQA'!$E:$E,'Main apportion'!$A64,'FA FQA'!$B:$B,'Main apportion'!BY$2,'FA FQA'!$D:$D,'Main apportion'!BY$3) -> 66 | BZ64: 4006 | CA64: 120 | CB64: =ROUND(IFERROR(CA64*(BV64/$BZ64),0),1) -> 113.6 | CC64: 0.1 | CD64: 4.3 | CE64: 2 | CF64: 0 | CG64: 0 | CH64: 0 | CI64: 113.6 | CJ64: 0.1 | CK64: 4.3 | CL64: 2 | CM64: 2.99550674 | CN64: 0 | CO64: 0 | CP64: 0 | CQ64: 0 | CR64: 219 | CS64: 0.1 | CT64: 5.2 | CU64: 2.7 | CV64: 219 | CW64: 0.1 | CX64: 5.2 | CY64: 2.7 | CZ64: 0.995883324 | DA64: 0 | DB64: 0.003731217182 | DC64: 0.0003854588656 | DD64: 0 | DE64: 0 | DF64: 0 | DG64: 0 | DH64: 0.9962949916 | DI64: 0 | DJ64: 0.003358095464 | DK64: 0.000346912979 | DL64: 9 | DM64: 0 | DN64: 0 | DO64: 0 | DP64: 9 | DQ64: 0 | DR64: 0 | DS64: 0 | DT64: 9 | DU64: 0 | DV64: 0 | DW64: 0 | DX64: 0 | DY64: 0 | DZ64: 0 | EA64: 9 | EB64: 0 | EC64: 0 | ED64: 0 | EE64: 0 | EF64: 228 | EG64: 0.1 | EH64: 5.2 | EI64: 2.7 | EJ64: 228 | EK64: 0.1 | EL64: 5.2 | EM64: 2.7 | EN64: 0 | EO64: 2.842170943e-14
A65: SOL/07E. | B65: 1151 | C65: -0.0249 | D65: 1122 | E65: =VLOOKUP(A65,'All stocks'!$A$5:$B$202,2,FALSE) -> 719 | F65: 701 | G65: 0.588235 | H65: 1 | I65: 0.625 | J65: 0.5882 | K65: 660 | L65: 41 | M65: 0 | N65: 0 | O65: 41 | P65: 0 | Q65: 0 | R65: 0 | S65: 0 | T65: 0 | U65: 0 | V65: 0.0368 | W65: 0 | X65: 41 | Y65: 0 | Z65: 0 | AA65: 660 | AB65: 0.052 | AC65: 0 | AD65: 0.01747573249 | AE65: =SUMIFS('UK FQA'!D:D,'UK FQA'!B:B,A65,'UK FQA'!A:A,'Main apportion'!$AE$6) -> 5146 | AF65: =SUMIFS('UK FQA'!D:D,'UK FQA'!B:B,A65,'UK FQA'!A:A,'Main apportion'!$AF$6) -> 226 | AG65: =SUMIFS('FA FQA'!G:G,'FA FQA'!E:E,'Main apportion'!A65,'FA FQA'!D:D,'Main apportion'!$AG$6) -> 32 | AH65: 34.32 | AI65: 28.9856199 | AJ65: 34.3 | AK65: 0.9712 | AL65: 0.0012 | AM65: 0.0157 | AN65: 0.0119 | AO65: =ROUND(IFERROR($AJ65*(AK65/SUM($AK65:$AN65)),0),1) -> 33.3 | AP65: 0 | AQ65: 0.5 | AR65: 0.4 | AS65: 0.1 | AT65: amend | AU65: 33.3 | AV65: 33.4 | AW65: 0 | AX65: 0.5 | AY65: 0.4 | AZ65: 0 | BA65: =SUMIFS('UK FQA'!D:D,'UK FQA'!B:B,'Main apportion'!A65,'UK FQA'!A:A,'Main apportion'!$BA$6) -> 0 | BB65: 0 | BC65: 11.53398345 | BD65: 4.10415857 | BE65: 11.5 | BF65: =SUMIFS('FA FQA'!$G:$G,'FA FQA'!$E:$E,'Main apportion'!$A65,'FA FQA'!$B:$B,'Main apportion'!BF$2,'FA FQA'!$D:$D,'Main apportion'!BF$3) -> 31 | BG65: =SUMIFS('FA FQA'!$G:$G,'FA FQA'!$E:$E,'Main apportion'!$A65,'FA FQA'!$B:$B,'Main apportion'!BG$2,'FA FQA'!$D:$D,'Main apportion'!BG$3) -> 0 | BH65: =SUMIFS('FA FQA'!$G:$G,'FA FQA'!$E:$E,'Main apportion'!$A65,'FA FQA'!$B:$B,'Main apportion'!BH$2,'FA FQA'!$D:$D,'Main apportion'!BH$3) -> 1 | BI65: =SUMIFS('FA FQA'!$G:$G,'FA FQA'!$E:$E,'Main apportion'!$A65,'FA FQA'!$B:$B,'Main apportion'!BI$2,'FA FQA'!$D:$D,'Main apportion'!BI$3) -> 0 | BJ65: 11.1 | BK65: 0 | BL65: 0.4 | BM65: 0 | BN65: 0 | BO65: 0 | BP65: 0 | BQ65: 11.1 | BR65: 0 | BS65: 0.4 | BT65: 0 | BU65: 0 | BV65: =SUMIFS('FA FQA'!$G:$G,'FA FQA'!$E:$E,'Main apportion'!$A65,'FA FQA'!$B:$B,'Main apportion'!BV$2,'FA FQA'!$D:$D,'Main apportion'!BV$3) -> 4713 | BW65: =SUMIFS('FA FQA'!$G:$G,'FA FQA'!$E:$E,'Main apportion'!$A65,'FA FQA'!$B:$B,'Main apportion'!BW$2,'FA FQA'!$D:$D,'Main apportion'!BW$3) -> 6 | BX65: =SUMIFS('FA FQA'!$G:$G,'FA FQA'!$E:$E,'Main apportion'!$A65,'FA FQA'!$B:$B,'Main apportion'!BX$2,'FA FQA'!$D:$D,'Main apportion'!BX$3) -> 92 | BY65: =SUMIFS('FA FQA'!$G:$G,'FA FQA'!$E:$E,'Main apportion'!$A65,'FA FQA'!$B:$B,'Main apportion'!BY$2,'FA FQA'!$D:$D,'Main apportion'!BY$3) -> 77 | BZ65: 4888 | CA65: 614.2 | CB65: 592.2 | CC65: 0.8 | CD65: 11.6 | CE65: 9.7 | CF65: -0.1 | CG65: amend | CH65: 592.2 | CI65: 592.1 | CJ65: 0.8 | CK65: 11.6 | CL65: 9.7 | CM65: 12.56751227 | CN65: 0 | CO65: 0 | CP65: 0 | CQ65: 0 | CR65: 636.6 | CS65: 0.8 | CT65: 12.5 | CU65: 10.1 | CV65: 636.6 | CW65: 0.8 | CX65: 12.5 | CY65: 10.1 | CZ65: 0.9880506815 | DA65: 9.598357203e-05 | DB65: 0.004154798578 | DC65: 0.007698536332 | DD65: 0 | DE65: 0 | DF65: 0 | DG65: 0 | DH65: 0.9892456134 | DI65: 8.638521483e-05 | DJ65: 0.00373931872 | DK65: 0.006928682699 | DL65: 40.6 | DM65: 0 | DN65: 0.2 | DO65: 0.3 | DP65: 40.6 | DQ65: 0 | DR65: 0.2 | DS65: 0.3 | DT65: 40.6 | DU65: 0 | DV65: 0.2 | DW65: 0.3 | DX65: -0.1 | DY65: amend | DZ65: 40.6 | EA65: =IF(DT65=$DZ65,DT65+$DX65,DT65) -> 40.5 | EB65: 0 | EC65: 0.2 | ED65: 0.3 | EE65: 0 | EF65: 677.1 | EG65: 0.8 | EH65: 12.7 | EI65: 10.4 | EJ65: 677.1 | EK65: 0.8 | EL65: 12.7 | EM65: 10.4 | EN65: 0 | EO65: 0
A66: SOL/24-C. | B66: 10000 | C66: -0.0459 | D66: 9541 | E66: =VLOOKUP(A66,'All stocks'!$A$5:$B$202,2,FALSE) -> 1700 | F66: 1622 | G66: 0.042857 | H66: 1 | I66: 0.17 | J66: 0.0429 | K66: 409 | L66: 1213 | M66: 0 | N66: 0 | O66: 1213 | P66: 0.007674 | Q66: 73.2 | R66: 0.007674 | S66: 0 | T66: 0 | U66: 73.2 | V66: 0.119426 | W66: 0 | X66: 1139.8 | Y66: 0 | Z66: 0 | AA66: 409 | AB66: 0.0981 | AC66: 0 | AD66: 0.00328010924 | AE66: =SUMIFS('UK FQA'!D:D,'UK FQA'!B:B,A66,'UK FQA'!A:A,'Main apportion'!$AE$6) -> 12831 | AF66: =SUMIFS('UK FQA'!D:D,'UK FQA'!B:B,A66,'UK FQA'!A:A,'Main apportion'!$AF$6) -> 1466 | AG66: =SUMIFS('FA FQA'!G:G,'FA FQA'!E:E,'Main apportion'!A66,'FA FQA'!D:D,'Main apportion'!$AG$6) -> 155 | AH66: 40.1229 | AI66: 46.73010677 | AJ66: 46.7 | AK66: 0.9875 | AL66: 0.0007 | AM66: 0.0019 | AN66: 0.0099 | AO66: 46.1 | AP66: 0 | AQ66: 0.1 | AR66: 0.5 | AS66: 0 | AT66: 0 | AU66: 0 | AV66: 46.1 | AW66: 0 | AX66: 0.1 | AY66: 0.5 | AZ66: 0 | BA66: =SUMIFS('UK FQA'!D:D,'UK FQA'!B:B,'Main apportion'!A66,'UK FQA'!A:A,'Main apportion'!$BA$6) -> 75 | BB66: 2.4 | BC66: 1.341564679 | BD66: 4.940768451 | BE66: 4.9 | BF66: =SUMIFS('FA FQA'!$G:$G,'FA FQA'!$E:$E,'Main apportion'!$A66,'FA FQA'!$B:$B,'Main apportion'!BF$2,'FA FQA'!$D:$D,'Main apportion'!BF$3) -> 155 | BG66: =SUMIFS('FA FQA'!$G:$G,'FA FQA'!$E:$E,'Main apportion'!$A66,'FA FQA'!$B:$B,'Main apportion'!BG$2,'FA FQA'!$D:$D,'Main apportion'!BG$3) -> 0 | BH66: =SUMIFS('FA FQA'!$G:$G,'FA FQA'!$E:$E,'Main apportion'!$A66,'FA FQA'!$B:$B,'Main apportion'!BH$2,'FA FQA'!$D:$D,'Main apportion'!BH$3) -> 0 | BI66: =SUMIFS('FA FQA'!$G:$G,'FA FQA'!$E:$E,'Main apportion'!$A66,'FA FQA'!$B:$B,'Main apportion'!BI$2,'FA FQA'!$D:$D,'Main apportion'!BI$3) -> 0 | BJ66: 4.9 | BK66: 0 | BL66: 0 | BM66: 0 | BN66: 0 | BO66: 0 | BP66: 0 | BQ66: 4.9 | BR66: 0 | BS66: 0 | BT66: 0 | BU66: 0 | BV66: =SUMIFS('FA FQA'!$G:$G,'FA FQA'!$E:$E,'Main apportion'!$A66,'FA FQA'!$B:$B,'Main apportion'!BV$2,'FA FQA'!$D:$D,'Main apportion'!BV$3) -> 9339 | BW66: =SUMIFS('FA FQA'!$G:$G,'FA FQA'!$E:$E,'Main apportion'!$A66,'FA FQA'!$B:$B,'Main apportion'!BW$2,'FA FQA'!$D:$D,'Main apportion'!BW$3) -> 74 | BX66: =SUMIFS('FA FQA'!$G:$G,'FA FQA'!$E:$E,'Main apportion'!$A66,'FA FQA'!$B:$B,'Main apportion'!BX$2,'FA FQA'!$D:$D,'Main apportion'!BX$3) -> 1707 | BY66: =SUMIFS('FA FQA'!$G:$G,'FA FQA'!$E:$E,'Main apportion'!$A66,'FA FQA'!$B:$B,'Main apportion'!BY$2,'FA FQA'!$D:$D,'Main apportion'!BY$3) -> 15 | BZ66: 11135 | CA66: 355 | CB66: =ROUND(IFERROR(CA66*(BV66/$BZ66),0),1) -> 297.7 | CC66: 2.4 | CD66: 54.4 | CE66: 0.5 | CF66: 0 | CG66: 0 | CH66: 0 | CI66: 297.7 | CJ66: 2.4 | CK66: 54.4 | CL66: 0.5 | CM66: 3.188145487 | CN66: 0 | CO66: 0 | CP66: 0 | CQ66: 0 | CR66: 351.1 | CS66: 2.4 | CT66: 54.5 | CU66: 1 | CV66: 351.1 | CW66: 2.4 | CX66: 54.5 | CY66: 1 | CZ66: 0.9430987999 | DA66: 0.0003649301216 | DB66: 0.05648295179 | DC66: 5.331821967e-05 | DD66: 69 | DE66: 0 | DF66: 4.1 | DG66: 0 | DH66: 0.948779691 | DI66: 0.0003284371094 | DJ66: 0.05084388551 | DK66: 4.79863977e-05 | DL66: 1081.4 | DM66: 0.4 | DN66: 58 | DO66: 0.1 | DP66: 1150.4 | DQ66: 0.4 | DR66: 62.1 | DS66: 0.1 | DT66: 1150.4 | DU66: 0.4 | DV66: 62.1 | DW66: 0.1 | DX66: 0 | DY66: 0 | DZ66: 0 | EA66: =IF(DT66=$DZ66,DT66+$DX66,DT66) -> 1150.4 | EB66: 0.4 | EC66: 62.1 | ED66: 0.1 | EE66: 0 | EF66: 1501.5 | EG66: 2.8 | EH66: 116.6 | EI66: 1.1 | EJ66: 1501.5 | EK66: 2.8 | EL66: 116.6 | EM66: 1.1 | EN66: 0 | EO66: 2.273736754e-13
A67: SOL/56-14 | B67: 57 | C67: 0 | D67: 57 | E67: =VLOOKUP(A67,'All stocks'!$A$5:$B$202,2,FALSE) -> 11 | F67: 11 | G67: 0.2 | H67: 1 | I67: 0.2 | J67: 0.2 | K67: 11 | L67: 0 | M67: 0 | N67: 0 | O67: 0 | P67: 0 | Q67: 0 | R67: 0 | S67: 0 | T67: 0 | U67: 0 | V67: 0 | W67: 0 | X67: 0 | Y67: 0 | Z67: 0 | AA67: 11 | AB67: 0 | AC67: 0 | AD67: 0 | AE67: =SUMIFS('UK FQA'!D:D,'UK FQA'!B:B,A67,'UK FQA'!A:A,'Main apportion'!$AE$6) -> 324 | AF67: =SUMIFS('UK FQA'!D:D,'UK FQA'!B:B,A67,'UK FQA'!A:A,'Main apportion'!$AF$6) -> 2 | AG67: =SUMIFS('FA FQA'!G:G,'FA FQA'!E:E,'Main apportion'!A67,'FA FQA'!D:D,'Main apportion'!$AG$6) -> 0 | AH67: 0 | AI67: 0.06790123457 | AJ67: 0.1 | AK67: 0.0345 | AL67: 0.7774 | AM67: 0.1881 | AN67: 0 | AO67: 0 | AP67: 0.1 | AQ67: 0 | AR67: 0 | AS67: 0 | AT67: 0 | AU67: 0 | AV67: 0 | AW67: 0.1 | AX67: 0 | AY67: 0 | AZ67: 0 | BA67: =SUMIFS('UK FQA'!D:D,'UK FQA'!B:B,'Main apportion'!A67,'UK FQA'!A:A,'Main apportion'!$BA$6) -> 0 | BB67: 0 | BC67: 0 | BD67: 0 | BE67: 0 | BF67: =SUMIFS('FA FQA'!$G:$G,'FA FQA'!$E:$E,'Main apportion'!$A67,'FA FQA'!$B:$B,'Main apportion'!BF$2,'FA FQA'!$D:$D,'Main apportion'!BF$3) -> 0 | BG67: =SUMIFS('FA FQA'!$G:$G,'FA FQA'!$E:$E,'Main apportion'!$A67,'FA FQA'!$B:$B,'Main apportion'!BG$2,'FA FQA'!$D:$D,'Main apportion'!BG$3) -> 0 | BH67: =SUMIFS('FA FQA'!$G:$G,'FA FQA'!$E:$E,'Main apportion'!$A67,'FA FQA'!$B:$B,'Main apportion'!BH$2,'FA FQA'!$D:$D,'Main apportion'!BH$3) -> 0 | BI67: =SUMIFS('FA FQA'!$G:$G,'FA FQA'!$E:$E,'Main apportion'!$A67,'FA FQA'!$B:$B,'Main apportion'!BI$2,'FA FQA'!$D:$D,'Main apportion'!BI$3) -> 0 | BJ67: 0 | BK67: 0 | BL67: 0 | BM67: 0 | BN67: 0 | BO67: 0 | BP67: 0 | BQ67: 0 | BR67: 0 | BS67: 0 | BT67: 0 | BU67: 0 | BV67: =SUMIFS('FA FQA'!$G:$G,'FA FQA'!$E:$E,'Main apportion'!$A67,'FA FQA'!$B:$B,'Main apportion'!BV$2,'FA FQA'!$D:$D,'Main apportion'!BV$3) -> 187 | BW67: =SUMIFS('FA FQA'!$G:$G,'FA FQA'!$E:$E,'Main apportion'!$A67,'FA FQA'!$B:$B,'Main apportion'!BW$2,'FA FQA'!$D:$D,'Main apportion'!BW$3) -> 27 | BX67: =SUMIFS('FA FQA'!$G:$G,'FA FQA'!$E:$E,'Main apportion'!$A67,'FA FQA'!$B:$B,'Main apportion'!BX$2,'FA FQA'!$D:$D,'Main apportion'!BX$3) -> 108 | BY67: =SUMIFS('FA FQA'!$G:$G,'FA FQA'!$E:$E,'Main apportion'!$A67,'FA FQA'!$B:$B,'Main apportion'!BY$2,'FA FQA'!$D:$D,'Main apportion'!BY$3) -> 0 | BZ67: 322 | CA67: 10.9 | CB67: 6.3 | CC67: 0.9 | CD67: 3.7 | CE67: 0 | CF67: 0 | CG67: 0 | CH67: 0 | CI67: 6.3 | CJ67: 0.9 | CK67: 3.7 | CL67: 0 | CM67: 3.385093168 | CN67: 0 | CO67: 0 | CP67: 0 | CQ67: 0 | CR67: 6.3 | CS67: 1 | CT67: 3.7 | CU67: 0 | CV67: 6.3 | CW67: 1 | CX67: 3.7 | CY67: 0 | CZ67: 0.02246743053 | DA67: 0.1487875478 | DB67: 0.8219964866 | DC67: 0.006748535049 | DD67: 0 | DE67: 0 | DF67: 0 | DG67: 0 | DH67: 0.02022068748 | DI67: 0.14744298 | DJ67: 0.826262651 | DK67: 0.006073681544 | DL67: 0 | DM67: 0 | DN67: 0 | DO67: 0 | DP67: 0 | DQ67: 0 | DR67: 0 | DS67: 0 | DT67: 0 | DU67: 0 | DV67: 0 | DW67: 0 | DX67: 0 | DY67: 0 | DZ67: 0 | EA67: 0 | EB67: 0 | EC67: 0 | ED67: 0 | EE67: 0 | EF67: 6.3 | EG67: 1 | EH67: 3.7 | EI67: 0 | EJ67: 6.3 | EK67: 1 | EL67: 3.7 | EM67: 0 | EN67: 0 | EO67: 0
A68: SOL/7FG. | B68: 1149 | C68: -0.051 | D68: 1090 | E68: =VLOOKUP(A68,'All stocks'!$A$5:$B$202,2,FALSE) -> 371 | F68: 352 | G68: 0.28125 | H68: 1 | I68: 0.3233 | J68: 0.2813 | K68: 307 | L68: 45 | M68: 36 | N68: 36 | O68: 9 | P68: 0 | Q68: 0 | R68: 0 | S68: 0 | T68: 0 | U68: 0 | V68: 0.042 | W68: 1 | X68: 9 | Y68: 0 | Z68: 0 | AA68: 307 | AB68: 0.081 | AC68: 0 | AD68: 0.0017851247 | AE68: =SUMIFS('UK FQA'!D:D,'UK FQA'!B:B,A68,'UK FQA'!A:A,'Main apportion'!$AE$6) -> 2800 | AF68: =SUMIFS('UK FQA'!D:D,'UK FQA'!B:B,A68,'UK FQA'!A:A,'Main apportion'!$AF$6) -> 97 | AG68: =SUMIFS('FA FQA'!G:G,'FA FQA'!E:E,'Main apportion'!A68,'FA FQA'!D:D,'Main apportion'!$AG$6) -> 5 | AH68: 24.867 | AI68: 10.63535714 | AJ68: 24.9 | AK68: 0.7541 | AL68: 0.0067 | AM68: 0.0002 | AN68: 0.239 | AO68: =ROUND(IFERROR($AJ68*(AK68/SUM($AK68:$AN68)),0),1) -> 18.8 | AP68: 0.2 | AQ68: 0 | AR68: 6 | AS68: -0.1 | AT68: amend | AU68: 18.8 | AV68: 18.7 | AW68: 0.2 | AX68: 0 | AY68: 6 | AZ68: 0 | BA68: =SUMIFS('UK FQA'!D:D,'UK FQA'!B:B,'Main apportion'!A68,'UK FQA'!A:A,'Main apportion'!$BA$6) -> 0 | BB68: 0 | BC68: 0.548033283 | BD68: 0.5482142857 | BE68: 0.5 | BF68: =SUMIFS('FA FQA'!$G:$G,'FA FQA'!$E:$E,'Main apportion'!$A68,'FA FQA'!$B:$B,'Main apportion'!BF$2,'FA FQA'!$D:$D,'Main apportion'!BF$3) -> 3 | BG68: =SUMIFS('FA FQA'!$G:$G,'FA FQA'!$E:$E,'Main apportion'!$A68,'FA FQA'!$B:$B,'Main apportion'!BG$2,'FA FQA'!$D:$D,'Main apportion'!BG$3) -> 1 | BH68: =SUMIFS('FA FQA'!$G:$G,'FA FQA'!$E:$E,'Main apportion'!$A68,'FA FQA'!$B:$B,'Main apportion'!BH$2,'FA FQA'!$D:$D,'Main apportion'!BH$3) -> 1 | BI68: =SUMIFS('FA FQA'!$G:$G,'FA FQA'!$E:$E,'Main apportion'!$A68,'FA FQA'!$B:$B,'Main apportion'!BI$2,'FA FQA'!$D:$D,'Main apportion'!BI$3) -> 0 | BJ68: 0.3 | BK68: 0.1 | BL68: 0.1 | BM68: 0 | BN68: 0 | BO68: 0 | BP68: 0 | BQ68: 0.3 | BR68: 0.1 | BS68: 0.1 | BT68: 0 | BU68: =SUM(BQ68:BT68)-BE68 -> 0 | BV68: =SUMIFS('FA FQA'!$G:$G,'FA FQA'!$E:$E,'Main apportion'!$A68,'FA FQA'!$B:$B,'Main apportion'!BV$2,'FA FQA'!$D:$D,'Main apportion'!BV$3) -> 2534 | BW68: =SUMIFS('FA FQA'!$G:$G,'FA FQA'!$E:$E,'Main apportion'!$A68,'FA FQA'!$B:$B,'Main apportion'!BW$2,'FA FQA'!$D:$D,'Main apportion'!BW$3) -> 10 | BX68: =SUMIFS('FA FQA'!$G:$G,'FA FQA'!$E:$E,'Main apportion'!$A68,'FA FQA'!$B:$B,'Main apportion'!BX$2,'FA FQA'!$D:$D,'Main apportion'!BX$3) -> 55 | BY68: =SUMIFS('FA FQA'!$G:$G,'FA FQA'!$E:$E,'Main apportion'!$A68,'FA FQA'!$B:$B,'Main apportion'!BY$2,'FA FQA'!$D:$D,'Main apportion'!BY$3) -> 99 | BZ68: 2698 | CA68: 281.6 | CB68: 264.5 | CC68: 1 | CD68: 5.7 | CE68: 10.3 | CF68: 0.1 | CG68: amend | CH68: 264.5 | CI68: 264.6 | CJ68: 1 | CK68: 5.7 | CL68: 10.3 | CM68: 10.43365456 | CN68: 0 | CO68: 0 | CP68: 0 | CQ68: 0 | CR68: 283.6 | CS68: 1.3 | CT68: 5.8 | CU68: 16.3 | CV68: 283.6 | CW68: 1.3 | CX68: 5.8 | CY68: 16.3 | CZ68: 0.9258878647 | DA68: 0.002658446378 | DB68: 0.00183964826 | DC68: 0.06961404066 | DD68: 0 | DE68: 0 | DF68: 0 | DG68: 0 | DH68: 0.9102058051 | DI68: 0.00239260174 | DJ68: 0.001655683434 | DK68: 0.0857459097 | DL68: 8.2 | DM68: 0 | DN68: 0 | DO68: 36 | DP68: 8.2 | DQ68: 0 | DR68: 0 | DS68: 36 | DT68: =ROUND(DP68,1)+0.8 -> 9 | DU68: 0 | DV68: 0 | DW68: 36 | DX68: 0 | DY68: 0 | DZ68: 0 | EA68: =IF(DT68=$DZ68,DT68+$DX68,DT68) -> 9 | EB68: 0 | EC68: 0 | ED68: =IF(DW68=$DZ68,DW68+$DX68,DW68) -> 36 | EE68: 0 | EF68: 292.6 | EG68: 1.3 | EH68: 5.8 | EI68: 52.3 | EJ68: 292.6 | EK68: 1.3 | EL68: 5.8 | EM68: 52.3 | EN68: 0 | EO68: -5.684341886e-14
A69: SOL/7HJK. | B69: 170 | C69: -0.0258 | D69: 166 | E69: =VLOOKUP(A69,'All stocks'!$A$5:$B$202,2,FALSE) -> 28 | F69: =ROUND(E69*(D69/B69),0) -> 27 | G69: 0.166667 | H69: 1 | I69: 0.1667 | J69: 0.1667 | K69: 27 | L69: 0 | M69: 0 | N69: 0 | O69: 0 | P69: 0 | Q69: 0 | R69: 0 | S69: 0 | T69: 0 | U69: 0 | V69: 0 | W69: 0 | X69: 0 | Y69: 0 | Z69: 0 | AA69: 27 | AB69: 0 | AC69: 0 | AD69: 0 | AE69: =SUMIFS('UK FQA'!D:D,'UK FQA'!B:B,A69,'UK FQA'!A:A,'Main apportion'!$AE$6) -> 1749 | AF69: =SUMIFS('UK FQA'!D:D,'UK FQA'!B:B,A69,'UK FQA'!A:A,'Main apportion'!$AF$6) -> 0 | AG69: =SUMIFS('FA FQA'!G:G,'FA FQA'!E:E,'Main apportion'!A69,'FA FQA'!D:D,'Main apportion'!$AG$6) -> 0 | AH69: 0 | AI69: 0 | AJ69: 0 | AK69: 0 | AL69: 0 | AM69: 0 | AN69: 0 | AO69: 0 | AP69: 0 | AQ69: 0 | AR69: 0 | AS69: 0 | AT69: 0 | AU69: 0 | AV69: 0 | AW69: 0 | AX69: 0 | AY69: 0 | AZ69: 0 | BA69: =SUMIFS('UK FQA'!D:D,'UK FQA'!B:B,'Main apportion'!A69,'UK FQA'!A:A,'Main apportion'!$BA$6) -> 0 | BB69: 0 | BC69: 0 | BD69: 0 | BE69: 0 | BF69: =SUMIFS('FA FQA'!$G:$G,'FA FQA'!$E:$E,'Main apportion'!$A69,'FA FQA'!$B:$B,'Main apportion'!BF$2,'FA FQA'!$D:$D,'Main apportion'!BF$3) -> 0 | BG69: =SUMIFS('FA FQA'!$G:$G,'FA FQA'!$E:$E,'Main apportion'!$A69,'FA FQA'!$B:$B,'Main apportion'!BG$2,'FA FQA'!$D:$D,'Main apportion'!BG$3) -> 0 | BH69: =SUMIFS('FA FQA'!$G:$G,'FA FQA'!$E:$E,'Main apportion'!$A69,'FA FQA'!$B:$B,'Main apportion'!BH$2,'FA FQA'!$D:$D,'Main apportion'!BH$3) -> 0 | BI69: =SUMIFS('FA FQA'!$G:$G,'FA FQA'!$E:$E,'Main apportion'!$A69,'FA FQA'!$B:$B,'Main apportion'!BI$2,'FA FQA'!$D:$D,'Main apportion'!BI$3) -> 0 | BJ69: 0 | BK69: 0 | BL69: 0 | BM69: 0 | BN69: 0 | BO69: 0 | BP69: 0 | BQ69: 0 | BR69: 0 | BS69: 0 | BT69: 0 | BU69: 0 | BV69: =SUMIFS('FA FQA'!$G:$G,'FA FQA'!$E:$E,'Main apportion'!$A69,'FA FQA'!$B:$B,'Main apportion'!BV$2,'FA FQA'!$D:$D,'Main apportion'!BV$3) -> 1720 | BW69: =SUMIFS('FA FQA'!$G:$G,'FA FQA'!$E:$E,'Main apportion'!$A69,'FA FQA'!$B:$B,'Main apportion'!BW$2,'FA FQA'!$D:$D,'Main apportion'!BW$3) -> 1 | BX69: =SUMIFS('FA FQA'!$G:$G,'FA FQA'!$E:$E,'Main apportion'!$A69,'FA FQA'!$B:$B,'Main apportion'!BX$2,'FA FQA'!$D:$D,'Main apportion'!BX$3) -> 24 | BY69: =SUMIFS('FA FQA'!$G:$G,'FA FQA'!$E:$E,'Main apportion'!$A69,'FA FQA'!$B:$B,'Main apportion'!BY$2,'FA FQA'!$D:$D,'Main apportion'!BY$3) -> 4 | BZ69: 1749 | CA69: 27 | CB69: =ROUND(IFERROR(CA69*(BV69/$BZ69),0),1) -> 26.6 | CC69: 0 | CD69: =ROUND(IFERROR(CA69*(BX69/$BZ69),0),1) -> 0.4 | CE69: 0.1 | CF69: -0.1 | CG69: amend | CH69: 26.6 | CI69: 26.5 | CJ69: 0 | CK69: 0.4 | CL69: 0.1 | CM69: 1.549456832 | CN69: 0 | CO69: 0 | CP69: 0 | CQ69: 0 | CR69: 26.5 | CS69: 0 | CT69: =SUM(AX69,BS69,CK69,CP69) -> 0.4 | CU69: 0.1 | CV69: 26.5 | CW69: 0 | CX69: 0.4 | CY69: 0.1 | CZ69: 0.9882847238 | DA69: 0.0003778951817 | DB69: 0.01133738103 | DC69: 0 | DD69: 0 | DE69: 0 | DF69: 0 | DG69: 0 | DH69: 0.9894562514 | DI69: 0.0003401056635 | DJ69: 0.01020364293 | DK69: 0 | DL69: 0 | DM69: 0 | DN69: 0 | DO69: 0 | DP69: 0 | DQ69: 0 | DR69: 0 | DS69: 0 | DT69: 0 | DU69: 0 | DV69: 0 | DW69: 0 | DX69: 0 | DY69: 0 | DZ69: 0 | EA69: 0 | EB69: 0 | EC69: 0 | ED69: 0 | EE69: 0 | EF69: 26.5 | EG69: 0 | EH69: 0.4 | EI69: 0.1 | EJ69: 26.5 | EK69: 0 | EL69: 0.4 | EM69: 0.1 | EN69: 0 | EO69: 0
A70: SPR/2AC4-C | B70: 192905 | C70: 0 | D70: 192905 | E70: =VLOOKUP(A70,'All stocks'!$A$5:$B$202,2,FALSE) -> 7369 | F70: 7369 | G70: 0.038174 | H70: 1 | I70: 0.0382 | J70: 0.0382 | K70: =IF(J70>1,ROUND(J70,0),IFERROR(ROUND(IF(OR(J70*D70>F70,I70=J70),F70,J70*D70),0),"")) -> 7369 | L70: 0 | M70: 0 | N70: 0 | O70: 0 | P70: 0 | Q70: 0 | R70: 0 | S70: 0 | T70: 0 | U70: 0 | V70: 0 | W70: 0 | X70: 0 | Y70: 0 | Z70: 0 | AA70: 7369 | AB70: 0 | AC70: 0 | AD70: 0 | AE70: =SUMIFS('UK FQA'!D:D,'UK FQA'!B:B,A70,'UK FQA'!A:A,'Main apportion'!$AE$6) -> 26332 | AF70: =SUMIFS('UK FQA'!D:D,'UK FQA'!B:B,A70,'UK FQA'!A:A,'Main apportion'!$AF$6) -> 738 | AG70: =SUMIFS('FA FQA'!G:G,'FA FQA'!E:E,'Main apportion'!A70,'FA FQA'!D:D,'Main apportion'!$AG$6) -> 163 | AH70: 0 | AI70: 206.5290141 | AJ70: 206.5 | AK70: 0.9998 | AL70: 0 | AM70: 0.0001 | AN70: 0.0001 | AO70: 206.5 | AP70: 0 | AQ70: 0 | AR70: 0 | AS70: 0 | AT70: 0 | AU70: 0 | AV70: 206.5 | AW70: 0 | AX70: 0 | AY70: 0 | AZ70: 0 | BA70: =SUMIFS('UK FQA'!D:D,'UK FQA'!B:B,'Main apportion'!A70,'UK FQA'!A:A,'Main apportion'!$BA$6) -> 0 | BB70: 0 | BC70: 0 | BD70: 45.61548686 | BE70: 45.6 | BF70: =SUMIFS('FA FQA'!$G:$G,'FA FQA'!$E:$E,'Main apportion'!$A70,'FA FQA'!$B:$B,'Main apportion'!BF$2,'FA FQA'!$D:$D,'Main apportion'!BF$3) -> 163 | BG70: =SUMIFS('FA FQA'!$G:$G,'FA FQA'!$E:$E,'Main apportion'!$A70,'FA FQA'!$B:$B,'Main apportion'!BG$2,'FA FQA'!$D:$D,'Main apportion'!BG$3) -> 0 | BH70: =SUMIFS('FA FQA'!$G:$G,'FA FQA'!$E:$E,'Main apportion'!$A70,'FA FQA'!$B:$B,'Main apportion'!BH$2,'FA FQA'!$D:$D,'Main apportion'!BH$3) -> 0 | BI70: =SUMIFS('FA FQA'!$G:$G,'FA FQA'!$E:$E,'Main apportion'!$A70,'FA FQA'!$B:$B,'Main apportion'!BI$2,'FA FQA'!$D:$D,'Main apportion'!BI$3) -> 0 | BJ70: 45.6 | BK70: 0 | BL70: 0 | BM70: 0 | BN70: 0 | BO70: 0 | BP70: 0 | BQ70: 45.6 | BR70: 0 | BS70: 0 | BT70: 0 | BU70: 0 | BV70: =SUMIFS('FA FQA'!$G:$G,'FA FQA'!$E:$E,'Main apportion'!$A70,'FA FQA'!$B:$B,'Main apportion'!BV$2,'FA FQA'!$D:$D,'Main apportion'!BV$3) -> 3080 | BW70: =SUMIFS('FA FQA'!$G:$G,'FA FQA'!$E:$E,'Main apportion'!$A70,'FA FQA'!$B:$B,'Main apportion'!BW$2,'FA FQA'!$D:$D,'Main apportion'!BW$3) -> 11194 | BX70: =SUMIFS('FA FQA'!$G:$G,'FA FQA'!$E:$E,'Main apportion'!$A70,'FA FQA'!$B:$B,'Main apportion'!BX$2,'FA FQA'!$D:$D,'Main apportion'!BX$3) -> 11157 | BY70: =SUMIFS('FA FQA'!$G:$G,'FA FQA'!$E:$E,'Main apportion'!$A70,'FA FQA'!$B:$B,'Main apportion'!BY$2,'FA FQA'!$D:$D,'Main apportion'!BY$3) -> 0 | BZ70: 25431 | CA70: 7116.9 | CB70: 861.9 | CC70: 3132.7 | CD70: 3122.3 | CE70: 0 | CF70: 0 | CG70: 0 | CH70: 0 | CI70: 861.9 | CJ70: 3132.7 | CK70: 3122.3 | CL70: 0 | CM70: 27.98513625 | CN70: 0 | CO70: 0 | CP70: 0 | CQ70: 0 | CR70: 1114 | CS70: 3132.7 | CT70: 3122.3 | CU70: 0 | CV70: 1114 | CW70: 3132.7 | CX70: 3122.3 | CY70: 0 | CZ70: 0.3123453942 | DA70: 0 | DB70: 0.6876546058 | DC70: 0 | DD70: 0 | DE70: 0 | DF70: 0 | DG70: 0 | DH70: 0.3801785919 | DI70: 0 | DJ70: 0.6198214081 | DK70: 0 | DL70: 0 | DM70: 0 | DN70: 0 | DO70: 0 | DP70: 0 | DQ70: 0 | DR70: 0 | DS70: 0 | DT70: 0 | DU70: 0 | DV70: 0 | DW70: 0 | DX70: 0 | DY70: 0 | DZ70: 0 | EA70: 0 | EB70: 0 | EC70: 0 | ED70: 0 | EE70: 0 | EF70: 1114 | EG70: 3132.7 | EH70: 3122.3 | EI70: 0 | EJ70: 1114 | EK70: 3132.7 | EL70: 3122.3 | EM70: 0 | EN70: 0 | EO70: 0
A71: SPR/7DE. | B71: 5769 | C71: 0 | D71: =IFERROR(ROUND(B71*(1+C71),0),"") -> 5769 | E71: =VLOOKUP(A71,'All stocks'!$A$5:$B$202,2,FALSE) -> 4846 | F71: 4846 | G71: 0.525 | H71: 1 | I71: 0.84 | J71: 0.525 | K71: 3029 | L71: 1817 | M71: 0 | N71: 0 | O71: 1817 | P71: 0.097631 | Q71: 563.2 | R71: 0.097631 | S71: 0 | T71: 0 | U71: 563.2 | V71: 0.217369 | W71: 0 | X71: 1253.8 | Y71: 0 | Z71: 0 | AA71: 3029 | AB71: 0 | AC71: 0 | AD71: 0 | AE71: =SUMIFS('UK FQA'!D:D,'UK FQA'!B:B,A71,'UK FQA'!A:A,'Main apportion'!$AE$6) -> 22196 | AF71: =SUMIFS('UK FQA'!D:D,'UK FQA'!B:B,A71,'UK FQA'!A:A,'Main apportion'!$AF$6) -> 54 | AG71: =SUMIFS('FA FQA'!G:G,'FA FQA'!E:E,'Main apportion'!A71,'FA FQA'!D:D,'Main apportion'!$AG$6) -> 404 | AH71: 0 | AI71: 7.369165615 | AJ71: 7.4 | AK71: 0.9904 | AL71: 0 | AM71: 0.0077 | AN71: 0.0019 | AO71: 7.3 | AP71: 0 | AQ71: 0.1 | AR71: 0 | AS71: 8.881784197e-16 | AT71: amend | AU71: 7.3 | AV71: 7.3 | AW71: 0 | AX71: 0.1 | AY71: 0 | AZ71: 0 | BA71: =SUMIFS('UK FQA'!D:D,'UK FQA'!B:B,'Main apportion'!A71,'UK FQA'!A:A,'Main apportion'!$BA$6) -> 0 | BB71: 0 | BC71: 0 | BD71: 55.13227609 | BE71: 55.1 | BF71: =SUMIFS('FA FQA'!$G:$G,'FA FQA'!$E:$E,'Main apportion'!$A71,'FA FQA'!$B:$B,'Main apportion'!BF$2,'FA FQA'!$D:$D,'Main apportion'!BF$3) -> 404 | BG71: =SUMIFS('FA FQA'!$G:$G,'FA FQA'!$E:$E,'Main apportion'!$A71,'FA FQA'!$B:$B,'Main apportion'!BG$2,'FA FQA'!$D:$D,'Main apportion'!BG$3) -> 0 | BH71: =SUMIFS('FA FQA'!$G:$G,'FA FQA'!$E:$E,'Main apportion'!$A71,'FA FQA'!$B:$B,'Main apportion'!BH$2,'FA FQA'!$D:$D,'Main apportion'!BH$3) -> 0 | BI71: =SUMIFS('FA FQA'!$G:$G,'FA FQA'!$E:$E,'Main apportion'!$A71,'FA FQA'!$B:$B,'Main apportion'!BI$2,'FA FQA'!$D:$D,'Main apportion'!BI$3) -> 0 | BJ71: 55.1 | BK71: 0 | BL71: 0 | BM71: 0 | BN71: 0 | BO71: 0 | BP71: 0 | BQ71: 55.1 | BR71: 0 | BS71: 0 | BT71: 0 | BU71: 0 | BV71: =SUMIFS('FA FQA'!$G:$G,'FA FQA'!$E:$E,'Main apportion'!$A71,'FA FQA'!$B:$B,'Main apportion'!BV$2,'FA FQA'!$D:$D,'Main apportion'!BV$3) -> 21697 | BW71: =SUMIFS('FA FQA'!$G:$G,'FA FQA'!$E:$E,'Main apportion'!$A71,'FA FQA'!$B:$B,'Main apportion'!BW$2,'FA FQA'!$D:$D,'Main apportion'!BW$3) -> 0 | BX71: =SUMIFS('FA FQA'!$G:$G,'FA FQA'!$E:$E,'Main apportion'!$A71,'FA FQA'!$B:$B,'Main apportion'!BX$2,'FA FQA'!$D:$D,'Main apportion'!BX$3) -> 41 | BY71: =SUMIFS('FA FQA'!$G:$G,'FA FQA'!$E:$E,'Main apportion'!$A71,'FA FQA'!$B:$B,'Main apportion'!BY$2,'FA FQA'!$D:$D,'Main apportion'!BY$3) -> 0 | BZ71: 21738 | CA71: 2966.5 | CB71: 2960.9 | CC71: 0 | CD71: 5.6 | CE71: 0 | CF71: 0 | CG71: 0 | CH71: 0 | CI71: 2960.9 | CJ71: 0 | CK71: 5.6 | CL71: 0 | CM71: 13.64660962 | CN71: 0 | CO71: 0 | CP71: 0 | CQ71: 0 | CR71: 3023.3 | CS71: 0 | CT71: 5.7 | CU71: 0 | CV71: 3023.3 | CW71: 0 | CX71: 5.7 | CY71: 0 | CZ71: 0.9999992856 | DA71: 0 | DB71: 7.14408981e-07 | DC71: 0 | DD71: 563.2 | DE71: 0 | DF71: 0 | DG71: 0 | DH71: 0.999999357 | DI71: 0 | DJ71: 6.429680829e-07 | DK71: 0 | DL71: 1253.8 | DM71: 0 | DN71: 0 | DO71: 0 | DP71: 1817 | DQ71: 0 | DR71: 0 | DS71: 0 | DT71: 1817 | DU71: 0 | DV71: 0 | DW71: 0 | DX71: 0 | DY71: 0 | DZ71: 0 | EA71: 1817 | EB71: 0 | EC71: 0 | ED71: 0 | EE71: 0 | EF71: 4840.3 | EG71: 0 | EH71: 5.7 | EI71: 0 | EJ71: 4840.3 | EK71: 0 | EL71: 5.7 | EM71: 0 | EN71: 0 | EO71: 0
A72: SRX/07D. | B72: 2688 | C72: 0 | D72: 2688 | E72: =VLOOKUP(A72,'All stocks'!$A$5:$B$202,2,FALSE) -> 424 | F72: 424 | G72: 0.150383 | H72: 1 | I72: 0.1579 | J72: 0.1504 | K72: 404 | L72: 20 | M72: 0 | N72: 0 | O72: 20 | P72: 0 | Q72: 0 | R72: 0 | S72: 0 | T72: 0 | U72: 0 | V72: 0.0075 | W72: 0 | X72: 20 | Y72: 0 | Z72: 0 | AA72: 404 | AB72: 0 | AC72: 0 | AD72: 0 | AE72: =SUMIFS('UK FQA'!D:D,'UK FQA'!B:B,A72,'UK FQA'!A:A,'Main apportion'!$AE$6) -> 572.3 | AF72: =SUMIFS('UK FQA'!D:D,'UK FQA'!B:B,A72,'UK FQA'!A:A,'Main apportion'!$AF$6) -> 374.6 | AG72: =SUMIFS('FA FQA'!G:G,'FA FQA'!E:E,'Main apportion'!A72,'FA FQA'!D:D,'Main apportion'!$AG$6) -> 45.2 | AH72: 0 | AI72: 264.4389306 | AJ72: 264.4 | AK72: 0.979 | AL72: 0 | AM72: 0.0055 | AN72: 0.0155 | AO72: 258.8 | AP72: 0 | AQ72: 1.5 | AR72: 4.1 | AS72: -5.684341886e-14 | AT72: amend | AU72: 258.8 | AV72: 258.8 | AW72: 0 | AX72: 1.5 | AY72: 4.1 | AZ72: 0 | BA72: =SUMIFS('UK FQA'!D:D,'UK FQA'!B:B,'Main apportion'!A72,'UK FQA'!A:A,'Main apportion'!$BA$6) -> 0 | BB72: 0 | BC72: 0 | BD72: 31.9077407 | BE72: 31.9 | BF72: =SUMIFS('FA FQA'!$G:$G,'FA FQA'!$E:$E,'Main apportion'!$A72,'FA FQA'!$B:$B,'Main apportion'!BF$2,'FA FQA'!$D:$D,'Main apportion'!BF$3) -> 44.69139297 | BG72: =SUMIFS('FA FQA'!$G:$G,'FA FQA'!$E:$E,'Main apportion'!$A72,'FA FQA'!$B:$B,'Main apportion'!BG$2,'FA FQA'!$D:$D,'Main apportion'!BG$3) -> 0 | BH72: =SUMIFS('FA FQA'!$G:$G,'FA FQA'!$E:$E,'Main apportion'!$A72,'FA FQA'!$B:$B,'Main apportion'!BH$2,'FA FQA'!$D:$D,'Main apportion'!BH$3) -> 0.5086070322 | BI72: =SUMIFS('FA FQA'!$G:$G,'FA FQA'!$E:$E,'Main apportion'!$A72,'FA FQA'!$B:$B,'Main apportion'!BI$2,'FA FQA'!$D:$D,'Main apportion'!BI$3) -> 0 | BJ72: 31.5 | BK72: 0 | BL72: 0.4 | BM72: 0 | BN72: 0 | BO72: 0 | BP72: 0 | BQ72: 31.5 | BR72: 0 | BS72: 0.4 | BT72: 0 | BU72: 0 | BV72: =SUMIFS('FA FQA'!$G:$G,'FA FQA'!$E:$E,'Main apportion'!$A72,'FA FQA'!$B:$B,'Main apportion'!BV$2,'FA FQA'!$D:$D,'Main apportion'!BV$3) -> 146.720855 | BW72: =SUMIFS('FA FQA'!$G:$G,'FA FQA'!$E:$E,'Main apportion'!$A72,'FA FQA'!$B:$B,'Main apportion'!BW$2,'FA FQA'!$D:$D,'Main apportion'!BW$3) -> 0 | BX72: =SUMIFS('FA FQA'!$G:$G,'FA FQA'!$E:$E,'Main apportion'!$A72,'FA FQA'!$B:$B,'Main apportion'!BX$2,'FA FQA'!$D:$D,'Main apportion'!BX$3) -> 5.62731842 | BY72: =SUMIFS('FA FQA'!$G:$G,'FA FQA'!$E:$E,'Main apportion'!$A72,'FA FQA'!$B:$B,'Main apportion'!BY$2,'FA FQA'!$D:$D,'Main apportion'!BY$3) -> 0.1379266179 | BZ72: 152.4861 | CA72: 107.7 | CB72: 103.6 | CC72: 0 | CD72: 4 | CE72: 0.1 | CF72: 0 | CG72: 0 | CH72: 0 | CI72: 103.6 | CJ72: 0 | CK72: 4 | CL72: 0.1 | CM72: 70.62938851 | CN72: 0 | CO72: 0 | CP72: 0 | CQ72: 0 | CR72: 393.9 | CS72: 0 | CT72: 5.9 | CU72: 4.2 | CV72: 393.9 | CW72: 0 | CX72: 5.9 | CY72: 4.2 | CZ72: 0.9779063197 | DA72: 0.0002625854139 | DB72: 0.01000735771 | DC72: 0.01182373714 | DD72: 0 | DE72: 0 | DF72: 0 | DG72: 0 | DH72: 0.9801156878 | DI72: 0.0002363268725 | DJ72: 0.009006621935 | DK72: 0.01064136343 | DL72: 19.6 | DM72: 0 | DN72: 0.2 | DO72: 0.2 | DP72: 19.6 | DQ72: 0 | DR72: 0.2 | DS72: 0.2 | DT72: 19.6 | DU72: 0 | DV72: 0.2 | DW72: 0.2 | DX72: 0 | DY72: 0 | DZ72: 0 | EA72: 19.6 | EB72: 0 | EC72: 0.2 | ED72: 0.2 | EE72: 0 | EF72: 413.5 | EG72: 0 | EH72: 6.1 | EI72: 4.4 | EJ72: 413.5 | EK72: 0 | EL72: 6.1 | EM72: 4.4 | EN72: 0 | EO72: 0
A73: SRX/2AC4-C | B73: 3168 | C73: 0 | D73: 3168 | E73: =VLOOKUP(A73,'All stocks'!$A$5:$B$202,2,FALSE) -> 2186 | F73: =IF(C73<0,ROUND(D73*I73,0),E73) -> 2186 | G73: 0.646864 | H73: 1 | I73: 0.69 | J73: 0.6469 | K73: 2049 | L73: =IFERROR(ROUND(IFERROR(IF(F73-K73<=0,0,F73-K73),""),0),0) -> 137 | M73: 0 | N73: 0 | O73: =IFERROR(IF(L73-N73<>L73,L73-N73,L73),0) -> 137 | P73: 0 | Q73: 0 | R73: 0 | S73: 0 | T73: 0 | U73: 0 | V73: 0.0431 | W73: 0 | X73: 137 | Y73: 0 | Z73: 0 | AA73: 2049 | AB73: 0 | AC73: 0 | AD73: 0 | AE73: =SUMIFS('UK FQA'!D:D,'UK FQA'!B:B,A73,'UK FQA'!A:A,'Main apportion'!$AE$6) -> 30039 | AF73: =SUMIFS('UK FQA'!D:D,'UK FQA'!B:B,A73,'UK FQA'!A:A,'Main apportion'!$AF$6) -> 2022 | AG73: =SUMIFS('FA FQA'!G:G,'FA FQA'!E:E,'Main apportion'!A73,'FA FQA'!D:D,'Main apportion'!$AG$6) -> 388 | AH73: 0 | AI73: 137.9232997 | AJ73: 137.9 | AK73: 0.9705 | AL73: 0.0031 | AM73: 0.0204 | AN73: 0.006 | AO73: =ROUND(IFERROR($AJ73*(AK73/SUM($AK73:$AN73)),0),1) -> 133.8 | AP73: 0.4 | AQ73: =ROUND(IFERROR($AJ73*(AM73/SUM($AK73:$AN73)),0),1) -> 2.8 | AR73: 0.8 | AS73: =IF(AJ73-SUM(AO73:AR73)=0,0,AJ73-SUM(AO73:AR73)) -> 0.1 | AT73: amend | AU73: 133.8 | AV73: 133.9 | AW73: 0.4 | AX73: 2.8 | AY73: 0.8 | AZ73: 0 | BA73: =SUMIFS('UK FQA'!D:D,'UK FQA'!B:B,'Main apportion'!A73,'UK FQA'!A:A,'Main apportion'!$BA$6) -> 161 | BB73: 11 | BC73: 0 | BD73: 26.46599421 | BE73: 26.5 | BF73: =SUMIFS('FA FQA'!$G:$G,'FA FQA'!$E:$E,'Main apportion'!$A73,'FA FQA'!$B:$B,'Main apportion'!BF$2,'FA FQA'!$D:$D,'Main apportion'!BF$3) -> 386 | BG73: =SUMIFS('FA FQA'!$G:$G,'FA FQA'!$E:$E,'Main apportion'!$A73,'FA FQA'!$B:$B,'Main apportion'!BG$2,'FA FQA'!$D:$D,'Main apportion'!BG$3) -> 0 | BH73: =SUMIFS('FA FQA'!$G:$G,'FA FQA'!$E:$E,'Main apportion'!$A73,'FA FQA'!$B:$B,'Main apportion'!BH$2,'FA FQA'!$D:$D,'Main apportion'!BH$3) -> 2 | BI73: =SUMIFS('FA FQA'!$G:$G,'FA FQA'!$E:$E,'Main apportion'!$A73,'FA FQA'!$B:$B,'Main apportion'!BI$2,'FA FQA'!$D:$D,'Main apportion'!BI$3) -> 0 | BJ73: 26.4 | BK73: 0 | BL73: 0.1 | BM73: 0 | BN73: 0 | BO73: 0 | BP73: 0 | BQ73: 26.4 | BR73: 0 | BS73: 0.1 | BT73: 0 | BU73: 0 | BV73: =SUMIFS('FA FQA'!$G:$G,'FA FQA'!$E:$E,'Main apportion'!$A73,'FA FQA'!$B:$B,'Main apportion'!BV$2,'FA FQA'!$D:$D,'Main apportion'!BV$3) -> 11133 | BW73: =SUMIFS('FA FQA'!$G:$G,'FA FQA'!$E:$E,'Main apportion'!$A73,'FA FQA'!$B:$B,'Main apportion'!BW$2,'FA FQA'!$D:$D,'Main apportion'!BW$3) -> 440 | BX73: =SUMIFS('FA FQA'!$G:$G,'FA FQA'!$E:$E,'Main apportion'!$A73,'FA FQA'!$B:$B,'Main apportion'!BX$2,'FA FQA'!$D:$D,'Main apportion'!BX$3) -> 15895 | BY73: =SUMIFS('FA FQA'!$G:$G,'FA FQA'!$E:$E,'Main apportion'!$A73,'FA FQA'!$B:$B,'Main apportion'!BY$2,'FA FQA'!$D:$D,'Main apportion'!BY$3) -> 0 | BZ73: =SUM(BV73:BY73) -> 27468 | CA73: 1873.6 | CB73: 759.4 | CC73: 30 | CD73: =ROUND(IFERROR(CA73*(BX73/$BZ73),0),1) -> 1084.2 | CE73: 0 | CF73: 0 | CG73: 0 | CH73: 0 | CI73: 759.4 | CJ73: 30 | CK73: 1084.2 | CL73: 0 | CM73: 6.821028105 | CN73: 0 | CO73: 0 | CP73: 0 | CQ73: 0 | CR73: 930.7 | CS73: 30.4 | CT73: 1087.1 | CU73: 0.8 | CV73: 930.7 | CW73: 30.4 | CX73: 1087.1 | CY73: 0.8 | CZ73: 0.5091079852 | DA73: 0.0002738750395 | DB73: 0.4905978084 | DC73: 2.033133481e-05 | DD73: 0 | DE73: 0 | DF73: 0 | DG73: 0 | DH73: 0.5200895298 | DI73: 0.0002464875355 | DJ73: 0.4796456844 | DK73: 1.829820133e-05 | DL73: 71.3 | DM73: 0 | DN73: 65.7 | DO73: 0 | DP73: 71.3 | DQ73: 0 | DR73: 65.7 | DS73: 0 | DT73: =ROUND(DP73,1) -> 71.3 | DU73: =ROUND(DQ73,1) -> 0 | DV73: =ROUND(DR73,1) -> 65.7 | DW73: =ROUND(DS73,1) -> 0 | DX73: =L73-(SUM(DT73:DW73)) -> 0 | DY73: 0 | DZ73: 0 | EA73: 71.3 | EB73: 0 | EC73: 65.7 | ED73: 0 | EE73: =L73-SUM(EA73:ED73) -> 0 | EF73: 1002 | EG73: 30.4 | EH73: 1152.8 | EI73: 0.8 | EJ73: 1002 | EK73: 30.4 | EL73: 1152.8 | EM73: 0.8 | EN73: 0 | EO73: 0
A74: SRX/67AKXD | B74: 9430 | C74: 0 | D74: 9430 | E74: =VLOOKUP(A74,'All stocks'!$A$5:$B$202,2,FALSE) -> 2924 | F74: 2924 | G74: 0.258446 | H74: 1 | I74: 0.3101 | J74: 0.2584 | K74: 2437 | L74: 487 | M74: 55 | N74: 55 | O74: 432 | P74: 0 | Q74: 0 | R74: 0 | S74: 0 | T74: 0 | U74: 0 | V74: 0.0517 | W74: 1 | X74: 432 | Y74: 0 | Z74: 0 | AA74: 2437 | AB74: 0 | AC74: 0 | AD74: 0 | AE74: =SUMIFS('UK FQA'!D:D,'UK FQA'!B:B,A74,'UK FQA'!A:A,'Main apportion'!$AE$6) -> 7459.4 | AF74: =SUMIFS('UK FQA'!D:D,'UK FQA'!B:B,A74,'UK FQA'!A:A,'Main apportion'!$AF$6) -> 1507.8 | AG74: =SUMIFS('FA FQA'!G:G,'FA FQA'!E:E,'Main apportion'!A74,'FA FQA'!D:D,'Main apportion'!$AG$6) -> 289.1 | AH74: 0 | AI74: 492.6010939 | AJ74: =ROUND((MAX(AH74,AC74,AI74)),1) -> 492.6 | AK74: 0.8243 | AL74: 0.0109 | AM74: 0.0107 | AN74: 0.1541 | AO74: =ROUND(IFERROR($AJ74*(AK74/SUM($AK74:$AN74)),0),1) -> 406.1 | AP74: =ROUND(IFERROR($AJ74*(AL74/SUM($AK74:$AN74)),0),1) -> 5.4 | AQ74: =ROUND(IFERROR($AJ74*(AM74/SUM($AK74:$AN74)),0),1) -> 5.3 | AR74: =ROUND(IFERROR($AJ74*(AN74/SUM($AK74:$AN74)),0),1) -> 75.9 | AS74: =IF(AJ74-SUM(AO74:AR74)=0,0,AJ74-SUM(AO74:AR74)) -> -0.1 | AT74: =IF(AS74<>0,"amend",0) -> amend | AU74: =IF(AT74="amend",MAX(AO74:AR74),0) -> 406.1 | AV74: =IF(AO74=$AU74,AO74+$AS74,AO74) -> 406 | AW74: =IF(AP74=$AU74,AP74+$AS74,AP74) -> 5.4 | AX74: =IF(AQ74=$AU74,AQ74+$AS74,AQ74) -> 5.3 | AY74: =IF(AR74=$AU74,AR74+$AS74,AR74) -> 75.9 | AZ74: =SUM(AV74:AY74)-AJ74 -> 0 | BA74: =SUMIFS('UK FQA'!D:D,'UK FQA'!B:B,'Main apportion'!A74,'UK FQA'!A:A,'Main apportion'!$BA$6) -> 0 | BB74: 0 | BC74: 0 | BD74: 94.44951337 | BE74: =ROUND((IFERROR(MAX(BC74,BD74),0)),1) -> 94.4 | BF74: =SUMIFS('FA FQA'!$G:$G,'FA FQA'!$E:$E,'Main apportion'!$A74,'FA FQA'!$B:$B,'Main apportion'!BF$2,'FA FQA'!$D:$D,'Main apportion'!BF$3) -> 271.257029 | BG74: =SUMIFS('FA FQA'!$G:$G,'FA FQA'!$E:$E,'Main apportion'!$A74,'FA FQA'!$B:$B,'Main apportion'!BG$2,'FA FQA'!$D:$D,'Main apportion'!BG$3) -> 0.08361767222 | BH74: =SUMIFS('FA FQA'!$G:$G,'FA FQA'!$E:$E,'Main apportion'!$A74,'FA FQA'!$B:$B,'Main apportion'!BH$2,'FA FQA'!$D:$D,'Main apportion'!BH$3) -> 15.07738654 | BI74: =SUMIFS('FA FQA'!$G:$G,'FA FQA'!$E:$E,'Main apportion'!$A74,'FA FQA'!$B:$B,'Main apportion'!BI$2,'FA FQA'!$D:$D,'Main apportion'!BI$3) -> 2.681966822 | BJ74: =ROUND(IFERROR($BE74*(BF74/$AG74),0),1) -> 88.6 | BK74: =ROUND(IFERROR($BE74*(BG74/$AG74),0),1) -> 0 | BL74: =ROUND(IFERROR($BE74*(BH74/$AG74),0),1) -> 4.9 | BM74: =ROUND(IFERROR($BE74*(BI74/$AG74),0),1) -> 0.9 | BN74: =BE74-SUM(BJ74:BM74) -> 0 | BO74: =IF(BN74<>0,"amend",0) -> 0 | BP74: =IF(BO74="amend",MAX(BJ74:BM74),0) -> 0 | BQ74: =IF(BJ74=$BP74,BJ74+$BN74,BJ74) -> 88.6 | BR74: =IF(BK74=$BP74,BK74+$BN74,BK74) -> 0 | BS74: =IF(BL74=$BP74,BL74+$BN74,BL74) -> 4.9 | BT74: =IF(BM74=$BP74,BM74+$BN74,BM74) -> 0.9 | BU74: =SUM(BQ74:BT74)-BE74 -> 0 | BV74: =SUMIFS('FA FQA'!$G:$G,'FA FQA'!$E:$E,'Main apportion'!$A74,'FA FQA'!$B:$B,'Main apportion'!BV$2,'FA FQA'!$D:$D,'Main apportion'!BV$3) -> 4026.50461 | BW74: =SUMIFS('FA FQA'!$G:$G,'FA FQA'!$E:$E,'Main apportion'!$A74,'FA FQA'!$B:$B,'Main apportion'!BW$2,'FA FQA'!$D:$D,'Main apportion'!BW$3) -> 313.3858379 | BX74: =SUMIFS('FA FQA'!$G:$G,'FA FQA'!$E:$E,'Main apportion'!$A74,'FA FQA'!$B:$B,'Main apportion'!BX$2,'FA FQA'!$D:$D,'Main apportion'!BX$3) -> 1176.319199 | BY74: =SUMIFS('FA FQA'!$G:$G,'FA FQA'!$E:$E,'Main apportion'!$A74,'FA FQA'!$B:$B,'Main apportion'!BY$2,'FA FQA'!$D:$D,'Main apportion'!BY$3) -> 146.3003534 | BZ74: 5662.51 | CA74: =ROUND(AA74-AJ74-BE74-BB74,1) -> 1850 | CB74: =ROUND(IFERROR(CA74*(BV74/$BZ74),0),1) -> 1315.5 | CC74: =ROUND(IFERROR(CA74*(BW74/$BZ74),0),1) -> 102.4 | CD74: =ROUND(IFERROR(CA74*(BX74/$BZ74),0),1) -> 384.3 | CE74: =ROUND(IFERROR($CA74*(BY74/$BZ74),0),1) -> 47.8 | CF74: =CA74-SUM(CB74:CE74) -> 0 | CG74: =IF(CF74<>0,"amend",0) -> 0 | CH74: =IF(CG74="amend",MAX(CB74:CE74),0) -> 0 | CI74: =IF(CB74=$CH74,CB74+$CF74,CB74) -> 1315.5 | CJ74: =IF(CC74=$CH74,CC74+$CF74,CC74) -> 102.4 | CK74: =IF(CD74=$CH74,CD74+$CF74,CD74) -> 384.3 | CL74: =IF(CE74=$CH74,CE74+$CF74,CE74) -> 47.8 | CM74: 32.67102398 | CN74: 0 | CO74: 0 | CP74: 0 | CQ74: 0 | CR74: =SUM(AV74,BB74,BQ74,CI74,CN74) -> 1810.1 | CS74: =SUM(AW74,BR74,CJ74,CO74) -> 107.8 | CT74: =SUM(AX74,BS74,CK74,CP74) -> 394.5 | CU74: =SUM(AY74,BT74,CL74,CQ74) -> 124.6 | CV74: =ROUND(CR74,1) -> 1810.1 | CW74: =ROUND(CS74,1) -> 107.8 | CX74: =ROUND(CT74,1) -> 394.5 | CY74: =ROUND(CU74,1) -> 124.6 | CZ74: 0.7571712546 | DA74: 0.04400619511 | DB74: 0.1452060868 | DC74: 0.05361646356 | DD74: 0 | DE74: 0 | DF74: 0 | DG74: 0 | DH74: 0.8058153999 | DI74: 0.04396377971 | DJ74: 0.1502208203 | DK74: 0 | DL74: =ROUND(IFERROR(DH74*$X74,0),1) -> 348.1 | DM74: =ROUND(IFERROR(DI74*$X74,0),1) -> 19 | DN74: =ROUND(IFERROR(DJ74*$X74,0),1) -> 64.9 | DO74: 55 | DP74: 348.1 | DQ74: 19 | DR74: 64.9 | DS74: 55 | DT74: 348.1 | DU74: 19 | DV74: 64.9 | DW74: 55 | DX74: 0 | DY74: =IF(DX74<>0,"amend",0) -> 0 | DZ74: =IF(DY74="amend",MAX(DT74:DW74),0) -> 0 | EA74: 348.1 | EB74: =IF(DU74=$DZ74,DU74+$DX74,DU74) -> 19 | EC74: =IF(DV74=$DZ74,DV74+$DX74,DV74) -> 64.9 | ED74: =IF(DW74=$DZ74,DW74+$DX74,DW74) -> 55 | EE74: 0 | EF74: 2158.2 | EG74: 126.8 | EH74: 459.4 | EI74: 179.6 | EJ74: 2158.2 | EK74: 126.8 | EL74: 459.4 | EM74: 179.6 | EN74: 0 | EO74: 0
A75: T/B/2AC4-C | B75: 4306 | C75: 0 | D75: 4306 | E75: =VLOOKUP(A75,'All stocks'!$A$5:$B$202,2,FALSE) -> 861 | F75: 861 | G75: 0.154444 | H75: 1 | I75: 0.2 | J75: 0.1544 | K75: 665 | L75: 196 | M75: 0 | N75: 0 | O75: 196 | P75: 0 | Q75: 0 | R75: 0 | S75: 0 | T75: 0 | U75: 0 | V75: 0.0456 | W75: 0 | X75: 196 | Y75: 0 | Z75: 0 | AA75: 665 | AB75: 0 | AC75: 0 | AD75: 0 | AE75: =SUMIFS('UK FQA'!D:D,'UK FQA'!B:B,A75,'UK FQA'!A:A,'Main apportion'!$AE$6) -> 8497 | AF75: =SUMIFS('UK FQA'!D:D,'UK FQA'!B:B,A75,'UK FQA'!A:A,'Main apportion'!$AF$6) -> 56 | AG75: =SUMIFS('FA FQA'!G:G,'FA FQA'!E:E,'Main apportion'!A75,'FA FQA'!D:D,'Main apportion'!$AG$6) -> 3 | AH75: 0 | AI75: 4.382723314 | AJ75: 4.4 | AK75: 0.9803 | AL75: 0.0002 | AM75: 0.0141 | AN75: 0.0054 | AO75: =ROUND(IFERROR($AJ75*(AK75/SUM($AK75:$AN75)),0),1) -> 4.3 | AP75: 0 | AQ75: 0.1 | AR75: 0 | AS75: =IF(AJ75-SUM(AO75:AR75)=0,0,AJ75-SUM(AO75:AR75)) -> 8.881784197e-16 | AT75: amend | AU75: 4.3 | AV75: 4.3 | AW75: 0 | AX75: 0.1 | AY75: 0 | AZ75: 0 | BA75: =SUMIFS('UK FQA'!D:D,'UK FQA'!B:B,'Main apportion'!A75,'UK FQA'!A:A,'Main apportion'!$BA$6) -> 87 | BB75: 6.8 | BC75: 0 | BD75: 0.234788749 | BE75: 0.2 | BF75: =SUMIFS('FA FQA'!$G:$G,'FA FQA'!$E:$E,'Main apportion'!$A75,'FA FQA'!$B:$B,'Main apportion'!BF$2,'FA FQA'!$D:$D,'Main apportion'!BF$3) -> 2 | BG75: =SUMIFS('FA FQA'!$G:$G,'FA FQA'!$E:$E,'Main apportion'!$A75,'FA FQA'!$B:$B,'Main apportion'!BG$2,'FA FQA'!$D:$D,'Main apportion'!BG$3) -> 0 | BH75: =SUMIFS('FA FQA'!$G:$G,'FA FQA'!$E:$E,'Main apportion'!$A75,'FA FQA'!$B:$B,'Main apportion'!BH$2,'FA FQA'!$D:$D,'Main apportion'!BH$3) -> 1 | BI75: =SUMIFS('FA FQA'!$G:$G,'FA FQA'!$E:$E,'Main apportion'!$A75,'FA FQA'!$B:$B,'Main apportion'!BI$2,'FA FQA'!$D:$D,'Main apportion'!BI$3) -> 0 | BJ75: 0.1 | BK75: 0 | BL75: 0.1 | BM75: 0 | BN75: 0 | BO75: 0 | BP75: 0 | BQ75: 0.1 | BR75: 0 | BS75: 0.1 | BT75: 0 | BU75: 0 | BV75: =SUMIFS('FA FQA'!$G:$G,'FA FQA'!$E:$E,'Main apportion'!$A75,'FA FQA'!$B:$B,'Main apportion'!BV$2,'FA FQA'!$D:$D,'Main apportion'!BV$3) -> 6285 | BW75: =SUMIFS('FA FQA'!$G:$G,'FA FQA'!$E:$E,'Main apportion'!$A75,'FA FQA'!$B:$B,'Main apportion'!BW$2,'FA FQA'!$D:$D,'Main apportion'!BW$3) -> 67 | BX75: =SUMIFS('FA FQA'!$G:$G,'FA FQA'!$E:$E,'Main apportion'!$A75,'FA FQA'!$B:$B,'Main apportion'!BX$2,'FA FQA'!$D:$D,'Main apportion'!BX$3) -> 1999 | BY75: =SUMIFS('FA FQA'!$G:$G,'FA FQA'!$E:$E,'Main apportion'!$A75,'FA FQA'!$B:$B,'Main apportion'!BY$2,'FA FQA'!$D:$D,'Main apportion'!BY$3) -> 0 | BZ75: 8351 | CA75: 653.6 | CB75: =ROUND(IFERROR(CA75*(BV75/$BZ75),0),1) -> 491.9 | CC75: 5.2 | CD75: 156.5 | CE75: 0 | CF75: 0 | CG75: 0 | CH75: 0 | CI75: 491.9 | CJ75: 5.2 | CK75: 156.5 | CL75: 0 | CM75: 7.826607592 | CN75: 0 | CO75: 0 | CP75: 0 | CQ75: 0 | CR75: 503.1 | CS75: 5.2 | CT75: 156.7 | CU75: 0 | CV75: 503.1 | CW75: 5.2 | CX75: 156.7 | CY75: 0 | CZ75: 0.7356526217 | DA75: 0.001951063041 | DB75: 0.2623461413 | DC75: 5.017398801e-05 | DD75: 0 | DE75: 0 | DF75: 0 | DG75: 0 | DH75: 0.7573340006 | DI75: 0.001755956737 | DJ75: 0.2408648861 | DK75: 4.515658921e-05 | DL75: 148.4 | DM75: 0.3 | DN75: 47.2 | DO75: 0 | DP75: 148.4 | DQ75: 0.3 | DR75: 47.2 | DS75: 0 | DT75: =ROUND(DP75,1) -> 148.4 | DU75: 0.3 | DV75: 47.2 | DW75: 0 | DX75: 0.1 | DY75: amend | DZ75: 148.4 | EA75: =IF(DT75=$DZ75,DT75+$DX75,DT75) -> 148.5 | EB75: 0.3 | EC75: 47.2 | ED75: 0 | EE75: 0 | EF75: 651.6 | EG75: 5.5 | EH75: 203.9 | EI75: 0 | EJ75: 651.6 | EK75: 5.5 | EL75: 203.9 | EM75: 0 | EN75: 0 | EO75: 0
A76: USK/04-C. | B76: 208 | C76: 0 | D76: 208 | E76: =VLOOKUP(A76,'All stocks'!$A$5:$B$202,2,FALSE) -> 84 | F76: 84 | G76: 0.405405 | H76: 1 | I76: 0.4054 | J76: 0.4054 | K76: 84 | L76: 0 | M76: 0 | N76: 0 | O76: 0 | P76: 0 | Q76: 0 | R76: 0 | S76: 0 | T76: 0 | U76: 0 | V76: 0 | W76: 0 | X76: 0 | Y76: 0 | Z76: 0 | AA76: 84 | AB76: 0 | AC76: 0 | AD76: 0 | AE76: =SUMIFS('UK FQA'!D:D,'UK FQA'!B:B,A76,'UK FQA'!A:A,'Main apportion'!$AE$6) -> 2833 | AF76: =SUMIFS('UK FQA'!D:D,'UK FQA'!B:B,A76,'UK FQA'!A:A,'Main apportion'!$AF$6) -> 9 | AG76: =SUMIFS('FA FQA'!G:G,'FA FQA'!E:E,'Main apportion'!A76,'FA FQA'!D:D,'Main apportion'!$AG$6) -> 1 | AH76: 0 | AI76: 0.2668549241 | AJ76: 0.3 | AK76: 0.25 | AL76: 0.25 | AM76: 0.25 | AN76: 0.25 | AO76: =ROUND(IFERROR($AJ76*(AK76/SUM($AK76:$AN76)),0),1) -> 0.1 | AP76: =ROUND(IFERROR($AJ76*(AL76/SUM($AK76:$AN76)),0),1) -> 0.1 | AQ76: =ROUND(IFERROR($AJ76*(AM76/SUM($AK76:$AN76)),0),1) -> 0.1 | AR76: =ROUND(IFERROR($AJ76*(AN76/SUM($AK76:$AN76)),0),1) -> 0.1 | AS76: =IF(AJ76-SUM(AO76:AR76)=0,0,AJ76-SUM(AO76:AR76)) -> -0.1 | AT76: amend | AU76: 0.1 | AV76: =IF(AO76=$AU76,AO76+$AS76,AO76)+0.1 -> 0.1 | AW76: =IF(AP76=$AU76,AP76+$AS76,AP76)+0.1 -> 0.1 | AX76: =IF(AQ76=$AU76,AQ76+$AS76,AQ76)+0.1 -> 0.1 | AY76: =IF(AR76=$AU76,AR76+$AS76,AR76) -> -2.775557562e-17 | AZ76: =SUM(AV76:AY76)-AJ76 -> 0 | BA76: =SUMIFS('UK FQA'!D:D,'UK FQA'!B:B,'Main apportion'!A76,'UK FQA'!A:A,'Main apportion'!$BA$6) -> 0 | BB76: 0 | BC76: 0 | BD76: 0.02965054712 | BE76: 0 | BF76: =SUMIFS('FA FQA'!$G:$G,'FA FQA'!$E:$E,'Main apportion'!$A76,'FA FQA'!$B:$B,'Main apportion'!BF$2,'FA FQA'!$D:$D,'Main apportion'!BF$3) -> 1 | BG76: =SUMIFS('FA FQA'!$G:$G,'FA FQA'!$E:$E,'Main apportion'!$A76,'FA FQA'!$B:$B,'Main apportion'!BG$2,'FA FQA'!$D:$D,'Main apportion'!BG$3) -> 0 | BH76: =SUMIFS('FA FQA'!$G:$G,'FA FQA'!$E:$E,'Main apportion'!$A76,'FA FQA'!$B:$B,'Main apportion'!BH$2,'FA FQA'!$D:$D,'Main apportion'!BH$3) -> 0 | BI76: =SUMIFS('FA FQA'!$G:$G,'FA FQA'!$E:$E,'Main apportion'!$A76,'FA FQA'!$B:$B,'Main apportion'!BI$2,'FA FQA'!$D:$D,'Main apportion'!BI$3) -> 0 | BJ76: 0 | BK76: 0 | BL76: 0 | BM76: 0 | BN76: 0 | BO76: 0 | BP76: 0 | BQ76: 0 | BR76: 0 | BS76: 0 | BT76: 0 | BU76: 0 | BV76: =SUMIFS('FA FQA'!$G:$G,'FA FQA'!$E:$E,'Main apportion'!$A76,'FA FQA'!$B:$B,'Main apportion'!BV$2,'FA FQA'!$D:$D,'Main apportion'!BV$3) -> 715 | BW76: =SUMIFS('FA FQA'!$G:$G,'FA FQA'!$E:$E,'Main apportion'!$A76,'FA FQA'!$B:$B,'Main apportion'!BW$2,'FA FQA'!$D:$D,'Main apportion'!BW$3) -> 9 | BX76: =SUMIFS('FA FQA'!$G:$G,'FA FQA'!$E:$E,'Main apportion'!$A76,'FA FQA'!$B:$B,'Main apportion'!BX$2,'FA FQA'!$D:$D,'Main apportion'!BX$3) -> 2099 | BY76: =SUMIFS('FA FQA'!$G:$G,'FA FQA'!$E:$E,'Main apportion'!$A76,'FA FQA'!$B:$B,'Main apportion'!BY$2,'FA FQA'!$D:$D,'Main apportion'!BY$3) -> 0 | BZ76: 2823 | CA76: 83.7 | CB76: 21.2 | CC76: 0.3 | CD76: 62.2 | CE76: 0 | CF76: 0 | CG76: 0 | CH76: 0 | CI76: 21.2 | CJ76: 0.3 | CK76: 62.2 | CL76: 0 | CM76: 2.964930925 | CN76: 0 | CO76: 0 | CP76: 0 | CQ76: 0 | CR76: 21.3 | CS76: 0.4 | CT76: =SUM(AX76,BS76,CK76,CP76) -> 62.3 | CU76: -2.775557562e-17 | CV76: 21.3 | CW76: 0.4 | CX76: 62.3 | CY76: 0 | CZ76: 0.1110962926 | DA76: 0 | DB76: 0.8889037074 | DC76: 0 | DD76: 0 | DE76: 0 | DF76: 0 | DG76: 0 | DH76: 0.1000097807 | DI76: 0 | DJ76: 0.8999902193 | DK76: 0 | DL76: 0 | DM76: 0 | DN76: 0 | DO76: 0 | DP76: 0 | DQ76: 0 | DR76: 0 | DS76: 0 | DT76: 0 | DU76: 0 | DV76: 0 | DW76: 0 | DX76: 0 | DY76: 0 | DZ76: 0 | EA76: 0 | EB76: 0 | EC76: 0 | ED76: 0 | EE76: 0 | EF76: 21.3 | EG76: 0.4 | EH76: 62.3 | EI76: 0 | EJ76: 21.3 | EK76: 0.4 | EL76: =ROUND(EH76,1) -> 62.3 | EM76: 0 | EN76: 0 | EO76: 0
A77: USK/567EI. | B77: 6940 | C77: 0 | D77: 6940 | E77: =VLOOKUP(A77,'All stocks'!$A$5:$B$202,2,FALSE) -> 1917 | F77: 1917 | G77: 0.28169 | H77: 1 | I77: 0.3 | J77: 0.2817 | K77: 1917 | L77: 0 | M77: 0 | N77: 0 | O77: 0 | P77: 0 | Q77: 0 | R77: 0 | S77: 0 | T77: 0 | U77: 0 | V77: 0.0183 | W77: 0 | X77: 0 | Y77: 0 | Z77: 0 | AA77: 1917 | AB77: 0 | AC77: 0 | AD77: 0 | AE77: =SUMIFS('UK FQA'!D:D,'UK FQA'!B:B,A77,'UK FQA'!A:A,'Main apportion'!$AE$6) -> 5699 | AF77: =SUMIFS('UK FQA'!D:D,'UK FQA'!B:B,A77,'UK FQA'!A:A,'Main apportion'!$AF$6) -> 0 | AG77: =SUMIFS('FA FQA'!G:G,'FA FQA'!E:E,'Main apportion'!A77,'FA FQA'!D:D,'Main apportion'!$AG$6) -> 0 | AH77: 0 | AI77: 0 | AJ77: 0 | AK77: 0 | AL77: 0 | AM77: 0 | AN77: 0 | AO77: 0 | AP77: 0 | AQ77: 0 | AR77: 0 | AS77: =IF(AJ77-SUM(AO77:AR77)=0,0,AJ77-SUM(AO77:AR77)) -> 0 | AT77: 0 | AU77: 0 | AV77: 0 | AW77: 0 | AX77: 0 | AY77: 0 | AZ77: 0 | BA77: =SUMIFS('UK FQA'!D:D,'UK FQA'!B:B,'Main apportion'!A77,'UK FQA'!A:A,'Main apportion'!$BA$6) -> 0 | BB77: 0 | BC77: 0 | BD77: 0 | BE77: 0 | BF77: =SUMIFS('FA FQA'!$G:$G,'FA FQA'!$E:$E,'Main apportion'!$A77,'FA FQA'!$B:$B,'Main apportion'!BF$2,'FA FQA'!$D:$D,'Main apportion'!BF$3) -> 0 | BG77: =SUMIFS('FA FQA'!$G:$G,'FA FQA'!$E:$E,'Main apportion'!$A77,'FA FQA'!$B:$B,'Main apportion'!BG$2,'FA FQA'!$D:$D,'Main apportion'!BG$3) -> 0 | BH77: =SUMIFS('FA FQA'!$G:$G,'FA FQA'!$E:$E,'Main apportion'!$A77,'FA FQA'!$B:$B,'Main apportion'!BH$2,'FA FQA'!$D:$D,'Main apportion'!BH$3) -> 0 | BI77: =SUMIFS('FA FQA'!$G:$G,'FA FQA'!$E:$E,'Main apportion'!$A77,'FA FQA'!$B:$B,'Main apportion'!BI$2,'FA FQA'!$D:$D,'Main apportion'!BI$3) -> 0 | BJ77: 0 | BK77: 0 | BL77: 0 | BM77: 0 | BN77: 0 | BO77: 0 | BP77: 0 | BQ77: 0 | BR77: 0 | BS77: 0 | BT77: 0 | BU77: 0 | BV77: =SUMIFS('FA FQA'!$G:$G,'FA FQA'!$E:$E,'Main apportion'!$A77,'FA FQA'!$B:$B,'Main apportion'!BV$2,'FA FQA'!$D:$D,'Main apportion'!BV$3) -> 1411 | BW77: =SUMIFS('FA FQA'!$G:$G,'FA FQA'!$E:$E,'Main apportion'!$A77,'FA FQA'!$B:$B,'Main apportion'!BW$2,'FA FQA'!$D:$D,'Main apportion'!BW$3) -> 10 | BX77: =SUMIFS('FA FQA'!$G:$G,'FA FQA'!$E:$E,'Main apportion'!$A77,'FA FQA'!$B:$B,'Main apportion'!BX$2,'FA FQA'!$D:$D,'Main apportion'!BX$3) -> 4278 | BY77: =SUMIFS('FA FQA'!$G:$G,'FA FQA'!$E:$E,'Main apportion'!$A77,'FA FQA'!$B:$B,'Main apportion'!BY$2,'FA FQA'!$D:$D,'Main apportion'!BY$3) -> 0 | BZ77: 5699 | CA77: 1917 | CB77: 474.6 | CC77: 3.4 | CD77: 1439 | CE77: 0 | CF77: 0 | CG77: 0 | CH77: 0 | CI77: 474.6 | CJ77: 3.4 | CK77: 1439 | CL77: 0 | CM77: 33.63748026 | CN77: 0 | CO77: 0 | CP77: 0 | CQ77: 0 | CR77: 474.6 | CS77: 3.4 | CT77: 1439 | CU77: 0 | CV77: 474.6 | CW77: 3.4 | CX77: 1439 | CY77: 0 | CZ77: 0.005445207154 | DA77: 0 | DB77: 0.9945547928 | DC77: 0 | DD77: 0 | DE77: 0 | DF77: 0 | DG77: 0 | DH77: 0.004976357887 | DI77: 3.348059052e-08 | DJ77: 0.995013971 | DK77: 9.637612697e-06 | DL77: 0 | DM77: 0 | DN77: 0 | DO77: 0 | DP77: 0 | DQ77: 0 | DR77: 0 | DS77: 0 | DT77: 0 | DU77: 0 | DV77: 0 | DW77: 0 | DX77: 0 | DY77: 0 | DZ77: 0 | EA77: 0 | EB77: 0 | EC77: 0 | ED77: 0 | EE77: 0 | EF77: 474.6 | EG77: 3.4 | EH77: 1439 | EI77: 0 | EJ77: 474.6 | EK77: 3.4 | EL77: 1439 | EM77: 0 | EN77: 0 | EO77: 0
A78: WHB/1X14 | B78: 1447054 | C78: 0 | D78: 1447054 | E78: =VLOOKUP(A78,'All stocks'!$A$5:$B$202,2,FALSE) -> 114157 | F78: 114157 | G78: 0.1797 | H78: 0.3756695115 | I78: 0.21 | J78: 0.0744 | K78: 107661 | L78: 6496 | M78: 0 | N78: 0 | O78: 6496 | P78: 0 | Q78: 0 | R78: 0 | S78: 0 | T78: 0 | U78: 0 | V78: 0.1356 | W78: 0 | X78: 6496 | Y78: 0 | Z78: 0 | AA78: 107661 | AB78: 0 | AC78: 0 | AD78: 0 | AE78: =SUMIFS('UK FQA'!D:D,'UK FQA'!B:B,A78,'UK FQA'!A:A,'Main apportion'!$AE$6) -> 487078 | AF78: =SUMIFS('UK FQA'!D:D,'UK FQA'!B:B,A78,'UK FQA'!A:A,'Main apportion'!$AF$6) -> 0 | AG78: =SUMIFS('FA FQA'!G:G,'FA FQA'!E:E,'Main apportion'!A78,'FA FQA'!D:D,'Main apportion'!$AG$6) -> 0 | AH78: 0 | AI78: 0 | AJ78: 0 | AK78: 0 | AL78: 0 | AM78: 0 | AN78: 0 | AO78: 0 | AP78: 0 | AQ78: 0 | AR78: 0 | AS78: 0 | AT78: 0 | AU78: 0 | AV78: 0 | AW78: 0 | AX78: 0 | AY78: 0 | AZ78: 0 | BA78: =SUMIFS('UK FQA'!D:D,'UK FQA'!B:B,'Main apportion'!A78,'UK FQA'!A:A,'Main apportion'!$BA$6) -> 0 | BB78: 0 | BC78: 0 | BD78: 0 | BE78: 0 | BF78: =SUMIFS('FA FQA'!$G:$G,'FA FQA'!$E:$E,'Main apportion'!$A78,'FA FQA'!$B:$B,'Main apportion'!BF$2,'FA FQA'!$D:$D,'Main apportion'!BF$3) -> 0 | BG78: =SUMIFS('FA FQA'!$G:$G,'FA FQA'!$E:$E,'Main apportion'!$A78,'FA FQA'!$B:$B,'Main apportion'!BG$2,'FA FQA'!$D:$D,'Main apportion'!BG$3) -> 0 | BH78: =SUMIFS('FA FQA'!$G:$G,'FA FQA'!$E:$E,'Main apportion'!$A78,'FA FQA'!$B:$B,'Main apportion'!BH$2,'FA FQA'!$D:$D,'Main apportion'!BH$3) -> 0 | BI78: =SUMIFS('FA FQA'!$G:$G,'FA FQA'!$E:$E,'Main apportion'!$A78,'FA FQA'!$B:$B,'Main apportion'!BI$2,'FA FQA'!$D:$D,'Main apportion'!BI$3) -> 0 | BJ78: 0 | BK78: 0 | BL78: 0 | BM78: 0 | BN78: 0 | BO78: 0 | BP78: 0 | BQ78: 0 | BR78: 0 | BS78: 0 | BT78: 0 | BU78: 0 | BV78: =SUMIFS('FA FQA'!$G:$G,'FA FQA'!$E:$E,'Main apportion'!$A78,'FA FQA'!$B:$B,'Main apportion'!BV$2,'FA FQA'!$D:$D,'Main apportion'!BV$3) -> 12397 | BW78: =SUMIFS('FA FQA'!$G:$G,'FA FQA'!$E:$E,'Main apportion'!$A78,'FA FQA'!$B:$B,'Main apportion'!BW$2,'FA FQA'!$D:$D,'Main apportion'!BW$3) -> 23868 | BX78: =SUMIFS('FA FQA'!$G:$G,'FA FQA'!$E:$E,'Main apportion'!$A78,'FA FQA'!$B:$B,'Main apportion'!BX$2,'FA FQA'!$D:$D,'Main apportion'!BX$3) -> 450804 | BY78: =SUMIFS('FA FQA'!$G:$G,'FA FQA'!$E:$E,'Main apportion'!$A78,'FA FQA'!$B:$B,'Main apportion'!BY$2,'FA FQA'!$D:$D,'Main apportion'!BY$3) -> 9 | BZ78: 487078 | CA78: 107661 | CB78: 2740.2 | CC78: 5275.6 | CD78: =ROUND(IFERROR(CA78*(BX78/$BZ78),0),1) -> 99643.2 | CE78: 2 | CF78: 0 | CG78: 0 | CH78: 0 | CI78: 2740.2 | CJ78: 5275.6 | CK78: 99643.2 | CL78: 2 | CM78: 22.10344134 | CN78: 0 | CO78: 0 | CP78: 0 | CQ78: 0 | CR78: 2740.2 | CS78: 5275.6 | CT78: 99643.2 | CU78: 2 | CV78: 2740.2 | CW78: 5275.6 | CX78: 99643.2 | CY78: 2 | CZ78: 0.05180181125 | DA78: 0.04129374274 | DB78: 0.9069043203 | DC78: 1.256814459e-07 | DD78: 0 | DE78: 0 | DF78: 0 | DG78: 0 | DH78: 0.04684863887 | DI78: 0.03716436846 | DJ78: 0.9159866465 | DK78: 1.273914015e-07 | DL78: 304.3 | DM78: 241.4 | DN78: 5950.2 | DO78: 0 | DP78: 304.3 | DQ78: 241.4 | DR78: 5950.2 | DS78: 0 | DT78: 304.3 | DU78: 241.4 | DV78: 5950.2 | DW78: 0 | DX78: 0.1 | DY78: amend | DZ78: 5950.2 | EA78: 304.3 | EB78: 241.4 | EC78: 5950.3 | ED78: 0 | EE78: 0 | EF78: 3044.5 | EG78: 5517 | EH78: 105593.5 | EI78: 2 | EJ78: 3044.5 | EK78: 5517 | EL78: 105593.5 | EM78: 2 | EN78: 0 | EO78: 0
